Workbook

Sheet Title_Page
B2: PUBLIC RELEASE DRAFT
B3: November 2024
B5: Draft Integrated Indoor Outdoor Air Calculator (IIOAC) TRI 2016-2021 Exposure and Risk Analysis for 1,3-Butadiene
B8: CASRN 106-99-0

Sheet Table_of_Contents
A1: Description of this exposure and risk estimate workbook
A2: This workbook contains a summary of air concentrations modeled from the Integrated Indoor Outdoor Air Calculator (IIOAC) based on TRI 2016-2021 reported releases and EPA-estimated releases for the adhesives and sealants occupational exposure scenario (OES).This file contains sheets with the chemical and release inputs for IIOAC and the raw modeled concentration outputs along with non-cancer and cancer risk calculations based on the inhalation hazard values.
A5: Worksheet | B5: Description
A6: Definitions | B6: This tab provides definitions of several terms utilized throughout this worksheet.
A7: Equations | B7: This tab provides relevant equations for calculating modeled concentration estimates and risks.
A8: Hazard Values | B8: This tab provides inhalation HEC, IUR and associated Benchmark values.
A9: Chemical | B9: This tab provides the chemical properties input
A10: Emission Scenarios | B10: This tab provides the emissions scenarios from facilities reporting to TRI 2016-2021 fugitive and stack releases of 1,3-butadiene
A11: Source Inputs Fugitive | B11: This tab provides the fugitive input parameters for source, land and deposition and emission scenario
A12: Source Inputs Point | B12: This tab provides the point input parameters for source, land and deposition and emission scenario
A13: Source Inputs Fugitive | B13: This tab provides the fugitive source output results from IIOAC
A14: Source Outputs Point | B14: This tab provides the point source output results from IIOAC
A15: Risk Calculations | B15: This tab provides the MOE and cancer risk calculations based on IIOAC modeled concentrations and inhalation hazard values for all fugitive and point source emission scenarios
A16: 95th Tables | B16: This tab provides a summary table based on the IIOAC 95th percentile modeled concentrations
A17: Mean Tables | B17: This tab provides a summary table based on the IIOAC mean modeled concentrations
A18: Adhesives Inputs Fugitive | B18: This tab provides the adhesives and sealants fugitive input parameters for source, land and deposition and emission scenario
A19: Adhesives Fugitive Output | B19: This tab provides the adhesives and sealants fugitive source output of IIOAC modeled concentrations that included the high end and mean daily and annual indoor and outdoor air concentrations for fenceline, community and outerbound distances per fugitive emission scenario
A20: Adhesives Inputs Point | B20: This tab provides the adhesives and sealants point input parameters for source, land and deposition and emission scenario
A21: Adhesives Point Output | B21: This tab provides the adhesives and sealants point source output of IIOAC modeled concentrations that included the high end and mean daily and annual indoor and outdoor air concentrations for fenceline, community and outerbound distances per fugitive emission scenario
A22: Adhesives Risk Calculations | B22: This tab provides the MOE and cancer risk calculations based on IIOAC modeled concentrations and inhalation hazard values for all adhesives and sealants fugitive and point source emission scenarios

Sheet Definitions
A1: Term | B1: Definition
A2: IIOAC | B2: Integrated Indoor Outdoor Air Calculator
A3: OES | B3: Occupational Exposure Scenario
A4: ppm: | B4: Parts per million
A5: µg/m3 | B5: Micrograms per cubic meter
A6: Average Daily Concentration (ADC): | B6: The mean amount of an agent to which a person is exposed on a daily basis, often averaged over a definitive period of time. For purposes of this document, this is the annual air concentration adjusted for exposure duration, exposure frequency, exposure time, and averaging time associated with the exposure scenario.
A7: Lifetime Average Daily Concentration (LADC): | B7: The average daily concentration adjusted for a receptors expected residency time and lifetime [Calculated from ADC].
A8: Mean | B8: The modeled concentration representing the 50th percentile concentration within the modeled concentration distribution.
A9: High End | B9: The modeled concentration representing the 95th percentile concentration within the modeled concentration distribution.
A10: Maximum Emission Scenario | B10: The maximum modeled release within the evaluated OES. Used as the input into IIOAC to model exposure concentrations.
A11: 95th percentile Emission Scenario | B11: The 95th percentile of modeled release within the evaluated OES. Used as the input into IIOAC to model exposure concentrations.
A12: Mean Emission Scenario | B12: The mean of modeled release within the evaluated OES. Used as the input into IIOAC to model exposure concentrations.
A13: Fenceline Average | B13: Represents the daily-averaged and annual-averaged concentrations at 100 m distance from releasing facilities
A14: Community Average | B14: Represents the daily-averaged and annual-averaged concentrations at 100 to 1000 m distance from releasing facilities
A15: Outerbound Average | B15: Represents the daily-averaged and annual-averaged concentrations at 1000 m distance from releasing facilities
A16: Human Equivalent Concentration (HEC): | B16: The human concentration (for inhalation exposure) of an agent that is believed to induce the same magnitude of toxic effect as the experimental animal species concentration or dose. This adjustment may incorporate toxicokinetic information on the particular agent, if available, or use a default procedure.
A17: Inhalation Unit Risk (IUR): | B17: The upper-bound excess lifetime cancer risk estimated to result from continuous exposure to an agent at a concentration of 1 µg/m3 in air. The interpretation of inhalation unit risk would be as follows: if unit risk = 2 × 10-6 per µg/m3, 2 excess cancer cases (upper bound estimate) are expected to develop per 1,000,000 people if exposed daily for a lifetime to 1 µg of the chemical per m3 of air.
A18: Cancer Benchmark: | B18: The cancer risk level above which EPA identifies a potential for unreasonable risk. For the purposes of this fenceline analysis, EPA used 1 x 10-6 as the starting benchmark for cancer risk.
A19: Margin of Exposure (MOE): | B19: The point of departure divided by the actual or projected environmental exposure of interest
A20: MOE Benchmark | B20: The product of uncertainty factors for a given non-cancer POD. EPA interprets the MOE risk estimates in reference to benchmark MOEs. For the purposes of this fenceline analysis, MOE risk estimates were interpreted as a potential non-cancer risk if the MOE was less than the benchmark MOE.

Sheet Equations
A2: Cppm = (Cµg/m3*24.45)/(MW*1000)
A3: Cµg/m3 = (Cppm*MW*1000)/24.45
A5: Where
A6: Cppm = Modeled concentration in parts per million (by volume)
A7: Cµg/m3 = Modeled concentration in micrograms per cubic meter (output from AERMOD; DAC or AAC)
A8: MW = Molecular weight (54.09 g/mol for 1,3-butadiene)
A9: 24.45 = Molar Volume
A10: 1,000 = Conversion factor micrograms to milligrams
A18: Where
A19: DAC = Daily Average Air Concentration (ppm or µg/m3)
A20: Ci = Modeled hourly concentration for operating hour i (ppm or µg/m3)
A21: n = Number of operating hours within a given day (hours)
A23: a Operating hours can vary depending on the total number of operating hours in a given day but can never be greater than 24 hours.
A24: If a facility operates for 16 hours during a day then n=16 and the concentrations summed together are C1 through C16.
A28: AC = (CDAC x ED)/ATAC
A30: Where
A31: AC: Acute Concentration (ppm µg/m3)
A32: CDAC: Daily Average Concentration (ppm µg/m3)
A33: ED: Exposure Duration (24 hours)
A34: ATAC: Averaging Time (24 hours)
A42: Where
A43: AAC = Annual Average Air Concentration (ppm or µg/m3)
A44: DACi = Calculated daily average concentration for operating day i (ppm or µg/m3)
A45: n = Number of operating days within an operating year (days)
A47: a Operating days can vary depending on the total number of days a facilty operates in a given year but can never be greater than 365 days (or 366 days for a leap year).
A48: If a facility operates for 260 days of a given operating year then n=260 and the daily concentrations summed together are C1 through C260.
A52: ADC=(CAAC x ET x EF x ED)/ATADC
A54: Where
A55: ADC: Average Daily Concentration (ppm or µg/m3)
A56: CAAC: Annual average concentration (ppm or µg/m3)
A57: ET: Exposure Time (24 hours/day)
A58: EF: Exposure Frequency (365 days/year)
A59: ED: Exposure Duration (1 yr)
A60: ATADC: Averaging Time = 1 yr x 365 days/year x 24 hrs/day
A64: LADC = (CAAC x ET x EF x ED)/ATLADC
A66: Where
A67: LADC: Lifetime Average Daily Concentration (ppm or µg/m3)
A68: CAAC: Annual average concentration (ppm or µg/m3)
A69: ET: Exposure Time (24 hrs/day)
A70: EF: Exposure Frequency (365 days/year)
A71: ED: Exposure duration (78 yrs resident)
A72: ATLADC: Averaging Time (78 yrs x 365 days/year x 24 hrs/day)
A73: 78 = Number of years resident assumed to reside in a single residential location (years) [from Exposure Factors Handbook]
A74: 78 = Number of years a receptor is assumed to live (years)
A80: Where
A81: HEC: Human Equivalent Concentration (ppm or µg/m3)
A82: AC: Acute Concentration (ppm or µg/m3)
A88: Where
A89: HEC: Human Equivalent Concentration (ppm or µg/m3)
A90: ADC: Average Daily Concentration (ppm or µg/m3)
A94: Cancer Risk = LADC * IUR
A96: Where
A97: Cancer Risk: Estimated excess cancer risk based on exposure during respective lifestage
A98: LADC: Lifetime Average Daily Concentration (µg/m3)
A99: IUR: Inhalation Unit Risk (risk per ppm or µg/m3)

Sheet Hazard Values
B1: Observed health affects | C1: HEC (ppm) | D1: IUR (µg/m3)-1 | E1: Benchmark
A2: Chronic Non-cancer | B2: Decreased fetal body weight | C2: 2.5 | D2: - | E2: 30
A3: Cancer | B3: Leukemia | D3: 4.4E-06 | E3: 1.00E-06 | F3: 1.00E-05 | G3: 1.00E-04

Sheet Chemical
A1: Chemical Information and Properties
A3: Step 1: Enter Chemical Information | D3: Step 2: Enter Chemical Properties
A5: Chemical Information | D5: Chemical Properties
A6: Chemical Name | B6: 1,3-Butadiene | D6: Vapor Pressure (Torr) | F6: 1900
A7: CAS Number | C7: 106-99-0 | D7: Solubility (mg/L) | F7: 735
D8: Org. Carbon Sorption Coeff (KoC) (mL/g)
D9: Volatilization Half-Life (hrs)
D10: Molecular Weight (g/mol) | F10: 54.09

Sheet 2016-2021 TRI Release Data (hidden)
A1: TRI Facility ID | B1: Form | C1: Reporting Year | D1: Chemical Name | E1: TRI Chemical ID | F1: Document Control Number | G1: Primary NAICS | H1: Facility Name | I1: Street Address | J1: City | K1: State | L1: Zip | M1: TRI Use | N1: OES | O1: EPA OES Recommendation | P1: Rationale | Q1: EPA QC | R1: Fugitive Air Release (lb) | S1: Stack Air Release (lb) | T1: Total air release (lb) | U1: 89. PRODUCE THE CHEMICAL | V1: 90. IMPORT THE CHEMICAL | W1: 91. ON-SITE USE OF THE CHEMICAL | X1: 92. SALE OR DISTRIBUTION OF THE CHEMICAL | Y1: 93. AS A BYPRODUCT | Z1: 94. AS A MANUFACTURED IMPURITY | AA1: 95. USED AS A REACTANT | AB1: 96. P101 FEEDSTOCKS | AC1: 97. P102 RAW MATERIALS | AD1: 98. P103 INTERMEDIATES | AE1: 99. P104 INITIATORS | AF1: 100. P199 OTHER | AG1: 101. ADDED AS A FORMULATION COMPONENT | AH1: 102. P201 ADDITIVES | AI1: 103. P202 DYES | AJ1: 104. P203 REACTION DILUENTS | AK1: 105. P204 INITIATORS | AL1: 106. P205 SOLVENTS | AM1: 107. P206 INHIBITORS | AN1: 108. P207 EMULSIFIERS | AO1: 109. P208 SURFACTANTS | AP1: 110. P209 LUBRICANTS | AQ1: 111. P210 FLAME RETARDANTS | AR1: 112. P211 RHEOLOGICAL MODIFIERS | AS1: 113. P299 OTHER | AT1: 114. USED AS AN ARTICLE COMPONENT | AU1: 115. REPACKAGING | AV1: 116. AS A PROCESS IMPURITY | AW1: 117. PROCESSED / RECYCLING | AX1: 118. USED AS A CHEMICAL PROCESSING AID | AY1: 119. Z101 PROCESS SOLVENTS | AZ1: 120. Z102 CATALYSTS | BA1: 121. Z103 INHIBITORS | BB1: 122. Z104 INITIATORS | BC1: 123. Z105 REACTION TERMINATORS | BD1: 124. Z106 SOLUTION BUFFERS | BE1: 125. Z199 OTHER | BF1: 126. USED AS A MANUFACTURING AID | BG1: 127. Z201 PROCESS LUBRICANTS | BH1: 128. Z202 METALWORKING FLUIDS | BI1: 129. Z203 COOLANTS | BJ1: 130. Z204 REFRIGERANTS | BK1: 131. Z205 HYDRAULIC FLUIDS | BL1: 132. Z299 OTHER | BM1: 133. ANCILLARY OR OTHER USE | BN1: 134. Z301 CLEANER | BO1: 135. Z302 DEGREASER | BP1: 136. Z303 LUBRICANT | BQ1: 137. Z304 FUEL | BR1: 138. Z305 FLAME RETARDANT | BS1: 139. Z306 WASTE TREATMENT | BT1: 140. Z307 WATER TREATMENT | BU1: 141. Z308 CONSTRUCTION MATERIALS | BV1: 142. Z399 OTHER | BW1: 89. PRODUCE THE CHEMICAL | BX1: 90. IMPORT THE CHEMICAL | BY1: 91. ON-SITE USE OF THE CHEMICAL | BZ1: 92. SALE OR DISTRIBUTION OF THE CHEMICAL | CA1: 93. AS A BYPRODUCT | CB1: 94. AS A MANUFACTURED IMPURITY | CC1: 95. USED AS A REACTANT | CD1: 96. P101 FEEDSTOCKS | CE1: 97. P102 RAW MATERIALS | CF1: 98. P103 INTERMEDIATES | CG1: 99. P104 INITIATORS | CH1: 100. P199 OTHER | CI1: 101. ADDED AS A FORMULATION COMPONENT | CJ1: 102. P201 ADDITIVES | CK1: 103. P202 DYES | CL1: 104. P203 REACTION DILUENTS | CM1: 105. P204 INITIATORS | CN1: 106. P205 SOLVENTS | CO1: 107. P206 INHIBITORS | CP1: 108. P207 EMULSIFIERS | CQ1: 109. P208 SURFACTANTS | CR1: 110. P209 LUBRICANTS | CS1: 111. P210 FLAME RETARDANTS | CT1: 112. P211 RHEOLOGICAL MODIFIERS | CU1: 113. P299 OTHER | CV1: 114. USED AS AN ARTICLE COMPONENT | CW1: 115. REPACKAGING | CX1: 116. AS A PROCESS IMPURITY | CY1: 117. PROCESSED / RECYCLING | CZ1: 118. USED AS A CHEMICAL PROCESSING AID | DA1: 119. Z101 PROCESS SOLVENTS | DB1: 120. Z102 CATALYSTS | DC1: 121. Z103 INHIBITORS | DD1: 122. Z104 INITIATORS | DE1: 123. Z105 REACTION TERMINATORS | DF1: 124. Z106 SOLUTION BUFFERS | DG1: 125. Z199 OTHER | DH1: 126. USED AS A MANUFACTURING AID | DI1: 127. Z201 PROCESS LUBRICANTS | DJ1: 128. Z202 METALWORKING FLUIDS | DK1: 129. Z203 COOLANTS | DL1: 130. Z204 REFRIGERANTS | DM1: 131. Z205 HYDRAULIC FLUIDS | DN1: 132. Z299 OTHER | DO1: 133. ANCILLARY OR OTHER USE | DP1: 134. Z301 CLEANER | DQ1: 135. Z302 DEGREASER | DR1: 136. Z303 LUBRICANT | DS1: 137. Z304 FUEL | DT1: 138. Z305 FLAME RETARDANT | DU1: 139. Z306 WASTE TREATMENT | DV1: 140. Z307 WATER TREATMENT | DW1: 141. Z308 CONSTRUCTION MATERIALS | DX1: 142. Z399 OTHER
A2: 98203KHKKS14078 | B2: A | C2: 2021 | D2: 1,3-Butadiene | E2: 106990 | F2: 1321220490522 | G2: 326113 | H2: ACHILLES USA INC | I2: 1407 80TH ST SW | J2: EVERETT | K2: WA | L2: 98203 | M2: =_xlfn.TEXTJOIN(", ", TRUE, BW2:DX2) ->  | N2: Plastics and Rubber Converting | O2: " | P2: Based on NAICS code (plastics firm and sheet) manufacturing and company website information | Q2: NAICS code "Unlaminated Plastics Film and Sheet (except Packaging) Manufacturing" (https://www.achillesusa.com/) | R2: 500 | S2: 500 | T2: =SUM(R2:S2) -> 1000 | U2: No | V2: No | W2: No | X2: No | Y2: No | Z2: No | AA2: No | AG2: No | AT2: No | AU2: No | AV2: No | AW2: No | AX2: No | BF2: No | BM2: No | BW2: =IF(U2="Yes", BW$1,"") ->  | CM2: =IF(AK2="Yes", CM$1,"") ->  | DC2: =IF(BA2="Yes", DC$1,"") ->  | DS2: =IF(BQ2="Yes", DS$1,"") -> 
A3: 7101WDCRBN21RED | B3: R | C3: 2016 | D3: 1,3-Butadiene | E3: 106990 | F3: 1316215639372 | G3: 325998 | H3: ADA CARBON SOLUTIONS (RED RIVER) LLC | I3: 201 RED RIVER MINE RD | J3: COUSHATTA | K3: LA | L3: 71019 | M3: 89. PRODUCE THE CHEMICAL, 91. ON-SITE USE OF THE CHEMICAL, 93. AS A BYPRODUCT, 133. ANCILLARY OR OTHER USE | N3: Processing - Incorporation into formulation, mixture, or reaction product | O3: " | P3: TRI use says on-site use but does not specify the use. | Q3: NAICS "All Other Miscellaneous Chemical Product and Preparation Manufacturing" unconclusive. TRI says chem produced as byproduct, but does have on-site use (not specific). On-site use usually is assumed incorporation on it's own, consistent | R3: 0 | S3: 86 | T3: 86 | U3: Yes | V3: No | W3: Yes | X3: No | Y3: Yes | Z3: No | AA3: No | AG3: No | AT3: No | AU3: No | AV3: No | AX3: No | BF3: No | BM3: Yes | BW3: 89. PRODUCE THE CHEMICAL | BY3: 91. ON-SITE USE OF THE CHEMICAL | CA3: 93. AS A BYPRODUCT | DO3: 133. ANCILLARY OR OTHER USE
A4: 7101WDCRBN21RED | B4: R | C4: 2017 | D4: 1,3-Butadiene | E4: 106990 | F4: 1317216299317 | G4: 325998 | H4: ADA CARBON SOLUTIONS (RED RIVER) LLC | I4: 201 RED RIVER MINE RD | J4: COUSHATTA | K4: LA | L4: 71019 | M4: 89. PRODUCE THE CHEMICAL, 91. ON-SITE USE OF THE CHEMICAL, 93. AS A BYPRODUCT, 133. ANCILLARY OR OTHER USE | N4: Processing - Incorporation into formulation, mixture, or reaction product | O4: " | P4: TRI use says on-site use but does not specify the use. | Q4: ^ | R4: 0 | S4: 4 | T4: 4 | U4: Yes | V4: No | W4: Yes | X4: No | Y4: Yes | Z4: No | AA4: No | AG4: No | AT4: No | AU4: No | AV4: No | AX4: No | BF4: No | BM4: Yes | BW4: 89. PRODUCE THE CHEMICAL | BY4: 91. ON-SITE USE OF THE CHEMICAL | CA4: 93. AS A BYPRODUCT | DO4: 133. ANCILLARY OR OTHER USE
A5: 7101WDCRBN21RED | B5: R | C5: 2018 | D5: 1,3-Butadiene | E5: 106990 | F5: 1318217244906 | G5: 325998 | H5: ADA CARBON SOLUTIONS (RED RIVER) LLC | I5: 201 RED RIVER MINE RD | J5: COUSHATTA | K5: LA | L5: 71019 | M5: 89. PRODUCE THE CHEMICAL, 91. ON-SITE USE OF THE CHEMICAL, 93. AS A BYPRODUCT, 133. ANCILLARY OR OTHER USE, 142. Z399 OTHER | N5: Processing - Incorporation into formulation, mixture, or reaction product | O5: " | P5: TRI use says on-site use but does not specify the use. | Q5: ^ | R5: 0 | S5: 5 | T5: 5 | U5: Yes | V5: No | W5: Yes | X5: No | Y5: Yes | Z5: No | AA5: No | AB5: No | AC5: No | AD5: No | AE5: No | AF5: No | AG5: No | AH5: No | AI5: No | AJ5: No | AK5: No | AL5: No | AM5: No | AN5: No | AO5: No | AP5: No | AQ5: No | AR5: No | AS5: No | AT5: No | AU5: No | AV5: No | AW5: No | AX5: No | AY5: No | AZ5: No | BA5: No | BB5: No | BC5: No | BD5: No | BE5: No | BF5: No | BG5: No | BH5: No | BI5: No | BJ5: No | BK5: No | BL5: No | BM5: Yes | BN5: No | BO5: No | BP5: No | BQ5: No | BR5: No | BS5: No | BT5: No | BU5: No | BV5: Yes | BW5: 89. PRODUCE THE CHEMICAL | BY5: 91. ON-SITE USE OF THE CHEMICAL | CA5: 93. AS A BYPRODUCT | DO5: 133. ANCILLARY OR OTHER USE | DX5: 142. Z399 OTHER
A6: 7101WDCRBN21RED | B6: R | C6: 2019 | D6: 1,3-Butadiene | E6: 106990 | F6: 1319218025789 | G6: 325998 | H6: ADA CARBON SOLUTIONS (RED RIVER) LLC | I6: 201 RED RIVER MINE RD | J6: COUSHATTA | K6: LA | L6: 71019 | M6: 89. PRODUCE THE CHEMICAL, 91. ON-SITE USE OF THE CHEMICAL, 93. AS A BYPRODUCT, 133. ANCILLARY OR OTHER USE, 142. Z399 OTHER | N6: Processing - Incorporation into formulation, mixture, or reaction product | O6: " | P6: TRI use says on-site use but does not specify the use. | Q6: ^" | R6: 0 | S6: 5 | T6: 5 | U6: Yes | V6: No | W6: Yes | X6: No | Y6: Yes | Z6: No | AA6: No | AB6: No | AC6: No | AD6: No | AE6: No | AF6: No | AG6: No | AH6: No | AI6: No | AJ6: No | AK6: No | AL6: No | AM6: No | AN6: No | AO6: No | AP6: No | AQ6: No | AR6: No | AS6: No | AT6: No | AU6: No | AV6: No | AW6: No | AX6: No | AY6: No | AZ6: No | BA6: No | BB6: No | BC6: No | BD6: No | BE6: No | BF6: No | BG6: No | BH6: No | BI6: No | BJ6: No | BK6: No | BL6: No | BM6: Yes | BN6: No | BO6: No | BP6: No | BQ6: No | BR6: No | BS6: No | BT6: No | BU6: No | BV6: Yes | BW6: 89. PRODUCE THE CHEMICAL | BY6: 91. ON-SITE USE OF THE CHEMICAL | CA6: 93. AS A BYPRODUCT | DO6: 133. ANCILLARY OR OTHER USE | DX6: 142. Z399 OTHER
A7: 7101WDCRBN21RED | B7: R | C7: 2020 | D7: 1,3-Butadiene | E7: 106990 | F7: 1320219086547 | G7: 325998 | H7: ADA CARBON SOLUTIONS (RED RIVER) LLC | I7: 201 RED RIVER MINE RD | J7: COUSHATTA | K7: LA | L7: 71019 | M7: 89. PRODUCE THE CHEMICAL, 91. ON-SITE USE OF THE CHEMICAL, 93. AS A BYPRODUCT, 133. ANCILLARY OR OTHER USE, 142. Z399 OTHER | N7: Processing - Incorporation into formulation, mixture, or reaction product | O7: " | P7: TRI use says on-site use but does not specify the use. | Q7: ^ | R7: 0 | S7: 6 | T7: 6 | U7: Yes | V7: No | W7: Yes | X7: No | Y7: Yes | Z7: No | AA7: No | AB7: No | AC7: No | AD7: No | AE7: No | AF7: No | AG7: No | AH7: No | AI7: No | AJ7: No | AK7: No | AL7: No | AM7: No | AN7: No | AO7: No | AP7: No | AQ7: No | AR7: No | AS7: No | AT7: No | AU7: No | AV7: No | AW7: No | AX7: No | AY7: No | AZ7: No | BA7: No | BB7: No | BC7: No | BD7: No | BE7: No | BF7: No | BG7: No | BH7: No | BI7: No | BJ7: No | BK7: No | BL7: No | BM7: Yes | BN7: No | BO7: No | BP7: No | BQ7: No | BR7: No | BS7: No | BT7: No | BU7: No | BV7: Yes | BW7: 89. PRODUCE THE CHEMICAL | BY7: 91. ON-SITE USE OF THE CHEMICAL | CA7: 93. AS A BYPRODUCT | DO7: 133. ANCILLARY OR OTHER USE | DX7: 142. Z399 OTHER
A8: 7101WDCRBN21RED | B8: R | C8: 2021 | D8: 1,3-Butadiene | E8: 106990 | F8: 1321220473223 | G8: 325998 | H8: ADA CARBON SOLUTIONS (RED RIVER) LLC | I8: 201 RED RIVER MINE RD | J8: COUSHATTA | K8: LA | L8: 71019 | M8: 89. PRODUCE THE CHEMICAL, 91. ON-SITE USE OF THE CHEMICAL, 93. AS A BYPRODUCT, 133. ANCILLARY OR OTHER USE, 142. Z399 OTHER | N8: Processing - Incorporation into formulation, mixture, or reaction product | O8: " | P8: TRI use says on-site use but does not specify the use. | Q8: ^ | R8: 0 | S8: 14 | T8: 14 | U8: Yes | V8: No | W8: Yes | X8: No | Y8: Yes | Z8: No | AA8: No | AB8: No | AC8: No | AD8: No | AE8: No | AF8: No | AG8: No | AH8: No | AI8: No | AJ8: No | AK8: No | AL8: No | AM8: No | AN8: No | AO8: No | AP8: No | AQ8: No | AR8: No | AS8: No | AT8: No | AU8: No | AV8: No | AW8: No | AX8: No | AY8: No | AZ8: No | BA8: No | BB8: No | BC8: No | BD8: No | BE8: No | BF8: No | BG8: No | BH8: No | BI8: No | BJ8: No | BK8: No | BL8: No | BM8: Yes | BN8: No | BO8: No | BP8: No | BQ8: No | BR8: No | BS8: No | BT8: No | BU8: No | BV8: Yes | BW8: 89. PRODUCE THE CHEMICAL | BY8: 91. ON-SITE USE OF THE CHEMICAL | CA8: 93. AS A BYPRODUCT | DO8: 133. ANCILLARY OR OTHER USE | DX8: 142. Z399 OTHER
A9: 79721FNLNDIS20E | B9: R | C9: 2016 | D9: 1,3-Butadiene | E9: 106990 | F9: 1316215088295 | G9: 324110 | H9: ALON USA-BIG SPRING REFINERY | I9: IH 20 AT REFINERY RD | J9: BIG SPRING | K9: TX | L9: 79720 | M9: 116. AS A PROCESS IMPURITY | N9: Processing - Incorporation into formulation, mixture, or reaction product | O9: " | P9: TRI use info, although subuse indicates the chemical may be unintentionally manufactured | Q9: NAICS code "Petroleum Refineries" inconclusive. Produced as impurity/byproduct and not used on site | R9: 5 | S9: 5 | T9: 10 | U9: No | V9: No | W9: No | X9: No | Y9: No | Z9: No | AA9: No | AG9: No | AT9: No | AU9: No | AV9: Yes | AX9: No | BF9: No | BM9: No | CX9: 116. AS A PROCESS IMPURITY
A10: 79721FNLNDIS20E | B10: R | C10: 2017 | D10: 1,3-Butadiene | E10: 106990 | F10: 1317216462337 | G10: 324110 | H10: ALON USA-BIG SPRING REFINERY | I10: IH 20 AT REFINERY RD | J10: BIG SPRING | K10: TX | L10: 79720 | M10: 116. AS A PROCESS IMPURITY | N10: Processing - Incorporation into formulation, mixture, or reaction product | O10: " | P10: TRI use info, although subuse indicates the chemical may be unintentionally manufactured | Q10: ^ | R10: 0 | S10: 2.6 | T10: 2.6 | U10: No | V10: No | W10: No | X10: No | Y10: No | Z10: No | AA10: No | AG10: No | AT10: No | AU10: No | AV10: Yes | AX10: No | BF10: No | BM10: No | CX10: 116. AS A PROCESS IMPURITY
A11: 79721FNLNDIS20E | B11: R | C11: 2018 | D11: 1,3-Butadiene | E11: 106990 | F11: 1318216984308 | G11: 324110 | H11: ALON USA-BIG SPRING REFINERY | I11: IH 20 AT REFINERY RD | J11: BIG SPRING | K11: TX | L11: 79720 | M11: 89. PRODUCE THE CHEMICAL, 93. AS A BYPRODUCT, 116. AS A PROCESS IMPURITY | N11: Processing - Incorporation into formulation, mixture, or reaction product | O11: " | P11: TRI use info, although subuse indicates the chemical may be unintentionally manufactured | Q11: ^ | R11: 0 | S11: 0.2 | T11: 0.2 | U11: Yes | V11: No | W11: No | X11: No | Y11: Yes | Z11: No | AA11: No | AB11: No | AC11: No | AD11: No | AE11: No | AF11: No | AG11: No | AH11: No | AI11: No | AJ11: No | AK11: No | AL11: No | AM11: No | AN11: No | AO11: No | AP11: No | AQ11: No | AR11: No | AS11: No | AT11: No | AU11: No | AV11: Yes | AW11: No | AX11: No | AY11: No | AZ11: No | BA11: No | BB11: No | BC11: No | BD11: No | BE11: No | BF11: No | BG11: No | BH11: No | BI11: No | BJ11: No | BK11: No | BL11: No | BM11: No | BN11: No | BO11: No | BP11: No | BQ11: No | BR11: No | BS11: No | BT11: No | BU11: No | BV11: No | BW11: 89. PRODUCE THE CHEMICAL | CA11: 93. AS A BYPRODUCT | CX11: 116. AS A PROCESS IMPURITY
A12: 79721FNLNDIS20E | B12: R | C12: 2019 | D12: 1,3-Butadiene | E12: 106990 | F12: 1319218334074 | G12: 324110 | H12: ALON USA-BIG SPRING REFINERY | I12: IH 20 AT REFINERY RD | J12: BIG SPRING | K12: TX | L12: 79720 | M12: 89. PRODUCE THE CHEMICAL, 93. AS A BYPRODUCT, 116. AS A PROCESS IMPURITY | N12: Processing - Incorporation into formulation, mixture, or reaction product | O12: " | P12: TRI use info, although subuse indicates the chemical may be unintentionally manufactured | Q12: ^ | R12: 0 | S12: 65 | T12: 65 | U12: Yes | V12: No | W12: No | X12: No | Y12: Yes | Z12: No | AA12: No | AB12: No | AC12: No | AD12: No | AE12: No | AF12: No | AG12: No | AH12: No | AI12: No | AJ12: No | AK12: No | AL12: No | AM12: No | AN12: No | AO12: No | AP12: No | AQ12: No | AR12: No | AS12: No | AT12: No | AU12: No | AV12: Yes | AW12: No | AX12: No | AY12: No | AZ12: No | BA12: No | BB12: No | BC12: No | BD12: No | BE12: No | BF12: No | BG12: No | BH12: No | BI12: No | BJ12: No | BK12: No | BL12: No | BM12: No | BN12: No | BO12: No | BP12: No | BQ12: No | BR12: No | BS12: No | BT12: No | BU12: No | BV12: No | BW12: 89. PRODUCE THE CHEMICAL | CA12: 93. AS A BYPRODUCT | CX12: 116. AS A PROCESS IMPURITY
A13: 79721FNLNDIS20E | B13: R | C13: 2020 | D13: 1,3-Butadiene | E13: 106990 | F13: 1320219016286 | G13: 324110 | H13: ALON USA-BIG SPRING REFINERY | I13: IH 20 AT REFINERY RD | J13: BIG SPRING | K13: TX | L13: 79720 | M13: 89. PRODUCE THE CHEMICAL, 93. AS A BYPRODUCT, 116. AS A PROCESS IMPURITY | N13: Processing - Incorporation into formulation, mixture, or reaction product | O13: " | P13: TRI use info, although subuse indicates the chemical may be unintentionally manufactured | Q13: ^ | R13: 0 | S13: 0.2 | T13: 0.2 | U13: Yes | V13: No | W13: No | X13: No | Y13: Yes | Z13: No | AA13: No | AB13: No | AC13: No | AD13: No | AE13: No | AF13: No | AG13: No | AH13: No | AI13: No | AJ13: No | AK13: No | AL13: No | AM13: No | AN13: No | AO13: No | AP13: No | AQ13: No | AR13: No | AS13: No | AT13: No | AU13: No | AV13: Yes | AW13: No | AX13: No | AY13: No | AZ13: No | BA13: No | BB13: No | BC13: No | BD13: No | BE13: No | BF13: No | BG13: No | BH13: No | BI13: No | BJ13: No | BK13: No | BL13: No | BM13: No | BN13: No | BO13: No | BP13: No | BQ13: No | BR13: No | BS13: No | BT13: No | BU13: No | BV13: No | BW13: 89. PRODUCE THE CHEMICAL | CA13: 93. AS A BYPRODUCT | CX13: 116. AS A PROCESS IMPURITY
A14: 79721FNLNDIS20E | B14: R | C14: 2021 | D14: 1,3-Butadiene | E14: 106990 | F14: 1321220104032 | G14: 324110 | H14: ALON USA-BIG SPRING REFINERY | I14: IH 20 AT REFINERY RD | J14: BIG SPRING | K14: TX | L14: 79720 | M14: 89. PRODUCE THE CHEMICAL, 93. AS A BYPRODUCT, 116. AS A PROCESS IMPURITY | N14: Processing - Incorporation into formulation, mixture, or reaction product | O14: " | P14: TRI use info, although subuse indicates the chemical may be unintentionally manufactured | Q14: ^ | R14: 0 | S14: 0.2 | T14: 0.2 | U14: Yes | V14: No | W14: No | X14: No | Y14: Yes | Z14: No | AA14: No | AB14: No | AC14: No | AD14: No | AE14: No | AF14: No | AG14: No | AH14: No | AI14: No | AJ14: No | AK14: No | AL14: No | AM14: No | AN14: No | AO14: No | AP14: No | AQ14: No | AR14: No | AS14: No | AT14: No | AU14: No | AV14: Yes | AW14: No | AX14: No | AY14: No | AZ14: No | BA14: No | BB14: No | BC14: No | BD14: No | BE14: No | BF14: No | BG14: No | BH14: No | BI14: No | BJ14: No | BK14: No | BL14: No | BM14: No | BN14: No | BO14: No | BP14: No | BQ14: No | BR14: No | BS14: No | BT14: No | BU14: No | BV14: No | BW14: 89. PRODUCE THE CHEMICAL | CA14: 93. AS A BYPRODUCT | CX14: 116. AS A PROCESS IMPURITY
A15: 40216MRCNS4500C | B15: R | C15: 2016 | D15: 1,3-Butadiene | E15: 106990 | F15: 1316215654106 | G15: 325212 | H15: AMERICAN SYNTHETIC RUBBER CO | I15: 4500 CAMPGROUND RD | J15: LOUISVILLE | K15: KY | L15: 40216 | M15: 95. USED AS A REACTANT | N15: Plastics and Rubber Compounding | O15: Plastics and Rubber Compounding | P15: TRI subuse Info | Q15: NAICS "synthetic rubber manufacturing", subuse used as reactant, company website indicates rubber production. In CDR as import. | R15: 3723.2 | S15: 3273.1 | T15: 6996.3 | U15: No | V15: No | W15: No | X15: No | Y15: No | Z15: No | AA15: Yes | AG15: No | AT15: No | AU15: No | AV15: No | AX15: No | BF15: No | BM15: No | CC15: 95. USED AS A REACTANT
A16: 40216MRCNS4500C | B16: R | C16: 2017 | D16: 1,3-Butadiene | E16: 106990 | F16: 1317216390637 | G16: 325212 | H16: AMERICAN SYNTHETIC RUBBER CO | I16: 4500 CAMPGROUND RD | J16: LOUISVILLE | K16: KY | L16: 40216 | M16: 95. USED AS A REACTANT | N16: Plastics and Rubber Compounding | O16: Plastics and Rubber Compounding | P16: TRI subuse Info | Q16: ^ | R16: 2124 | S16: 3627 | T16: 5751 | U16: No | V16: No | W16: No | X16: No | Y16: No | Z16: No | AA16: Yes | AG16: No | AT16: No | AU16: No | AV16: No | AX16: No | BF16: No | BM16: No | CC16: 95. USED AS A REACTANT
A17: 40216MRCNS4500C | B17: R | C17: 2018 | D17: 1,3-Butadiene | E17: 106990 | F17: 1318217283441 | G17: 325212 | H17: AMERICAN SYNTHETIC RUBBER CO | I17: 4500 CAMPGROUND RD | J17: LOUISVILLE | K17: KY | L17: 40216 | M17: 95. USED AS A REACTANT, 97. P102 RAW MATERIALS | N17: Plastics and Rubber Compounding | O17: Plastics and Rubber Compounding | P17: TRI subuse Info | Q17: ^ | R17: 1814 | S17: 1815.3 | T17: 3629.3 | U17: No | V17: No | W17: No | X17: No | Y17: No | Z17: No | AA17: Yes | AB17: No | AC17: Yes | AD17: No | AE17: No | AF17: No | AG17: No | AH17: No | AI17: No | AJ17: No | AK17: No | AL17: No | AM17: No | AN17: No | AO17: No | AP17: No | AQ17: No | AR17: No | AS17: No | AT17: No | AU17: No | AV17: No | AW17: No | AX17: No | AY17: No | AZ17: No | BA17: No | BB17: No | BC17: No | BD17: No | BE17: No | BF17: No | BG17: No | BH17: No | BI17: No | BJ17: No | BK17: No | BL17: No | BM17: No | BN17: No | BO17: No | BP17: No | BQ17: No | BR17: No | BS17: No | BT17: No | BU17: No | BV17: No | CC17: 95. USED AS A REACTANT | CE17: 97. P102 RAW MATERIALS | CL17: =IF(AJ17="Yes", CL$1,"") ->  | DB17: =IF(AZ17="Yes", DB$1,"") ->  | DR17: =IF(BP17="Yes", DR$1,"") -> 
A18: 40216MRCNS4500C | B18: R | C18: 2019 | D18: 1,3-Butadiene | E18: 106990 | F18: 1319218272387 | G18: 325212 | H18: AMERICAN SYNTHETIC RUBBER CO | I18: 4500 CAMPGROUND RD | J18: LOUISVILLE | K18: KY | L18: 40216 | M18: 95. USED AS A REACTANT, 97. P102 RAW MATERIALS | N18: Plastics and Rubber Compounding | O18: Plastics and Rubber Compounding | P18: TRI subuse Info | Q18: ^ | R18: 2405 | S18: 825.5 | T18: 3230.5 | U18: No | V18: No | W18: No | X18: No | Y18: No | Z18: No | AA18: Yes | AB18: No | AC18: Yes | AD18: No | AE18: No | AF18: No | AG18: No | AH18: No | AI18: No | AJ18: No | AK18: No | AL18: No | AM18: No | AN18: No | AO18: No | AP18: No | AQ18: No | AR18: No | AS18: No | AT18: No | AU18: No | AV18: No | AW18: No | AX18: No | AY18: No | AZ18: No | BA18: No | BB18: No | BC18: No | BD18: No | BE18: No | BF18: No | BG18: No | BH18: No | BI18: No | BJ18: No | BK18: No | BL18: No | BM18: No | BN18: No | BO18: No | BP18: No | BQ18: No | BR18: No | BS18: No | BT18: No | BU18: No | BV18: No | BW18: =IF(U18="Yes", BW$1,"") ->  | CC18: 95. USED AS A REACTANT | CE18: 97. P102 RAW MATERIALS
A19: 40216MRCNS4500C | B19: R | C19: 2020 | D19: 1,3-Butadiene | E19: 106990 | F19: 1320219135009 | G19: 325212 | H19: AMERICAN SYNTHETIC RUBBER CO | I19: 4500 CAMPGROUND RD | J19: LOUISVILLE | K19: KY | L19: 40216 | M19: 95. USED AS A REACTANT, 97. P102 RAW MATERIALS | N19: Plastics and Rubber Compounding | O19: Plastics and Rubber Compounding | P19: TRI subuse Info | Q19: ^ | R19: 1618 | S19: 262 | T19: 1880 | U19: No | V19: No | W19: No | X19: No | Y19: No | Z19: No | AA19: Yes | AB19: No | AC19: Yes | AD19: No | AE19: No | AF19: No | AG19: No | AH19: No | AI19: No | AJ19: No | AK19: No | AL19: No | AM19: No | AN19: No | AO19: No | AP19: No | AQ19: No | AR19: No | AS19: No | AT19: No | AU19: No | AV19: No | AW19: No | AX19: No | AY19: No | AZ19: No | BA19: No | BB19: No | BC19: No | BD19: No | BE19: No | BF19: No | BG19: No | BH19: No | BI19: No | BJ19: No | BK19: No | BL19: No | BM19: No | BN19: No | BO19: No | BP19: No | BQ19: No | BR19: No | BS19: No | BT19: No | BU19: No | BV19: No | CC19: 95. USED AS A REACTANT | CE19: 97. P102 RAW MATERIALS
A20: 40216MRCNS4500C | B20: R | C20: 2021 | D20: 1,3-Butadiene | E20: 106990 | F20: 1321220337620 | G20: 325212 | H20: AMERICAN SYNTHETIC RUBBER CO | I20: 4500 CAMPGROUND RD | J20: LOUISVILLE | K20: KY | L20: 40216 | M20: 95. USED AS A REACTANT, 97. P102 RAW MATERIALS | N20: Plastics and Rubber Compounding | O20: Plastics and Rubber Compounding | P20: TRI subuse Info | Q20: ^ | R20: 3596 | S20: 1190 | T20: 4786 | U20: No | V20: No | W20: No | X20: No | Y20: No | Z20: No | AA20: Yes | AB20: No | AC20: Yes | AD20: No | AE20: No | AF20: No | AG20: No | AH20: No | AI20: No | AJ20: No | AK20: No | AL20: No | AM20: No | AN20: No | AO20: No | AP20: No | AQ20: No | AR20: No | AS20: No | AT20: No | AU20: No | AV20: No | AW20: No | AX20: No | AY20: No | AZ20: No | BA20: No | BB20: No | BC20: No | BD20: No | BE20: No | BF20: No | BG20: No | BH20: No | BI20: No | BJ20: No | BK20: No | BL20: No | BM20: No | BN20: No | BO20: No | BP20: No | BQ20: No | BR20: No | BS20: No | BT20: No | BU20: No | BV20: No | CC20: 95. USED AS A REACTANT | CE20: 97. P102 RAW MATERIALS
A21: 36505MTCHMHWY43 | B21: R | C21: 2016 | D21: 1,3-Butadiene | E21: 106990 | F21: 1316215467578 | G21: 325211 | H21: ARKEMA INC | I21: 13755 HWY 43 N | J21: AXIS | K21: AL | L21: 36505 | M21: 95. USED AS A REACTANT | N21: Plastics and Rubber Compounding | O21: Plastics and Rubber Compounding | P21: TRI use info | Q21: NAICS "Plastics Material and Resin Manufacturing", subuse used as reactant, raw materials. Website indicates plastic products | R21: 1500 | S21: 250 | T21: 1750 | U21: No | V21: No | W21: No | X21: No | Y21: No | Z21: No | AA21: Yes | AG21: No | AT21: No | AU21: No | AV21: No | AX21: No | BF21: No | BM21: No | CC21: 95. USED AS A REACTANT
A22: 36505MTCHMHWY43 | B22: R | C22: 2017 | D22: 1,3-Butadiene | E22: 106990 | F22: 1317216176762 | G22: 325211 | H22: ARKEMA INC | I22: 13755 HWY 43 N | J22: AXIS | K22: AL | L22: 36505 | M22: 95. USED AS A REACTANT | N22: Plastics and Rubber Compounding | O22: Plastics and Rubber Compounding | P22: TRI use info | Q22: ^ | R22: 1300 | S22: 250 | T22: 1550 | U22: No | V22: No | W22: No | X22: No | Y22: No | Z22: No | AA22: Yes | AG22: No | AT22: No | AU22: No | AV22: No | AX22: No | BF22: No | BM22: No | CC22: 95. USED AS A REACTANT
A23: 36505MTCHMHWY43 | B23: R | C23: 2018 | D23: 1,3-Butadiene | E23: 106990 | F23: 1318216857336 | G23: 325211 | H23: ARKEMA INC | I23: 13755 HWY 43 N | J23: AXIS | K23: AL | L23: 36505 | M23: 95. USED AS A REACTANT, 97. P102 RAW MATERIALS | N23: Plastics and Rubber Compounding | O23: Plastics and Rubber Compounding | P23: TRI use and subuse info | Q23: ^ | R23: 1300 | S23: 250 | T23: 1550 | U23: No | V23: No | W23: No | X23: No | Y23: No | Z23: No | AA23: Yes | AB23: No | AC23: Yes | AD23: No | AE23: No | AF23: No | AG23: No | AH23: No | AI23: No | AJ23: No | AK23: No | AL23: No | AM23: No | AN23: No | AO23: No | AP23: No | AQ23: No | AR23: No | AS23: No | AT23: No | AU23: No | AV23: No | AW23: No | AX23: No | AY23: No | AZ23: No | BA23: No | BB23: No | BC23: No | BD23: No | BE23: No | BF23: No | BG23: No | BH23: No | BI23: No | BJ23: No | BK23: No | BL23: No | BM23: No | BN23: No | BO23: No | BP23: No | BQ23: No | BR23: No | BS23: No | BT23: No | BU23: No | BV23: No | CC23: 95. USED AS A REACTANT | CE23: 97. P102 RAW MATERIALS
A24: 36505MTCHMHWY43 | B24: R | C24: 2019 | D24: 1,3-Butadiene | E24: 106990 | F24: 1319218178628 | G24: 325211 | H24: ARKEMA INC | I24: 13755 HWY 43 N | J24: AXIS | K24: AL | L24: 36505 | M24: 95. USED AS A REACTANT, 97. P102 RAW MATERIALS | N24: Plastics and Rubber Compounding | O24: Plastics and Rubber Compounding | P24: TRI use and subuse info | Q24: ^ | R24: 1100 | S24: 250 | T24: 1350 | U24: No | V24: No | W24: No | X24: No | Y24: No | Z24: No | AA24: Yes | AB24: No | AC24: Yes | AD24: No | AE24: No | AF24: No | AG24: No | AH24: No | AI24: No | AJ24: No | AK24: No | AL24: No | AM24: No | AN24: No | AO24: No | AP24: No | AQ24: No | AR24: No | AS24: No | AT24: No | AU24: No | AV24: No | AW24: No | AX24: No | AY24: No | AZ24: No | BA24: No | BB24: No | BC24: No | BD24: No | BE24: No | BF24: No | BG24: No | BH24: No | BI24: No | BJ24: No | BK24: No | BL24: No | BM24: No | BN24: No | BO24: No | BP24: No | BQ24: No | BR24: No | BS24: No | BT24: No | BU24: No | BV24: No | CC24: 95. USED AS A REACTANT | CE24: 97. P102 RAW MATERIALS
A25: 36505MTCHMHWY43 | B25: R | C25: 2020 | D25: 1,3-Butadiene | E25: 106990 | F25: 1320218741700 | G25: 325211 | H25: ARKEMA INC | I25: 13755 HWY 43 N | J25: AXIS | K25: AL | L25: 36505 | M25: 95. USED AS A REACTANT, 97. P102 RAW MATERIALS | N25: Plastics and Rubber Compounding | O25: Plastics and Rubber Compounding | P25: TRI use and subuse info | Q25: ^ | R25: 1100 | S25: 250 | T25: 1350 | U25: No | V25: No | W25: No | X25: No | Y25: No | Z25: No | AA25: Yes | AB25: No | AC25: Yes | AD25: No | AE25: No | AF25: No | AG25: No | AH25: No | AI25: No | AJ25: No | AK25: No | AL25: No | AM25: No | AN25: No | AO25: No | AP25: No | AQ25: No | AR25: No | AS25: No | AT25: No | AU25: No | AV25: No | AW25: No | AX25: No | AY25: No | AZ25: No | BA25: No | BB25: No | BC25: No | BD25: No | BE25: No | BF25: No | BG25: No | BH25: No | BI25: No | BJ25: No | BK25: No | BL25: No | BM25: No | BN25: No | BO25: No | BP25: No | BQ25: No | BR25: No | BS25: No | BT25: No | BU25: No | BV25: No | CC25: 95. USED AS A REACTANT | CE25: 97. P102 RAW MATERIALS
A26: 36505MTCHMHWY43 | B26: R | C26: 2021 | D26: 1,3-Butadiene | E26: 106990 | F26: 1321220002582 | G26: 325211 | H26: ARKEMA INC | I26: 13755 HWY 43 N | J26: AXIS | K26: AL | L26: 36505 | M26: 95. USED AS A REACTANT, 97. P102 RAW MATERIALS | N26: Plastics and Rubber Compounding | O26: Plastics and Rubber Compounding | P26: TRI use and subuse info | Q26: ^ | R26: 1118 | S26: 250 | T26: 1368 | U26: No | V26: No | W26: No | X26: No | Y26: No | Z26: No | AA26: Yes | AB26: No | AC26: Yes | AD26: No | AE26: No | AF26: No | AG26: No | AH26: No | AI26: No | AJ26: No | AK26: No | AL26: No | AM26: No | AN26: No | AO26: No | AP26: No | AQ26: No | AR26: No | AS26: No | AT26: No | AU26: No | AV26: No | AW26: No | AX26: No | AY26: No | AZ26: No | BA26: No | BB26: No | BC26: No | BD26: No | BE26: No | BF26: No | BG26: No | BH26: No | BI26: No | BJ26: No | BK26: No | BL26: No | BM26: No | BN26: No | BO26: No | BP26: No | BQ26: No | BR26: No | BS26: No | BT26: No | BU26: No | BV26: No | CC26: 95. USED AS A REACTANT | CE26: 97. P102 RAW MATERIALS
A27: 77631PLYSRFM100 | B27: R | C27: 2016 | D27: 1,3-Butadiene | E27: 106990 | F27: 1316215697982 | G27: 325212 | H27: ARLANXEO | I27: 4647 FM 1006 | J27: ORANGE | K27: TX | L27: 77630 | M27: 95. USED AS A REACTANT | N27: Plastics and Rubber Compounding | O27: Plastics and Rubber Compounding | P27: TRI use info and company information | Q27: NAICS "synthetic rubber manufacturing", used as reactant and raw materials. Website indicates butadiene rubber products | R27: 20944 | S27: 35789 | T27: 56733 | U27: No | V27: No | W27: No | X27: No | Y27: No | Z27: No | AA27: Yes | AG27: No | AT27: No | AU27: No | AV27: No | AX27: No | BF27: No | BM27: No | CC27: 95. USED AS A REACTANT
A28: 77631PLYSRFM100 | B28: R | C28: 2017 | D28: 1,3-Butadiene | E28: 106990 | F28: 1317216432272 | G28: 325212 | H28: ARLANXEO | I28: 4647 FM 1006 | J28: ORANGE | K28: TX | L28: 77630 | M28: 95. USED AS A REACTANT | N28: Plastics and Rubber Compounding | O28: Plastics and Rubber Compounding | P28: TRI use info and company information | Q28: ^ | R28: 23535.8 | S28: 28672.8 | T28: 52208.6 | U28: No | V28: No | W28: No | X28: No | Y28: No | Z28: No | AA28: Yes | AG28: No | AT28: No | AU28: No | AV28: No | AX28: No | BF28: No | BM28: No | CC28: 95. USED AS A REACTANT
A29: 77631PLYSRFM100 | B29: R | C29: 2018 | D29: 1,3-Butadiene | E29: 106990 | F29: 1318216819553 | G29: 325212 | H29: ARLANXEO | I29: 4647 FM 1006 | J29: ORANGE | K29: TX | L29: 77630 | M29: 95. USED AS A REACTANT, 96. P101 FEEDSTOCKS, 97. P102 RAW MATERIALS | N29: Plastics and Rubber Compounding | O29: Plastics and Rubber Compounding | P29: TRI use info and company information | Q29: ^ | R29: 26572 | S29: 18676 | T29: 45248 | U29: No | V29: No | W29: No | X29: No | Y29: No | Z29: No | AA29: Yes | AB29: Yes | AC29: Yes | AD29: No | AE29: No | AF29: No | AG29: No | AH29: No | AI29: No | AJ29: No | AK29: No | AL29: No | AM29: No | AN29: No | AO29: No | AP29: No | AQ29: No | AR29: No | AS29: No | AT29: No | AU29: No | AV29: No | AW29: No | AX29: No | AY29: No | AZ29: No | BA29: No | BB29: No | BC29: No | BD29: No | BE29: No | BF29: No | BG29: No | BH29: No | BI29: No | BJ29: No | BK29: No | BL29: No | BM29: No | BN29: No | BO29: No | BP29: No | BQ29: No | BR29: No | BS29: No | BT29: No | BU29: No | BV29: No | CC29: 95. USED AS A REACTANT | CD29: 96. P101 FEEDSTOCKS | CE29: 97. P102 RAW MATERIALS
A30: 77631PLYSRFM100 | B30: R | C30: 2019 | D30: 1,3-Butadiene | E30: 106990 | F30: 1319218034926 | G30: 325212 | H30: ARLANXEO | I30: 4647 FM 1006 | J30: ORANGE | K30: TX | L30: 77630 | M30: 95. USED AS A REACTANT, 96. P101 FEEDSTOCKS, 97. P102 RAW MATERIALS | N30: Plastics and Rubber Compounding | O30: Plastics and Rubber Compounding | P30: TRI use info and company information | Q30: ^ | R30: 15883 | S30: 18470 | T30: 34353 | U30: No | V30: No | W30: No | X30: No | Y30: No | Z30: No | AA30: Yes | AB30: Yes | AC30: Yes | AD30: No | AE30: No | AF30: No | AG30: No | AH30: No | AI30: No | AJ30: No | AK30: No | AL30: No | AM30: No | AN30: No | AO30: No | AP30: No | AQ30: No | AR30: No | AS30: No | AT30: No | AU30: No | AV30: No | AW30: No | AX30: No | AY30: No | AZ30: No | BA30: No | BB30: No | BC30: No | BD30: No | BE30: No | BF30: No | BG30: No | BH30: No | BI30: No | BJ30: No | BK30: No | BL30: No | BM30: No | BN30: No | BO30: No | BP30: No | BQ30: No | BR30: No | BS30: No | BT30: No | BU30: No | BV30: No | CC30: 95. USED AS A REACTANT | CD30: 96. P101 FEEDSTOCKS | CE30: 97. P102 RAW MATERIALS
A31: 77631PLYSRFM100 | B31: R | C31: 2020 | D31: 1,3-Butadiene | E31: 106990 | F31: 1320219264140 | G31: 325212 | H31: ARLANXEO | I31: 4647 FM 1006 | J31: ORANGE | K31: TX | L31: 77630 | M31: 95. USED AS A REACTANT, 96. P101 FEEDSTOCKS, 97. P102 RAW MATERIALS | N31: Plastics and Rubber Compounding | O31: Plastics and Rubber Compounding | P31: TRI use info and company information | Q31: ^ | R31: 30409.09 | S31: 38463.6 | T31: 68872.69 | U31: No | V31: No | W31: No | X31: No | Y31: No | Z31: No | AA31: Yes | AB31: Yes | AC31: Yes | AD31: No | AE31: No | AF31: No | AG31: No | AH31: No | AI31: No | AJ31: No | AK31: No | AL31: No | AM31: No | AN31: No | AO31: No | AP31: No | AQ31: No | AR31: No | AS31: No | AT31: No | AU31: No | AV31: No | AW31: No | AX31: No | AY31: No | AZ31: No | BA31: No | BB31: No | BC31: No | BD31: No | BE31: No | BF31: No | BG31: No | BH31: No | BI31: No | BJ31: No | BK31: No | BL31: No | BM31: No | BN31: No | BO31: No | BP31: No | BQ31: No | BR31: No | BS31: No | BT31: No | BU31: No | BV31: No | CC31: 95. USED AS A REACTANT | CD31: 96. P101 FEEDSTOCKS | CE31: 97. P102 RAW MATERIALS
A32: 77631PLYSRFM100 | B32: R | C32: 2021 | D32: 1,3-Butadiene | E32: 106990 | F32: 1321219735180 | G32: 325212 | H32: ARLANXEO | I32: 4647 FM 1006 | J32: ORANGE | K32: TX | L32: 77630 | M32: 95. USED AS A REACTANT, 96. P101 FEEDSTOCKS, 97. P102 RAW MATERIALS | N32: Plastics and Rubber Compounding | O32: Plastics and Rubber Compounding | P32: TRI use info and company information | Q32: ^ | R32: 17944 | S32: 35052.2 | T32: 52996.2 | U32: No | V32: No | W32: No | X32: No | Y32: No | Z32: No | AA32: Yes | AB32: Yes | AC32: Yes | AD32: No | AE32: No | AF32: No | AG32: No | AH32: No | AI32: No | AJ32: No | AK32: No | AL32: No | AM32: No | AN32: No | AO32: No | AP32: No | AQ32: No | AR32: No | AS32: No | AT32: No | AU32: No | AV32: No | AW32: No | AX32: No | AY32: No | AZ32: No | BA32: No | BB32: No | BC32: No | BD32: No | BE32: No | BF32: No | BG32: No | BH32: No | BI32: No | BJ32: No | BK32: No | BL32: No | BM32: No | BN32: No | BO32: No | BP32: No | BQ32: No | BR32: No | BS32: No | BT32: No | BU32: No | BV32: No | CC32: 95. USED AS A REACTANT | CD32: 96. P101 FEEDSTOCKS | CE32: 97. P102 RAW MATERIALS
A33: 37406PLYSR3805A | B33: R | C33: 2016 | D33: 1,3-Butadiene | E33: 106990 | F33: 1316215044569 | G33: 325212 | H33: BASF CORP | I33: 32 LOST MOUND DRIVE | J33: CHATTANOOGA | K33: TN | L33: 37406 | M33: 95. USED AS A REACTANT | N33: Processing as a Reactant | O33: Processing as a Reactant | P33: TRI use info | Q33: NAICS "synthetic rubber manufacturing" ('12) or "plastic material and resin manufacturing" ('11). Subuse is "used as reactant", raw materials, some article as component. Company website indicates producer of polymer dispersions in TN. In PA mostly adhesives, coatings and paper products | R33: 362 | S33: 19 | T33: 381 | U33: No | V33: No | W33: No | X33: No | Y33: No | Z33: No | AA33: Yes | AG33: No | AT33: No | AU33: No | AV33: No | AX33: No | BF33: No | BM33: No | CC33: 95. USED AS A REACTANT | CZ33: =IF(AX33="Yes", CZ$1,"") ->  | DP33: =IF(BN33="Yes", DP$1,"") -> 
A34: 37421PLYSR2200P | B34: R | C34: 2016 | D34: 1,3-Butadiene | E34: 106990 | F34: 1316215044557 | G34: 325211 | H34: BASF CORP | I34: 2120 POLYMER DR | J34: CHATTANOOGA | K34: TN | L34: 37421 | M34: 95. USED AS A REACTANT | N34: Processing as a Reactant | O34: Processing as a Reactant | P34: TRI use info | Q34: ^ | R34: 159 | S34: 87.6 | T34: 246.6 | U34: No | V34: No | W34: No | X34: No | Y34: No | Z34: No | AA34: Yes | AG34: No | AT34: No | AU34: No | AV34: No | AX34: No | BF34: No | BM34: No | CC34: 95. USED AS A REACTANT | CL34: =IF(AJ34="Yes", CL$1,"") -> 
A35: 15061PLYSR370FR | B35: R | C35: 2016 | D35: 1,3-Butadiene | E35: 106990 | F35: 1316215505280 | G35: 325211 | H35: BASF CORP | I35: 370 FRANKFORT RD | J35: MONACA | K35: PA | L35: 15061 | M35: 95. USED AS A REACTANT | N35: Processing as a Reactant | O35: Processing as a Reactant | P35: TRI use info | Q35: ^ | R35: 3920 | S35: 169 | T35: 4089 | U35: No | V35: No | W35: No | X35: No | Y35: No | Z35: No | AA35: Yes | AG35: No | AT35: No | AU35: No | AV35: No | AX35: No | BF35: No | BM35: No | BW35: =IF(U35="Yes", BW$1,"") ->  | CC35: 95. USED AS A REACTANT
A36: 37421PLYSR2200P | B36: R | C36: 2017 | D36: 1,3-Butadiene | E36: 106990 | F36: 1317216252080 | G36: 325211 | H36: BASF CORP | I36: 2120 POLYMER DR | J36: CHATTANOOGA | K36: TN | L36: 37421 | M36: 95. USED AS A REACTANT | N36: Processing as a Reactant | O36: Processing as a Reactant | P36: TRI use info | Q36: ^ | R36: 238 | S36: 59.3 | T36: 297.3 | U36: No | V36: No | W36: No | X36: No | Y36: No | Z36: No | AA36: Yes | AG36: No | AT36: No | AU36: No | AV36: No | AX36: No | BF36: No | BM36: No | CC36: 95. USED AS A REACTANT
A37: 37406PLYSR3805A | B37: R | C37: 2017 | D37: 1,3-Butadiene | E37: 106990 | F37: 1317216266938 | G37: 325212 | H37: BASF CORP | I37: 32 LOST MOUND DRIVE | J37: CHATTANOOGA | K37: TN | L37: 37406 | M37: 95. USED AS A REACTANT | N37: Processing as a Reactant | O37: Processing as a Reactant | P37: TRI use info | Q37: ^ | R37: 441 | S37: 24 | T37: 465 | U37: No | V37: No | W37: No | X37: No | Y37: No | Z37: No | AA37: Yes | AG37: No | AT37: No | AU37: No | AV37: No | AX37: No | BF37: No | BM37: No | CC37: 95. USED AS A REACTANT
A38: 15061PLYSR370FR | B38: R | C38: 2017 | D38: 1,3-Butadiene | E38: 106990 | F38: 1317216127656 | G38: 325211 | H38: BASF CORP | I38: 370 FRANKFORT RD | J38: MONACA | K38: PA | L38: 15061 | M38: 95. USED AS A REACTANT | N38: Processing as a Reactant | O38: Processing as a Reactant | P38: TRI use info | Q38: ^ | R38: 3920 | S38: 183 | T38: 4103 | U38: No | V38: No | W38: No | X38: No | Y38: No | Z38: No | AA38: Yes | AG38: No | AT38: No | AU38: No | AV38: No | AX38: No | BF38: No | BM38: No | CC38: 95. USED AS A REACTANT
A39: 15061PLYSR370FR | B39: R | C39: 2018 | D39: 1,3-Butadiene | E39: 106990 | F39: 1318217246711 | G39: 325211 | H39: BASF CORP | I39: 370 FRANKFORT RD | J39: MONACA | K39: PA | L39: 15061 | M39: 95. USED AS A REACTANT, 97. P102 RAW MATERIALS | N39: Processing as a Reactant | O39: Processing as a Reactant | P39: TRI use info | Q39: ^ | R39: 3920 | S39: 188 | T39: 4108 | U39: No | V39: No | W39: No | X39: No | Y39: No | Z39: No | AA39: Yes | AB39: No | AC39: Yes | AD39: No | AE39: No | AF39: No | AG39: No | AH39: No | AI39: No | AJ39: No | AK39: No | AL39: No | AM39: No | AN39: No | AO39: No | AP39: No | AQ39: No | AR39: No | AS39: No | AT39: No | AU39: No | AV39: No | AW39: No | AX39: No | AY39: No | AZ39: No | BA39: No | BB39: No | BC39: No | BD39: No | BE39: No | BF39: No | BG39: No | BH39: No | BI39: No | BJ39: No | BK39: No | BL39: No | BM39: No | BN39: No | BO39: No | BP39: No | BQ39: No | BR39: No | BS39: No | BT39: No | BU39: No | BV39: No | CC39: 95. USED AS A REACTANT | CE39: 97. P102 RAW MATERIALS
A40: 37406PLYSR3805A | B40: R | C40: 2018 | D40: 1,3-Butadiene | E40: 106990 | F40: 1318216796185 | G40: 325212 | H40: BASF CORP | I40: 32 LOST MOUND DRIVE | J40: CHATTANOOGA | K40: TN | L40: 37406 | M40: 95. USED AS A REACTANT, 97. P102 RAW MATERIALS | N40: Processing as a Reactant | O40: Processing as a Reactant | P40: TRI use info | Q40: ^ | R40: 169 | S40: 29 | T40: 198 | U40: No | V40: No | W40: No | X40: No | Y40: No | Z40: No | AA40: Yes | AB40: No | AC40: Yes | AD40: No | AE40: No | AF40: No | AG40: No | AH40: No | AI40: No | AJ40: No | AK40: No | AL40: No | AM40: No | AN40: No | AO40: No | AP40: No | AQ40: No | AR40: No | AS40: No | AT40: No | AU40: No | AV40: No | AW40: No | AX40: No | AY40: No | AZ40: No | BA40: No | BB40: No | BC40: No | BD40: No | BE40: No | BF40: No | BG40: No | BH40: No | BI40: No | BJ40: No | BK40: No | BL40: No | BM40: No | BN40: No | BO40: No | BP40: No | BQ40: No | BR40: No | BS40: No | BT40: No | BU40: No | BV40: No | CC40: 95. USED AS A REACTANT | CE40: 97. P102 RAW MATERIALS
A41: 37421PLYSR2200P | B41: R | C41: 2018 | D41: 1,3-Butadiene | E41: 106990 | F41: 1318216796274 | G41: 325211 | H41: BASF CORP | I41: 2120 POLYMER DR | J41: CHATTANOOGA | K41: TN | L41: 37421 | M41: 95. USED AS A REACTANT, 97. P102 RAW MATERIALS | N41: Processing as a Reactant | O41: Processing as a Reactant | P41: TRI use info | Q41: ^ | R41: 214 | S41: 291 | T41: 505 | U41: No | V41: No | W41: No | X41: No | Y41: No | Z41: No | AA41: Yes | AB41: No | AC41: Yes | AD41: No | AE41: No | AF41: No | AG41: No | AH41: No | AI41: No | AJ41: No | AK41: No | AL41: No | AM41: No | AN41: No | AO41: No | AP41: No | AQ41: No | AR41: No | AS41: No | AT41: No | AU41: No | AV41: No | AW41: No | AX41: No | AY41: No | AZ41: No | BA41: No | BB41: No | BC41: No | BD41: No | BE41: No | BF41: No | BG41: No | BH41: No | BI41: No | BJ41: No | BK41: No | BL41: No | BM41: No | BN41: No | BO41: No | BP41: No | BQ41: No | BR41: No | BS41: No | BT41: No | BU41: No | BV41: No | CC41: 95. USED AS A REACTANT | CE41: 97. P102 RAW MATERIALS
A42: 15061PLYSR370FR | B42: R | C42: 2019 | D42: 1,3-Butadiene | E42: 106990 | F42: 1319219406269 | G42: 325211 | H42: BASF CORP | I42: 370 FRANKFORT RD | J42: MONACA | K42: PA | L42: 15061 | M42: 95. USED AS A REACTANT, 97. P102 RAW MATERIALS | N42: Processing as a Reactant | O42: Processing as a Reactant | P42: TRI use info | Q42: ^ | R42: 3955 | S42: 199 | T42: 4154 | U42: No | V42: No | W42: No | X42: No | Y42: No | Z42: No | AA42: Yes | AB42: No | AC42: Yes | AD42: No | AE42: No | AF42: No | AG42: No | AH42: No | AI42: No | AJ42: No | AK42: No | AL42: No | AM42: No | AN42: No | AO42: No | AP42: No | AQ42: No | AR42: No | AS42: No | AT42: No | AU42: No | AV42: No | AW42: No | AX42: No | AY42: No | AZ42: No | BA42: No | BB42: No | BC42: No | BD42: No | BE42: No | BF42: No | BG42: No | BH42: No | BI42: No | BJ42: No | BK42: No | BL42: No | BM42: No | BN42: No | BO42: No | BP42: No | BQ42: No | BR42: No | BS42: No | BT42: No | BU42: No | BV42: No | CC42: 95. USED AS A REACTANT | CE42: 97. P102 RAW MATERIALS
A43: 37406PLYSR3805A | B43: R | C43: 2019 | D43: 1,3-Butadiene | E43: 106990 | F43: 1319217876806 | G43: 325212 | H43: BASF CORP | I43: 32 LOST MOUND DRIVE | J43: CHATTANOOGA | K43: TN | L43: 37406 | M43: 95. USED AS A REACTANT, 97. P102 RAW MATERIALS | N43: Processing as a Reactant | O43: Processing as a Reactant | P43: TRI use info | Q43: ^ | R43: 213 | S43: 22 | T43: 235 | U43: No | V43: No | W43: No | X43: No | Y43: No | Z43: No | AA43: Yes | AB43: No | AC43: Yes | AD43: No | AE43: No | AF43: No | AG43: No | AH43: No | AI43: No | AJ43: No | AK43: No | AL43: No | AM43: No | AN43: No | AO43: No | AP43: No | AQ43: No | AR43: No | AS43: No | AT43: No | AU43: No | AV43: No | AW43: No | AX43: No | AY43: No | AZ43: No | BA43: No | BB43: No | BC43: No | BD43: No | BE43: No | BF43: No | BG43: No | BH43: No | BI43: No | BJ43: No | BK43: No | BL43: No | BM43: No | BN43: No | BO43: No | BP43: No | BQ43: No | BR43: No | BS43: No | BT43: No | BU43: No | BV43: No | CC43: 95. USED AS A REACTANT | CE43: 97. P102 RAW MATERIALS
A44: 37421PLYSR2200P | B44: R | C44: 2019 | D44: 1,3-Butadiene | E44: 106990 | F44: 1319217947480 | G44: 325211 | H44: BASF CORP | I44: 2120 POLYMER DR | J44: CHATTANOOGA | K44: TN | L44: 37421 | M44: 95. USED AS A REACTANT, 97. P102 RAW MATERIALS | N44: Processing as a Reactant | O44: Processing as a Reactant | P44: TRI use info | Q44: ^ | R44: 241 | S44: 101 | T44: 342 | U44: No | V44: No | W44: No | X44: No | Y44: No | Z44: No | AA44: Yes | AB44: No | AC44: Yes | AD44: No | AE44: No | AF44: No | AG44: No | AH44: No | AI44: No | AJ44: No | AK44: No | AL44: No | AM44: No | AN44: No | AO44: No | AP44: No | AQ44: No | AR44: No | AS44: No | AT44: No | AU44: No | AV44: No | AW44: No | AX44: No | AY44: No | AZ44: No | BA44: No | BB44: No | BC44: No | BD44: No | BE44: No | BF44: No | BG44: No | BH44: No | BI44: No | BJ44: No | BK44: No | BL44: No | BM44: No | BN44: No | BO44: No | BP44: No | BQ44: No | BR44: No | BS44: No | BT44: No | BU44: No | BV44: No | CC44: 95. USED AS A REACTANT | CE44: 97. P102 RAW MATERIALS | DV44: =IF(BT44="Yes", DV$1,"") -> 
A45: 37421PLYSR2200P | B45: R | C45: 2020 | D45: 1,3-Butadiene | E45: 106990 | F45: 1320218687123 | G45: 325211 | H45: BASF CORP | I45: 2120 POLYMER DR | J45: CHATTANOOGA | K45: TN | L45: 37421 | M45: 95. USED AS A REACTANT, 97. P102 RAW MATERIALS, 114. USED AS AN ARTICLE COMPONENT | N45: Processing as a Reactant | O45: Processing as a Reactant | P45: TRI use info | Q45: ^ | R45: 250 | S45: 250 | T45: 500 | U45: No | V45: No | W45: No | X45: No | Y45: No | Z45: No | AA45: Yes | AB45: No | AC45: Yes | AD45: No | AE45: No | AF45: No | AG45: No | AH45: No | AI45: No | AJ45: No | AK45: No | AL45: No | AM45: No | AN45: No | AO45: No | AP45: No | AQ45: No | AR45: No | AS45: No | AT45: Yes | AU45: No | AV45: No | AW45: No | AX45: No | AY45: No | AZ45: No | BA45: No | BB45: No | BC45: No | BD45: No | BE45: No | BF45: No | BG45: No | BH45: No | BI45: No | BJ45: No | BK45: No | BL45: No | BM45: No | BN45: No | BO45: No | BP45: No | BQ45: No | BR45: No | BS45: No | BT45: No | BU45: No | BV45: No | CC45: 95. USED AS A REACTANT | CE45: 97. P102 RAW MATERIALS | CV45: 114. USED AS AN ARTICLE COMPONENT
A46: 37406PLYSR3805A | B46: R | C46: 2020 | D46: 1,3-Butadiene | E46: 106990 | F46: 1320218687198 | G46: 325212 | H46: BASF CORP | I46: 32 LOST MOUND DRIVE | J46: CHATTANOOGA | K46: TN | L46: 37406 | M46: 95. USED AS A REACTANT, 97. P102 RAW MATERIALS, 114. USED AS AN ARTICLE COMPONENT, 117. PROCESSED / RECYCLING | N46: Processing as a Reactant | O46: Processing as a Reactant | P46: TRI use info | Q46: ^ | R46: 250 | S46: 250 | T46: 500 | U46: No | V46: No | W46: No | X46: No | Y46: No | Z46: No | AA46: Yes | AB46: No | AC46: Yes | AD46: No | AE46: No | AF46: No | AG46: No | AH46: No | AI46: No | AJ46: No | AK46: No | AL46: No | AM46: No | AN46: No | AO46: No | AP46: No | AQ46: No | AR46: No | AS46: No | AT46: Yes | AU46: No | AV46: No | AW46: Yes | AX46: No | AY46: No | AZ46: No | BA46: No | BB46: No | BC46: No | BD46: No | BE46: No | BF46: No | BG46: No | BH46: No | BI46: No | BJ46: No | BK46: No | BL46: No | BM46: No | BN46: No | BO46: No | BP46: No | BQ46: No | BR46: No | BS46: No | BT46: No | BU46: No | BV46: No | CC46: 95. USED AS A REACTANT | CE46: 97. P102 RAW MATERIALS | CV46: 114. USED AS AN ARTICLE COMPONENT | CY46: 117. PROCESSED / RECYCLING
A47: 15061PLYSR370FR | B47: R | C47: 2020 | D47: 1,3-Butadiene | E47: 106990 | F47: 1320219047368 | G47: 325211 | H47: BASF CORP | I47: 370 FRANKFORT RD | J47: MONACA | K47: PA | L47: 15061 | M47: 95. USED AS A REACTANT, 97. P102 RAW MATERIALS | N47: Processing as a Reactant | O47: Processing as a Reactant | P47: TRI use info | Q47: ^ | R47: 3920 | S47: 171 | T47: 4091 | U47: No | V47: No | W47: No | X47: No | Y47: No | Z47: No | AA47: Yes | AB47: No | AC47: Yes | AD47: No | AE47: No | AF47: No | AG47: No | AH47: No | AI47: No | AJ47: No | AK47: No | AL47: No | AM47: No | AN47: No | AO47: No | AP47: No | AQ47: No | AR47: No | AS47: No | AT47: No | AU47: No | AV47: No | AW47: No | AX47: No | AY47: No | AZ47: No | BA47: No | BB47: No | BC47: No | BD47: No | BE47: No | BF47: No | BG47: No | BH47: No | BI47: No | BJ47: No | BK47: No | BL47: No | BM47: No | BN47: No | BO47: No | BP47: No | BQ47: No | BR47: No | BS47: No | BT47: No | BU47: No | BV47: No | CC47: 95. USED AS A REACTANT | CE47: 97. P102 RAW MATERIALS
A48: 15061PLYSR370FR | B48: R | C48: 2021 | D48: 1,3-Butadiene | E48: 106990 | F48: 1321220251464 | G48: 325211 | H48: BASF CORP | I48: 370 FRANKFORT RD | J48: MONACA | K48: PA | L48: 15061 | M48: 95. USED AS A REACTANT, 97. P102 RAW MATERIALS, 114. USED AS AN ARTICLE COMPONENT | N48: Processing as a Reactant | O48: Processing as a Reactant | P48: TRI use info | Q48: ^ | R48: 3920 | S48: 123 | T48: 4043 | U48: No | V48: No | W48: No | X48: No | Y48: No | Z48: No | AA48: Yes | AB48: No | AC48: Yes | AD48: No | AE48: No | AF48: No | AG48: No | AH48: No | AI48: No | AJ48: No | AK48: No | AL48: No | AM48: No | AN48: No | AO48: No | AP48: No | AQ48: No | AR48: No | AS48: No | AT48: Yes | AU48: No | AV48: No | AW48: No | AX48: No | AY48: No | AZ48: No | BA48: No | BB48: No | BC48: No | BD48: No | BE48: No | BF48: No | BG48: No | BH48: No | BI48: No | BJ48: No | BK48: No | BL48: No | BM48: No | BN48: No | BO48: No | BP48: No | BQ48: No | BR48: No | BS48: No | BT48: No | BU48: No | BV48: No | CC48: 95. USED AS A REACTANT | CE48: 97. P102 RAW MATERIALS | CV48: 114. USED AS AN ARTICLE COMPONENT
A49: 37421PLYSR2200P | B49: R | C49: 2021 | D49: 1,3-Butadiene | E49: 106990 | F49: 1321219722206 | G49: 325211 | H49: BASF CORP | I49: 2120 POLYMER DR | J49: CHATTANOOGA | K49: TN | L49: 37421 | M49: 95. USED AS A REACTANT, 97. P102 RAW MATERIALS, 114. USED AS AN ARTICLE COMPONENT, 117. PROCESSED / RECYCLING | N49: Processing as a Reactant | O49: Processing as a Reactant | P49: TRI use info | Q49: ^ | R49: 5 | S49: 288 | T49: 293 | U49: No | V49: No | W49: No | X49: No | Y49: No | Z49: No | AA49: Yes | AB49: No | AC49: Yes | AD49: No | AE49: No | AF49: No | AG49: No | AH49: No | AI49: No | AJ49: No | AK49: No | AL49: No | AM49: No | AN49: No | AO49: No | AP49: No | AQ49: No | AR49: No | AS49: No | AT49: Yes | AU49: No | AV49: No | AW49: Yes | AX49: No | AY49: No | AZ49: No | BA49: No | BB49: No | BC49: No | BD49: No | BE49: No | BF49: No | BG49: No | BH49: No | BI49: No | BJ49: No | BK49: No | BL49: No | BM49: No | BN49: No | BO49: No | BP49: No | BQ49: No | BR49: No | BS49: No | BT49: No | BU49: No | BV49: No | CC49: 95. USED AS A REACTANT | CE49: 97. P102 RAW MATERIALS | CV49: 114. USED AS AN ARTICLE COMPONENT | CY49: 117. PROCESSED / RECYCLING | DM49: =IF(BK49="Yes", DM$1,"") -> 
A50: 37406PLYSR3805A | B50: R | C50: 2021 | D50: 1,3-Butadiene | E50: 106990 | F50: 1321219723828 | G50: 325212 | H50: BASF CORP | I50: 32 LOST MOUND DRIVE | J50: CHATTANOOGA | K50: TN | L50: 37406 | M50: 95. USED AS A REACTANT, 97. P102 RAW MATERIALS | N50: Processing as a Reactant | O50: Processing as a Reactant | P50: TRI use info | Q50: ^ | R50: 250 | S50: 250 | T50: 500 | U50: No | V50: No | W50: No | X50: No | Y50: No | Z50: No | AA50: Yes | AB50: No | AC50: Yes | AD50: No | AE50: No | AF50: No | AG50: No | AH50: No | AI50: No | AJ50: No | AK50: No | AL50: No | AM50: No | AN50: No | AO50: No | AP50: No | AQ50: No | AR50: No | AS50: No | AT50: No | AU50: No | AV50: No | AW50: No | AX50: No | AY50: No | AZ50: No | BA50: No | BB50: No | BC50: No | BD50: No | BE50: No | BF50: No | BG50: No | BH50: No | BI50: No | BJ50: No | BK50: No | BL50: No | BM50: No | BN50: No | BO50: No | BP50: No | BQ50: No | BR50: No | BS50: No | BT50: No | BU50: No | BV50: No | CC50: 95. USED AS A REACTANT | CE50: 97. P102 RAW MATERIALS | DB50: =IF(AZ50="Yes", DB$1,"") -> 
A51: 77643BSFFNNEOFI | B51: R | C51: 2016 | D51: 1,3-Butadiene | E51: 106990 | F51: 1316215307784 | G51: 325110 | H51: BASF TOTAL PETROCHEMICALS LLC | I51: NE OF INTERSECTION OF HWY 73 & HWY 366 | J51: PORT ARTHUR | K51: TX | L51: 77642 | M51: 89. PRODUCE THE CHEMICAL, 92. SALE OR DISTRIBUTION OF THE CHEMICAL, 93. AS A BYPRODUCT, 116. AS A PROCESS IMPURITY | N51: Manufacturing | O51: Manufacturing | P51: Note: site address is different in CDR but city/state is the same. No mention of CDR address on company website. Assuming same site as in CDR. | Q51: In CDR as manufacturer, also produce and sale subuse | R51: 12000 | S51: 24000 | T51: 36000 | U51: Yes | V51: No | W51: No | X51: Yes | Y51: Yes | Z51: No | AA51: No | AG51: No | AT51: No | AU51: No | AV51: Yes | AX51: No | BF51: No | BM51: No | BW51: 89. PRODUCE THE CHEMICAL | BZ51: 92. SALE OR DISTRIBUTION OF THE CHEMICAL | CA51: 93. AS A BYPRODUCT | CX51: 116. AS A PROCESS IMPURITY | DA51: =IF(AY51="Yes", DA$1,"") -> 
A52: 77643BSFFNNEOFI | B52: R | C52: 2017 | D52: 1,3-Butadiene | E52: 106990 | F52: 1317216361358 | G52: 325110 | H52: BASF TOTAL PETROCHEMICALS LLC | I52: NE OF INTERSECTION OF HWY 73 & HWY 366 | J52: PORT ARTHUR | K52: TX | L52: 77642 | M52: 89. PRODUCE THE CHEMICAL, 92. SALE OR DISTRIBUTION OF THE CHEMICAL, 93. AS A BYPRODUCT, 116. AS A PROCESS IMPURITY | N52: Manufacturing | O52: Manufacturing | P52: Note: site address is different in CDR but city/state is the same. No mention of CDR address on company website. Assuming same site as in CDR. | Q52: ^ | R52: 4700 | S52: 20000 | T52: 24700 | U52: Yes | V52: No | W52: No | X52: Yes | Y52: Yes | Z52: No | AA52: No | AG52: No | AT52: No | AU52: No | AV52: Yes | AX52: No | BF52: No | BM52: No | BW52: =IF(U52="Yes", BW$1,"") -> 89. PRODUCE THE CHEMICAL | BZ52: 92. SALE OR DISTRIBUTION OF THE CHEMICAL | CA52: 93. AS A BYPRODUCT | CM52: =IF(AK52="Yes", CM$1,"") ->  | CX52: 116. AS A PROCESS IMPURITY
A53: 77643BSFFNNEOFI | B53: R | C53: 2018 | D53: 1,3-Butadiene | E53: 106990 | F53: 1318216991087 | G53: 325110 | H53: BASF TOTAL PETROCHEMICALS LLC | I53: NE OF INTERSECTION OF HWY 73 & HWY 366 | J53: PORT ARTHUR | K53: TX | L53: 77642 | M53: 89. PRODUCE THE CHEMICAL, 93. AS A BYPRODUCT, 116. AS A PROCESS IMPURITY | N53: Manufacturing | O53: " | P53: Note: site address is different in CDR but city/state is the same. No mention of CDR address on company website. Assuming same site as in CDR. | Q53: ^ | R53: 5037.11 | S53: 37557.1 | T53: 42594.21 | U53: Yes | V53: No | W53: No | X53: No | Y53: Yes | Z53: No | AA53: No | AB53: No | AC53: No | AD53: No | AE53: No | AF53: No | AG53: No | AH53: No | AI53: No | AJ53: No | AK53: No | AL53: No | AM53: No | AN53: No | AO53: No | AP53: No | AQ53: No | AR53: No | AS53: No | AT53: No | AU53: No | AV53: Yes | AW53: No | AX53: No | AY53: No | AZ53: No | BA53: No | BB53: No | BC53: No | BD53: No | BE53: No | BF53: No | BG53: No | BH53: No | BI53: No | BJ53: No | BK53: No | BL53: No | BM53: No | BN53: No | BO53: No | BP53: No | BQ53: No | BR53: No | BS53: No | BT53: No | BU53: No | BV53: No | BW53: 89. PRODUCE THE CHEMICAL | CA53: 93. AS A BYPRODUCT | CX53: 116. AS A PROCESS IMPURITY
A54: 77643BSFFNNEOFI | B54: R | C54: 2019 | D54: 1,3-Butadiene | E54: 106990 | F54: 1319218534814 | G54: 325110 | H54: BASF TOTAL PETROCHEMICALS LLC | I54: NE OF INTERSECTION OF HWY 73 & HWY 366 | J54: PORT ARTHUR | K54: TX | L54: 77642 | M54: 89. PRODUCE THE CHEMICAL, 93. AS A BYPRODUCT, 116. AS A PROCESS IMPURITY | N54: Manufacturing | O54: " | P54: Note: site address is different in CDR but city/state is the same. No mention of CDR address on company website. Assuming same site as in CDR. | Q54: ^ | R54: 6823.93 | S54: 25574.27 | T54: 32398.2 | U54: Yes | V54: No | W54: No | X54: No | Y54: Yes | Z54: No | AA54: No | AB54: No | AC54: No | AD54: No | AE54: No | AF54: No | AG54: No | AH54: No | AI54: No | AJ54: No | AK54: No | AL54: No | AM54: No | AN54: No | AO54: No | AP54: No | AQ54: No | AR54: No | AS54: No | AT54: No | AU54: No | AV54: Yes | AW54: No | AX54: No | AY54: No | AZ54: No | BA54: No | BB54: No | BC54: No | BD54: No | BE54: No | BF54: No | BG54: No | BH54: No | BI54: No | BJ54: No | BK54: No | BL54: No | BM54: No | BN54: No | BO54: No | BP54: No | BQ54: No | BR54: No | BS54: No | BT54: No | BU54: No | BV54: No | BW54: 89. PRODUCE THE CHEMICAL | CA54: 93. AS A BYPRODUCT | CX54: 116. AS A PROCESS IMPURITY
A55: 77643BSFFNNEOFI | B55: R | C55: 2020 | D55: 1,3-Butadiene | E55: 106990 | F55: 1320218731646 | G55: 325110 | H55: BASF TOTAL PETROCHEMICALS LLC | I55: NE OF INTERSECTION OF HWY 73 & HWY 366 | J55: PORT ARTHUR | K55: TX | L55: 77642 | M55: 89. PRODUCE THE CHEMICAL, 93. AS A BYPRODUCT, 116. AS A PROCESS IMPURITY | N55: Manufacturing | O55: " | P55: Note: site address is different in CDR but city/state is the same. No mention of CDR address on company website. Assuming same site as in CDR. | Q55: ^ | R55: 6035.7 | S55: 11244.38 | T55: 17280.08 | U55: Yes | V55: No | W55: No | X55: No | Y55: Yes | Z55: No | AA55: No | AB55: No | AC55: No | AD55: No | AE55: No | AF55: No | AG55: No | AH55: No | AI55: No | AJ55: No | AK55: No | AL55: No | AM55: No | AN55: No | AO55: No | AP55: No | AQ55: No | AR55: No | AS55: No | AT55: No | AU55: No | AV55: Yes | AW55: No | AX55: No | AY55: No | AZ55: No | BA55: No | BB55: No | BC55: No | BD55: No | BE55: No | BF55: No | BG55: No | BH55: No | BI55: No | BJ55: No | BK55: No | BL55: No | BM55: No | BN55: No | BO55: No | BP55: No | BQ55: No | BR55: No | BS55: No | BT55: No | BU55: No | BV55: No | BW55: 89. PRODUCE THE CHEMICAL | CA55: 93. AS A BYPRODUCT | CX55: 116. AS A PROCESS IMPURITY
A56: 77643BSFFNNEOFI | B56: R | C56: 2021 | D56: 1,3-Butadiene | E56: 106990 | F56: 1321219817475 | G56: 325110 | H56: BASF TOTAL PETROCHEMICALS LLC | I56: NE OF INTERSECTION OF HWY 73 & HWY 366 | J56: PORT ARTHUR | K56: TX | L56: 77642 | M56: 89. PRODUCE THE CHEMICAL, 93. AS A BYPRODUCT, 116. AS A PROCESS IMPURITY | N56: Manufacturing | O56: " | P56: Note: site address is different in CDR but city/state is the same. No mention of CDR address on company website. Assuming same site as in CDR. | Q56: ^ | R56: 4351 | S56: 10388 | T56: 14739 | U56: Yes | V56: No | W56: No | X56: No | Y56: Yes | Z56: No | AA56: No | AB56: No | AC56: No | AD56: No | AE56: No | AF56: No | AG56: No | AH56: No | AI56: No | AJ56: No | AK56: No | AL56: No | AM56: No | AN56: No | AO56: No | AP56: No | AQ56: No | AR56: No | AS56: No | AT56: No | AU56: No | AV56: Yes | AW56: No | AX56: No | AY56: No | AZ56: No | BA56: No | BB56: No | BC56: No | BD56: No | BE56: No | BF56: No | BG56: No | BH56: No | BI56: No | BJ56: No | BK56: No | BL56: No | BM56: No | BN56: No | BO56: No | BP56: No | BQ56: No | BR56: No | BS56: No | BT56: No | BU56: No | BV56: No | BW56: 89. PRODUCE THE CHEMICAL | CA56: 93. AS A BYPRODUCT | CX56: 116. AS A PROCESS IMPURITY
A57: 7764WBYPRT7632N | B57: R | C57: 2021 | D57: 1,3-Butadiene | E57: 106990 | F57: 1321220021479 | G57: 325110 | H57: BAYPORT POLYMERS LLC | I57: 7600 32ND ST | J57: PORT ARTHUR | K57: TX | L57: 77642 | M57: 116. AS A PROCESS IMPURITY | N57: Plastics and Rubber Compounding | O57: " | P57: Company website (https://www.baystar.com/products/) | Q57: NAICS: petrochemical manufacturing. Only use is process impurity. Website indicates high density polyethylene resins | R57: 0 | S57: 6.45 | T57: 6.45 | U57: No | V57: No | W57: No | X57: No | Y57: No | Z57: No | AA57: No | AB57: No | AC57: No | AD57: No | AE57: No | AF57: No | AG57: No | AH57: No | AI57: No | AJ57: No | AK57: No | AL57: No | AM57: No | AN57: No | AO57: No | AP57: No | AQ57: No | AR57: No | AS57: No | AT57: No | AU57: No | AV57: Yes | AW57: No | AX57: No | AY57: No | AZ57: No | BA57: No | BB57: No | BC57: No | BD57: No | BE57: No | BF57: No | BG57: No | BH57: No | BI57: No | BJ57: No | BK57: No | BL57: No | BM57: No | BN57: No | BO57: No | BP57: No | BQ57: No | BR57: No | BS57: No | BT57: No | BU57: No | BV57: No | CX57: 116. AS A PROCESS IMPURITY
A58: 7759WBLNCH2415T | B58: R | C58: 2016 | D58: 1,3-Butadiene | E58: 106990 | F58: 1316215242102 | G58: 324110 | H58: BLANCHARD REFINING CO LLC | I58: 2401 5TH AVE S | J58: TEXAS CITY | K58: TX | L58: 77590 | M58: 89. PRODUCE THE CHEMICAL, 91. ON-SITE USE OF THE CHEMICAL, 92. SALE OR DISTRIBUTION OF THE CHEMICAL, 95. USED AS A REACTANT, 133. ANCILLARY OR OTHER USE | N58: Manufacturing | O58: MANU | P58: While several uses are provided, TRI indicates produce the chemcial for sale or distribution. Manufacturing assumed. | Q58: NAICS: Petroleum Refineries. Produced on site and for sale, manu assumed | R58: 60 | S58: 1600 | T58: 1660 | U58: Yes | V58: No | W58: Yes | X58: Yes | Y58: No | Z58: No | AA58: Yes | AG58: No | AT58: No | AU58: No | AV58: No | AX58: No | BF58: No | BM58: Yes | BW58: 89. PRODUCE THE CHEMICAL | BY58: 91. ON-SITE USE OF THE CHEMICAL | BZ58: 92. SALE OR DISTRIBUTION OF THE CHEMICAL | CC58: 95. USED AS A REACTANT | DO58: 133. ANCILLARY OR OTHER USE
A59: 7759WBLNCH2415T | B59: R | C59: 2016 | D59: 1,3-Butadiene | E59: 106990 | F59: 1316215242621 | G59: 221112 | H59: BLANCHARD REFINING CO LLC | I59: 2401 5TH AVE S | J59: TEXAS CITY | K59: TX | L59: 77590 | M59: 89. PRODUCE THE CHEMICAL, 93. AS A BYPRODUCT | N59: Manufacturing | O59: MANU | P59: While several uses are provided, TRI indicates produce the chemcial for sale or distribution. Manufacturing assumed. | Q59: ^ | R59: 0 | S59: 1 | T59: 1 | U59: Yes | V59: No | W59: No | X59: No | Y59: Yes | Z59: No | AA59: No | AG59: No | AT59: No | AU59: No | AV59: No | AX59: No | BF59: No | BM59: No | BW59: 89. PRODUCE THE CHEMICAL | CA59: 93. AS A BYPRODUCT
A60: 7759WBLNCH2415T | B60: R | C60: 2017 | D60: 1,3-Butadiene | E60: 106990 | F60: 1317216264869 | G60: 324110 | H60: BLANCHARD REFINING CO LLC | I60: 2401 5TH AVE S | J60: TEXAS CITY | K60: TX | L60: 77590 | M60: 89. PRODUCE THE CHEMICAL, 93. AS A BYPRODUCT | N60: Manufacturing | O60: MANU | P60: While several uses are provided, TRI indicates produce the chemcial for sale or distribution. Manufacturing assumed. | Q60: ^ | R60: 100 | S60: 1300 | T60: 1400 | U60: Yes | V60: No | W60: No | X60: No | Y60: Yes | Z60: No | AA60: No | AG60: No | AT60: No | AU60: No | AV60: No | AX60: No | BF60: No | BM60: No | BW60: 89. PRODUCE THE CHEMICAL | CA60: 93. AS A BYPRODUCT
A61: 7759WBLNCH2415T | B61: R | C61: 2017 | D61: 1,3-Butadiene | E61: 106990 | F61: 1317216265367 | G61: 221112 | H61: BLANCHARD REFINING CO LLC | I61: 2401 5TH AVE S | J61: TEXAS CITY | K61: TX | L61: 77590 | M61: 89. PRODUCE THE CHEMICAL, 91. ON-SITE USE OF THE CHEMICAL, 92. SALE OR DISTRIBUTION OF THE CHEMICAL, 95. USED AS A REACTANT, 133. ANCILLARY OR OTHER USE | N61: Manufacturing | O61: MANU | P61: While several uses are provided, TRI indicates produce the chemcial for sale or distribution. Manufacturing assumed. | Q61: ^ | R61: 0 | S61: 1 | T61: 1 | U61: Yes | V61: No | W61: Yes | X61: Yes | Y61: No | Z61: No | AA61: Yes | AG61: No | AT61: No | AU61: No | AV61: No | AX61: No | BF61: No | BM61: Yes | BW61: 89. PRODUCE THE CHEMICAL | BY61: 91. ON-SITE USE OF THE CHEMICAL | BZ61: 92. SALE OR DISTRIBUTION OF THE CHEMICAL | CC61: 95. USED AS A REACTANT | DO61: 133. ANCILLARY OR OTHER USE
A62: 7759WBLNCH2415T | B62: R | C62: 2018 | D62: 1,3-Butadiene | E62: 106990 | F62: 1318217185115 | G62: 324110 | H62: BLANCHARD REFINING CO LLC | I62: 2401 5TH AVE S | J62: TEXAS CITY | K62: TX | L62: 77590 | M62: 89. PRODUCE THE CHEMICAL, 93. AS A BYPRODUCT | N62: Manufacturing | O62: MANU | P62: While several uses are provided, TRI indicates produce the chemcial for sale or distribution. Manufacturing assumed. | Q62: ^ | R62: 80 | S62: 1300 | T62: 1380 | U62: Yes | V62: No | W62: No | X62: No | Y62: Yes | Z62: No | AA62: No | AB62: No | AC62: No | AD62: No | AE62: No | AF62: No | AG62: No | AH62: No | AI62: No | AJ62: No | AK62: No | AL62: No | AM62: No | AN62: No | AO62: No | AP62: No | AQ62: No | AR62: No | AS62: No | AT62: No | AU62: No | AV62: No | AW62: No | AX62: No | AY62: No | AZ62: No | BA62: No | BB62: No | BC62: No | BD62: No | BE62: No | BF62: No | BG62: No | BH62: No | BI62: No | BJ62: No | BK62: No | BL62: No | BM62: No | BN62: No | BO62: No | BP62: No | BQ62: No | BR62: No | BS62: No | BT62: No | BU62: No | BV62: No | BW62: 89. PRODUCE THE CHEMICAL | CA62: 93. AS A BYPRODUCT
A63: 7759WBLNCH2415T | B63: R | C63: 2018 | D63: 1,3-Butadiene | E63: 106990 | F63: 1318217184427 | G63: 221112 | H63: BLANCHARD REFINING CO LLC | I63: 2401 5TH AVE S | J63: TEXAS CITY | K63: TX | L63: 77590 | M63: 89. PRODUCE THE CHEMICAL, 91. ON-SITE USE OF THE CHEMICAL, 92. SALE OR DISTRIBUTION OF THE CHEMICAL, 95. USED AS A REACTANT, 97. P102 RAW MATERIALS, 98. P103 INTERMEDIATES, 133. ANCILLARY OR OTHER USE, 142. Z399 OTHER | N63: Manufacturing | O63: MANU | P63: While several uses are provided, TRI indicates produce the chemcial for sale or distribution. Manufacturing assumed. | Q63: ^ | R63: 0 | S63: 3 | T63: 3 | U63: Yes | V63: No | W63: Yes | X63: Yes | Y63: No | Z63: No | AA63: Yes | AB63: No | AC63: Yes | AD63: Yes | AE63: No | AF63: No | AG63: No | AH63: No | AI63: No | AJ63: No | AK63: No | AL63: No | AM63: No | AN63: No | AO63: No | AP63: No | AQ63: No | AR63: No | AS63: No | AT63: No | AU63: No | AV63: No | AW63: No | AX63: No | AY63: No | AZ63: No | BA63: No | BB63: No | BC63: No | BD63: No | BE63: No | BF63: No | BG63: No | BH63: No | BI63: No | BJ63: No | BK63: No | BL63: No | BM63: Yes | BN63: No | BO63: No | BP63: No | BQ63: No | BR63: No | BS63: No | BT63: No | BU63: No | BV63: Yes | BW63: 89. PRODUCE THE CHEMICAL | BY63: 91. ON-SITE USE OF THE CHEMICAL | BZ63: 92. SALE OR DISTRIBUTION OF THE CHEMICAL | CC63: 95. USED AS A REACTANT | CE63: 97. P102 RAW MATERIALS | CF63: 98. P103 INTERMEDIATES | DO63: 133. ANCILLARY OR OTHER USE | DX63: 142. Z399 OTHER
A64: 7759WBLNCH2415T | B64: R | C64: 2019 | D64: 1,3-Butadiene | E64: 106990 | F64: 1319218285815 | G64: 324110 | H64: BLANCHARD REFINING CO LLC | I64: 2401 5TH AVE S | J64: TEXAS CITY | K64: TX | L64: 77590 | M64: 89. PRODUCE THE CHEMICAL, 91. ON-SITE USE OF THE CHEMICAL, 92. SALE OR DISTRIBUTION OF THE CHEMICAL, 95. USED AS A REACTANT, 97. P102 RAW MATERIALS, 98. P103 INTERMEDIATES, 133. ANCILLARY OR OTHER USE, 142. Z399 OTHER | N64: Manufacturing | O64: MANU | P64: While several uses are provided, TRI indicates produce the chemcial for sale or distribution. Manufacturing assumed. | Q64: ^ | R64: 260 | S64: 1900 | T64: 2160 | U64: Yes | V64: No | W64: Yes | X64: Yes | Y64: No | Z64: No | AA64: Yes | AB64: No | AC64: Yes | AD64: Yes | AE64: No | AF64: No | AG64: No | AH64: No | AI64: No | AJ64: No | AK64: No | AL64: No | AM64: No | AN64: No | AO64: No | AP64: No | AQ64: No | AR64: No | AS64: No | AT64: No | AU64: No | AV64: No | AW64: No | AX64: No | AY64: No | AZ64: No | BA64: No | BB64: No | BC64: No | BD64: No | BE64: No | BF64: No | BG64: No | BH64: No | BI64: No | BJ64: No | BK64: No | BL64: No | BM64: Yes | BN64: No | BO64: No | BP64: No | BQ64: No | BR64: No | BS64: No | BT64: No | BU64: No | BV64: Yes | BW64: 89. PRODUCE THE CHEMICAL | BY64: 91. ON-SITE USE OF THE CHEMICAL | BZ64: 92. SALE OR DISTRIBUTION OF THE CHEMICAL | CC64: 95. USED AS A REACTANT | CE64: 97. P102 RAW MATERIALS | CF64: 98. P103 INTERMEDIATES | DO64: 133. ANCILLARY OR OTHER USE | DX64: 142. Z399 OTHER
A65: 7759WBLNCH2415T | B65: R | C65: 2020 | D65: 1,3-Butadiene | E65: 106990 | F65: 1320218771261 | G65: 324110 | H65: BLANCHARD REFINING CO LLC | I65: 2401 5TH AVE S | J65: TEXAS CITY | K65: TX | L65: 77590 | M65: 89. PRODUCE THE CHEMICAL, 91. ON-SITE USE OF THE CHEMICAL, 92. SALE OR DISTRIBUTION OF THE CHEMICAL, 95. USED AS A REACTANT, 97. P102 RAW MATERIALS, 98. P103 INTERMEDIATES, 133. ANCILLARY OR OTHER USE, 142. Z399 OTHER | N65: Manufacturing | O65: MANU | P65: While several uses are provided, TRI indicates produce the chemcial for sale or distribution. Manufacturing assumed. | Q65: ^ | R65: 660 | S65: 1200 | T65: 1860 | U65: Yes | V65: No | W65: Yes | X65: Yes | Y65: No | Z65: No | AA65: Yes | AB65: No | AC65: Yes | AD65: Yes | AE65: No | AF65: No | AG65: No | AH65: No | AI65: No | AJ65: No | AK65: No | AL65: No | AM65: No | AN65: No | AO65: No | AP65: No | AQ65: No | AR65: No | AS65: No | AT65: No | AU65: No | AV65: No | AW65: No | AX65: No | AY65: No | AZ65: No | BA65: No | BB65: No | BC65: No | BD65: No | BE65: No | BF65: No | BG65: No | BH65: No | BI65: No | BJ65: No | BK65: No | BL65: No | BM65: Yes | BN65: No | BO65: No | BP65: No | BQ65: No | BR65: No | BS65: No | BT65: No | BU65: No | BV65: Yes | BW65: 89. PRODUCE THE CHEMICAL | BY65: 91. ON-SITE USE OF THE CHEMICAL | BZ65: 92. SALE OR DISTRIBUTION OF THE CHEMICAL | CC65: 95. USED AS A REACTANT | CE65: 97. P102 RAW MATERIALS | CF65: 98. P103 INTERMEDIATES | DO65: 133. ANCILLARY OR OTHER USE | DX65: 142. Z399 OTHER
A66: 7759WBLNCH2415T | B66: R | C66: 2021 | D66: 1,3-Butadiene | E66: 106990 | F66: 1321219889235 | G66: 324110 | H66: BLANCHARD REFINING CO LLC | I66: 2401 5TH AVE S | J66: TEXAS CITY | K66: TX | L66: 77590 | M66: =_xlfn.TEXTJOIN(", ", TRUE, BW66:DX66) -> 89. PRODUCE THE CHEMICAL, 91. ON-SITE USE OF THE CHEMICAL, 92. SALE OR DISTRIBUTION OF THE CHEMICAL, 95. USED AS A REACTANT, 97. P102 RAW MATERIALS, 98. P103 INTERMEDIATES, 133. ANCILLARY OR OTHER USE, 142. Z399 OTHER | N66: Manufacturing | O66: MANU | P66: While several uses are provided, TRI indicates produce the chemcial for sale or distribution. Manufacturing assumed. | Q66: ^ | R66: 680 | S66: 1100 | T66: 1780 | U66: Yes | V66: No | W66: Yes | X66: Yes | Y66: No | Z66: No | AA66: Yes | AB66: No | AC66: Yes | AD66: Yes | AE66: No | AF66: No | AG66: No | AH66: No | AI66: No | AJ66: No | AK66: No | AL66: No | AM66: No | AN66: No | AO66: No | AP66: No | AQ66: No | AR66: No | AS66: No | AT66: No | AU66: No | AV66: No | AW66: No | AX66: No | AY66: No | AZ66: No | BA66: No | BB66: No | BC66: No | BD66: No | BE66: No | BF66: No | BG66: No | BH66: No | BI66: No | BJ66: No | BK66: No | BL66: No | BM66: Yes | BN66: No | BO66: No | BP66: No | BQ66: No | BR66: No | BS66: No | BT66: No | BU66: No | BV66: Yes | BW66: 89. PRODUCE THE CHEMICAL | BY66: 91. ON-SITE USE OF THE CHEMICAL | BZ66: 92. SALE OR DISTRIBUTION OF THE CHEMICAL | CC66: 95. USED AS A REACTANT | CE66: 97. P102 RAW MATERIALS | CF66: 98. P103 INTERMEDIATES | DO66: 133. ANCILLARY OR OTHER USE | DX66: 142. Z399 OTHER
A67: 28214TRNSM7401O | B67: R | C67: 2016 | D67: 1,3-Butadiene | E67: 106990 | F67: 1316215218544 | G67: 424710 | H67: BLANCHARD TERMINAL CO - CHARLOTTE EAST NC TERMINAL | I67: 7401 OLD MT HOLLY RD | J67: CHARLOTTE | K67: NC | L67: 28214 | M67: 101. ADDED AS A FORMULATION COMPONENT, 115. REPACKAGING | N67: Repackaging | O67: Repackaging | P67: Based on NAICS Code for Petroleum Bulk Stations and Terminals; TRI use info | Q67: NAICS: Petroleum Bulk Stations and Terminals, so Repackaging assumed | R67: 0 | S67: 1 | T67: 1 | U67: No | V67: No | W67: No | X67: No | Y67: No | Z67: No | AA67: No | AG67: Yes | AT67: No | AU67: Yes | AV67: No | AX67: No | BF67: No | BM67: No | CI67: 101. ADDED AS A FORMULATION COMPONENT | CL67: =IF(AJ67="Yes", CL$1,"") ->  | CW67: 115. REPACKAGING
A68: 37209BPXPL14095 | B68: R | C68: 2016 | D68: 1,3-Butadiene | E68: 106990 | F68: 1316215218518 | G68: 424710 | H68: BLANCHARD TERMINAL CO - NASHVILLE 51 AVE TN TERMINAL | I68: 1409 51ST AVE N | J68: NASHVILLE | K68: TN | L68: 37209 | M68: 101. ADDED AS A FORMULATION COMPONENT, 115. REPACKAGING | N68: Repackaging | O68: Repackaging | P68: Based on NAICS Code for Petroleum Bulk Stations and Terminals; TRI use info | Q68: ^ | R68: 1 | S68: 1 | T68: 2 | U68: No | V68: No | W68: No | X68: No | Y68: No | Z68: No | AA68: No | AG68: Yes | AT68: No | AU68: Yes | AV68: No | AX68: No | BF68: No | BM68: No | BW68: =IF(U68="Yes", BW$1,"") ->  | CI68: 101. ADDED AS A FORMULATION COMPONENT | CW68: 115. REPACKAGING
A69: 2757WBPPRD377BU | B69: R | C69: 2016 | D69: 1,3-Butadiene | E69: 106990 | F69: 1316215218621 | G69: 424710 | H69: BLANCHARD TERMINAL CO - SELMA BUFFALO NC TERMINAL | I69: 3707 BUFFALO ROAD | J69: SELMA | K69: NC | L69: 27576 | M69: 101. ADDED AS A FORMULATION COMPONENT, 115. REPACKAGING | N69: Repackaging | O69: Repackaging | P69: Based on NAICS Code for Petroleum Bulk Stations and Terminals | Q69: ^ | R69: 2 | S69: 1 | T69: 3 | U69: No | V69: No | W69: No | X69: No | Y69: No | Z69: No | AA69: No | AG69: Yes | AT69: No | AU69: Yes | AV69: No | AX69: No | BF69: No | BM69: No | CI69: 101. ADDED AS A FORMULATION COMPONENT | CW69: 115. REPACKAGING
A70: 98248RCCHR4519G | B70: R | C70: 2016 | D70: 1,3-Butadiene | E70: 106990 | F70: 1316215296258 | G70: 324110 | H70: BP CHERRY POINT REFINERY | I70: 4519 GRANDVIEW RD | J70: BLAINE | K70: WA | L70: 98230 | M70: 89. PRODUCE THE CHEMICAL, 94. AS A MANUFACTURED IMPURITY, 116. AS A PROCESS IMPURITY | N70: Processing - Incorporation into formulation, mixture, or reaction product | O70: " | P70: TRI use info, although subuse indicates the chemical may be unintentionally manufactured | Q70: NAICS: Petroleum Refineries. Produced on site as impurity. Other use listed one year, otherwise no use indicated | R70: 379.32 | S70: 0 | T70: 379.32 | U70: Yes | V70: No | W70: No | X70: No | Y70: No | Z70: Yes | AA70: No | AG70: No | AT70: No | AU70: No | AV70: Yes | AX70: No | BF70: No | BM70: No | BW70: 89. PRODUCE THE CHEMICAL | CB70: 94. AS A MANUFACTURED IMPURITY | CP70: =IF(AN70="Yes", CP$1,"") ->  | CX70: 116. AS A PROCESS IMPURITY
A71: 98248RCCHR4519G | B71: R | C71: 2017 | D71: 1,3-Butadiene | E71: 106990 | F71: 1317216410581 | G71: 324110 | H71: BP CHERRY POINT REFINERY | I71: 4519 GRANDVIEW RD | J71: BLAINE | K71: WA | L71: 98230 | M71: 89. PRODUCE THE CHEMICAL, 94. AS A MANUFACTURED IMPURITY, 116. AS A PROCESS IMPURITY | N71: Processing - Incorporation into formulation, mixture, or reaction product | O71: " | P71: TRI use info, although subuse indicates the chemical may be unintentionally manufactured | Q71: ^ | R71: 1134.34 | S71: 27.29 | T71: 1161.63 | U71: Yes | V71: No | W71: No | X71: No | Y71: No | Z71: Yes | AA71: No | AG71: No | AT71: No | AU71: No | AV71: Yes | AX71: No | BF71: No | BM71: No | BW71: 89. PRODUCE THE CHEMICAL | CB71: 94. AS A MANUFACTURED IMPURITY | CX71: 116. AS A PROCESS IMPURITY
A72: 98248RCCHR4519G | B72: R | C72: 2019 | D72: 1,3-Butadiene | E72: 106990 | F72: 1319218276640 | G72: 324110 | H72: BP CHERRY POINT REFINERY | I72: 4519 GRANDVIEW RD | J72: BLAINE | K72: WA | L72: 98230 | M72: 89. PRODUCE THE CHEMICAL, 94. AS A MANUFACTURED IMPURITY, 116. AS A PROCESS IMPURITY, 133. ANCILLARY OR OTHER USE, 142. Z399 OTHER | N72: Processing - Incorporation into formulation, mixture, or reaction product | O72: " | P72: TRI use info, although subuse indicates the chemical may be unintentionally manufactured | Q72: ^ | R72: 21.553522 | S72: 15.8 | T72: 37.353522 | U72: Yes | V72: No | W72: No | X72: No | Y72: No | Z72: Yes | AA72: No | AB72: No | AC72: No | AD72: No | AE72: No | AF72: No | AG72: No | AH72: No | AI72: No | AJ72: No | AK72: No | AL72: No | AM72: No | AN72: No | AO72: No | AP72: No | AQ72: No | AR72: No | AS72: No | AT72: No | AU72: No | AV72: Yes | AW72: No | AX72: No | AY72: No | AZ72: No | BA72: No | BB72: No | BC72: No | BD72: No | BE72: No | BF72: No | BG72: No | BH72: No | BI72: No | BJ72: No | BK72: No | BL72: No | BM72: Yes | BN72: No | BO72: No | BP72: No | BQ72: No | BR72: No | BS72: No | BT72: No | BU72: No | BV72: Yes | BW72: 89. PRODUCE THE CHEMICAL | CB72: 94. AS A MANUFACTURED IMPURITY | CX72: 116. AS A PROCESS IMPURITY | DO72: 133. ANCILLARY OR OTHER USE | DX72: 142. Z399 OTHER
A73: 98248RCCHR4519G | B73: R | C73: 2020 | D73: 1,3-Butadiene | E73: 106990 | F73: 1320219260231 | G73: 324110 | H73: BP CHERRY POINT REFINERY | I73: 4519 GRANDVIEW RD | J73: BLAINE | K73: WA | L73: 98230 | M73: 89. PRODUCE THE CHEMICAL, 94. AS A MANUFACTURED IMPURITY, 116. AS A PROCESS IMPURITY | N73: Processing - Incorporation into formulation, mixture, or reaction product | O73: " | P73: TRI use info, although subuse indicates the chemical may be unintentionally manufactured | Q73: ^ | R73: 35.355558 | S73: 46.49 | T73: 81.845558 | U73: Yes | V73: No | W73: No | X73: No | Y73: No | Z73: Yes | AA73: No | AB73: No | AC73: No | AD73: No | AE73: No | AF73: No | AG73: No | AH73: No | AI73: No | AJ73: No | AK73: No | AL73: No | AM73: No | AN73: No | AO73: No | AP73: No | AQ73: No | AR73: No | AS73: No | AT73: No | AU73: No | AV73: Yes | AW73: No | AX73: No | AY73: No | AZ73: No | BA73: No | BB73: No | BC73: No | BD73: No | BE73: No | BF73: No | BG73: No | BH73: No | BI73: No | BJ73: No | BK73: No | BL73: No | BM73: No | BN73: No | BO73: No | BP73: No | BQ73: No | BR73: No | BS73: No | BT73: No | BU73: No | BV73: No | BW73: 89. PRODUCE THE CHEMICAL | CB73: 94. AS A MANUFACTURED IMPURITY | CX73: 116. AS A PROCESS IMPURITY | DD73: =IF(BB73="Yes", DD$1,"") -> 
A74: 98248RCCHR4519G | B74: R | C74: 2021 | D74: 1,3-Butadiene | E74: 106990 | F74: 1321220174306 | G74: 324110 | H74: BP CHERRY POINT REFINERY | I74: 4519 GRANDVIEW RD | J74: BLAINE | K74: WA | L74: 98230 | M74: 89. PRODUCE THE CHEMICAL, 94. AS A MANUFACTURED IMPURITY, 116. AS A PROCESS IMPURITY | N74: Processing - Incorporation into formulation, mixture, or reaction product | O74: " | P74: TRI use info, although subuse indicates the chemical may be unintentionally manufactured | Q74: ^ | R74: 33 | S74: 39 | T74: 72 | U74: Yes | V74: No | W74: No | X74: No | Y74: No | Z74: Yes | AA74: No | AB74: No | AC74: No | AD74: No | AE74: No | AF74: No | AG74: No | AH74: No | AI74: No | AJ74: No | AK74: No | AL74: No | AM74: No | AN74: No | AO74: No | AP74: No | AQ74: No | AR74: No | AS74: No | AT74: No | AU74: No | AV74: Yes | AW74: No | AX74: No | AY74: No | AZ74: No | BA74: No | BB74: No | BC74: No | BD74: No | BE74: No | BF74: No | BG74: No | BH74: No | BI74: No | BJ74: No | BK74: No | BL74: No | BM74: No | BN74: No | BO74: No | BP74: No | BQ74: No | BR74: No | BS74: No | BT74: No | BU74: No | BV74: No | BW74: 89. PRODUCE THE CHEMICAL | CB74: 94. AS A MANUFACTURED IMPURITY | CX74: 116. AS A PROCESS IMPURITY
A75: 46394MCLCX2815I | B75: R | C75: 2016 | D75: 1,3-Butadiene | E75: 106990 | F75: 1316215465752 | G75: 324110 | H75: BP PRODUCTS NA WHITING BUSINESS UNIT | I75: 2815 INDIANAPOLIS BLVD | J75: WHITING | K75: IN | L75: 46394 | M75: 89. PRODUCE THE CHEMICAL, 91. ON-SITE USE OF THE CHEMICAL, 92. SALE OR DISTRIBUTION OF THE CHEMICAL, 93. AS A BYPRODUCT, 95. USED AS A REACTANT, 115. REPACKAGING, 133. ANCILLARY OR OTHER USE | N75: Manufacturing | O75: MANU | P75: TRI subuse Info | Q75: NAICS: Petroleum Refineries. Produce chemical and sale or distribution of chemical ALL years. Manufacturing? | R75: 1100 | S75: =2800+11 -> 2811 | T75: =SUM(R75:S75) -> 3911 | U75: Yes | V75: No | W75: Yes | X75: Yes | Y75: Yes | Z75: No | AA75: Yes | AG75: No | AT75: No | AU75: Yes | AV75: No | AX75: No | BF75: No | BM75: Yes | BW75: 89. PRODUCE THE CHEMICAL | BY75: 91. ON-SITE USE OF THE CHEMICAL | BZ75: 92. SALE OR DISTRIBUTION OF THE CHEMICAL | CA75: =IF(Y75="Yes", CA$1,"") -> 93. AS A BYPRODUCT | CC75: 95. USED AS A REACTANT | CW75: 115. REPACKAGING | DO75: 133. ANCILLARY OR OTHER USE
A76: 46394MCLCX2815I | B76: R | C76: 2017 | D76: 1,3-Butadiene | E76: 106990 | F76: 1317216374571 | G76: 324110 | H76: BP PRODUCTS NA WHITING BUSINESS UNIT | I76: 2815 INDIANAPOLIS BLVD | J76: WHITING | K76: IN | L76: 46394 | M76: 89. PRODUCE THE CHEMICAL, 91. ON-SITE USE OF THE CHEMICAL, 92. SALE OR DISTRIBUTION OF THE CHEMICAL, 93. AS A BYPRODUCT, 95. USED AS A REACTANT, 115. REPACKAGING, 133. ANCILLARY OR OTHER USE | N76: Manufacturing | O76: MANU | P76: TRI subuse Info | Q76: ^ | R76: 210 | S76: =420+8 -> 428 | T76: =SUM(R76:S76) -> 638 | U76: Yes | V76: No | W76: Yes | X76: Yes | Y76: Yes | Z76: No | AA76: Yes | AG76: No | AT76: No | AU76: Yes | AV76: No | AX76: No | BF76: No | BM76: Yes | BW76: 89. PRODUCE THE CHEMICAL | BY76: 91. ON-SITE USE OF THE CHEMICAL | BZ76: 92. SALE OR DISTRIBUTION OF THE CHEMICAL | CA76: =IF(Y76="Yes", CA$1,"") -> 93. AS A BYPRODUCT | CC76: 95. USED AS A REACTANT | CW76: 115. REPACKAGING | DO76: 133. ANCILLARY OR OTHER USE
A77: 46394MCLCX2815I | B77: R | C77: 2018 | D77: 1,3-Butadiene | E77: 106990 | F77: 1318217414705 | G77: 324110 | H77: BP PRODUCTS NA WHITING BUSINESS UNIT | I77: 2815 INDIANAPOLIS BLVD | J77: WHITING | K77: IN | L77: 46394 | M77: 89. PRODUCE THE CHEMICAL, 91. ON-SITE USE OF THE CHEMICAL, 92. SALE OR DISTRIBUTION OF THE CHEMICAL, 93. AS A BYPRODUCT, 95. USED AS A REACTANT, 98. P103 INTERMEDIATES, 115. REPACKAGING, 133. ANCILLARY OR OTHER USE, 137. Z304 FUEL | N77: Manufacturing | O77: MANU | P77: TRI subuse Info | Q77: ^ | R77: =0+180 -> 180 | S77: =10+460 -> 470 | T77: 650 | U77: Yes | V77: No | W77: Yes | X77: Yes | Y77: Yes | Z77: No | AA77: Yes | AB77: No | AC77: No | AD77: Yes | AE77: No | AF77: No | AG77: No | AH77: No | AI77: No | AJ77: No | AK77: No | AL77: No | AM77: No | AN77: No | AO77: No | AP77: No | AQ77: No | AR77: No | AS77: No | AT77: No | AU77: Yes | AV77: No | AW77: No | AX77: No | AY77: No | AZ77: No | BA77: No | BB77: No | BC77: No | BD77: No | BE77: No | BF77: No | BG77: No | BH77: No | BI77: No | BJ77: No | BK77: No | BL77: No | BM77: Yes | BN77: No | BO77: No | BP77: No | BQ77: Yes | BR77: No | BS77: No | BT77: No | BU77: No | BV77: No | BW77: 89. PRODUCE THE CHEMICAL | BY77: 91. ON-SITE USE OF THE CHEMICAL | BZ77: 92. SALE OR DISTRIBUTION OF THE CHEMICAL | CA77: 93. AS A BYPRODUCT | CC77: 95. USED AS A REACTANT | CF77: 98. P103 INTERMEDIATES | CW77: 115. REPACKAGING | DO77: 133. ANCILLARY OR OTHER USE | DS77: 137. Z304 FUEL
A78: 46394MCLCX2815I | B78: R | C78: 2019 | D78: 1,3-Butadiene | E78: 106990 | F78: 1319218102958 | G78: 324110 | H78: BP PRODUCTS NA WHITING BUSINESS UNIT | I78: 2815 INDIANAPOLIS BLVD | J78: WHITING | K78: IN | L78: 46394 | M78: 89. PRODUCE THE CHEMICAL, 91. ON-SITE USE OF THE CHEMICAL, 92. SALE OR DISTRIBUTION OF THE CHEMICAL, 93. AS A BYPRODUCT, 95. USED AS A REACTANT, 98. P103 INTERMEDIATES, 115. REPACKAGING, 133. ANCILLARY OR OTHER USE, 137. Z304 FUEL | N78: Manufacturing | O78: MANU | P78: TRI subuse Info | Q78: ^ | R78: 0 | S78: 10 | T78: 10 | U78: Yes | V78: No | W78: Yes | X78: Yes | Y78: Yes | Z78: No | AA78: Yes | AB78: No | AC78: No | AD78: Yes | AE78: No | AF78: No | AG78: No | AH78: No | AI78: No | AJ78: No | AK78: No | AL78: No | AM78: No | AN78: No | AO78: No | AP78: No | AQ78: No | AR78: No | AS78: No | AT78: No | AU78: Yes | AV78: No | AW78: No | AX78: No | AY78: No | AZ78: No | BA78: No | BB78: No | BC78: No | BD78: No | BE78: No | BF78: No | BG78: No | BH78: No | BI78: No | BJ78: No | BK78: No | BL78: No | BM78: Yes | BN78: No | BO78: No | BP78: No | BQ78: Yes | BR78: No | BS78: No | BT78: No | BU78: No | BV78: No | BW78: 89. PRODUCE THE CHEMICAL | BY78: 91. ON-SITE USE OF THE CHEMICAL | BZ78: 92. SALE OR DISTRIBUTION OF THE CHEMICAL | CA78: =IF(Y78="Yes", CA$1,"") -> 93. AS A BYPRODUCT | CC78: 95. USED AS A REACTANT | CF78: 98. P103 INTERMEDIATES | CW78: 115. REPACKAGING | DO78: 133. ANCILLARY OR OTHER USE | DS78: 137. Z304 FUEL
A79: 46394MCLCX2815I | B79: R | C79: 2019 | D79: 1,3-Butadiene | E79: 106990 | F79: 1319218092245 | G79: 324110 | H79: BP PRODUCTS NA WHITING BUSINESS UNIT | I79: 2815 INDIANAPOLIS BLVD | J79: WHITING | K79: IN | L79: 46394 | M79: 89. PRODUCE THE CHEMICAL, 93. AS A BYPRODUCT | N79: Manufacturing | O79: MANU | P79: TRI subuse Info | Q79: ^ | R79: 100 | S79: 510 | T79: 610 | U79: Yes | V79: No | W79: No | X79: No | Y79: Yes | Z79: No | AA79: No | AB79: No | AC79: No | AD79: No | AE79: No | AF79: No | AG79: No | AH79: No | AI79: No | AJ79: No | AK79: No | AL79: No | AM79: No | AN79: No | AO79: No | AP79: No | AQ79: No | AR79: No | AS79: No | AT79: No | AU79: No | AV79: No | AW79: No | AX79: No | AY79: No | AZ79: No | BA79: No | BB79: No | BC79: No | BD79: No | BE79: No | BF79: No | BG79: No | BH79: No | BI79: No | BJ79: No | BK79: No | BL79: No | BM79: No | BN79: No | BO79: No | BP79: No | BQ79: No | BR79: No | BS79: No | BT79: No | BU79: No | BV79: No | BW79: 89. PRODUCE THE CHEMICAL | CA79: 93. AS A BYPRODUCT
A80: 46394MCLCX2815I | B80: R | C80: 2020 | D80: 1,3-Butadiene | E80: 106990 | F80: 1320219066368 | G80: 324110 | H80: BP PRODUCTS NA WHITING BUSINESS UNIT | I80: 2815 INDIANAPOLIS BLVD | J80: WHITING | K80: IN | L80: 46394 | M80: 89. PRODUCE THE CHEMICAL, 91. ON-SITE USE OF THE CHEMICAL, 92. SALE OR DISTRIBUTION OF THE CHEMICAL, 95. USED AS A REACTANT, 98. P103 INTERMEDIATES, 115. REPACKAGING, 133. ANCILLARY OR OTHER USE, 137. Z304 FUEL | N80: Manufacturing | O80: MANU | P80: TRI subuse Info | Q80: ^ | R80: 140 | S80: =250+10 -> 260 | T80: 400 | U80: Yes | V80: No | W80: Yes | X80: Yes | Y80: No | Z80: No | AA80: Yes | AB80: No | AC80: No | AD80: Yes | AE80: No | AF80: No | AG80: No | AH80: No | AI80: No | AJ80: No | AK80: No | AL80: No | AM80: No | AN80: No | AO80: No | AP80: No | AQ80: No | AR80: No | AS80: No | AT80: No | AU80: Yes | AV80: No | AW80: No | AX80: No | AY80: No | AZ80: No | BA80: No | BB80: No | BC80: No | BD80: No | BE80: No | BF80: No | BG80: No | BH80: No | BI80: No | BJ80: No | BK80: No | BL80: No | BM80: Yes | BN80: No | BO80: No | BP80: No | BQ80: Yes | BR80: No | BS80: No | BT80: No | BU80: No | BV80: No | BW80: 89. PRODUCE THE CHEMICAL | BY80: 91. ON-SITE USE OF THE CHEMICAL | BZ80: 92. SALE OR DISTRIBUTION OF THE CHEMICAL | CC80: 95. USED AS A REACTANT | CF80: 98. P103 INTERMEDIATES | CW80: 115. REPACKAGING | DO80: 133. ANCILLARY OR OTHER USE | DS80: 137. Z304 FUEL
A81: 46394MCLCX2815I | B81: R | C81: 2021 | D81: 1,3-Butadiene | E81: 106990 | F81: 1321220371518 | G81: 324110 | H81: BP PRODUCTS NA WHITING BUSINESS UNIT | I81: 2815 INDIANAPOLIS BLVD | J81: WHITING | K81: IN | L81: 46394 | M81: 89. PRODUCE THE CHEMICAL, 91. ON-SITE USE OF THE CHEMICAL, 92. SALE OR DISTRIBUTION OF THE CHEMICAL, 93. AS A BYPRODUCT, 95. USED AS A REACTANT, 98. P103 INTERMEDIATES, 115. REPACKAGING | N81: Manufacturing | O81: MANU | P81: TRI subuse Info | Q81: ^ | R81: 93 | S81: =250+10 -> 260 | T81: 353 | U81: Yes | V81: No | W81: Yes | X81: Yes | Y81: Yes | Z81: No | AA81: Yes | AB81: No | AC81: No | AD81: Yes | AE81: No | AF81: No | AG81: No | AH81: No | AI81: No | AJ81: No | AK81: No | AL81: No | AM81: No | AN81: No | AO81: No | AP81: No | AQ81: No | AR81: No | AS81: No | AT81: No | AU81: Yes | AV81: No | AW81: No | AX81: No | AY81: No | AZ81: No | BA81: No | BB81: No | BC81: No | BD81: No | BE81: No | BF81: No | BG81: No | BH81: No | BI81: No | BJ81: No | BK81: No | BL81: No | BM81: No | BN81: No | BO81: No | BP81: No | BQ81: No | BR81: No | BS81: No | BT81: No | BU81: No | BV81: No | BW81: 89. PRODUCE THE CHEMICAL | BY81: 91. ON-SITE USE OF THE CHEMICAL | BZ81: 92. SALE OR DISTRIBUTION OF THE CHEMICAL | CA81: =IF(Y81="Yes", CA$1,"") -> 93. AS A BYPRODUCT | CC81: 95. USED AS A REACTANT | CF81: 98. P103 INTERMEDIATES | CW81: 115. REPACKAGING
A82: 43616SHLCM4001C | B82: R | C82: 2016 | D82: 1,3-Butadiene | E82: 106990 | F82: 1316215643077 | G82: 324110 | H82: BP-HUSKY REFINING LLC | I82: 4001 CEDAR POINT RD | J82: OREGON | K82: OH | L82: 43616 | M82: 89. PRODUCE THE CHEMICAL, 91. ON-SITE USE OF THE CHEMICAL, 92. SALE OR DISTRIBUTION OF THE CHEMICAL, 95. USED AS A REACTANT, 115. REPACKAGING | N82: Manufacturing | O82: MANU | P82: TRI subuse Info | Q82: NAICS Petroleum Refineries. Produce and sale/distribution indicated. Manufacturing? | R82: 32 | S82: 830 | T82: 862 | U82: Yes | V82: No | W82: Yes | X82: Yes | Y82: No | Z82: No | AA82: Yes | AG82: No | AT82: No | AU82: Yes | AV82: No | AX82: No | BF82: No | BM82: No | BW82: 89. PRODUCE THE CHEMICAL | BY82: 91. ON-SITE USE OF THE CHEMICAL | BZ82: 92. SALE OR DISTRIBUTION OF THE CHEMICAL | CC82: 95. USED AS A REACTANT | CW82: 115. REPACKAGING
A83: 43616SHLCM4001C | B83: R | C83: 2017 | D83: 1,3-Butadiene | E83: 106990 | F83: 1317216131488 | G83: 324110 | H83: BP-HUSKY REFINING LLC | I83: 4001 CEDAR POINT RD | J83: OREGON | K83: OH | L83: 43616 | M83: 89. PRODUCE THE CHEMICAL, 91. ON-SITE USE OF THE CHEMICAL, 92. SALE OR DISTRIBUTION OF THE CHEMICAL, 95. USED AS A REACTANT, 115. REPACKAGING | N83: Manufacturing | O83: MANU | P83: TRI subuse Info | Q83: ^ | R83: 48 | S83: 410 | T83: 458 | U83: Yes | V83: No | W83: Yes | X83: Yes | Y83: No | Z83: No | AA83: Yes | AG83: No | AT83: No | AU83: Yes | AV83: No | AX83: No | BF83: No | BM83: No | BW83: 89. PRODUCE THE CHEMICAL | BY83: 91. ON-SITE USE OF THE CHEMICAL | BZ83: 92. SALE OR DISTRIBUTION OF THE CHEMICAL | CC83: 95. USED AS A REACTANT | CW83: 115. REPACKAGING
A84: 43616SHLCM4001C | B84: R | C84: 2018 | D84: 1,3-Butadiene | E84: 106990 | F84: 1318217136326 | G84: 324110 | H84: BP-HUSKY REFINING LLC | I84: 4001 CEDAR POINT RD | J84: OREGON | K84: OH | L84: 43616 | M84: 89. PRODUCE THE CHEMICAL, 91. ON-SITE USE OF THE CHEMICAL, 92. SALE OR DISTRIBUTION OF THE CHEMICAL, 95. USED AS A REACTANT, 98. P103 INTERMEDIATES, 115. REPACKAGING | N84: Manufacturing | O84: MANU | P84: TRI subuse Info | Q84: ^ | R84: 32 | S84: 1200 | T84: 1232 | U84: Yes | V84: No | W84: Yes | X84: Yes | Y84: No | Z84: No | AA84: Yes | AB84: No | AC84: No | AD84: Yes | AE84: No | AF84: No | AG84: No | AH84: No | AI84: No | AJ84: No | AK84: No | AL84: No | AM84: No | AN84: No | AO84: No | AP84: No | AQ84: No | AR84: No | AS84: No | AT84: No | AU84: Yes | AV84: No | AW84: No | AX84: No | AY84: No | AZ84: No | BA84: No | BB84: No | BC84: No | BD84: No | BE84: No | BF84: No | BG84: No | BH84: No | BI84: No | BJ84: No | BK84: No | BL84: No | BM84: No | BN84: No | BO84: No | BP84: No | BQ84: No | BR84: No | BS84: No | BT84: No | BU84: No | BV84: No | BW84: 89. PRODUCE THE CHEMICAL | BY84: 91. ON-SITE USE OF THE CHEMICAL | BZ84: 92. SALE OR DISTRIBUTION OF THE CHEMICAL | CC84: 95. USED AS A REACTANT | CF84: 98. P103 INTERMEDIATES | CW84: 115. REPACKAGING
A85: 43616SHLCM4001C | B85: R | C85: 2019 | D85: 1,3-Butadiene | E85: 106990 | F85: 1319218282150 | G85: 324110 | H85: BP-HUSKY REFINING LLC | I85: 4001 CEDAR POINT RD | J85: OREGON | K85: OH | L85: 43616 | M85: 89. PRODUCE THE CHEMICAL, 91. ON-SITE USE OF THE CHEMICAL, 92. SALE OR DISTRIBUTION OF THE CHEMICAL, 95. USED AS A REACTANT, 98. P103 INTERMEDIATES, 115. REPACKAGING | N85: Manufacturing | O85: MANU | P85: TRI subuse Info | Q85: ^ | R85: 33 | S85: 960 | T85: 993 | U85: Yes | V85: No | W85: Yes | X85: Yes | Y85: No | Z85: No | AA85: Yes | AB85: No | AC85: No | AD85: Yes | AE85: No | AF85: No | AG85: No | AH85: No | AI85: No | AJ85: No | AK85: No | AL85: No | AM85: No | AN85: No | AO85: No | AP85: No | AQ85: No | AR85: No | AS85: No | AT85: No | AU85: Yes | AV85: No | AW85: No | AX85: No | AY85: No | AZ85: No | BA85: No | BB85: No | BC85: No | BD85: No | BE85: No | BF85: No | BG85: No | BH85: No | BI85: No | BJ85: No | BK85: No | BL85: No | BM85: No | BN85: No | BO85: No | BP85: No | BQ85: No | BR85: No | BS85: No | BT85: No | BU85: No | BV85: No | BW85: 89. PRODUCE THE CHEMICAL | BY85: 91. ON-SITE USE OF THE CHEMICAL | BZ85: 92. SALE OR DISTRIBUTION OF THE CHEMICAL | CA85: =IF(Y85="Yes", CA$1,"") ->  | CC85: 95. USED AS A REACTANT | CF85: 98. P103 INTERMEDIATES | CW85: 115. REPACKAGING
A86: 43616SHLCM4001C | B86: R | C86: 2020 | D86: 1,3-Butadiene | E86: 106990 | F86: 1320219240785 | G86: 324110 | H86: BP-HUSKY REFINING LLC | I86: 4001 CEDAR POINT RD | J86: OREGON | K86: OH | L86: 43616 | M86: 89. PRODUCE THE CHEMICAL, 91. ON-SITE USE OF THE CHEMICAL, 92. SALE OR DISTRIBUTION OF THE CHEMICAL, 95. USED AS A REACTANT, 98. P103 INTERMEDIATES, 115. REPACKAGING | N86: Manufacturing | O86: MANU | P86: TRI subuse Info | Q86: ^ | R86: 27 | S86: 520 | T86: 547 | U86: Yes | V86: No | W86: Yes | X86: Yes | Y86: No | Z86: No | AA86: Yes | AB86: No | AC86: No | AD86: Yes | AE86: No | AF86: No | AG86: No | AH86: No | AI86: No | AJ86: No | AK86: No | AL86: No | AM86: No | AN86: No | AO86: No | AP86: No | AQ86: No | AR86: No | AS86: No | AT86: No | AU86: Yes | AV86: No | AW86: No | AX86: No | AY86: No | AZ86: No | BA86: No | BB86: No | BC86: No | BD86: No | BE86: No | BF86: No | BG86: No | BH86: No | BI86: No | BJ86: No | BK86: No | BL86: No | BM86: No | BN86: No | BO86: No | BP86: No | BQ86: No | BR86: No | BS86: No | BT86: No | BU86: No | BV86: No | BW86: =IF(U86="Yes", BW$1,"") -> 89. PRODUCE THE CHEMICAL | BY86: 91. ON-SITE USE OF THE CHEMICAL | BZ86: 92. SALE OR DISTRIBUTION OF THE CHEMICAL | CC86: 95. USED AS A REACTANT | CF86: 98. P103 INTERMEDIATES | CW86: 115. REPACKAGING
A87: 43616SHLCM4001C | B87: R | C87: 2021 | D87: 1,3-Butadiene | E87: 106990 | F87: 1321220262024 | G87: 324110 | H87: BP-HUSKY REFINING LLC | I87: 4001 CEDAR POINT RD | J87: OREGON | K87: OH | L87: 43616 | M87: 89. PRODUCE THE CHEMICAL, 91. ON-SITE USE OF THE CHEMICAL, 92. SALE OR DISTRIBUTION OF THE CHEMICAL, 95. USED AS A REACTANT, 98. P103 INTERMEDIATES, 115. REPACKAGING | N87: Manufacturing | O87: MANU | P87: TRI subuse Info | Q87: ^ | R87: 28 | S87: 340 | T87: 368 | U87: Yes | V87: No | W87: Yes | X87: Yes | Y87: No | Z87: No | AA87: Yes | AB87: No | AC87: No | AD87: Yes | AE87: No | AF87: No | AG87: No | AH87: No | AI87: No | AJ87: No | AK87: No | AL87: No | AM87: No | AN87: No | AO87: No | AP87: No | AQ87: No | AR87: No | AS87: No | AT87: No | AU87: Yes | AV87: No | AW87: No | AX87: No | AY87: No | AZ87: No | BA87: No | BB87: No | BC87: No | BD87: No | BE87: No | BF87: No | BG87: No | BH87: No | BI87: No | BJ87: No | BK87: No | BL87: No | BM87: No | BN87: No | BO87: No | BP87: No | BQ87: No | BR87: No | BS87: No | BT87: No | BU87: No | BV87: No | BW87: 89. PRODUCE THE CHEMICAL | BY87: 91. ON-SITE USE OF THE CHEMICAL | BZ87: 92. SALE OR DISTRIBUTION OF THE CHEMICAL | CC87: 95. USED AS A REACTANT | CF87: 98. P103 INTERMEDIATES | CW87: 115. REPACKAGING
A88: 59414MNTNR19001 | B88: R | C88: 2016 | D88: 1,3-Butadiene | E88: 106990 | F88: 1316215716061 | G88: 324110 | H88: CALUMET MONTANA REFINING LLC. | I88: 1900 10TH ST NE | J88: GREAT FALLS | K88: MT | L88: 59404 | M88: 89. PRODUCE THE CHEMICAL, 91. ON-SITE USE OF THE CHEMICAL, 94. AS A MANUFACTURED IMPURITY, 116. AS A PROCESS IMPURITY | N88: Processing - Incorporation into formulation, mixture, or reaction product | O88: " | P88: TRI use, although subuse indicates manufacture of the chemical may be unintentional | Q88: NAICS Petroleum Refinery. Subuse indicates impurity, and vague on-site use. Various petroleum products | R88: 0 | S88: 420 | T88: 420 | U88: Yes | V88: No | W88: Yes | X88: No | Y88: No | Z88: Yes | AA88: No | AG88: No | AT88: No | AU88: No | AV88: Yes | AX88: No | BF88: No | BM88: No | BW88: 89. PRODUCE THE CHEMICAL | BY88: 91. ON-SITE USE OF THE CHEMICAL | CB88: 94. AS A MANUFACTURED IMPURITY | CX88: 116. AS A PROCESS IMPURITY
A89: 41114CTLTTPOBOX | B89: R | C89: 2016 | D89: 1,3-Butadiene | E89: 106990 | F89: 1316215748144 | G89: 324110 | H89: CATLETTSBURG REFINING LLC | I89: 11631 US RT 23 | J89: CATLETTSBURG | K89: KY | L89: 41129 | M89: 89. PRODUCE THE CHEMICAL, 91. ON-SITE USE OF THE CHEMICAL, 93. AS A BYPRODUCT, 94. AS A MANUFACTURED IMPURITY, 95. USED AS A REACTANT | N89: Processing as a reactant | O89: " | P89: TRI subuse Info. This site also appears to produce the chemical. | Q89: NAICS Petroleum Refinery. Subuse indicates used as reactant all years. Fuel use shows up a few times. Why not fuel? Looks like a refinery from website | R89: 182 | S89: 198 | T89: 380 | U89: Yes | V89: No | W89: Yes | X89: No | Y89: Yes | Z89: Yes | AA89: Yes | AG89: No | AT89: No | AU89: No | AV89: No | AX89: No | BF89: No | BM89: No | BW89: 89. PRODUCE THE CHEMICAL | BY89: 91. ON-SITE USE OF THE CHEMICAL | CA89: 93. AS A BYPRODUCT | CB89: 94. AS A MANUFACTURED IMPURITY | CC89: 95. USED AS A REACTANT
A90: 41114CTLTTPOBOX | B90: R | C90: 2017 | D90: 1,3-Butadiene | E90: 106990 | F90: 1317216105623 | G90: 324110 | H90: CATLETTSBURG REFINING LLC | I90: 11631 US RT 23 | J90: CATLETTSBURG | K90: KY | L90: 41129 | M90: 89. PRODUCE THE CHEMICAL, 91. ON-SITE USE OF THE CHEMICAL, 93. AS A BYPRODUCT, 94. AS A MANUFACTURED IMPURITY, 95. USED AS A REACTANT, 116. AS A PROCESS IMPURITY, 133. ANCILLARY OR OTHER USE | N90: Processing as a reactant | O90: " | P90: TRI subuse Info. This site also appears to produce the chemical. | Q90: ^ | R90: 184 | S90: 316 | T90: 500 | U90: Yes | V90: No | W90: Yes | X90: No | Y90: Yes | Z90: Yes | AA90: Yes | AG90: No | AT90: No | AU90: No | AV90: Yes | AX90: No | BF90: No | BM90: Yes | BW90: 89. PRODUCE THE CHEMICAL | BY90: 91. ON-SITE USE OF THE CHEMICAL | CA90: 93. AS A BYPRODUCT | CB90: 94. AS A MANUFACTURED IMPURITY | CC90: 95. USED AS A REACTANT | CX90: 116. AS A PROCESS IMPURITY | DO90: 133. ANCILLARY OR OTHER USE
A91: 41114CTLTTPOBOX | B91: R | C91: 2018 | D91: 1,3-Butadiene | E91: 106990 | F91: 1318217291804 | G91: 324110 | H91: CATLETTSBURG REFINING LLC | I91: 11631 US RT 23 | J91: CATLETTSBURG | K91: KY | L91: 41129 | M91: 89. PRODUCE THE CHEMICAL, 91. ON-SITE USE OF THE CHEMICAL, 93. AS A BYPRODUCT, 94. AS A MANUFACTURED IMPURITY, 95. USED AS A REACTANT, 96. P101 FEEDSTOCKS, 116. AS A PROCESS IMPURITY, 133. ANCILLARY OR OTHER USE, 137. Z304 FUEL | N91: Processing as a reactant | O91: " | P91: TRI subuse Info. This site also appears to produce the chemical. | Q91: ^ | R91: 190 | S91: 292 | T91: 482 | U91: Yes | V91: No | W91: Yes | X91: No | Y91: Yes | Z91: Yes | AA91: Yes | AB91: Yes | AC91: No | AD91: No | AE91: No | AF91: No | AG91: No | AH91: No | AI91: No | AJ91: No | AK91: No | AL91: No | AM91: No | AN91: No | AO91: No | AP91: No | AQ91: No | AR91: No | AS91: No | AT91: No | AU91: No | AV91: Yes | AW91: No | AX91: No | AY91: No | AZ91: No | BA91: No | BB91: No | BC91: No | BD91: No | BE91: No | BF91: No | BG91: No | BH91: No | BI91: No | BJ91: No | BK91: No | BL91: No | BM91: Yes | BN91: No | BO91: No | BP91: No | BQ91: Yes | BR91: No | BS91: No | BT91: No | BU91: No | BV91: No | BW91: 89. PRODUCE THE CHEMICAL | BY91: 91. ON-SITE USE OF THE CHEMICAL | CA91: 93. AS A BYPRODUCT | CB91: 94. AS A MANUFACTURED IMPURITY | CC91: 95. USED AS A REACTANT | CD91: 96. P101 FEEDSTOCKS | CX91: 116. AS A PROCESS IMPURITY | DO91: 133. ANCILLARY OR OTHER USE | DS91: 137. Z304 FUEL
A92: 41114CTLTTPOBOX | B92: R | C92: 2019 | D92: 1,3-Butadiene | E92: 106990 | F92: 1319218410328 | G92: 324110 | H92: CATLETTSBURG REFINING LLC | I92: 11631 US RT 23 | J92: CATLETTSBURG | K92: KY | L92: 41129 | M92: =_xlfn.TEXTJOIN(", ", TRUE, BW92:DX92) -> 89. PRODUCE THE CHEMICAL, 91. ON-SITE USE OF THE CHEMICAL, 93. AS A BYPRODUCT, 94. AS A MANUFACTURED IMPURITY, 95. USED AS A REACTANT, 96. P101 FEEDSTOCKS, 116. AS A PROCESS IMPURITY, 133. ANCILLARY OR OTHER USE, 137. Z304 FUEL | N92: Processing as a reactant | O92: " | P92: TRI subuse Info. This site also appears to produce the chemical. | Q92: ^ | R92: 195 | S92: 173 | T92: 368 | U92: Yes | V92: No | W92: Yes | X92: No | Y92: Yes | Z92: Yes | AA92: Yes | AB92: Yes | AC92: No | AD92: No | AE92: No | AF92: No | AG92: No | AH92: No | AI92: No | AJ92: No | AK92: No | AL92: No | AM92: No | AN92: No | AO92: No | AP92: No | AQ92: No | AR92: No | AS92: No | AT92: No | AU92: No | AV92: Yes | AW92: No | AX92: No | AY92: No | AZ92: No | BA92: No | BB92: No | BC92: No | BD92: No | BE92: No | BF92: No | BG92: No | BH92: No | BI92: No | BJ92: No | BK92: No | BL92: No | BM92: Yes | BN92: No | BO92: No | BP92: No | BQ92: Yes | BR92: No | BS92: No | BT92: No | BU92: No | BV92: No | BW92: 89. PRODUCE THE CHEMICAL | BY92: 91. ON-SITE USE OF THE CHEMICAL | CA92: 93. AS A BYPRODUCT | CB92: 94. AS A MANUFACTURED IMPURITY | CC92: 95. USED AS A REACTANT | CD92: 96. P101 FEEDSTOCKS | CX92: 116. AS A PROCESS IMPURITY | DO92: 133. ANCILLARY OR OTHER USE | DS92: 137. Z304 FUEL
A93: 41114CTLTTPOBOX | B93: R | C93: 2020 | D93: 1,3-Butadiene | E93: 106990 | F93: 1320219194673 | G93: 324110 | H93: CATLETTSBURG REFINING LLC | I93: 11631 US RT 23 | J93: CATLETTSBURG | K93: KY | L93: 41129 | M93: 89. PRODUCE THE CHEMICAL, 91. ON-SITE USE OF THE CHEMICAL, 93. AS A BYPRODUCT, 94. AS A MANUFACTURED IMPURITY, 95. USED AS A REACTANT, 96. P101 FEEDSTOCKS, 116. AS A PROCESS IMPURITY, 133. ANCILLARY OR OTHER USE, 137. Z304 FUEL | N93: Processing as a reactant | O93: " | P93: TRI subuse Info. This site also appears to produce the chemical. | Q93: ^ | R93: 172 | S93: 177 | T93: 349 | U93: Yes | V93: No | W93: Yes | X93: No | Y93: Yes | Z93: Yes | AA93: Yes | AB93: Yes | AC93: No | AD93: No | AE93: No | AF93: No | AG93: No | AH93: No | AI93: No | AJ93: No | AK93: No | AL93: No | AM93: No | AN93: No | AO93: No | AP93: No | AQ93: No | AR93: No | AS93: No | AT93: No | AU93: No | AV93: Yes | AW93: No | AX93: No | AY93: No | AZ93: No | BA93: No | BB93: No | BC93: No | BD93: No | BE93: No | BF93: No | BG93: No | BH93: No | BI93: No | BJ93: No | BK93: No | BL93: No | BM93: Yes | BN93: No | BO93: No | BP93: No | BQ93: Yes | BR93: No | BS93: No | BT93: No | BU93: No | BV93: No | BW93: 89. PRODUCE THE CHEMICAL | BY93: 91. ON-SITE USE OF THE CHEMICAL | CA93: 93. AS A BYPRODUCT | CB93: 94. AS A MANUFACTURED IMPURITY | CC93: 95. USED AS A REACTANT | CD93: 96. P101 FEEDSTOCKS | CR93: =IF(AP93="Yes", CR$1,"") ->  | CX93: 116. AS A PROCESS IMPURITY | DO93: 133. ANCILLARY OR OTHER USE | DS93: 137. Z304 FUEL
A94: 41114CTLTTPOBOX | B94: R | C94: 2021 | D94: 1,3-Butadiene | E94: 106990 | F94: 1321220013039 | G94: 324110 | H94: CATLETTSBURG REFINING LLC | I94: 11631 US RT 23 | J94: CATLETTSBURG | K94: KY | L94: 41129 | M94: 89. PRODUCE THE CHEMICAL, 91. ON-SITE USE OF THE CHEMICAL, 93. AS A BYPRODUCT, 94. AS A MANUFACTURED IMPURITY, 95. USED AS A REACTANT, 96. P101 FEEDSTOCKS, 116. AS A PROCESS IMPURITY, 133. ANCILLARY OR OTHER USE, 137. Z304 FUEL | N94: Processing as a reactant | O94: " | P94: TRI subuse Info. This site also appears to produce the chemical. | Q94: ^ | R94: 206 | S94: 428 | T94: 634 | U94: Yes | V94: No | W94: Yes | X94: No | Y94: Yes | Z94: Yes | AA94: Yes | AB94: Yes | AC94: No | AD94: No | AE94: No | AF94: No | AG94: No | AH94: No | AI94: No | AJ94: No | AK94: No | AL94: No | AM94: No | AN94: No | AO94: No | AP94: No | AQ94: No | AR94: No | AS94: No | AT94: No | AU94: No | AV94: Yes | AW94: No | AX94: No | AY94: No | AZ94: No | BA94: No | BB94: No | BC94: No | BD94: No | BE94: No | BF94: No | BG94: No | BH94: No | BI94: No | BJ94: No | BK94: No | BL94: No | BM94: Yes | BN94: No | BO94: No | BP94: No | BQ94: Yes | BR94: No | BS94: No | BT94: No | BU94: No | BV94: No | BW94: 89. PRODUCE THE CHEMICAL | BY94: 91. ON-SITE USE OF THE CHEMICAL | CA94: 93. AS A BYPRODUCT | CB94: 94. AS A MANUFACTURED IMPURITY | CC94: 95. USED AS A REACTANT | CD94: 96. P101 FEEDSTOCKS | CX94: 116. AS A PROCESS IMPURITY | DO94: 133. ANCILLARY OR OTHER USE | DS94: 137. Z304 FUEL
A95: 24124HCHSTRT460 | B95: R | C95: 2016 | D95: 1,3-Butadiene | E95: 106990 | F95: 1316215463199 | G95: 325220 | H95: CELANESE ACETATE LLC - CELCO PLANT | I95: 3520 VIRGINIA AVE | J95: NARROWS | K95: VA | L95: 24124 | M95: 89. PRODUCE THE CHEMICAL, 93. AS A BYPRODUCT | N95: Processing - Incorporation into formulation, mixture, or reaction product | O95: " | P95: TRI subuse info; subuse indicates unintentional manufacturing as a byproduct not for on-site use or sale or distribution | Q95: NAICS: "Artificial and Synthetic Fibers and Filaments Manufacturing". Chemical produced as byproduct and no other use indicated | R95: 250 | S95: 250 | T95: 500 | U95: Yes | V95: No | W95: No | X95: No | Y95: Yes | Z95: No | AA95: No | AG95: No | AT95: No | AU95: No | AV95: No | AX95: No | BF95: No | BM95: No | BW95: 89. PRODUCE THE CHEMICAL | CA95: 93. AS A BYPRODUCT
A96: 24124HCHSTRT460 | B96: R | C96: 2017 | D96: 1,3-Butadiene | E96: 106990 | F96: 1317216009213 | G96: 325220 | H96: CELANESE ACETATE LLC - CELCO PLANT | I96: 3520 VIRGINIA AVE | J96: NARROWS | K96: VA | L96: 24124 | M96: 89. PRODUCE THE CHEMICAL, 93. AS A BYPRODUCT | N96: Processing - Incorporation into formulation, mixture, or reaction product | O96: " | P96: TRI subuse info; subuse indicates unintentional manufacturing as a byproduct not for on-site use or sale or distribution | Q96: ^ | R96: 250 | S96: 250 | T96: 500 | U96: Yes | V96: No | W96: No | X96: No | Y96: Yes | Z96: No | AA96: No | AG96: No | AT96: No | AU96: No | AV96: No | AX96: No | BF96: No | BM96: No | BW96: 89. PRODUCE THE CHEMICAL | CA96: 93. AS A BYPRODUCT
A97: 24124HCHSTRT460 | B97: R | C97: 2018 | D97: 1,3-Butadiene | E97: 106990 | F97: 1318216835114 | G97: 325220 | H97: CELANESE ACETATE LLC - CELCO PLANT | I97: 3520 VIRGINIA AVE | J97: NARROWS | K97: VA | L97: 24124 | M97: 89. PRODUCE THE CHEMICAL, 93. AS A BYPRODUCT | N97: Processing - Incorporation into formulation, mixture, or reaction product | O97: " | P97: TRI subuse info; subuse indicates unintentional manufacturing as a byproduct not for on-site use or sale or distribution | Q97: ^ | R97: 250 | S97: 250 | T97: 500 | U97: Yes | V97: No | W97: No | X97: No | Y97: Yes | Z97: No | AA97: No | AB97: No | AC97: No | AD97: No | AE97: No | AF97: No | AG97: No | AH97: No | AI97: No | AJ97: No | AK97: No | AL97: No | AM97: No | AN97: No | AO97: No | AP97: No | AQ97: No | AR97: No | AS97: No | AT97: No | AU97: No | AV97: No | AW97: No | AX97: No | AY97: No | AZ97: No | BA97: No | BB97: No | BC97: No | BD97: No | BE97: No | BF97: No | BG97: No | BH97: No | BI97: No | BJ97: No | BK97: No | BL97: No | BM97: No | BN97: No | BO97: No | BP97: No | BQ97: No | BR97: No | BS97: No | BT97: No | BU97: No | BV97: No | BW97: 89. PRODUCE THE CHEMICAL | CA97: 93. AS A BYPRODUCT
A98: 24124HCHSTRT460 | B98: R | C98: 2019 | D98: 1,3-Butadiene | E98: 106990 | F98: 1319217937186 | G98: 325220 | H98: CELANESE ACETATE LLC - CELCO PLANT | I98: 3520 VIRGINIA AVE | J98: NARROWS | K98: VA | L98: 24124 | M98: 89. PRODUCE THE CHEMICAL, 93. AS A BYPRODUCT | N98: Processing - Incorporation into formulation, mixture, or reaction product | O98: " | P98: TRI subuse info; subuse indicates unintentional manufacturing as a byproduct not for on-site use or sale or distribution | Q98: ^ | R98: 250 | S98: 250 | T98: 500 | U98: Yes | V98: No | W98: No | X98: No | Y98: Yes | Z98: No | AA98: No | AB98: No | AC98: No | AD98: No | AE98: No | AF98: No | AG98: No | AH98: No | AI98: No | AJ98: No | AK98: No | AL98: No | AM98: No | AN98: No | AO98: No | AP98: No | AQ98: No | AR98: No | AS98: No | AT98: No | AU98: No | AV98: No | AW98: No | AX98: No | AY98: No | AZ98: No | BA98: No | BB98: No | BC98: No | BD98: No | BE98: No | BF98: No | BG98: No | BH98: No | BI98: No | BJ98: No | BK98: No | BL98: No | BM98: No | BN98: No | BO98: No | BP98: No | BQ98: No | BR98: No | BS98: No | BT98: No | BU98: No | BV98: No | BW98: 89. PRODUCE THE CHEMICAL | CA98: 93. AS A BYPRODUCT
A99: 24124HCHSTRT460 | B99: R | C99: 2020 | D99: 1,3-Butadiene | E99: 106990 | F99: 1320218770283 | G99: 325220 | H99: CELANESE ACETATE LLC - CELCO PLANT | I99: 3520 VIRGINIA AVE | J99: NARROWS | K99: VA | L99: 24124 | M99: 89. PRODUCE THE CHEMICAL, 93. AS A BYPRODUCT | N99: Processing - Incorporation into formulation, mixture, or reaction product | O99: " | P99: TRI subuse info; subuse indicates unintentional manufacturing as a byproduct not for on-site use or sale or distribution | Q99: ^ | R99: 250 | S99: 250 | T99: 500 | U99: Yes | V99: No | W99: No | X99: No | Y99: Yes | Z99: No | AA99: No | AB99: No | AC99: No | AD99: No | AE99: No | AF99: No | AG99: No | AH99: No | AI99: No | AJ99: No | AK99: No | AL99: No | AM99: No | AN99: No | AO99: No | AP99: No | AQ99: No | AR99: No | AS99: No | AT99: No | AU99: No | AV99: No | AW99: No | AX99: No | AY99: No | AZ99: No | BA99: No | BB99: No | BC99: No | BD99: No | BE99: No | BF99: No | BG99: No | BH99: No | BI99: No | BJ99: No | BK99: No | BL99: No | BM99: No | BN99: No | BO99: No | BP99: No | BQ99: No | BR99: No | BS99: No | BT99: No | BU99: No | BV99: No | BW99: 89. PRODUCE THE CHEMICAL | CA99: 93. AS A BYPRODUCT
A100: 24124HCHSTRT460 | B100: R | C100: 2021 | D100: 1,3-Butadiene | E100: 106990 | F100: 1321219825953 | G100: 325220 | H100: CELANESE ACETATE LLC - CELCO PLANT | I100: 3520 VIRGINIA AVE | J100: NARROWS | K100: VA | L100: 24124 | M100: 89. PRODUCE THE CHEMICAL, 93. AS A BYPRODUCT | N100: Processing - Incorporation into formulation, mixture, or reaction product | O100: " | P100: TRI subuse info; subuse indicates unintentional manufacturing as a byproduct not for on-site use or sale or distribution | Q100: ^ | R100: 250 | S100: 250 | T100: 500 | U100: Yes | V100: No | W100: No | X100: No | Y100: Yes | Z100: No | AA100: No | AB100: No | AC100: No | AD100: No | AE100: No | AF100: No | AG100: No | AH100: No | AI100: No | AJ100: No | AK100: No | AL100: No | AM100: No | AN100: No | AO100: No | AP100: No | AQ100: No | AR100: No | AS100: No | AT100: No | AU100: No | AV100: No | AW100: No | AX100: No | AY100: No | AZ100: No | BA100: No | BB100: No | BC100: No | BD100: No | BE100: No | BF100: No | BG100: No | BH100: No | BI100: No | BJ100: No | BK100: No | BL100: No | BM100: No | BN100: No | BO100: No | BP100: No | BQ100: No | BR100: No | BS100: No | BT100: No | BU100: No | BV100: No | BW100: 89. PRODUCE THE CHEMICAL | CA100: 93. AS A BYPRODUCT
A101: 70143TNNCL500WE | B101: R | C101: 2016 | D101: 1,3-Butadiene | E101: 106990 | F101: 1316215550690 | G101: 324110 | H101: CHALMETTE REFINING LLC | I101: 500 W ST BERNARD HWY | J101: CHALMETTE | K101: LA | L101: 70043 | M101: 89. PRODUCE THE CHEMICAL, 91. ON-SITE USE OF THE CHEMICAL, 94. AS A MANUFACTURED IMPURITY, 95. USED AS A REACTANT, 116. AS A PROCESS IMPURITY | N101: Processing as a Reactant | O101: " | P101: TRI use info. | Q101: NAICS Petroleum Refineries. Used as reactant indicated every year. Only one year had sale or distribution of chemical. | R101: 100 | S101: 1700 | T101: 1800 | U101: Yes | V101: No | W101: Yes | X101: No | Y101: No | Z101: Yes | AA101: Yes | AG101: No | AT101: No | AU101: No | AV101: Yes | AX101: No | BF101: No | BM101: No | BW101: 89. PRODUCE THE CHEMICAL | BY101: 91. ON-SITE USE OF THE CHEMICAL | CB101: 94. AS A MANUFACTURED IMPURITY | CC101: 95. USED AS A REACTANT | CX101: 116. AS A PROCESS IMPURITY | DG101: =IF(BE101="Yes", DG$1,"") -> 
A102: 70143TNNCL500WE | B102: R | C102: 2017 | D102: 1,3-Butadiene | E102: 106990 | F102: 1317216480855 | G102: 324110 | H102: CHALMETTE REFINING LLC | I102: 500 W ST BERNARD HWY | J102: CHALMETTE | K102: LA | L102: 70043 | M102: 89. PRODUCE THE CHEMICAL, 91. ON-SITE USE OF THE CHEMICAL, 94. AS A MANUFACTURED IMPURITY, 95. USED AS A REACTANT, 116. AS A PROCESS IMPURITY | N102: Processing as a Reactant | O102: " | P102: TRI use info | Q102: ^ | R102: 110 | S102: 1700 | T102: 1810 | U102: Yes | V102: No | W102: Yes | X102: No | Y102: No | Z102: Yes | AA102: Yes | AG102: No | AT102: No | AU102: No | AV102: Yes | AX102: No | BF102: No | BM102: No | BW102: 89. PRODUCE THE CHEMICAL | BY102: 91. ON-SITE USE OF THE CHEMICAL | CB102: 94. AS A MANUFACTURED IMPURITY | CC102: 95. USED AS A REACTANT | CX102: 116. AS A PROCESS IMPURITY
A103: 70143TNNCL500WE | B103: R | C103: 2018 | D103: 1,3-Butadiene | E103: 106990 | F103: 1318217379940 | G103: 324110 | H103: CHALMETTE REFINING LLC | I103: 500 W ST BERNARD HWY | J103: CHALMETTE | K103: LA | L103: 70043 | M103: 89. PRODUCE THE CHEMICAL, 91. ON-SITE USE OF THE CHEMICAL, 94. AS A MANUFACTURED IMPURITY, 95. USED AS A REACTANT, 96. P101 FEEDSTOCKS, 116. AS A PROCESS IMPURITY | N103: Processing as a Reactant | O103: " | P103: TRI use info | Q103: ^ | R103: 110 | S103: 1700 | T103: 1810 | U103: Yes | V103: No | W103: Yes | X103: No | Y103: No | Z103: Yes | AA103: Yes | AB103: Yes | AC103: No | AD103: No | AE103: No | AF103: No | AG103: No | AH103: No | AI103: No | AJ103: No | AK103: No | AL103: No | AM103: No | AN103: No | AO103: No | AP103: No | AQ103: No | AR103: No | AS103: No | AT103: No | AU103: No | AV103: Yes | AW103: No | AX103: No | AY103: No | AZ103: No | BA103: No | BB103: No | BC103: No | BD103: No | BE103: No | BF103: No | BG103: No | BH103: No | BI103: No | BJ103: No | BK103: No | BL103: No | BM103: No | BN103: No | BO103: No | BP103: No | BQ103: No | BR103: No | BS103: No | BT103: No | BU103: No | BV103: No | BW103: 89. PRODUCE THE CHEMICAL | BY103: 91. ON-SITE USE OF THE CHEMICAL | CB103: 94. AS A MANUFACTURED IMPURITY | CC103: 95. USED AS A REACTANT | CD103: 96. P101 FEEDSTOCKS | CX103: 116. AS A PROCESS IMPURITY
A104: 70143TNNCL500WE | B104: R | C104: 2019 | D104: 1,3-Butadiene | E104: 106990 | F104: 1319218366817 | G104: 324110 | H104: CHALMETTE REFINING LLC | I104: 500 W ST BERNARD HWY | J104: CHALMETTE | K104: LA | L104: 70043 | M104: 89. PRODUCE THE CHEMICAL, 91. ON-SITE USE OF THE CHEMICAL, 94. AS A MANUFACTURED IMPURITY, 95. USED AS A REACTANT, 96. P101 FEEDSTOCKS, 116. AS A PROCESS IMPURITY | N104: Processing as a Reactant | O104: " | P104: TRI use info | Q104: ^ | R104: 137 | S104: 1457 | T104: 1594 | U104: Yes | V104: No | W104: Yes | X104: No | Y104: No | Z104: Yes | AA104: Yes | AB104: Yes | AC104: No | AD104: No | AE104: No | AF104: No | AG104: No | AH104: No | AI104: No | AJ104: No | AK104: No | AL104: No | AM104: No | AN104: No | AO104: No | AP104: No | AQ104: No | AR104: No | AS104: No | AT104: No | AU104: No | AV104: Yes | AW104: No | AX104: No | AY104: No | AZ104: No | BA104: No | BB104: No | BC104: No | BD104: No | BE104: No | BF104: No | BG104: No | BH104: No | BI104: No | BJ104: No | BK104: No | BL104: No | BM104: No | BN104: No | BO104: No | BP104: No | BQ104: No | BR104: No | BS104: No | BT104: No | BU104: No | BV104: No | BW104: 89. PRODUCE THE CHEMICAL | BY104: 91. ON-SITE USE OF THE CHEMICAL | CB104: 94. AS A MANUFACTURED IMPURITY | CC104: 95. USED AS A REACTANT | CD104: 96. P101 FEEDSTOCKS | CX104: 116. AS A PROCESS IMPURITY
A105: 70143TNNCL500WE | B105: R | C105: 2020 | D105: 1,3-Butadiene | E105: 106990 | F105: 1320219307271 | G105: 324110 | H105: CHALMETTE REFINING LLC | I105: 500 W ST BERNARD HWY | J105: CHALMETTE | K105: LA | L105: 70043 | M105: 89. PRODUCE THE CHEMICAL, 92. SALE OR DISTRIBUTION OF THE CHEMICAL, 93. AS A BYPRODUCT | N105: Processing as a Reactant | O105: " | P105: TRI use info | Q105: ^ | R105: 86 | S105: 1320 | T105: 1406 | U105: Yes | V105: No | W105: No | X105: Yes | Y105: Yes | Z105: No | AA105: No | AB105: No | AC105: No | AD105: No | AE105: No | AF105: No | AG105: No | AH105: No | AI105: No | AJ105: No | AK105: No | AL105: No | AM105: No | AN105: No | AO105: No | AP105: No | AQ105: No | AR105: No | AS105: No | AT105: No | AU105: No | AV105: No | AW105: No | AX105: No | AY105: No | AZ105: No | BA105: No | BB105: No | BC105: No | BD105: No | BE105: No | BF105: No | BG105: No | BH105: No | BI105: No | BJ105: No | BK105: No | BL105: No | BM105: No | BN105: No | BO105: No | BP105: No | BQ105: No | BR105: No | BS105: No | BT105: No | BU105: No | BV105: No | BW105: 89. PRODUCE THE CHEMICAL | BZ105: 92. SALE OR DISTRIBUTION OF THE CHEMICAL | CA105: 93. AS A BYPRODUCT
A106: 70143TNNCL500WE | B106: R | C106: 2021 | D106: 1,3-Butadiene | E106: 106990 | F106: 1321220413013 | G106: 324110 | H106: CHALMETTE REFINING LLC | I106: 500 W ST BERNARD HWY | J106: CHALMETTE | K106: LA | L106: 70043 | M106: 89. PRODUCE THE CHEMICAL, 91. ON-SITE USE OF THE CHEMICAL, 94. AS A MANUFACTURED IMPURITY, 95. USED AS A REACTANT, 96. P101 FEEDSTOCKS, 116. AS A PROCESS IMPURITY | N106: Processing as a Reactant | O106: " | P106: TRI use info | Q106: ^ | R106: 123 | S106: 1454 | T106: 1577 | U106: Yes | V106: No | W106: Yes | X106: No | Y106: No | Z106: Yes | AA106: Yes | AB106: Yes | AC106: No | AD106: No | AE106: No | AF106: No | AG106: No | AH106: No | AI106: No | AJ106: No | AK106: No | AL106: No | AM106: No | AN106: No | AO106: No | AP106: No | AQ106: No | AR106: No | AS106: No | AT106: No | AU106: No | AV106: Yes | AW106: No | AX106: No | AY106: No | AZ106: No | BA106: No | BB106: No | BC106: No | BD106: No | BE106: No | BF106: No | BG106: No | BH106: No | BI106: No | BJ106: No | BK106: No | BL106: No | BM106: No | BN106: No | BO106: No | BP106: No | BQ106: No | BR106: No | BS106: No | BT106: No | BU106: No | BV106: No | BW106: 89. PRODUCE THE CHEMICAL | BY106: 91. ON-SITE USE OF THE CHEMICAL | CB106: 94. AS A MANUFACTURED IMPURITY | CC106: 95. USED AS A REACTANT | CD106: 96. P101 FEEDSTOCKS | CX106: 116. AS A PROCESS IMPURITY
A107: 77640CHVRN2001S | B107: R | C107: 2016 | D107: 1,3-Butadiene | E107: 106990 | F107: 1316215113630 | G107: 325110 | H107: CHEVRON PHILLIPS CHEMICAL CO | I107: 2001 S GULFWAY DR | J107: PORT ARTHUR | K107: TX | L107: 77640 | M107: 89. PRODUCE THE CHEMICAL, 92. SALE OR DISTRIBUTION OF THE CHEMICAL, 93. AS A BYPRODUCT | N107: Manufacturing | O107: " | P107: Based on company website | Q107: Produce chemical, sale or distribution. Company website indicates budadiene feedstock | R107: 1438 | S107: 206 | T107: 1644 | U107: Yes | V107: No | W107: No | X107: Yes | Y107: Yes | Z107: No | AA107: No | AG107: No | AT107: No | AU107: No | AV107: No | AX107: No | BF107: No | BM107: No | BW107: 89. PRODUCE THE CHEMICAL | BZ107: 92. SALE OR DISTRIBUTION OF THE CHEMICAL | CA107: 93. AS A BYPRODUCT
A108: 77640CHVRN2001S | B108: R | C108: 2018 | D108: 1,3-Butadiene | E108: 106990 | F108: 1318217081254 | G108: 325110 | H108: CHEVRON PHILLIPS CHEMICAL CO | I108: 2001 S GULFWAY DR | J108: PORT ARTHUR | K108: TX | L108: 77640 | M108: 89. PRODUCE THE CHEMICAL, 92. SALE OR DISTRIBUTION OF THE CHEMICAL, 93. AS A BYPRODUCT | N108: Manufacturing | O108: " | P108: Based on company website | Q108: ^ | R108: 843 | S108: 5561 | T108: 6404 | U108: Yes | V108: No | W108: No | X108: Yes | Y108: Yes | Z108: No | AA108: No | AB108: No | AC108: No | AD108: No | AE108: No | AF108: No | AG108: No | AH108: No | AI108: No | AJ108: No | AK108: No | AL108: No | AM108: No | AN108: No | AO108: No | AP108: No | AQ108: No | AR108: No | AS108: No | AT108: No | AU108: No | AV108: No | AW108: No | AX108: No | AY108: No | AZ108: No | BA108: No | BB108: No | BC108: No | BD108: No | BE108: No | BF108: No | BG108: No | BH108: No | BI108: No | BJ108: No | BK108: No | BL108: No | BM108: No | BN108: No | BO108: No | BP108: No | BQ108: No | BR108: No | BS108: No | BT108: No | BU108: No | BV108: No | BW108: 89. PRODUCE THE CHEMICAL | BZ108: 92. SALE OR DISTRIBUTION OF THE CHEMICAL | CA108: 93. AS A BYPRODUCT | CC108: =IF(AA108="Yes", CC$1,"") -> 
A109: 77640CHVRN2001S | B109: R | C109: 2019 | D109: 1,3-Butadiene | E109: 106990 | F109: 1319218236255 | G109: 325110 | H109: CHEVRON PHILLIPS CHEMICAL CO | I109: 2001 S GULFWAY DR | J109: PORT ARTHUR | K109: TX | L109: 77640 | M109: 89. PRODUCE THE CHEMICAL, 92. SALE OR DISTRIBUTION OF THE CHEMICAL, 93. AS A BYPRODUCT | N109: Manufacturing | O109: " | P109: Based on company website | Q109: ^ | R109: 518 | S109: 8052 | T109: 8570 | U109: Yes | V109: No | W109: No | X109: Yes | Y109: Yes | Z109: No | AA109: No | AB109: No | AC109: No | AD109: No | AE109: No | AF109: No | AG109: No | AH109: No | AI109: No | AJ109: No | AK109: No | AL109: No | AM109: No | AN109: No | AO109: No | AP109: No | AQ109: No | AR109: No | AS109: No | AT109: No | AU109: No | AV109: No | AW109: No | AX109: No | AY109: No | AZ109: No | BA109: No | BB109: No | BC109: No | BD109: No | BE109: No | BF109: No | BG109: No | BH109: No | BI109: No | BJ109: No | BK109: No | BL109: No | BM109: No | BN109: No | BO109: No | BP109: No | BQ109: No | BR109: No | BS109: No | BT109: No | BU109: No | BV109: No | BW109: 89. PRODUCE THE CHEMICAL | BZ109: 92. SALE OR DISTRIBUTION OF THE CHEMICAL | CA109: 93. AS A BYPRODUCT | DW109: =IF(BU109="Yes", DW$1,"") -> 
A110: 77640CHVRN2001S | B110: R | C110: 2020 | D110: 1,3-Butadiene | E110: 106990 | F110: 1320219160241 | G110: 325110 | H110: CHEVRON PHILLIPS CHEMICAL CO | I110: 2001 S GULFWAY DR | J110: PORT ARTHUR | K110: TX | L110: 77640 | M110: 89. PRODUCE THE CHEMICAL, 92. SALE OR DISTRIBUTION OF THE CHEMICAL, 93. AS A BYPRODUCT, 101. ADDED AS A FORMULATION COMPONENT, 102. P201 ADDITIVES | N110: Manufacturing | O110: " | P110: Based on company website | Q110: ^ | R110: 500 | S110: 7647 | T110: 8147 | U110: Yes | V110: No | W110: No | X110: Yes | Y110: Yes | Z110: No | AA110: No | AB110: No | AC110: No | AD110: No | AE110: No | AF110: No | AG110: Yes | AH110: Yes | AI110: No | AJ110: No | AK110: No | AL110: No | AM110: No | AN110: No | AO110: No | AP110: No | AQ110: No | AR110: No | AS110: No | AT110: No | AU110: No | AV110: No | AW110: No | AX110: No | AY110: No | AZ110: No | BA110: No | BB110: No | BC110: No | BD110: No | BE110: No | BF110: No | BG110: No | BH110: No | BI110: No | BJ110: No | BK110: No | BL110: No | BM110: No | BN110: No | BO110: No | BP110: No | BQ110: No | BR110: No | BS110: No | BT110: No | BU110: No | BV110: No | BW110: 89. PRODUCE THE CHEMICAL | BZ110: 92. SALE OR DISTRIBUTION OF THE CHEMICAL | CA110: 93. AS A BYPRODUCT | CI110: 101. ADDED AS A FORMULATION COMPONENT | CJ110: 102. P201 ADDITIVES
A111: 77640CHVRN2001S | B111: R | C111: 2021 | D111: 1,3-Butadiene | E111: 106990 | F111: 1321220240954 | G111: 325110 | H111: CHEVRON PHILLIPS CHEMICAL CO | I111: 2001 S GULFWAY DR | J111: PORT ARTHUR | K111: TX | L111: 77640 | M111: 89. PRODUCE THE CHEMICAL, 92. SALE OR DISTRIBUTION OF THE CHEMICAL, 93. AS A BYPRODUCT | N111: Manufacturing | O111: " | P111: Based on company website | Q111: ^ | R111: 295 | S111: 2349 | T111: 2644 | U111: Yes | V111: No | W111: No | X111: Yes | Y111: Yes | Z111: No | AA111: No | AB111: No | AC111: No | AD111: No | AE111: No | AF111: No | AG111: No | AH111: No | AI111: No | AJ111: No | AK111: No | AL111: No | AM111: No | AN111: No | AO111: No | AP111: No | AQ111: No | AR111: No | AS111: No | AT111: No | AU111: No | AV111: No | AW111: No | AX111: No | AY111: No | AZ111: No | BA111: No | BB111: No | BC111: No | BD111: No | BE111: No | BF111: No | BG111: No | BH111: No | BI111: No | BJ111: No | BK111: No | BL111: No | BM111: No | BN111: No | BO111: No | BP111: No | BQ111: No | BR111: No | BS111: No | BT111: No | BU111: No | BV111: No | BW111: 89. PRODUCE THE CHEMICAL | BZ111: 92. SALE OR DISTRIBUTION OF THE CHEMICAL | CA111: 93. AS A BYPRODUCT
A112: 77640CHVRN2001S | B112: R | C112: 2017 | D112: 1,3-Butadiene | E112: 106990 | F112: 1317216072138 | G112: 325199 | H112: CHEVRON PHILLIPS CHEMICAL CO | I112: 2001 S GULFWAY DR | J112: PORT ARTHUR | K112: TX | L112: 77640 | M112: 89. PRODUCE THE CHEMICAL, 92. SALE OR DISTRIBUTION OF THE CHEMICAL, 93. AS A BYPRODUCT | N112: Manufacturing | O112: " | P112: Based on company website | Q112: ^ | R112: 1081 | S112: 1028 | T112: 2109 | U112: Yes | V112: No | W112: No | X112: Yes | Y112: Yes | Z112: No | AA112: No | AG112: No | AT112: No | AU112: No | AV112: No | AX112: No | BF112: No | BM112: No | BW112: 89. PRODUCE THE CHEMICAL | BZ112: 92. SALE OR DISTRIBUTION OF THE CHEMICAL | CA112: 93. AS A BYPRODUCT
A113: 77522CHVRN9500I | B113: R | C113: 2016 | D113: 1,3-Butadiene | E113: 106990 | F113: 1316215261330 | G113: 325110 | H113: CHEVRON PHILLIPS CHEMICAL CO LP | I113: 9500 IH-10 E | J113: BAYTOWN | K113: TX | L113: 77521 | M113: 89. PRODUCE THE CHEMICAL, 92. SALE OR DISTRIBUTION OF THE CHEMICAL, 93. AS A BYPRODUCT, 101. ADDED AS A FORMULATION COMPONENT | N113: Manufacturing | O113: " | P113: Based on company website | Q113: produce and sale or distribution of chemical. Company site indicates butadiene feedstock | R113: 726 | S113: 21734 | T113: 22460 | U113: Yes | V113: No | W113: No | X113: Yes | Y113: Yes | Z113: No | AA113: No | AG113: Yes | AT113: No | AU113: No | AV113: No | AX113: No | BF113: No | BM113: No | BW113: 89. PRODUCE THE CHEMICAL | BZ113: 92. SALE OR DISTRIBUTION OF THE CHEMICAL | CA113: 93. AS A BYPRODUCT | CI113: 101. ADDED AS A FORMULATION COMPONENT
A114: 77522CHVRN9500I | B114: R | C114: 2017 | D114: 1,3-Butadiene | E114: 106990 | F114: 1317216173587 | G114: 325110 | H114: CHEVRON PHILLIPS CHEMICAL CO LP | I114: 9500 IH-10 E | J114: BAYTOWN | K114: TX | L114: 77521 | M114: 89. PRODUCE THE CHEMICAL, 92. SALE OR DISTRIBUTION OF THE CHEMICAL, 93. AS A BYPRODUCT, 101. ADDED AS A FORMULATION COMPONENT | N114: Manufacturing | O114: " | P114: Based on company website | Q114: ^ | R114: 700 | S114: 6380 | T114: 7080 | U114: Yes | V114: No | W114: No | X114: Yes | Y114: Yes | Z114: No | AA114: No | AG114: Yes | AT114: No | AU114: No | AV114: No | AX114: No | BF114: No | BM114: No | BW114: 89. PRODUCE THE CHEMICAL | BZ114: 92. SALE OR DISTRIBUTION OF THE CHEMICAL | CA114: 93. AS A BYPRODUCT | CI114: 101. ADDED AS A FORMULATION COMPONENT
A115: 77522CHVRN9500I | B115: R | C115: 2018 | D115: 1,3-Butadiene | E115: 106990 | F115: 1318217684479 | G115: 325110 | H115: CHEVRON PHILLIPS CHEMICAL CO LP | I115: 9500 IH-10 E | J115: BAYTOWN | K115: TX | L115: 77521 | M115: 89. PRODUCE THE CHEMICAL, 92. SALE OR DISTRIBUTION OF THE CHEMICAL, 93. AS A BYPRODUCT, 101. ADDED AS A FORMULATION COMPONENT, 102. P201 ADDITIVES | N115: Manufacturing | O115: " | P115: Based on company website | Q115: ^ | R115: 858 | S115: 6223 | T115: 7081 | U115: Yes | V115: No | W115: No | X115: Yes | Y115: Yes | Z115: No | AA115: No | AB115: No | AC115: No | AD115: No | AE115: No | AF115: No | AG115: Yes | AH115: Yes | AI115: No | AJ115: No | AK115: No | AL115: No | AM115: No | AN115: No | AO115: No | AP115: No | AQ115: No | AR115: No | AS115: No | AT115: No | AU115: No | AV115: No | AW115: No | AX115: No | AY115: No | AZ115: No | BA115: No | BB115: No | BC115: No | BD115: No | BE115: No | BF115: No | BG115: No | BH115: No | BI115: No | BJ115: No | BK115: No | BL115: No | BM115: No | BN115: No | BO115: No | BP115: No | BQ115: No | BR115: No | BS115: No | BT115: No | BU115: No | BV115: No | BW115: 89. PRODUCE THE CHEMICAL | BZ115: 92. SALE OR DISTRIBUTION OF THE CHEMICAL | CA115: 93. AS A BYPRODUCT | CI115: 101. ADDED AS A FORMULATION COMPONENT | CJ115: 102. P201 ADDITIVES
A116: 77522CHVRN9500I | B116: R | C116: 2019 | D116: 1,3-Butadiene | E116: 106990 | F116: 1319218242422 | G116: 325110 | H116: CHEVRON PHILLIPS CHEMICAL CO LP | I116: 9500 IH-10 E | J116: BAYTOWN | K116: TX | L116: 77521 | M116: 89. PRODUCE THE CHEMICAL, 92. SALE OR DISTRIBUTION OF THE CHEMICAL, 93. AS A BYPRODUCT, 101. ADDED AS A FORMULATION COMPONENT, 102. P201 ADDITIVES | N116: Manufacturing | O116: " | P116: Based on company website | Q116: ^ | R116: 1085 | S116: 33466 | T116: 34551 | U116: Yes | V116: No | W116: No | X116: Yes | Y116: Yes | Z116: No | AA116: No | AB116: No | AC116: No | AD116: No | AE116: No | AF116: No | AG116: Yes | AH116: Yes | AI116: No | AJ116: No | AK116: No | AL116: No | AM116: No | AN116: No | AO116: No | AP116: No | AQ116: No | AR116: No | AS116: No | AT116: No | AU116: No | AV116: No | AW116: No | AX116: No | AY116: No | AZ116: No | BA116: No | BB116: No | BC116: No | BD116: No | BE116: No | BF116: No | BG116: No | BH116: No | BI116: No | BJ116: No | BK116: No | BL116: No | BM116: No | BN116: No | BO116: No | BP116: No | BQ116: No | BR116: No | BS116: No | BT116: No | BU116: No | BV116: No | BW116: 89. PRODUCE THE CHEMICAL | BZ116: 92. SALE OR DISTRIBUTION OF THE CHEMICAL | CA116: 93. AS A BYPRODUCT | CI116: 101. ADDED AS A FORMULATION COMPONENT | CJ116: 102. P201 ADDITIVES
A117: 77522CHVRN9500I | B117: R | C117: 2020 | D117: 1,3-Butadiene | E117: 106990 | F117: 1320219064894 | G117: 325110 | H117: CHEVRON PHILLIPS CHEMICAL CO LP | I117: 9500 IH-10 E | J117: BAYTOWN | K117: TX | L117: 77521 | M117: 95. USED AS A REACTANT, 96. P101 FEEDSTOCKS | N117: Manufacturing | O117: " | P117: Based on company website | Q117: ^ | R117: 1061 | S117: 12688 | T117: 13749 | U117: No | V117: No | W117: No | X117: No | Y117: No | Z117: No | AA117: Yes | AB117: Yes | AC117: No | AD117: No | AE117: No | AF117: No | AG117: No | AH117: No | AI117: No | AJ117: No | AK117: No | AL117: No | AM117: No | AN117: No | AO117: No | AP117: No | AQ117: No | AR117: No | AS117: No | AT117: No | AU117: No | AV117: No | AW117: No | AX117: No | AY117: No | AZ117: No | BA117: No | BB117: No | BC117: No | BD117: No | BE117: No | BF117: No | BG117: No | BH117: No | BI117: No | BJ117: No | BK117: No | BL117: No | BM117: No | BN117: No | BO117: No | BP117: No | BQ117: No | BR117: No | BS117: No | BT117: No | BU117: No | BV117: No | CC117: 95. USED AS A REACTANT | CD117: 96. P101 FEEDSTOCKS
A118: 77522CHVRN9500I | B118: R | C118: 2021 | D118: 1,3-Butadiene | E118: 106990 | F118: 1321220093417 | G118: 325110 | H118: CHEVRON PHILLIPS CHEMICAL CO LP | I118: 9500 IH-10 E | J118: BAYTOWN | K118: TX | L118: 77521 | M118: 89. PRODUCE THE CHEMICAL, 92. SALE OR DISTRIBUTION OF THE CHEMICAL, 93. AS A BYPRODUCT, 101. ADDED AS A FORMULATION COMPONENT, 102. P201 ADDITIVES | N118: Manufacturing | O118: " | P118: Based on company website | Q118: ^ | R118: 1240 | S118: 13577 | T118: 14817 | U118: Yes | V118: No | W118: No | X118: Yes | Y118: Yes | Z118: No | AA118: No | AB118: No | AC118: No | AD118: No | AE118: No | AF118: No | AG118: Yes | AH118: Yes | AI118: No | AJ118: No | AK118: No | AL118: No | AM118: No | AN118: No | AO118: No | AP118: No | AQ118: No | AR118: No | AS118: No | AT118: No | AU118: No | AV118: No | AW118: No | AX118: No | AY118: No | AZ118: No | BA118: No | BB118: No | BC118: No | BD118: No | BE118: No | BF118: No | BG118: No | BH118: No | BI118: No | BJ118: No | BK118: No | BL118: No | BM118: No | BN118: No | BO118: No | BP118: No | BQ118: No | BR118: No | BS118: No | BT118: No | BU118: No | BV118: No | BW118: 89. PRODUCE THE CHEMICAL | BZ118: 92. SALE OR DISTRIBUTION OF THE CHEMICAL | CA118: 93. AS A BYPRODUCT | CI118: 101. ADDED AS A FORMULATION COMPONENT | CJ118: 102. P201 ADDITIVES | DD118: =IF(BB118="Yes", DD$1,"") -> 
A119: 79008PHLLP2MILE | B119: R | C119: 2016 | D119: 1,3-Butadiene | E119: 106990 | F119: 1316215471513 | G119: 325199 | H119: CHEVRON PHILLIPS CHEMICAL CO LP BORGER PLANT | I119: SPUR 119 E | J119: BORGER | K119: TX | L119: 79007 | M119: 95. USED AS A REACTANT | N119: Processing as a reactant | O119: " | P119: TRI use info | Q119: NAICS "all other basic organic chemical manufacturing". Used as Reactant reported near every time. Sale/distribution only reported one year. Website doesn't indicate anything particular | R119: 5211 | S119: 2379.6 | T119: 7590.6 | U119: No | V119: No | W119: No | X119: No | Y119: No | Z119: No | AA119: Yes | AG119: No | AT119: No | AU119: No | AV119: No | AX119: No | BF119: No | BM119: No | CC119: 95. USED AS A REACTANT | CU119: =IF(AS119="Yes", CU$1,"") -> 
A120: 79008PHLLP2MILE | B120: R | C120: 2017 | D120: 1,3-Butadiene | E120: 106990 | F120: 1317216568257 | G120: 325199 | H120: CHEVRON PHILLIPS CHEMICAL CO LP BORGER PLANT | I120: SPUR 119 E | J120: BORGER | K120: TX | L120: 79007 | M120: 95. USED AS A REACTANT | N120: Processing as a reactant | O120: " | P120: TRI use info | Q120: ^ | R120: 18518 | S120: 1943.6 | T120: 20461.6 | U120: No | V120: No | W120: No | X120: No | Y120: No | Z120: No | AA120: Yes | AG120: No | AT120: No | AU120: No | AV120: No | AX120: No | BF120: No | BM120: No | CC120: 95. USED AS A REACTANT | CS120: =IF(AQ120="Yes", CS$1,"") -> 
A121: 79008PHLLP2MILE | B121: R | C121: 2018 | D121: 1,3-Butadiene | E121: 106990 | F121: 1318217238916 | G121: 325199 | H121: CHEVRON PHILLIPS CHEMICAL CO LP BORGER PLANT | I121: SPUR 119 E | J121: BORGER | K121: TX | L121: 79007 | M121: 95. USED AS A REACTANT, 96. P101 FEEDSTOCKS | N121: Processing as a reactant | O121: " | P121: TRI use info | Q121: ^ | R121: 19047.8 | S121: 3266.4 | T121: 22314.2 | U121: No | V121: No | W121: No | X121: No | Y121: No | Z121: No | AA121: Yes | AB121: Yes | AC121: No | AD121: No | AE121: No | AF121: No | AG121: No | AH121: No | AI121: No | AJ121: No | AK121: No | AL121: No | AM121: No | AN121: No | AO121: No | AP121: No | AQ121: No | AR121: No | AS121: No | AT121: No | AU121: No | AV121: No | AW121: No | AX121: No | AY121: No | AZ121: No | BA121: No | BB121: No | BC121: No | BD121: No | BE121: No | BF121: No | BG121: No | BH121: No | BI121: No | BJ121: No | BK121: No | BL121: No | BM121: No | BN121: No | BO121: No | BP121: No | BQ121: No | BR121: No | BS121: No | BT121: No | BU121: No | BV121: No | CC121: 95. USED AS A REACTANT | CD121: 96. P101 FEEDSTOCKS | DV121: =IF(BT121="Yes", DV$1,"") -> 
A122: 79008PHLLP2MILE | B122: R | C122: 2019 | D122: 1,3-Butadiene | E122: 106990 | F122: 1319218367946 | G122: 325199 | H122: CHEVRON PHILLIPS CHEMICAL CO LP BORGER PLANT | I122: SPUR 119 E | J122: BORGER | K122: TX | L122: 79007 | M122: 95. USED AS A REACTANT, 96. P101 FEEDSTOCKS | N122: Processing as a reactant | O122: " | P122: TRI use info | Q122: ^ | R122: 19060 | S122: 4765 | T122: 23825 | U122: No | V122: No | W122: No | X122: No | Y122: No | Z122: No | AA122: Yes | AB122: Yes | AC122: No | AD122: No | AE122: No | AF122: No | AG122: No | AH122: No | AI122: No | AJ122: No | AK122: No | AL122: No | AM122: No | AN122: No | AO122: No | AP122: No | AQ122: No | AR122: No | AS122: No | AT122: No | AU122: No | AV122: No | AW122: No | AX122: No | AY122: No | AZ122: No | BA122: No | BB122: No | BC122: No | BD122: No | BE122: No | BF122: No | BG122: No | BH122: No | BI122: No | BJ122: No | BK122: No | BL122: No | BM122: No | BN122: No | BO122: No | BP122: No | BQ122: No | BR122: No | BS122: No | BT122: No | BU122: No | BV122: No | CC122: 95. USED AS A REACTANT | CD122: 96. P101 FEEDSTOCKS | DT122: =IF(BR122="Yes", DT$1,"") -> 
A123: 79008PHLLP2MILE | B123: R | C123: 2020 | D123: 1,3-Butadiene | E123: 106990 | F123: 1320219235280 | G123: 325199 | H123: CHEVRON PHILLIPS CHEMICAL CO LP BORGER PLANT | I123: SPUR 119 E | J123: BORGER | K123: TX | L123: 79007 | M123: 89. PRODUCE THE CHEMICAL, 92. SALE OR DISTRIBUTION OF THE CHEMICAL | N123: Processing as a reactant | O123: " | P123: TRI use info | Q123: ^ | R123: 19095.8 | S123: 7156.6 | T123: 26252.4 | U123: Yes | V123: No | W123: No | X123: Yes | Y123: No | Z123: No | AA123: No | AB123: No | AC123: No | AD123: No | AE123: No | AF123: No | AG123: No | AH123: No | AI123: No | AJ123: No | AK123: No | AL123: No | AM123: No | AN123: No | AO123: No | AP123: No | AQ123: No | AR123: No | AS123: No | AT123: No | AU123: No | AV123: No | AW123: No | AX123: No | AY123: No | AZ123: No | BA123: No | BB123: No | BC123: No | BD123: No | BE123: No | BF123: No | BG123: No | BH123: No | BI123: No | BJ123: No | BK123: No | BL123: No | BM123: No | BN123: No | BO123: No | BP123: No | BQ123: No | BR123: No | BS123: No | BT123: No | BU123: No | BV123: No | BW123: 89. PRODUCE THE CHEMICAL | BZ123: 92. SALE OR DISTRIBUTION OF THE CHEMICAL
A124: 79008PHLLP2MILE | B124: R | C124: 2021 | D124: 1,3-Butadiene | E124: 106990 | F124: 1321220346314 | G124: 325199 | H124: CHEVRON PHILLIPS CHEMICAL CO LP BORGER PLANT | I124: SPUR 119 E | J124: BORGER | K124: TX | L124: 79007 | M124: 95. USED AS A REACTANT, 96. P101 FEEDSTOCKS | N124: Processing as a reactant | O124: " | P124: TRI use info | Q124: ^ | R124: 19097 | S124: 4734.6 | T124: 23831.6 | U124: No | V124: No | W124: No | X124: No | Y124: No | Z124: No | AA124: Yes | AB124: Yes | AC124: No | AD124: No | AE124: No | AF124: No | AG124: No | AH124: No | AI124: No | AJ124: No | AK124: No | AL124: No | AM124: No | AN124: No | AO124: No | AP124: No | AQ124: No | AR124: No | AS124: No | AT124: No | AU124: No | AV124: No | AW124: No | AX124: No | AY124: No | AZ124: No | BA124: No | BB124: No | BC124: No | BD124: No | BE124: No | BF124: No | BG124: No | BH124: No | BI124: No | BJ124: No | BK124: No | BL124: No | BM124: No | BN124: No | BO124: No | BP124: No | BQ124: No | BR124: No | BS124: No | BT124: No | BU124: No | BV124: No | CC124: 95. USED AS A REACTANT | CD124: 96. P101 FEEDSTOCKS
A125: 77465CHVRNSTATE | B125: R | C125: 2016 | D125: 1,3-Butadiene | E125: 106990 | F125: 1316215493848 | G125: 325110 | H125: CHEVRON PHILLIPS CHEMICAL CO LP SWEENY COMPLEX | I125: 21441 LOOP 419 | J125: SWEENY | K125: TX | L125: 77480 | M125: 89. PRODUCE THE CHEMICAL, 92. SALE OR DISTRIBUTION OF THE CHEMICAL | N125: Manufacturing | O125: " | P125: Based on company website | Q125: Produce chemical, sale or distribution. Company website indicates budadiene feedstock | R125: 4325 | S125: 2429 | T125: 6754 | U125: Yes | V125: No | W125: No | X125: Yes | Y125: No | Z125: No | AA125: No | AG125: No | AT125: No | AU125: No | AV125: No | AX125: No | BF125: No | BM125: No | BW125: 89. PRODUCE THE CHEMICAL | BZ125: 92. SALE OR DISTRIBUTION OF THE CHEMICAL
A126: 77465CHVRNSTATE | B126: R | C126: 2017 | D126: 1,3-Butadiene | E126: 106990 | F126: 1317216720336 | G126: 325110 | H126: CHEVRON PHILLIPS CHEMICAL CO LP SWEENY COMPLEX | I126: 21441 LOOP 419 | J126: SWEENY | K126: TX | L126: 77480 | M126: 89. PRODUCE THE CHEMICAL, 92. SALE OR DISTRIBUTION OF THE CHEMICAL | N126: Manufacturing | O126: " | P126: Based on company website | Q126: ^ | R126: 3957 | S126: 4291 | T126: 8248 | U126: Yes | V126: No | W126: No | X126: Yes | Y126: No | Z126: No | AA126: No | AG126: No | AT126: No | AU126: No | AV126: No | AW126: No | AX126: No | BF126: No | BM126: No | BW126: 89. PRODUCE THE CHEMICAL | BZ126: 92. SALE OR DISTRIBUTION OF THE CHEMICAL
A127: 77465CHVRNSTATE | B127: R | C127: 2018 | D127: 1,3-Butadiene | E127: 106990 | F127: 1318217148168 | G127: 325110 | H127: CHEVRON PHILLIPS CHEMICAL CO LP SWEENY COMPLEX | I127: 21441 LOOP 419 | J127: SWEENY | K127: TX | L127: 77480 | M127: 89. PRODUCE THE CHEMICAL, 92. SALE OR DISTRIBUTION OF THE CHEMICAL | N127: Manufacturing | O127: " | P127: Based on company website | Q127: ^ | R127: 3771 | S127: 3470 | T127: 7241 | U127: Yes | V127: No | W127: No | X127: Yes | Y127: No | Z127: No | AA127: No | AB127: No | AC127: No | AD127: No | AE127: No | AF127: No | AG127: No | AH127: No | AI127: No | AJ127: No | AK127: No | AL127: No | AM127: No | AN127: No | AO127: No | AP127: No | AQ127: No | AR127: No | AS127: No | AT127: No | AU127: No | AV127: No | AW127: No | AX127: No | AY127: No | AZ127: No | BA127: No | BB127: No | BC127: No | BD127: No | BE127: No | BF127: No | BG127: No | BH127: No | BI127: No | BJ127: No | BK127: No | BL127: No | BM127: No | BN127: No | BO127: No | BP127: No | BQ127: No | BR127: No | BS127: No | BT127: No | BU127: No | BV127: No | BW127: 89. PRODUCE THE CHEMICAL | BZ127: 92. SALE OR DISTRIBUTION OF THE CHEMICAL
A128: 77465CHVRNSTATE | B128: R | C128: 2019 | D128: 1,3-Butadiene | E128: 106990 | F128: 1319218170153 | G128: 325110 | H128: CHEVRON PHILLIPS CHEMICAL CO LP SWEENY COMPLEX | I128: 21441 LOOP 419 | J128: SWEENY | K128: TX | L128: 77480 | M128: 89. PRODUCE THE CHEMICAL, 92. SALE OR DISTRIBUTION OF THE CHEMICAL | N128: Manufacturing | O128: " | P128: Based on company website | Q128: ^ | R128: 2605 | S128: 2727 | T128: 5332 | U128: Yes | V128: No | W128: No | X128: Yes | Y128: No | Z128: No | AA128: No | AB128: No | AC128: No | AD128: No | AE128: No | AF128: No | AG128: No | AH128: No | AI128: No | AJ128: No | AK128: No | AL128: No | AM128: No | AN128: No | AO128: No | AP128: No | AQ128: No | AR128: No | AS128: No | AT128: No | AU128: No | AV128: No | AW128: No | AX128: No | AY128: No | AZ128: No | BA128: No | BB128: No | BC128: No | BD128: No | BE128: No | BF128: No | BG128: No | BH128: No | BI128: No | BJ128: No | BK128: No | BL128: No | BM128: No | BN128: No | BO128: No | BP128: No | BQ128: No | BR128: No | BS128: No | BT128: No | BU128: No | BV128: No | BW128: 89. PRODUCE THE CHEMICAL | BZ128: 92. SALE OR DISTRIBUTION OF THE CHEMICAL
A129: 77465CHVRNSTATE | B129: R | C129: 2020 | D129: 1,3-Butadiene | E129: 106990 | F129: 1320219110259 | G129: 325110 | H129: CHEVRON PHILLIPS CHEMICAL CO LP SWEENY COMPLEX | I129: 21441 LOOP 419 | J129: SWEENY | K129: TX | L129: 77480 | M129: 89. PRODUCE THE CHEMICAL, 91. ON-SITE USE OF THE CHEMICAL, 95. USED AS A REACTANT, 96. P101 FEEDSTOCKS, 98. P103 INTERMEDIATES | N129: Manufacturing | O129: " | P129: Based on company website | Q129: ^ | R129: 2836 | S129: 5403 | T129: 8239 | U129: Yes | V129: No | W129: Yes | X129: No | Y129: No | Z129: No | AA129: Yes | AB129: Yes | AC129: No | AD129: Yes | AE129: No | AF129: No | AG129: No | AH129: No | AI129: No | AJ129: No | AK129: No | AL129: No | AM129: No | AN129: No | AO129: No | AP129: No | AQ129: No | AR129: No | AS129: No | AT129: No | AU129: No | AV129: No | AW129: No | AX129: No | AY129: No | AZ129: No | BA129: No | BB129: No | BC129: No | BD129: No | BE129: No | BF129: No | BG129: No | BH129: No | BI129: No | BJ129: No | BK129: No | BL129: No | BM129: No | BN129: No | BO129: No | BP129: No | BQ129: No | BR129: No | BS129: No | BT129: No | BU129: No | BV129: No | BW129: 89. PRODUCE THE CHEMICAL | BY129: 91. ON-SITE USE OF THE CHEMICAL | CC129: 95. USED AS A REACTANT | CD129: 96. P101 FEEDSTOCKS | CF129: =IF(AD129="Yes", CF$1,"") -> 98. P103 INTERMEDIATES
A130: 77465CHVRNSTATE | B130: R | C130: 2021 | D130: 1,3-Butadiene | E130: 106990 | F130: 1321220253049 | G130: 325110 | H130: CHEVRON PHILLIPS CHEMICAL CO LP SWEENY COMPLEX | I130: 21441 LOOP 419 | J130: SWEENY | K130: TX | L130: 77480 | M130: =_xlfn.TEXTJOIN(", ", TRUE, BW130:DX130) -> 89. PRODUCE THE CHEMICAL, 92. SALE OR DISTRIBUTION OF THE CHEMICAL | N130: Manufacturing | O130: " | P130: Based on company website | Q130: ^ | R130: 3132 | S130: 11787 | T130: 14919 | U130: Yes | V130: No | W130: No | X130: Yes | Y130: No | Z130: No | AA130: No | AB130: No | AC130: No | AD130: No | AE130: No | AF130: No | AG130: No | AH130: No | AI130: No | AJ130: No | AK130: No | AL130: No | AM130: No | AN130: No | AO130: No | AP130: No | AQ130: No | AR130: No | AS130: No | AT130: No | AU130: No | AV130: No | AW130: No | AX130: No | AY130: No | AZ130: No | BA130: No | BB130: No | BC130: No | BD130: No | BE130: No | BF130: No | BG130: No | BH130: No | BI130: No | BJ130: No | BK130: No | BL130: No | BM130: No | BN130: No | BO130: No | BP130: No | BQ130: No | BR130: No | BS130: No | BT130: No | BU130: No | BV130: No | BW130: 89. PRODUCE THE CHEMICAL | BZ130: 92. SALE OR DISTRIBUTION OF THE CHEMICAL
A131: 84116CHVRN2351N | B131: R | C131: 2016 | D131: 1,3-Butadiene | E131: 106990 | F131: 1316215281041 | G131: 324110 | H131: CHEVRON PRODUCTS CO - SALT LAKE REFINERY | I131: 2351 NORTH 1100 WEST | J131: SALT LAKE CITY | K131: UT | L131: 84116 | M131: 89. PRODUCE THE CHEMICAL, 91. ON-SITE USE OF THE CHEMICAL, 95. USED AS A REACTANT | N131: Processing as a reactant | O131: " | P131: TRI subuse Info. | Q131: NAICS Petroleum Refinieries. Use as reactant indicated every year | R131: 18 | S131: 643 | T131: 661 | U131: Yes | V131: No | W131: Yes | X131: No | Y131: No | Z131: No | AA131: Yes | AG131: No | AT131: No | AU131: No | AV131: No | AX131: No | BF131: No | BM131: No | BW131: 89. PRODUCE THE CHEMICAL | BY131: 91. ON-SITE USE OF THE CHEMICAL | CC131: 95. USED AS A REACTANT
A132: 84116CHVRN2351N | B132: R | C132: 2017 | D132: 1,3-Butadiene | E132: 106990 | F132: 1317216191674 | G132: 324110 | H132: CHEVRON PRODUCTS CO - SALT LAKE REFINERY | I132: 2351 NORTH 1100 WEST | J132: SALT LAKE CITY | K132: UT | L132: 84116 | M132: 89. PRODUCE THE CHEMICAL, 91. ON-SITE USE OF THE CHEMICAL, 95. USED AS A REACTANT | N132: Processing as a reactant | O132: " | P132: TRI subuse Info | Q132: ^ | R132: 30 | S132: 305 | T132: 335 | U132: Yes | V132: No | W132: Yes | X132: No | Y132: No | Z132: No | AA132: Yes | AG132: No | AT132: No | AU132: No | AV132: No | AX132: No | BF132: No | BM132: No | BW132: 89. PRODUCE THE CHEMICAL | BY132: 91. ON-SITE USE OF THE CHEMICAL | CC132: 95. USED AS A REACTANT
A133: 84116CHVRN2351N | B133: R | C133: 2018 | D133: 1,3-Butadiene | E133: 106990 | F133: 1318217478433 | G133: 324110 | H133: CHEVRON PRODUCTS CO - SALT LAKE REFINERY | I133: 2351 NORTH 1100 WEST | J133: SALT LAKE CITY | K133: UT | L133: 84116 | M133: 89. PRODUCE THE CHEMICAL, 91. ON-SITE USE OF THE CHEMICAL, 95. USED AS A REACTANT, 96. P101 FEEDSTOCKS, 98. P103 INTERMEDIATES | N133: Processing as a reactant | O133: " | P133: TRI subuse Info | Q133: ^ | R133: 15 | S133: 379 | T133: 394 | U133: Yes | V133: No | W133: Yes | X133: No | Y133: No | Z133: No | AA133: Yes | AB133: Yes | AC133: No | AD133: Yes | AE133: No | AF133: No | AG133: No | AH133: No | AI133: No | AJ133: No | AK133: No | AL133: No | AM133: No | AN133: No | AO133: No | AP133: No | AQ133: No | AR133: No | AS133: No | AT133: No | AU133: No | AV133: No | AW133: No | AX133: No | AY133: No | AZ133: No | BA133: No | BB133: No | BC133: No | BD133: No | BE133: No | BF133: No | BG133: No | BH133: No | BI133: No | BJ133: No | BK133: No | BL133: No | BM133: No | BN133: No | BO133: No | BP133: No | BQ133: No | BR133: No | BS133: No | BT133: No | BU133: No | BV133: No | BW133: 89. PRODUCE THE CHEMICAL | BY133: 91. ON-SITE USE OF THE CHEMICAL | CC133: 95. USED AS A REACTANT | CD133: 96. P101 FEEDSTOCKS | CF133: 98. P103 INTERMEDIATES
A134: 84116CHVRN2351N | B134: R | C134: 2019 | D134: 1,3-Butadiene | E134: 106990 | F134: 1319218260836 | G134: 324110 | H134: CHEVRON PRODUCTS CO - SALT LAKE REFINERY | I134: 2351 NORTH 1100 WEST | J134: SALT LAKE CITY | K134: UT | L134: 84116 | M134: 89. PRODUCE THE CHEMICAL, 91. ON-SITE USE OF THE CHEMICAL, 95. USED AS A REACTANT, 96. P101 FEEDSTOCKS, 98. P103 INTERMEDIATES | N134: Processing as a reactant | O134: " | P134: TRI subuse Info | Q134: ^ | R134: 12 | S134: 6545 | T134: 6557 | U134: Yes | V134: No | W134: Yes | X134: No | Y134: No | Z134: No | AA134: Yes | AB134: Yes | AC134: No | AD134: Yes | AE134: No | AF134: No | AG134: No | AH134: No | AI134: No | AJ134: No | AK134: No | AL134: No | AM134: No | AN134: No | AO134: No | AP134: No | AQ134: No | AR134: No | AS134: No | AT134: No | AU134: No | AV134: No | AW134: No | AX134: No | AY134: No | AZ134: No | BA134: No | BB134: No | BC134: No | BD134: No | BE134: No | BF134: No | BG134: No | BH134: No | BI134: No | BJ134: No | BK134: No | BL134: No | BM134: No | BN134: No | BO134: No | BP134: No | BQ134: No | BR134: No | BS134: No | BT134: No | BU134: No | BV134: No | BW134: 89. PRODUCE THE CHEMICAL | BX134: =IF(V134="Yes", BX$1,"") ->  | BY134: 91. ON-SITE USE OF THE CHEMICAL | CC134: 95. USED AS A REACTANT | CD134: 96. P101 FEEDSTOCKS | CF134: 98. P103 INTERMEDIATES
A135: 84116CHVRN2351N | B135: R | C135: 2020 | D135: 1,3-Butadiene | E135: 106990 | F135: 1320218738755 | G135: 324110 | H135: CHEVRON PRODUCTS CO - SALT LAKE REFINERY | I135: 2351 NORTH 1100 WEST | J135: SALT LAKE CITY | K135: UT | L135: 84116 | M135: 89. PRODUCE THE CHEMICAL, 91. ON-SITE USE OF THE CHEMICAL, 94. AS A MANUFACTURED IMPURITY, 95. USED AS A REACTANT, 100. P199 OTHER | N135: Processing as a reactant | O135: " | P135: TRI subuse Info | Q135: ^ | R135: 23 | S135: 5283 | T135: 5306 | U135: Yes | V135: No | W135: Yes | X135: No | Y135: No | Z135: Yes | AA135: Yes | AB135: No | AC135: No | AD135: No | AE135: No | AF135: Yes | AG135: No | AH135: No | AI135: No | AJ135: No | AK135: No | AL135: No | AM135: No | AN135: No | AO135: No | AP135: No | AQ135: No | AR135: No | AS135: No | AT135: No | AU135: No | AV135: No | AW135: No | AX135: No | AY135: No | AZ135: No | BA135: No | BB135: No | BC135: No | BD135: No | BE135: No | BF135: No | BG135: No | BH135: No | BI135: No | BJ135: No | BK135: No | BL135: No | BM135: No | BN135: No | BO135: No | BP135: No | BQ135: No | BR135: No | BS135: No | BT135: No | BU135: No | BV135: No | BW135: =IF(U135="Yes", BW$1,"") -> 89. PRODUCE THE CHEMICAL | BY135: 91. ON-SITE USE OF THE CHEMICAL | CB135: 94. AS A MANUFACTURED IMPURITY | CC135: 95. USED AS A REACTANT | CH135: 100. P199 OTHER
A136: 84116CHVRN2351N | B136: R | C136: 2021 | D136: 1,3-Butadiene | E136: 106990 | F136: 1321219834140 | G136: 324110 | H136: CHEVRON PRODUCTS CO - SALT LAKE REFINERY | I136: 2351 NORTH 1100 WEST | J136: SALT LAKE CITY | K136: UT | L136: 84116 | M136: 89. PRODUCE THE CHEMICAL, 91. ON-SITE USE OF THE CHEMICAL, 95. USED AS A REACTANT, 96. P101 FEEDSTOCKS, 98. P103 INTERMEDIATES | N136: Processing as a reactant | O136: " | P136: TRI subuse Info | Q136: ^ | R136: 92 | S136: 6464 | T136: 6556 | U136: Yes | V136: No | W136: Yes | X136: No | Y136: No | Z136: No | AA136: Yes | AB136: Yes | AC136: No | AD136: Yes | AE136: No | AF136: No | AG136: No | AH136: No | AI136: No | AJ136: No | AK136: No | AL136: No | AM136: No | AN136: No | AO136: No | AP136: No | AQ136: No | AR136: No | AS136: No | AT136: No | AU136: No | AV136: No | AW136: No | AX136: No | AY136: No | AZ136: No | BA136: No | BB136: No | BC136: No | BD136: No | BE136: No | BF136: No | BG136: No | BH136: No | BI136: No | BJ136: No | BK136: No | BL136: No | BM136: No | BN136: No | BO136: No | BP136: No | BQ136: No | BR136: No | BS136: No | BT136: No | BU136: No | BV136: No | BW136: 89. PRODUCE THE CHEMICAL | BY136: 91. ON-SITE USE OF THE CHEMICAL | CC136: 95. USED AS A REACTANT | CD136: 96. P101 FEEDSTOCKS | CF136: 98. P103 INTERMEDIATES
A137: 90245CHVRN324WE | B137: R | C137: 2016 | D137: 1,3-Butadiene | E137: 106990 | F137: 1316215554926 | G137: 324110 | H137: CHEVRON PRODUCTS CO DIV OF CHEVRON USA INC. | I137: 324 W EL SEGUNDO BLVD | J137: EL SEGUNDO | K137: CA | L137: 90245 | M137: =_xlfn.TEXTJOIN(", ", TRUE, BW137:DX137) -> 89. PRODUCE THE CHEMICAL, 92. SALE OR DISTRIBUTION OF THE CHEMICAL, 94. AS A MANUFACTURED IMPURITY | N137: Manufacturing | O137: MANU | P137: Hierarchy states if the majority of years marked 'Yes' to (produce the chemical and sale and distribution of the chemical), Manufacturing is chosen | Q137: NAICS Petroleum Refineries. Produce chemical as impurity and no on-site use indicated. Also sales or distrubution though. Why not manufacturing? Low releases? | R137: 23 | S137: 11 | T137: 34 | U137: Yes | V137: No | W137: No | X137: Yes | Y137: No | Z137: Yes | AA137: No | AG137: No | AT137: No | AU137: No | AV137: No | AX137: No | BF137: No | BM137: No | BW137: 89. PRODUCE THE CHEMICAL | BZ137: 92. SALE OR DISTRIBUTION OF THE CHEMICAL | CB137: 94. AS A MANUFACTURED IMPURITY | DG137: =IF(BE137="Yes", DG$1,"") -> 
A138: 39567CHVRNPOBOX | B138: R | C138: 2016 | D138: 1,3-Butadiene | E138: 106990 | F138: 1316215386602 | G138: 324110 | H138: CHEVRON PRODUCTS CO PASCAGOULA REFINERY | I138: 250 INDUSTRIAL RD | J138: PASCAGOULA | K138: MS | L138: 39581 | M138: 89. PRODUCE THE CHEMICAL, 91. ON-SITE USE OF THE CHEMICAL, 92. SALE OR DISTRIBUTION OF THE CHEMICAL, 93. AS A BYPRODUCT, 94. AS A MANUFACTURED IMPURITY, 95. USED AS A REACTANT, 116. AS A PROCESS IMPURITY | N138: Manufacturing | O138: MANU | P138: Hierarchy states if the majority of years marked 'Yes' to (produce the chemical and sale and distribution of the chemical), Manufacturing is chosen | Q138: NAICS Petroleum Refineries. Use of Reactant almost every year. Produce and sale/distribution every year. Why not manufacturing? Granted, from website doesn't seem like they sell feedstock, but they might | R138: 1100 | S138: 70 | T138: 1170 | U138: Yes | V138: No | W138: Yes | X138: Yes | Y138: Yes | Z138: Yes | AA138: Yes | AG138: No | AT138: No | AU138: No | AV138: Yes | AX138: No | BF138: No | BM138: No | BW138: 89. PRODUCE THE CHEMICAL | BY138: 91. ON-SITE USE OF THE CHEMICAL | BZ138: 92. SALE OR DISTRIBUTION OF THE CHEMICAL | CA138: 93. AS A BYPRODUCT | CB138: 94. AS A MANUFACTURED IMPURITY | CC138: 95. USED AS A REACTANT | CX138: 116. AS A PROCESS IMPURITY
A139: 39567CHVRNPOBOX | B139: R | C139: 2017 | D139: 1,3-Butadiene | E139: 106990 | F139: 1317215924438 | G139: 324110 | H139: CHEVRON PRODUCTS CO PASCAGOULA REFINERY | I139: 250 INDUSTRIAL RD | J139: PASCAGOULA | K139: MS | L139: 39581 | M139: 89. PRODUCE THE CHEMICAL, 91. ON-SITE USE OF THE CHEMICAL, 92. SALE OR DISTRIBUTION OF THE CHEMICAL, 93. AS A BYPRODUCT, 94. AS A MANUFACTURED IMPURITY, 95. USED AS A REACTANT, 116. AS A PROCESS IMPURITY | N139: Manufacturing | O139: MANU | P139: Hierarchy states if the majority of years marked 'Yes' to (produce the chemical and sale and distribution of the chemical), Manufacturing is chosen | R139: 1100 | S139: 130 | T139: 1230 | U139: Yes | V139: No | W139: Yes | X139: Yes | Y139: Yes | Z139: Yes | AA139: Yes | AG139: No | AT139: No | AU139: No | AV139: Yes | AX139: No | BF139: No | BM139: No | BW139: 89. PRODUCE THE CHEMICAL | BY139: 91. ON-SITE USE OF THE CHEMICAL | BZ139: 92. SALE OR DISTRIBUTION OF THE CHEMICAL | CA139: 93. AS A BYPRODUCT | CB139: 94. AS A MANUFACTURED IMPURITY | CC139: 95. USED AS A REACTANT | CX139: 116. AS A PROCESS IMPURITY
A140: 39567CHVRNPOBOX | B140: R | C140: 2018 | D140: 1,3-Butadiene | E140: 106990 | F140: 1318216973608 | G140: 324110 | H140: CHEVRON PRODUCTS CO PASCAGOULA REFINERY | I140: 250 INDUSTRIAL RD | J140: PASCAGOULA | K140: MS | L140: 39581 | M140: 89. PRODUCE THE CHEMICAL, 91. ON-SITE USE OF THE CHEMICAL, 92. SALE OR DISTRIBUTION OF THE CHEMICAL, 93. AS A BYPRODUCT, 94. AS A MANUFACTURED IMPURITY, 95. USED AS A REACTANT, 100. P199 OTHER, 116. AS A PROCESS IMPURITY | N140: Manufacturing | O140: MANU | P140: Hierarchy states if the majority of years marked 'Yes' to (produce the chemical and sale and distribution of the chemical), Manufacturing is chosen | Q140: ^ | R140: 1600 | S140: 50 | T140: 1650 | U140: Yes | V140: No | W140: Yes | X140: Yes | Y140: Yes | Z140: Yes | AA140: Yes | AB140: No | AC140: No | AD140: No | AE140: No | AF140: Yes | AG140: No | AH140: No | AI140: No | AJ140: No | AK140: No | AL140: No | AM140: No | AN140: No | AO140: No | AP140: No | AQ140: No | AR140: No | AS140: No | AT140: No | AU140: No | AV140: Yes | AW140: No | AX140: No | AY140: No | AZ140: No | BA140: No | BB140: No | BC140: No | BD140: No | BE140: No | BF140: No | BG140: No | BH140: No | BI140: No | BJ140: No | BK140: No | BL140: No | BM140: No | BN140: No | BO140: No | BP140: No | BQ140: No | BR140: No | BS140: No | BT140: No | BU140: No | BV140: No | BW140: 89. PRODUCE THE CHEMICAL | BY140: 91. ON-SITE USE OF THE CHEMICAL | BZ140: 92. SALE OR DISTRIBUTION OF THE CHEMICAL | CA140: 93. AS A BYPRODUCT | CB140: 94. AS A MANUFACTURED IMPURITY | CC140: 95. USED AS A REACTANT | CH140: 100. P199 OTHER | CX140: 116. AS A PROCESS IMPURITY
A141: 39567CHVRNPOBOX | B141: R | C141: 2019 | D141: 1,3-Butadiene | E141: 106990 | F141: 1319218038483 | G141: 324110 | H141: CHEVRON PRODUCTS CO PASCAGOULA REFINERY | I141: 250 INDUSTRIAL RD | J141: PASCAGOULA | K141: MS | L141: 39581 | M141: 89. PRODUCE THE CHEMICAL, 91. ON-SITE USE OF THE CHEMICAL, 92. SALE OR DISTRIBUTION OF THE CHEMICAL, 93. AS A BYPRODUCT, 94. AS A MANUFACTURED IMPURITY, 95. USED AS A REACTANT, 100. P199 OTHER, 116. AS A PROCESS IMPURITY | N141: Manufacturing | O141: MANU | P141: Hierarchy states if the majority of years marked 'Yes' to (produce the chemical and sale and distribution of the chemical), Manufacturing is chosen | Q141: ^ | R141: 1500 | S141: 60 | T141: 1560 | U141: Yes | V141: No | W141: Yes | X141: Yes | Y141: Yes | Z141: Yes | AA141: Yes | AB141: No | AC141: No | AD141: No | AE141: No | AF141: Yes | AG141: No | AH141: No | AI141: No | AJ141: No | AK141: No | AL141: No | AM141: No | AN141: No | AO141: No | AP141: No | AQ141: No | AR141: No | AS141: No | AT141: No | AU141: No | AV141: Yes | AW141: No | AX141: No | AY141: No | AZ141: No | BA141: No | BB141: No | BC141: No | BD141: No | BE141: No | BF141: No | BG141: No | BH141: No | BI141: No | BJ141: No | BK141: No | BL141: No | BM141: No | BN141: No | BO141: No | BP141: No | BQ141: No | BR141: No | BS141: No | BT141: No | BU141: No | BV141: No | BW141: 89. PRODUCE THE CHEMICAL | BY141: 91. ON-SITE USE OF THE CHEMICAL | BZ141: 92. SALE OR DISTRIBUTION OF THE CHEMICAL | CA141: 93. AS A BYPRODUCT | CB141: 94. AS A MANUFACTURED IMPURITY | CC141: 95. USED AS A REACTANT | CH141: 100. P199 OTHER | CX141: 116. AS A PROCESS IMPURITY
A142: 39567CHVRNPOBOX | B142: R | C142: 2020 | D142: 1,3-Butadiene | E142: 106990 | F142: 1320218938328 | G142: 324110 | H142: CHEVRON PRODUCTS CO PASCAGOULA REFINERY | I142: 250 INDUSTRIAL RD | J142: PASCAGOULA | K142: MS | L142: 39581 | M142: 89. PRODUCE THE CHEMICAL, 92. SALE OR DISTRIBUTION OF THE CHEMICAL, 94. AS A MANUFACTURED IMPURITY | N142: Manufacturing | O142: MANU | P142: Hierarchy states if the majority of years marked 'Yes' to (produce the chemical and sale and distribution of the chemical), Manufacturing is chosen | Q142: ^ | R142: 1500 | S142: 10 | T142: 1510 | U142: Yes | V142: No | W142: No | X142: Yes | Y142: No | Z142: Yes | AA142: No | AB142: No | AC142: No | AD142: No | AE142: No | AF142: No | AG142: No | AH142: No | AI142: No | AJ142: No | AK142: No | AL142: No | AM142: No | AN142: No | AO142: No | AP142: No | AQ142: No | AR142: No | AS142: No | AT142: No | AU142: No | AV142: No | AW142: No | AX142: No | AY142: No | AZ142: No | BA142: No | BB142: No | BC142: No | BD142: No | BE142: No | BF142: No | BG142: No | BH142: No | BI142: No | BJ142: No | BK142: No | BL142: No | BM142: No | BN142: No | BO142: No | BP142: No | BQ142: No | BR142: No | BS142: No | BT142: No | BU142: No | BV142: No | BW142: 89. PRODUCE THE CHEMICAL | BZ142: 92. SALE OR DISTRIBUTION OF THE CHEMICAL | CB142: 94. AS A MANUFACTURED IMPURITY
A143: 39567CHVRNPOBOX | B143: R | C143: 2021 | D143: 1,3-Butadiene | E143: 106990 | F143: 1321219823871 | G143: 324110 | H143: CHEVRON PRODUCTS CO PASCAGOULA REFINERY | I143: 250 INDUSTRIAL RD | J143: PASCAGOULA | K143: MS | L143: 39581 | M143: 89. PRODUCE THE CHEMICAL, 91. ON-SITE USE OF THE CHEMICAL, 92. SALE OR DISTRIBUTION OF THE CHEMICAL, 93. AS A BYPRODUCT, 94. AS A MANUFACTURED IMPURITY, 95. USED AS A REACTANT, 100. P199 OTHER, 116. AS A PROCESS IMPURITY | N143: Manufacturing | O143: MANU | P143: Hierarchy states if the majority of years marked 'Yes' to (produce the chemical and sale and distribution of the chemical), Manufacturing is chosen | Q143: ^ | R143: 1200 | S143: 73 | T143: 1273 | U143: Yes | V143: No | W143: Yes | X143: Yes | Y143: Yes | Z143: Yes | AA143: Yes | AB143: No | AC143: No | AD143: No | AE143: No | AF143: Yes | AG143: No | AH143: No | AI143: No | AJ143: No | AK143: No | AL143: No | AM143: No | AN143: No | AO143: No | AP143: No | AQ143: No | AR143: No | AS143: No | AT143: No | AU143: No | AV143: Yes | AW143: No | AX143: No | AY143: No | AZ143: No | BA143: No | BB143: No | BC143: No | BD143: No | BE143: No | BF143: No | BG143: No | BH143: No | BI143: No | BJ143: No | BK143: No | BL143: No | BM143: No | BN143: No | BO143: No | BP143: No | BQ143: No | BR143: No | BS143: No | BT143: No | BU143: No | BV143: No | BW143: 89. PRODUCE THE CHEMICAL | BY143: 91. ON-SITE USE OF THE CHEMICAL | BZ143: 92. SALE OR DISTRIBUTION OF THE CHEMICAL | CA143: 93. AS A BYPRODUCT | CB143: 94. AS A MANUFACTURED IMPURITY | CC143: 95. USED AS A REACTANT | CH143: 100. P199 OTHER | CX143: 116. AS A PROCESS IMPURITY
A144: 94802CHVRN841ST | B144: R | C144: 2016 | D144: 1,3-Butadiene | E144: 106990 | F144: 1316215745720 | G144: 324110 | H144: CHEVRON PRODUCTS CO RICHMOND REFINERY | I144: 841 CHEVRON WAY | J144: RICHMOND | K144: CA | L144: 94801 | M144: 89. PRODUCE THE CHEMICAL, 91. ON-SITE USE OF THE CHEMICAL, 94. AS A MANUFACTURED IMPURITY, 95. USED AS A REACTANT | N144: Processing as a reactant | O144: " | P144: TRI subuse Info | Q144: NAICS Petroleum Refinery. Produce chemical and used as reactant almost every year | R144: 98 | S144: 3 | T144: 101 | U144: Yes | V144: No | W144: Yes | X144: No | Y144: No | Z144: Yes | AA144: Yes | AG144: No | AT144: No | AU144: No | AV144: No | AX144: No | BF144: No | BM144: No | BW144: 89. PRODUCE THE CHEMICAL | BY144: 91. ON-SITE USE OF THE CHEMICAL | CB144: 94. AS A MANUFACTURED IMPURITY | CC144: 95. USED AS A REACTANT
A145: 94802CHVRN841ST | B145: R | C145: 2017 | D145: 1,3-Butadiene | E145: 106990 | F145: 1317216610319 | G145: 324110 | H145: CHEVRON PRODUCTS CO RICHMOND REFINERY | I145: 841 CHEVRON WAY | J145: RICHMOND | K145: CA | L145: 94801 | M145: 89. PRODUCE THE CHEMICAL, 91. ON-SITE USE OF THE CHEMICAL, 94. AS A MANUFACTURED IMPURITY, 95. USED AS A REACTANT | N145: Processing as a reactant | O145: " | P145: TRI subuse Info | Q145: ^ | R145: 120 | S145: 5 | T145: 125 | U145: Yes | V145: No | W145: Yes | X145: No | Y145: No | Z145: Yes | AA145: Yes | AG145: No | AT145: No | AU145: No | AV145: No | AX145: No | BF145: No | BM145: No | BW145: 89. PRODUCE THE CHEMICAL | BY145: 91. ON-SITE USE OF THE CHEMICAL | CB145: 94. AS A MANUFACTURED IMPURITY | CC145: 95. USED AS A REACTANT
A146: 94802CHVRN841ST | B146: R | C146: 2018 | D146: 1,3-Butadiene | E146: 106990 | F146: 1318217440243 | G146: 324110 | H146: CHEVRON PRODUCTS CO RICHMOND REFINERY | I146: 841 CHEVRON WAY | J146: RICHMOND | K146: CA | L146: 94801 | M146: 89. PRODUCE THE CHEMICAL, 91. ON-SITE USE OF THE CHEMICAL, 94. AS A MANUFACTURED IMPURITY, 95. USED AS A REACTANT, 100. P199 OTHER | N146: Processing as a reactant | O146: " | P146: TRI subuse Info | Q146: ^ | R146: 160 | S146: 310 | T146: 470 | U146: Yes | V146: No | W146: Yes | X146: No | Y146: No | Z146: Yes | AA146: Yes | AB146: No | AC146: No | AD146: No | AE146: No | AF146: Yes | AG146: No | AH146: No | AI146: No | AJ146: No | AK146: No | AL146: No | AM146: No | AN146: No | AO146: No | AP146: No | AQ146: No | AR146: No | AS146: No | AT146: No | AU146: No | AV146: No | AW146: No | AX146: No | AY146: No | AZ146: No | BA146: No | BB146: No | BC146: No | BD146: No | BE146: No | BF146: No | BG146: No | BH146: No | BI146: No | BJ146: No | BK146: No | BL146: No | BM146: No | BN146: No | BO146: No | BP146: No | BQ146: No | BR146: No | BS146: No | BT146: No | BU146: No | BV146: No | BW146: 89. PRODUCE THE CHEMICAL | BY146: 91. ON-SITE USE OF THE CHEMICAL | CB146: 94. AS A MANUFACTURED IMPURITY | CC146: 95. USED AS A REACTANT | CH146: 100. P199 OTHER
A147: 94802CHVRN841ST | B147: R | C147: 2019 | D147: 1,3-Butadiene | E147: 106990 | F147: 1319218480325 | G147: 324110 | H147: CHEVRON PRODUCTS CO RICHMOND REFINERY | I147: 841 CHEVRON WAY | J147: RICHMOND | K147: CA | L147: 94801 | M147: 89. PRODUCE THE CHEMICAL, 91. ON-SITE USE OF THE CHEMICAL, 94. AS A MANUFACTURED IMPURITY, 95. USED AS A REACTANT, 100. P199 OTHER | N147: Processing as a reactant | O147: " | P147: TRI subuse Info | Q147: ^ | R147: 150 | S147: 390 | T147: 540 | U147: Yes | V147: No | W147: Yes | X147: No | Y147: No | Z147: Yes | AA147: Yes | AB147: No | AC147: No | AD147: No | AE147: No | AF147: Yes | AG147: No | AH147: No | AI147: No | AJ147: No | AK147: No | AL147: No | AM147: No | AN147: No | AO147: No | AP147: No | AQ147: No | AR147: No | AS147: No | AT147: No | AU147: No | AV147: No | AW147: No | AX147: No | AY147: No | AZ147: No | BA147: No | BB147: No | BC147: No | BD147: No | BE147: No | BF147: No | BG147: No | BH147: No | BI147: No | BJ147: No | BK147: No | BL147: No | BM147: No | BN147: No | BO147: No | BP147: No | BQ147: No | BR147: No | BS147: No | BT147: No | BU147: No | BV147: No | BW147: 89. PRODUCE THE CHEMICAL | BY147: 91. ON-SITE USE OF THE CHEMICAL | CB147: 94. AS A MANUFACTURED IMPURITY | CC147: 95. USED AS A REACTANT | CH147: 100. P199 OTHER
A148: 94802CHVRN841ST | B148: R | C148: 2020 | D148: 1,3-Butadiene | E148: 106990 | F148: 1320219131618 | G148: 324110 | H148: CHEVRON PRODUCTS CO RICHMOND REFINERY | I148: 841 CHEVRON WAY | J148: RICHMOND | K148: CA | L148: 94801 | M148: 89. PRODUCE THE CHEMICAL, 93. AS A BYPRODUCT | N148: Processing as a reactant | O148: " | P148: TRI subuse Info | Q148: ^ | R148: 220 | S148: 260 | T148: 480 | U148: Yes | V148: No | W148: No | X148: No | Y148: Yes | Z148: No | AA148: No | AB148: No | AC148: No | AD148: No | AE148: No | AF148: No | AG148: No | AH148: No | AI148: No | AJ148: No | AK148: No | AL148: No | AM148: No | AN148: No | AO148: No | AP148: No | AQ148: No | AR148: No | AS148: No | AT148: No | AU148: No | AV148: No | AW148: No | AX148: No | AY148: No | AZ148: No | BA148: No | BB148: No | BC148: No | BD148: No | BE148: No | BF148: No | BG148: No | BH148: No | BI148: No | BJ148: No | BK148: No | BL148: No | BM148: No | BN148: No | BO148: No | BP148: No | BQ148: No | BR148: No | BS148: No | BT148: No | BU148: No | BV148: No | BW148: 89. PRODUCE THE CHEMICAL | CA148: 93. AS A BYPRODUCT | CN148: =IF(AL148="Yes", CN$1,"") -> 
A149: 94802CHVRN841ST | B149: R | C149: 2021 | D149: 1,3-Butadiene | E149: 106990 | F149: 1321220220002 | G149: 324110 | H149: CHEVRON PRODUCTS CO RICHMOND REFINERY | I149: 841 CHEVRON WAY | J149: RICHMOND | K149: CA | L149: 94801 | M149: 89. PRODUCE THE CHEMICAL, 91. ON-SITE USE OF THE CHEMICAL, 94. AS A MANUFACTURED IMPURITY, 95. USED AS A REACTANT, 100. P199 OTHER | N149: Processing as a reactant | O149: " | P149: TRI subuse Info | Q149: ^ | R149: 260 | S149: 170 | T149: 430 | U149: Yes | V149: No | W149: Yes | X149: No | Y149: No | Z149: Yes | AA149: Yes | AB149: No | AC149: No | AD149: No | AE149: No | AF149: Yes | AG149: No | AH149: No | AI149: No | AJ149: No | AK149: No | AL149: No | AM149: No | AN149: No | AO149: No | AP149: No | AQ149: No | AR149: No | AS149: No | AT149: No | AU149: No | AV149: No | AW149: No | AX149: No | AY149: No | AZ149: No | BA149: No | BB149: No | BC149: No | BD149: No | BE149: No | BF149: No | BG149: No | BH149: No | BI149: No | BJ149: No | BK149: No | BL149: No | BM149: No | BN149: No | BO149: No | BP149: No | BQ149: No | BR149: No | BS149: No | BT149: No | BU149: No | BV149: No | BW149: 89. PRODUCE THE CHEMICAL | BY149: 91. ON-SITE USE OF THE CHEMICAL | CB149: 94. AS A MANUFACTURED IMPURITY | CC149: 95. USED AS A REACTANT | CH149: 100. P199 OTHER
A150: 90245CHVRN324WE | B150: R | C150: 2017 | D150: 1,3-Butadiene | E150: 106990 | F150: 1317216306985 | G150: 324110 | H150: CHEVRON PRODUCTS CO. DIV OF CHEVRON USA INC. | I150: 324 W EL SEGUNDO BLVD | J150: EL SEGUNDO | K150: CA | L150: 90245 | M150: 89. PRODUCE THE CHEMICAL, 92. SALE OR DISTRIBUTION OF THE CHEMICAL, 94. AS A MANUFACTURED IMPURITY | N150: Manufacturing | O150: MANU | P150: Hierarchy states if the majority of years marked 'Yes' to (produce the chemical and sale and distribution of the chemical), Manufacturing is chosen | Q150: Produce the chemical, sale or distribution of chemical every year. Why not manufacturing? Use as reactant reported one year | R150: 24 | S150: 12 | T150: 36 | U150: Yes | V150: No | W150: No | X150: Yes | Y150: No | Z150: Yes | AA150: No | AG150: No | AT150: No | AU150: No | AV150: No | AX150: No | BF150: No | BM150: No | BW150: 89. PRODUCE THE CHEMICAL | BZ150: 92. SALE OR DISTRIBUTION OF THE CHEMICAL | CB150: 94. AS A MANUFACTURED IMPURITY
A151: 90245CHVRN324WE | B151: R | C151: 2018 | D151: 1,3-Butadiene | E151: 106990 | F151: 1318217326192 | G151: 324110 | H151: CHEVRON PRODUCTS CO. DIV OF CHEVRON USA INC. | I151: 324 W EL SEGUNDO BLVD | J151: EL SEGUNDO | K151: CA | L151: 90245 | M151: 89. PRODUCE THE CHEMICAL, 92. SALE OR DISTRIBUTION OF THE CHEMICAL, 94. AS A MANUFACTURED IMPURITY | N151: Manufacturing | O151: MANU | P151: Hierarchy states if the majority of years marked 'Yes' to (produce the chemical and sale and distribution of the chemical), Manufacturing is chosen | Q151: ^ | R151: 21.4 | S151: 8.8 | T151: 30.2 | U151: Yes | V151: No | W151: No | X151: Yes | Y151: No | Z151: Yes | AA151: No | AB151: No | AC151: No | AD151: No | AE151: No | AF151: No | AG151: No | AH151: No | AI151: No | AJ151: No | AK151: No | AL151: No | AM151: No | AN151: No | AO151: No | AP151: No | AQ151: No | AR151: No | AS151: No | AT151: No | AU151: No | AV151: No | AW151: No | AX151: No | AY151: No | AZ151: No | BA151: No | BB151: No | BC151: No | BD151: No | BE151: No | BF151: No | BG151: No | BH151: No | BI151: No | BJ151: No | BK151: No | BL151: No | BM151: No | BN151: No | BO151: No | BP151: No | BQ151: No | BR151: No | BS151: No | BT151: No | BU151: No | BV151: No | BW151: 89. PRODUCE THE CHEMICAL | BZ151: 92. SALE OR DISTRIBUTION OF THE CHEMICAL | CB151: 94. AS A MANUFACTURED IMPURITY
A152: 90245CHVRN324WE | B152: R | C152: 2019 | D152: 1,3-Butadiene | E152: 106990 | F152: 1319218161089 | G152: 324110 | H152: CHEVRON PRODUCTS CO. DIV OF CHEVRON USA INC. | I152: 324 W EL SEGUNDO BLVD | J152: EL SEGUNDO | K152: CA | L152: 90245 | M152: =_xlfn.TEXTJOIN(", ", TRUE, BW152:DX152) -> 89. PRODUCE THE CHEMICAL, 92. SALE OR DISTRIBUTION OF THE CHEMICAL, 94. AS A MANUFACTURED IMPURITY | N152: Manufacturing | O152: MANU | P152: Hierarchy states if the majority of years marked 'Yes' to (produce the chemical and sale and distribution of the chemical), Manufacturing is chosen | Q152: ^ | R152: 22.2 | S152: 4.5 | T152: 26.7 | U152: Yes | V152: No | W152: No | X152: Yes | Y152: No | Z152: Yes | AA152: No | AB152: No | AC152: No | AD152: No | AE152: No | AF152: No | AG152: No | AH152: No | AI152: No | AJ152: No | AK152: No | AL152: No | AM152: No | AN152: No | AO152: No | AP152: No | AQ152: No | AR152: No | AS152: No | AT152: No | AU152: No | AV152: No | AW152: No | AX152: No | AY152: No | AZ152: No | BA152: No | BB152: No | BC152: No | BD152: No | BE152: No | BF152: No | BG152: No | BH152: No | BI152: No | BJ152: No | BK152: No | BL152: No | BM152: No | BN152: No | BO152: No | BP152: No | BQ152: No | BR152: No | BS152: No | BT152: No | BU152: No | BV152: No | BW152: 89. PRODUCE THE CHEMICAL | BZ152: 92. SALE OR DISTRIBUTION OF THE CHEMICAL | CB152: 94. AS A MANUFACTURED IMPURITY
A153: 90245CHVRN324WE | B153: R | C153: 2020 | D153: 1,3-Butadiene | E153: 106990 | F153: 1320218837324 | G153: 324110 | H153: CHEVRON PRODUCTS CO. DIV OF CHEVRON USA INC. | I153: 324 W EL SEGUNDO BLVD | J153: EL SEGUNDO | K153: CA | L153: 90245 | M153: 89. PRODUCE THE CHEMICAL, 91. ON-SITE USE OF THE CHEMICAL, 95. USED AS A REACTANT, 96. P101 FEEDSTOCKS, 115. REPACKAGING | N153: Manufacturing | O153: MANU | P153: Hierarchy states if the majority of years marked 'Yes' to (produce the chemical and sale and distribution of the chemical), Manufacturing is chosen | Q153: ^ | R153: 22 | S153: 5 | T153: 27 | U153: Yes | V153: No | W153: Yes | X153: No | Y153: No | Z153: No | AA153: Yes | AB153: Yes | AC153: No | AD153: No | AE153: No | AF153: No | AG153: No | AH153: No | AI153: No | AJ153: No | AK153: No | AL153: No | AM153: No | AN153: No | AO153: No | AP153: No | AQ153: No | AR153: No | AS153: No | AT153: No | AU153: Yes | AV153: No | AW153: No | AX153: No | AY153: No | AZ153: No | BA153: No | BB153: No | BC153: No | BD153: No | BE153: No | BF153: No | BG153: No | BH153: No | BI153: No | BJ153: No | BK153: No | BL153: No | BM153: No | BN153: No | BO153: No | BP153: No | BQ153: No | BR153: No | BS153: No | BT153: No | BU153: No | BV153: No | BW153: 89. PRODUCE THE CHEMICAL | BY153: 91. ON-SITE USE OF THE CHEMICAL | CC153: 95. USED AS A REACTANT | CD153: 96. P101 FEEDSTOCKS | CW153: 115. REPACKAGING
A154: 90245CHVRN324WE | B154: R | C154: 2021 | D154: 1,3-Butadiene | E154: 106990 | F154: 1321219997739 | G154: 324110 | H154: CHEVRON PRODUCTS CO. DIV OF CHEVRON USA INC. | I154: 324 W EL SEGUNDO BLVD | J154: EL SEGUNDO | K154: CA | L154: 90245 | M154: 89. PRODUCE THE CHEMICAL, 92. SALE OR DISTRIBUTION OF THE CHEMICAL, 94. AS A MANUFACTURED IMPURITY | N154: Manufacturing | O154: MANU | P154: Hierarchy states if the majority of years marked 'Yes' to (produce the chemical and sale and distribution of the chemical), Manufacturing is chosen | Q154: ^ | R154: 22 | S154: 6 | T154: 28 | U154: Yes | V154: No | W154: No | X154: Yes | Y154: No | Z154: Yes | AA154: No | AB154: No | AC154: No | AD154: No | AE154: No | AF154: No | AG154: No | AH154: No | AI154: No | AJ154: No | AK154: No | AL154: No | AM154: No | AN154: No | AO154: No | AP154: No | AQ154: No | AR154: No | AS154: No | AT154: No | AU154: No | AV154: No | AW154: No | AX154: No | AY154: No | AZ154: No | BA154: No | BB154: No | BC154: No | BD154: No | BE154: No | BF154: No | BG154: No | BH154: No | BI154: No | BJ154: No | BK154: No | BL154: No | BM154: No | BN154: No | BO154: No | BP154: No | BQ154: No | BR154: No | BS154: No | BT154: No | BU154: No | BV154: No | BW154: 89. PRODUCE THE CHEMICAL | BZ154: 92. SALE OR DISTRIBUTION OF THE CHEMICAL | CB154: 94. AS A MANUFACTURED IMPURITY
A155: 94802CHVRN576ST | B155: R | C155: 2016 | D155: 1,3-Butadiene | E155: 106990 | F155: 1316215700232 | G155: 541715 | H155: CHEVRON RICHMOND TECHNOLOGY CENTER | I155: 100 CHEVRON WAY - RM10-3114 | J155: RICHMOND | K155: CA | L155: 94801 | M155: 89. PRODUCE THE CHEMICAL, 93. AS A BYPRODUCT | N155: Processing - Incorporation into formulation, mixture, or reaction product | O155: Processing - Incorporation into formulation, mixture, or reaction product | P155: TRI subuse Info | Q155: NAICS: "Research and Development in the Physical, Engineering, and Life Sciences (except Nanotechnology and Biotechnology)". They are a refinery. Produce chemical and as a byproduct. Only reported as reactant one year. | R155: 0 | S155: 0.019 | T155: 0.019 | U155: Yes | V155: No | W155: No | X155: No | Y155: Yes | Z155: No | AA155: No | AG155: No | AT155: No | AU155: No | AV155: No | AX155: No | BF155: No | BM155: No | BW155: 89. PRODUCE THE CHEMICAL | CA155: 93. AS A BYPRODUCT
A156: 94802CHVRN576ST | B156: R | C156: 2017 | D156: 1,3-Butadiene | E156: 106990 | F156: 1317216423160 | G156: 541715 | H156: CHEVRON RICHMOND TECHNOLOGY CENTER | I156: 100 CHEVRON WAY - RM10-3114 | J156: RICHMOND | K156: CA | L156: 94801 | M156: 89. PRODUCE THE CHEMICAL, 93. AS A BYPRODUCT | N156: Processing - Incorporation into formulation, mixture, or reaction product | O156: Processing - Incorporation into formulation, mixture, or reaction product | P156: TRI subuse Info | Q156: ^ | R156: 0 | S156: 0.027 | T156: 0.027 | U156: Yes | V156: No | W156: No | X156: No | Y156: Yes | Z156: No | AA156: No | AG156: No | AT156: No | AU156: No | AV156: No | AX156: No | BF156: No | BM156: No | BW156: 89. PRODUCE THE CHEMICAL | CA156: 93. AS A BYPRODUCT | DO156: =IF(BM156="Yes", DO$1,"") -> 
A157: 94802CHVRN576ST | B157: R | C157: 2018 | D157: 1,3-Butadiene | E157: 106990 | F157: 1318217314172 | G157: 541715 | H157: CHEVRON RICHMOND TECHNOLOGY CENTER | I157: 100 CHEVRON WAY - RM10-3114 | J157: RICHMOND | K157: CA | L157: 94801 | M157: 89. PRODUCE THE CHEMICAL, 93. AS A BYPRODUCT | N157: Processing - Incorporation into formulation, mixture, or reaction product | O157: Processing - Incorporation into formulation, mixture, or reaction product | P157: TRI subuse Info | Q157: ^ | R157: 0 | S157: 0.012 | T157: 0.012 | U157: Yes | V157: No | W157: No | X157: No | Y157: Yes | Z157: No | AA157: No | AB157: No | AC157: No | AD157: No | AE157: No | AF157: No | AG157: No | AH157: No | AI157: No | AJ157: No | AK157: No | AL157: No | AM157: No | AN157: No | AO157: No | AP157: No | AQ157: No | AR157: No | AS157: No | AT157: No | AU157: No | AV157: No | AW157: No | AX157: No | AY157: No | AZ157: No | BA157: No | BB157: No | BC157: No | BD157: No | BE157: No | BF157: No | BG157: No | BH157: No | BI157: No | BJ157: No | BK157: No | BL157: No | BM157: No | BN157: No | BO157: No | BP157: No | BQ157: No | BR157: No | BS157: No | BT157: No | BU157: No | BV157: No | BW157: 89. PRODUCE THE CHEMICAL | CA157: 93. AS A BYPRODUCT | CE157: =IF(AC157="Yes", CE$1,"") ->  | DI157: =IF(BG157="Yes", DI$1,"") -> 
A158: 94802CHVRN576ST | B158: R | C158: 2019 | D158: 1,3-Butadiene | E158: 106990 | F158: 1319218411611 | G158: 541715 | H158: CHEVRON RICHMOND TECHNOLOGY CENTER | I158: 100 CHEVRON WAY - RM10-3114 | J158: RICHMOND | K158: CA | L158: 94801 | M158: 89. PRODUCE THE CHEMICAL, 93. AS A BYPRODUCT | N158: Processing - Incorporation into formulation, mixture, or reaction product | O158: Processing - Incorporation into formulation, mixture, or reaction product | P158: TRI subuse Info | Q158: ^ | R158: 0 | S158: 0.013 | T158: 0.013 | U158: Yes | V158: No | W158: No | X158: No | Y158: Yes | Z158: No | AA158: No | AB158: No | AC158: No | AD158: No | AE158: No | AF158: No | AG158: No | AH158: No | AI158: No | AJ158: No | AK158: No | AL158: No | AM158: No | AN158: No | AO158: No | AP158: No | AQ158: No | AR158: No | AS158: No | AT158: No | AU158: No | AV158: No | AW158: No | AX158: No | AY158: No | AZ158: No | BA158: No | BB158: No | BC158: No | BD158: No | BE158: No | BF158: No | BG158: No | BH158: No | BI158: No | BJ158: No | BK158: No | BL158: No | BM158: No | BN158: No | BO158: No | BP158: No | BQ158: No | BR158: No | BS158: No | BT158: No | BU158: No | BV158: No | BW158: 89. PRODUCE THE CHEMICAL | CA158: 93. AS A BYPRODUCT
A159: 94802CHVRN576ST | B159: R | C159: 2020 | D159: 1,3-Butadiene | E159: 106990 | F159: 1320219045679 | G159: 541715 | H159: CHEVRON RICHMOND TECHNOLOGY CENTER | I159: 100 CHEVRON WAY - RM10-3114 | J159: RICHMOND | K159: CA | L159: 94801 | M159: 89. PRODUCE THE CHEMICAL, 90. IMPORT THE CHEMICAL, 93. AS A BYPRODUCT, 94. AS A MANUFACTURED IMPURITY, 95. USED AS A REACTANT, 97. P102 RAW MATERIALS, 117. PROCESSED / RECYCLING, 133. ANCILLARY OR OTHER USE, 142. Z399 OTHER | N159: Processing - Incorporation into formulation, mixture, or reaction product | O159: Processing - Incorporation into formulation, mixture, or reaction product | P159: TRI subuse Info | Q159: ^ | R159: 0 | S159: 0.003 | T159: 0.003 | U159: Yes | V159: Yes | W159: No | X159: No | Y159: Yes | Z159: Yes | AA159: Yes | AB159: No | AC159: Yes | AD159: No | AE159: No | AF159: No | AG159: No | AH159: No | AI159: No | AJ159: No | AK159: No | AL159: No | AM159: No | AN159: No | AO159: No | AP159: No | AQ159: No | AR159: No | AS159: No | AT159: No | AU159: No | AV159: No | AW159: Yes | AX159: No | AY159: No | AZ159: No | BA159: No | BB159: No | BC159: No | BD159: No | BE159: No | BF159: No | BG159: No | BH159: No | BI159: No | BJ159: No | BK159: No | BL159: No | BM159: Yes | BN159: No | BO159: No | BP159: No | BQ159: No | BR159: No | BS159: No | BT159: No | BU159: No | BV159: Yes | BW159: 89. PRODUCE THE CHEMICAL | BX159: 90. IMPORT THE CHEMICAL | CA159: 93. AS A BYPRODUCT | CB159: 94. AS A MANUFACTURED IMPURITY | CC159: 95. USED AS A REACTANT | CE159: 97. P102 RAW MATERIALS | CX159: =IF(AV159="Yes", CX$1,"") ->  | CY159: 117. PROCESSED / RECYCLING | DO159: 133. ANCILLARY OR OTHER USE | DX159: 142. Z399 OTHER
A160: 94802CHVRN576ST | B160: R | C160: 2021 | D160: 1,3-Butadiene | E160: 106990 | F160: 1321219964501 | G160: 541715 | H160: CHEVRON RICHMOND TECHNOLOGY CENTER | I160: 100 CHEVRON WAY - RM10-3114 | J160: RICHMOND | K160: CA | L160: 94801 | M160: 89. PRODUCE THE CHEMICAL, 93. AS A BYPRODUCT | N160: Processing - Incorporation into formulation, mixture, or reaction product | O160: Processing - Incorporation into formulation, mixture, or reaction product | P160: TRI subuse Info | Q160: ^ | R160: 0 | S160: 0.006 | T160: 0.006 | U160: Yes | V160: No | W160: No | X160: No | Y160: Yes | Z160: No | AA160: No | AB160: No | AC160: No | AD160: No | AE160: No | AF160: No | AG160: No | AH160: No | AI160: No | AJ160: No | AK160: No | AL160: No | AM160: No | AN160: No | AO160: No | AP160: No | AQ160: No | AR160: No | AS160: No | AT160: No | AU160: No | AV160: No | AW160: No | AX160: No | AY160: No | AZ160: No | BA160: No | BB160: No | BC160: No | BD160: No | BE160: No | BF160: No | BG160: No | BH160: No | BI160: No | BJ160: No | BK160: No | BL160: No | BM160: No | BN160: No | BO160: No | BP160: No | BQ160: No | BR160: No | BS160: No | BT160: No | BU160: No | BV160: No | BW160: 89. PRODUCE THE CHEMICAL | CA160: 93. AS A BYPRODUCT
A161: 82007FRNTR2700E | B161: R | C161: 2016 | D161: 1,3-Butadiene | E161: 106990 | F161: 1316215560145 | G161: 324110 | H161: CHEYENNE RENEWABLE DIESEL CO LLC | I161: 2700 E. 5TH STREET | J161: CHEYENNE | K161: WY | L161: 82007 | M161: 89. PRODUCE THE CHEMICAL, 91. ON-SITE USE OF THE CHEMICAL, 95. USED AS A REACTANT, 101. ADDED AS A FORMULATION COMPONENT, 115. REPACKAGING | N161: Processing as a reactant | O161: " | P161: TRI subuse Info | Q161: NAICS Petroleum Refinery. Used as reactant reported for every year. | R161: 7 | S161: 0 | T161: 7 | U161: Yes | V161: No | W161: Yes | X161: No | Y161: No | Z161: No | AA161: Yes | AG161: Yes | AT161: No | AU161: Yes | AV161: No | AX161: No | BF161: No | BM161: No | BW161: 89. PRODUCE THE CHEMICAL | BY161: 91. ON-SITE USE OF THE CHEMICAL | CC161: 95. USED AS A REACTANT | CI161: 101. ADDED AS A FORMULATION COMPONENT | CW161: 115. REPACKAGING
A162: 82007FRNTR2700E | B162: R | C162: 2017 | D162: 1,3-Butadiene | E162: 106990 | F162: 1317216012245 | G162: 324110 | H162: CHEYENNE RENEWABLE DIESEL CO LLC | I162: 2700 E. 5TH STREET | J162: CHEYENNE | K162: WY | L162: 82007 | M162: 89. PRODUCE THE CHEMICAL, 91. ON-SITE USE OF THE CHEMICAL, 95. USED AS A REACTANT, 101. ADDED AS A FORMULATION COMPONENT, 115. REPACKAGING | N162: Processing as a reactant | O162: " | P162: TRI subuse Info | Q162: ^ | R162: 10 | S162: 0 | T162: 10 | U162: Yes | V162: No | W162: Yes | X162: No | Y162: No | Z162: No | AA162: Yes | AG162: Yes | AT162: No | AU162: Yes | AV162: No | AX162: No | BF162: No | BM162: No | BW162: 89. PRODUCE THE CHEMICAL | BY162: 91. ON-SITE USE OF THE CHEMICAL | CC162: 95. USED AS A REACTANT | CI162: 101. ADDED AS A FORMULATION COMPONENT | CW162: 115. REPACKAGING
A163: 82007FRNTR2700E | B163: R | C163: 2018 | D163: 1,3-Butadiene | E163: 106990 | F163: 1318216937476 | G163: 324110 | H163: CHEYENNE RENEWABLE DIESEL CO LLC | I163: 2700 E. 5TH STREET | J163: CHEYENNE | K163: WY | L163: 82007 | M163: 89. PRODUCE THE CHEMICAL, 91. ON-SITE USE OF THE CHEMICAL, 95. USED AS A REACTANT, 96. P101 FEEDSTOCKS, 115. REPACKAGING | N163: Processing as a reactant | O163: " | P163: TRI subuse Info | Q163: ^ | R163: 8 | S163: 0 | T163: 8 | U163: Yes | V163: No | W163: Yes | X163: No | Y163: No | Z163: No | AA163: Yes | AB163: Yes | AC163: No | AD163: No | AE163: No | AF163: No | AG163: No | AH163: No | AI163: No | AJ163: No | AK163: No | AL163: No | AM163: No | AN163: No | AO163: No | AP163: No | AQ163: No | AR163: No | AS163: No | AT163: No | AU163: Yes | AV163: No | AW163: No | AX163: No | AY163: No | AZ163: No | BA163: No | BB163: No | BC163: No | BD163: No | BE163: No | BF163: No | BG163: No | BH163: No | BI163: No | BJ163: No | BK163: No | BL163: No | BM163: No | BN163: No | BO163: No | BP163: No | BQ163: No | BR163: No | BS163: No | BT163: No | BU163: No | BV163: No | BW163: 89. PRODUCE THE CHEMICAL | BY163: 91. ON-SITE USE OF THE CHEMICAL | CC163: 95. USED AS A REACTANT | CD163: 96. P101 FEEDSTOCKS | CW163: 115. REPACKAGING
A164: 82007FRNTR2700E | B164: R | C164: 2019 | D164: 1,3-Butadiene | E164: 106990 | F164: 1319217936412 | G164: 324110 | H164: CHEYENNE RENEWABLE DIESEL CO LLC | I164: 2700 E. 5TH STREET | J164: CHEYENNE | K164: WY | L164: 82007 | M164: 89. PRODUCE THE CHEMICAL, 91. ON-SITE USE OF THE CHEMICAL, 95. USED AS A REACTANT, 96. P101 FEEDSTOCKS, 115. REPACKAGING | N164: Processing as a reactant | O164: " | P164: TRI subuse Info | Q164: ^ | R164: 10 | S164: 0 | T164: 10 | U164: Yes | V164: No | W164: Yes | X164: No | Y164: No | Z164: No | AA164: Yes | AB164: Yes | AC164: No | AD164: No | AE164: No | AF164: No | AG164: No | AH164: No | AI164: No | AJ164: No | AK164: No | AL164: No | AM164: No | AN164: No | AO164: No | AP164: No | AQ164: No | AR164: No | AS164: No | AT164: No | AU164: Yes | AV164: No | AW164: No | AX164: No | AY164: No | AZ164: No | BA164: No | BB164: No | BC164: No | BD164: No | BE164: No | BF164: No | BG164: No | BH164: No | BI164: No | BJ164: No | BK164: No | BL164: No | BM164: No | BN164: No | BO164: No | BP164: No | BQ164: No | BR164: No | BS164: No | BT164: No | BU164: No | BV164: No | BW164: 89. PRODUCE THE CHEMICAL | BY164: 91. ON-SITE USE OF THE CHEMICAL | CC164: 95. USED AS A REACTANT | CD164: 96. P101 FEEDSTOCKS | CW164: 115. REPACKAGING
A165: 82007FRNTR2700E | B165: R | C165: 2020 | D165: 1,3-Butadiene | E165: 106990 | F165: 1320218770788 | G165: 324110 | H165: CHEYENNE RENEWABLE DIESEL CO LLC | I165: 2700 E. 5TH STREET | J165: CHEYENNE | K165: WY | L165: 82007 | M165: 89. PRODUCE THE CHEMICAL, 91. ON-SITE USE OF THE CHEMICAL, 95. USED AS A REACTANT, 98. P103 INTERMEDIATES | N165: Processing as a reactant | O165: " | P165: TRI subuse Info | Q165: ^ | R165: 7 | S165: 0 | T165: 7 | U165: Yes | V165: No | W165: Yes | X165: No | Y165: No | Z165: No | AA165: Yes | AB165: No | AC165: No | AD165: Yes | AE165: No | AF165: No | AG165: No | AH165: No | AI165: No | AJ165: No | AK165: No | AL165: No | AM165: No | AN165: No | AO165: No | AP165: No | AQ165: No | AR165: No | AS165: No | AT165: No | AU165: No | AV165: No | AW165: No | AX165: No | AY165: No | AZ165: No | BA165: No | BB165: No | BC165: No | BD165: No | BE165: No | BF165: No | BG165: No | BH165: No | BI165: No | BJ165: No | BK165: No | BL165: No | BM165: No | BN165: No | BO165: No | BP165: No | BQ165: No | BR165: No | BS165: No | BT165: No | BU165: No | BV165: No | BW165: 89. PRODUCE THE CHEMICAL | BY165: 91. ON-SITE USE OF THE CHEMICAL | CC165: 95. USED AS A REACTANT | CF165: 98. P103 INTERMEDIATES
A166: 59044CNXRF803HI | B166: R | C166: 2016 | D166: 1,3-Butadiene | E166: 106990 | F166: 1316215678133 | G166: 324110 | H166: CHS INC. LAUREL REFINERY | I166: 803 HWY 212 S | J166: LAUREL | K166: MT | L166: 59044 | M166: 89. PRODUCE THE CHEMICAL, 90. IMPORT THE CHEMICAL, 93. AS A BYPRODUCT, 94. AS A MANUFACTURED IMPURITY, 95. USED AS A REACTANT, 133. ANCILLARY OR OTHER USE | N166: Processing as a reactant | O166: " | P166: TRI subuse Info | Q166: NAICS: oil refineries. As a reactant reported almost every year. (just a note for my sanity, without used as a reactant this may be processing - formulation since no specific other use is described) | R166: 109 | S166: 4825 | T166: 4934 | U166: Yes | V166: Yes | W166: No | X166: No | Y166: Yes | Z166: Yes | AA166: Yes | AG166: No | AT166: No | AU166: No | AV166: No | AX166: No | BF166: No | BM166: Yes | BW166: 89. PRODUCE THE CHEMICAL | BX166: 90. IMPORT THE CHEMICAL | CA166: 93. AS A BYPRODUCT | CB166: 94. AS A MANUFACTURED IMPURITY | CC166: 95. USED AS A REACTANT | DO166: 133. ANCILLARY OR OTHER USE
A167: 59044CNXRF803HI | B167: R | C167: 2017 | D167: 1,3-Butadiene | E167: 106990 | F167: 1317216516500 | G167: 324110 | H167: CHS INC. LAUREL REFINERY | I167: 803 HWY 212 S | J167: LAUREL | K167: MT | L167: 59044 | M167: 89. PRODUCE THE CHEMICAL, 90. IMPORT THE CHEMICAL, 93. AS A BYPRODUCT, 94. AS A MANUFACTURED IMPURITY, 95. USED AS A REACTANT, 133. ANCILLARY OR OTHER USE | N167: Processing as a reactant | O167: " | P167: TRI subuse Info | Q167: ^ | R167: 141 | S167: 6754 | T167: 6895 | U167: Yes | V167: Yes | W167: No | X167: No | Y167: Yes | Z167: Yes | AA167: Yes | AG167: No | AT167: No | AU167: No | AV167: No | AX167: No | BF167: No | BM167: Yes | BW167: 89. PRODUCE THE CHEMICAL | BX167: 90. IMPORT THE CHEMICAL | CA167: 93. AS A BYPRODUCT | CB167: 94. AS A MANUFACTURED IMPURITY | CC167: 95. USED AS A REACTANT | DO167: 133. ANCILLARY OR OTHER USE
A168: 59044CNXRF803HI | B168: R | C168: 2018 | D168: 1,3-Butadiene | E168: 106990 | F168: 1318217210549 | G168: 324110 | H168: CHS INC. LAUREL REFINERY | I168: 803 HWY 212 S | J168: LAUREL | K168: MT | L168: 59044 | M168: 89. PRODUCE THE CHEMICAL, 90. IMPORT THE CHEMICAL, 93. AS A BYPRODUCT, 94. AS A MANUFACTURED IMPURITY, 95. USED AS A REACTANT, 97. P102 RAW MATERIALS, 117. PROCESSED / RECYCLING, 133. ANCILLARY OR OTHER USE, 142. Z399 OTHER | N168: Processing as a reactant | O168: " | P168: TRI subuse Info | Q168: ^ | R168: 290 | S168: 10639 | T168: 10929 | U168: Yes | V168: Yes | W168: No | X168: No | Y168: Yes | Z168: Yes | AA168: Yes | AB168: No | AC168: Yes | AD168: No | AE168: No | AF168: No | AG168: No | AH168: No | AI168: No | AJ168: No | AK168: No | AL168: No | AM168: No | AN168: No | AO168: No | AP168: No | AQ168: No | AR168: No | AS168: No | AT168: No | AU168: No | AV168: No | AW168: Yes | AX168: No | AY168: No | AZ168: No | BA168: No | BB168: No | BC168: No | BD168: No | BE168: No | BF168: No | BG168: No | BH168: No | BI168: No | BJ168: No | BK168: No | BL168: No | BM168: Yes | BN168: No | BO168: No | BP168: No | BQ168: No | BR168: No | BS168: No | BT168: No | BU168: No | BV168: Yes | BW168: 89. PRODUCE THE CHEMICAL | BX168: 90. IMPORT THE CHEMICAL | CA168: 93. AS A BYPRODUCT | CB168: 94. AS A MANUFACTURED IMPURITY | CC168: 95. USED AS A REACTANT | CE168: 97. P102 RAW MATERIALS | CY168: 117. PROCESSED / RECYCLING | DO168: 133. ANCILLARY OR OTHER USE | DX168: 142. Z399 OTHER
A169: 59044CNXRF803HI | B169: R | C169: 2019 | D169: 1,3-Butadiene | E169: 106990 | F169: 1319218373557 | G169: 324110 | H169: CHS INC. LAUREL REFINERY | I169: 803 HWY 212 S | J169: LAUREL | K169: MT | L169: 59044 | M169: 89. PRODUCE THE CHEMICAL, 90. IMPORT THE CHEMICAL, 93. AS A BYPRODUCT, 94. AS A MANUFACTURED IMPURITY, 95. USED AS A REACTANT, 97. P102 RAW MATERIALS, 117. PROCESSED / RECYCLING, 133. ANCILLARY OR OTHER USE, 142. Z399 OTHER | N169: Processing as a reactant | O169: " | P169: TRI subuse Info | Q169: ^ | R169: 302 | S169: 9 | T169: 311 | U169: Yes | V169: Yes | W169: No | X169: No | Y169: Yes | Z169: Yes | AA169: Yes | AB169: No | AC169: Yes | AD169: No | AE169: No | AF169: No | AG169: No | AH169: No | AI169: No | AJ169: No | AK169: No | AL169: No | AM169: No | AN169: No | AO169: No | AP169: No | AQ169: No | AR169: No | AS169: No | AT169: No | AU169: No | AV169: No | AW169: Yes | AX169: No | AY169: No | AZ169: No | BA169: No | BB169: No | BC169: No | BD169: No | BE169: No | BF169: No | BG169: No | BH169: No | BI169: No | BJ169: No | BK169: No | BL169: No | BM169: Yes | BN169: No | BO169: No | BP169: No | BQ169: No | BR169: No | BS169: No | BT169: No | BU169: No | BV169: Yes | BW169: 89. PRODUCE THE CHEMICAL | BX169: 90. IMPORT THE CHEMICAL | CA169: 93. AS A BYPRODUCT | CB169: 94. AS A MANUFACTURED IMPURITY | CC169: 95. USED AS A REACTANT | CE169: 97. P102 RAW MATERIALS | CY169: 117. PROCESSED / RECYCLING | DO169: 133. ANCILLARY OR OTHER USE | DX169: 142. Z399 OTHER
A170: 59044CNXRF803HI | B170: R | C170: 2020 | D170: 1,3-Butadiene | E170: 106990 | F170: 1320219327297 | G170: 324110 | H170: CHS INC. LAUREL REFINERY | I170: 803 HWY 212 S | J170: LAUREL | K170: MT | L170: 59044 | M170: 89. PRODUCE THE CHEMICAL, 94. AS A MANUFACTURED IMPURITY | N170: Processing as a reactant | O170: " | P170: TRI subuse Info | Q170: ^ | R170: 298 | S170: 203 | T170: 501 | U170: Yes | V170: No | W170: No | X170: No | Y170: No | Z170: Yes | AA170: No | AB170: No | AC170: No | AD170: No | AE170: No | AF170: No | AG170: No | AH170: No | AI170: No | AJ170: No | AK170: No | AL170: No | AM170: No | AN170: No | AO170: No | AP170: No | AQ170: No | AR170: No | AS170: No | AT170: No | AU170: No | AV170: No | AW170: No | AX170: No | AY170: No | AZ170: No | BA170: No | BB170: No | BC170: No | BD170: No | BE170: No | BF170: No | BG170: No | BH170: No | BI170: No | BJ170: No | BK170: No | BL170: No | BM170: No | BN170: No | BO170: No | BP170: No | BQ170: No | BR170: No | BS170: No | BT170: No | BU170: No | BV170: No | BW170: 89. PRODUCE THE CHEMICAL | CB170: 94. AS A MANUFACTURED IMPURITY
A171: 59044CNXRF803HI | B171: R | C171: 2021 | D171: 1,3-Butadiene | E171: 106990 | F171: 1321220507420 | G171: 324110 | H171: CHS INC. LAUREL REFINERY | I171: 803 HWY 212 S | J171: LAUREL | K171: MT | L171: 59044 | M171: 89. PRODUCE THE CHEMICAL, 90. IMPORT THE CHEMICAL, 93. AS A BYPRODUCT, 94. AS A MANUFACTURED IMPURITY, 95. USED AS A REACTANT, 97. P102 RAW MATERIALS, 117. PROCESSED / RECYCLING, 133. ANCILLARY OR OTHER USE, 142. Z399 OTHER | N171: Processing as a reactant | O171: " | P171: TRI subuse Info | Q171: ^ | R171: 302 | S171: 43 | T171: 345 | U171: Yes | V171: Yes | W171: No | X171: No | Y171: Yes | Z171: Yes | AA171: Yes | AB171: No | AC171: Yes | AD171: No | AE171: No | AF171: No | AG171: No | AH171: No | AI171: No | AJ171: No | AK171: No | AL171: No | AM171: No | AN171: No | AO171: No | AP171: No | AQ171: No | AR171: No | AS171: No | AT171: No | AU171: No | AV171: No | AW171: Yes | AX171: No | AY171: No | AZ171: No | BA171: No | BB171: No | BC171: No | BD171: No | BE171: No | BF171: No | BG171: No | BH171: No | BI171: No | BJ171: No | BK171: No | BL171: No | BM171: Yes | BN171: No | BO171: No | BP171: No | BQ171: No | BR171: No | BS171: No | BT171: No | BU171: No | BV171: Yes | BW171: 89. PRODUCE THE CHEMICAL | BX171: 90. IMPORT THE CHEMICAL | CA171: 93. AS A BYPRODUCT | CB171: 94. AS A MANUFACTURED IMPURITY | CC171: 95. USED AS A REACTANT | CE171: 97. P102 RAW MATERIALS | CY171: 117. PROCESSED / RECYCLING | DO171: 133. ANCILLARY OR OTHER USE | DX171: 142. Z399 OTHER
A172: 67460NTNLC2000M | B172: R | C172: 2016 | D172: 1,3-Butadiene | E172: 106990 | F172: 1316215523844 | G172: 324110 | H172: CHS MCPHERSON REFINERY - SRU | I172: 2000 S MAIN ST | J172: MCPHERSON | K172: KS | L172: 67460 | M172: 89. PRODUCE THE CHEMICAL, 91. ON-SITE USE OF THE CHEMICAL, 95. USED AS A REACTANT | N172: Processing as a reactant | O172: " | P172: TRI subuse Info | Q172: NAICS Oil Refineries. Used as reactant included almost every year. | R172: 5 | S172: 28 | T172: 33 | U172: Yes | V172: No | W172: Yes | X172: No | Y172: No | Z172: No | AA172: Yes | AG172: No | AT172: No | AU172: No | AV172: No | AX172: No | BF172: No | BM172: No | BW172: 89. PRODUCE THE CHEMICAL | BY172: 91. ON-SITE USE OF THE CHEMICAL | CC172: 95. USED AS A REACTANT
A173: 67460NTNLC2000M | B173: R | C173: 2017 | D173: 1,3-Butadiene | E173: 106990 | F173: 1317216420024 | G173: 324110 | H173: CHS MCPHERSON REFINERY - SRU | I173: 2000 S MAIN ST | J173: MCPHERSON | K173: KS | L173: 67460 | M173: 89. PRODUCE THE CHEMICAL, 91. ON-SITE USE OF THE CHEMICAL, 95. USED AS A REACTANT | N173: Processing as a reactant | O173: " | P173: TRI subuse Info | Q173: ^ | R173: 5 | S173: 19 | T173: 24 | U173: Yes | V173: No | W173: Yes | X173: No | Y173: No | Z173: No | AA173: Yes | AG173: No | AT173: No | AU173: No | AV173: No | AX173: No | BF173: No | BM173: No | BW173: 89. PRODUCE THE CHEMICAL | BY173: 91. ON-SITE USE OF THE CHEMICAL | CC173: 95. USED AS A REACTANT
A174: 67460NTNLC2000M | B174: R | C174: 2018 | D174: 1,3-Butadiene | E174: 106990 | F174: 1318217208483 | G174: 324110 | H174: CHS MCPHERSON REFINERY - SRU | I174: 2000 S MAIN ST | J174: MCPHERSON | K174: KS | L174: 67460 | M174: 89. PRODUCE THE CHEMICAL, 91. ON-SITE USE OF THE CHEMICAL, 95. USED AS A REACTANT, 98. P103 INTERMEDIATES | N174: Processing as a reactant | O174: " | P174: TRI subuse Info | Q174: ^ | R174: 5 | S174: 16 | T174: 21 | U174: Yes | V174: No | W174: Yes | X174: No | Y174: No | Z174: No | AA174: Yes | AB174: No | AC174: No | AD174: Yes | AE174: No | AF174: No | AG174: No | AH174: No | AI174: No | AJ174: No | AK174: No | AL174: No | AM174: No | AN174: No | AO174: No | AP174: No | AQ174: No | AR174: No | AS174: No | AT174: No | AU174: No | AV174: No | AW174: No | AX174: No | AY174: No | AZ174: No | BA174: No | BB174: No | BC174: No | BD174: No | BE174: No | BF174: No | BG174: No | BH174: No | BI174: No | BJ174: No | BK174: No | BL174: No | BM174: No | BN174: No | BO174: No | BP174: No | BQ174: No | BR174: No | BS174: No | BT174: No | BU174: No | BV174: No | BW174: 89. PRODUCE THE CHEMICAL | BY174: 91. ON-SITE USE OF THE CHEMICAL | CC174: 95. USED AS A REACTANT | CF174: 98. P103 INTERMEDIATES
A175: 67460NTNLC2000M | B175: R | C175: 2019 | D175: 1,3-Butadiene | E175: 106990 | F175: 1319217964446 | G175: 324110 | H175: CHS MCPHERSON REFINERY - SRU | I175: 2000 S MAIN ST | J175: MCPHERSON | K175: KS | L175: 67460 | M175: 89. PRODUCE THE CHEMICAL, 91. ON-SITE USE OF THE CHEMICAL, 95. USED AS A REACTANT, 98. P103 INTERMEDIATES | N175: Processing as a reactant | O175: " | P175: TRI subuse Info | Q175: ^ | R175: 6 | S175: 15 | T175: 21 | U175: Yes | V175: No | W175: Yes | X175: No | Y175: No | Z175: No | AA175: Yes | AB175: No | AC175: No | AD175: Yes | AE175: No | AF175: No | AG175: No | AH175: No | AI175: No | AJ175: No | AK175: No | AL175: No | AM175: No | AN175: No | AO175: No | AP175: No | AQ175: No | AR175: No | AS175: No | AT175: No | AU175: No | AV175: No | AW175: No | AX175: No | AY175: No | AZ175: No | BA175: No | BB175: No | BC175: No | BD175: No | BE175: No | BF175: No | BG175: No | BH175: No | BI175: No | BJ175: No | BK175: No | BL175: No | BM175: No | BN175: No | BO175: No | BP175: No | BQ175: No | BR175: No | BS175: No | BT175: No | BU175: No | BV175: No | BW175: 89. PRODUCE THE CHEMICAL | BY175: 91. ON-SITE USE OF THE CHEMICAL | CC175: 95. USED AS A REACTANT | CF175: 98. P103 INTERMEDIATES
A176: 67460NTNLC2000M | B176: R | C176: 2020 | D176: 1,3-Butadiene | E176: 106990 | F176: 1320218943140 | G176: 324110 | H176: CHS MCPHERSON REFINERY - SRU | I176: 2000 S MAIN ST | J176: MCPHERSON | K176: KS | L176: 67460 | M176: 89. PRODUCE THE CHEMICAL, 94. AS A MANUFACTURED IMPURITY | N176: Processing as a reactant | O176: " | P176: TRI subuse Info | Q176: ^ | R176: 7 | S176: 13 | T176: 20 | U176: Yes | V176: No | W176: No | X176: No | Y176: No | Z176: Yes | AA176: No | AB176: No | AC176: No | AD176: No | AE176: No | AF176: No | AG176: No | AH176: No | AI176: No | AJ176: No | AK176: No | AL176: No | AM176: No | AN176: No | AO176: No | AP176: No | AQ176: No | AR176: No | AS176: No | AT176: No | AU176: No | AV176: No | AW176: No | AX176: No | AY176: No | AZ176: No | BA176: No | BB176: No | BC176: No | BD176: No | BE176: No | BF176: No | BG176: No | BH176: No | BI176: No | BJ176: No | BK176: No | BL176: No | BM176: No | BN176: No | BO176: No | BP176: No | BQ176: No | BR176: No | BS176: No | BT176: No | BU176: No | BV176: No | BW176: 89. PRODUCE THE CHEMICAL | CB176: 94. AS A MANUFACTURED IMPURITY
A177: 67460NTNLC2000M | B177: R | C177: 2021 | D177: 1,3-Butadiene | E177: 106990 | F177: 1321220340095 | G177: 324110 | H177: CHS MCPHERSON REFINERY - SRU | I177: 2000 S MAIN ST | J177: MCPHERSON | K177: KS | L177: 67460 | M177: 89. PRODUCE THE CHEMICAL, 91. ON-SITE USE OF THE CHEMICAL, 95. USED AS A REACTANT, 98. P103 INTERMEDIATES | N177: Processing as a reactant | O177: " | P177: TRI subuse Info | Q177: ^ | R177: 7 | S177: 15 | T177: 22 | U177: Yes | V177: No | W177: Yes | X177: No | Y177: No | Z177: No | AA177: Yes | AB177: No | AC177: No | AD177: Yes | AE177: No | AF177: No | AG177: No | AH177: No | AI177: No | AJ177: No | AK177: No | AL177: No | AM177: No | AN177: No | AO177: No | AP177: No | AQ177: No | AR177: No | AS177: No | AT177: No | AU177: No | AV177: No | AW177: No | AX177: No | AY177: No | AZ177: No | BA177: No | BB177: No | BC177: No | BD177: No | BE177: No | BF177: No | BG177: No | BH177: No | BI177: No | BJ177: No | BK177: No | BL177: No | BM177: No | BN177: No | BO177: No | BP177: No | BQ177: No | BR177: No | BS177: No | BT177: No | BU177: No | BV177: No | BW177: 89. PRODUCE THE CHEMICAL | BY177: 91. ON-SITE USE OF THE CHEMICAL | CC177: 95. USED AS A REACTANT | CF177: 98. P103 INTERMEDIATES
A178: 70602CTGPTHIGHW | B178: R | C178: 2016 | D178: 1,3-Butadiene | E178: 106990 | F178: 1316215050547 | G178: 324110 | H178: CITGO PETROLEUM CORP | I178: 1601 HWY 108 E | J178: SULPHUR | K178: LA | L178: 70665 | M178: 89. PRODUCE THE CHEMICAL, 94. AS A MANUFACTURED IMPURITY | N178: Processing - Incorporation into formulation, mixture, or reaction product | O178: " | P178: TRI use, although subuse indicates manufacture of the chemical may be unintentional. Not sold or distributed. | Q178: NAICS Oil Refineries: produce chemical and impurity. On site but no particular use, incorporation consistent. Waste Treatment one year but in order for waste handling to be picked it would have to have the relevant NAICS code or more compelling than just one report year | R178: 293 | S178: 259 | T178: 552 | U178: Yes | V178: No | W178: No | X178: No | Y178: No | Z178: Yes | AA178: No | AG178: No | AT178: No | AU178: No | AV178: No | AX178: No | BF178: No | BM178: No | BW178: 89. PRODUCE THE CHEMICAL | CB178: 94. AS A MANUFACTURED IMPURITY
A179: 70602CTGPTHIGHW | B179: R | C179: 2017 | D179: 1,3-Butadiene | E179: 106990 | F179: 1317216243182 | G179: 324110 | H179: CITGO PETROLEUM CORP | I179: 1601 HWY 108 E | J179: SULPHUR | K179: LA | L179: 70665 | M179: 89. PRODUCE THE CHEMICAL, 94. AS A MANUFACTURED IMPURITY | N179: Processing - Incorporation into formulation, mixture, or reaction product | O179: " | P179: TRI use, although subuse indicates manufacture of the chemical may be unintentional. Not sold or distributed. | Q179: ^ | R179: 292 | S179: 274 | T179: 566 | U179: Yes | V179: No | W179: No | X179: No | Y179: No | Z179: Yes | AA179: No | AG179: No | AT179: No | AU179: No | AV179: No | AX179: No | BF179: No | BM179: No | BW179: 89. PRODUCE THE CHEMICAL | CB179: 94. AS A MANUFACTURED IMPURITY | CS179: =IF(AQ179="Yes", CS$1,"") -> 
A180: 70602CTGPTHIGHW | B180: R | C180: 2018 | D180: 1,3-Butadiene | E180: 106990 | F180: 1318216883126 | G180: 324110 | H180: CITGO PETROLEUM CORP | I180: 1601 HWY 108 E | J180: SULPHUR | K180: LA | L180: 70665 | M180: 89. PRODUCE THE CHEMICAL, 94. AS A MANUFACTURED IMPURITY | N180: Processing - Incorporation into formulation, mixture, or reaction product | O180: " | P180: TRI use, although subuse indicates manufacture of the chemical may be unintentional. Not sold or distributed. | Q180: ^ | R180: 285 | S180: 599 | T180: 884 | U180: Yes | V180: No | W180: No | X180: No | Y180: No | Z180: Yes | AA180: No | AB180: No | AC180: No | AD180: No | AE180: No | AF180: No | AG180: No | AH180: No | AI180: No | AJ180: No | AK180: No | AL180: No | AM180: No | AN180: No | AO180: No | AP180: No | AQ180: No | AR180: No | AS180: No | AT180: No | AU180: No | AV180: No | AW180: No | AX180: No | AY180: No | AZ180: No | BA180: No | BB180: No | BC180: No | BD180: No | BE180: No | BF180: No | BG180: No | BH180: No | BI180: No | BJ180: No | BK180: No | BL180: No | BM180: No | BN180: No | BO180: No | BP180: No | BQ180: No | BR180: No | BS180: No | BT180: No | BU180: No | BV180: No | BW180: 89. PRODUCE THE CHEMICAL | CB180: 94. AS A MANUFACTURED IMPURITY
A181: 70602CTGPTHIGHW | B181: R | C181: 2019 | D181: 1,3-Butadiene | E181: 106990 | F181: 1319217891124 | G181: 324110 | H181: CITGO PETROLEUM CORP | I181: 1601 HWY 108 E | J181: SULPHUR | K181: LA | L181: 70665 | M181: 89. PRODUCE THE CHEMICAL, 94. AS A MANUFACTURED IMPURITY | N181: Processing - Incorporation into formulation, mixture, or reaction product | O181: " | P181: TRI use, although subuse indicates manufacture of the chemical may be unintentional. Not sold or distributed. | Q181: ^ | R181: 285 | S181: 1684 | T181: 1969 | U181: Yes | V181: No | W181: No | X181: No | Y181: No | Z181: Yes | AA181: No | AB181: No | AC181: No | AD181: No | AE181: No | AF181: No | AG181: No | AH181: No | AI181: No | AJ181: No | AK181: No | AL181: No | AM181: No | AN181: No | AO181: No | AP181: No | AQ181: No | AR181: No | AS181: No | AT181: No | AU181: No | AV181: No | AW181: No | AX181: No | AY181: No | AZ181: No | BA181: No | BB181: No | BC181: No | BD181: No | BE181: No | BF181: No | BG181: No | BH181: No | BI181: No | BJ181: No | BK181: No | BL181: No | BM181: No | BN181: No | BO181: No | BP181: No | BQ181: No | BR181: No | BS181: No | BT181: No | BU181: No | BV181: No | BW181: 89. PRODUCE THE CHEMICAL | CB181: 94. AS A MANUFACTURED IMPURITY
A182: 70602CTGPTHIGHW | B182: R | C182: 2020 | D182: 1,3-Butadiene | E182: 106990 | F182: 1320218795540 | G182: 324110 | H182: CITGO PETROLEUM CORP | I182: 1601 HWY 108 E | J182: SULPHUR | K182: LA | L182: 70665 | M182: 133. ANCILLARY OR OTHER USE, 139. Z306 WASTE TREATMENT | N182: Processing - Incorporation into formulation, mixture, or reaction product | O182: " | P182: TRI use, although subuse indicates manufacture of the chemical may be unintentional. Not sold or distributed. | Q182: ^ | R182: 282 | S182: 1127 | T182: 1409 | U182: No | V182: No | W182: No | X182: No | Y182: No | Z182: No | AA182: No | AB182: No | AC182: No | AD182: No | AE182: No | AF182: No | AG182: No | AH182: No | AI182: No | AJ182: No | AK182: No | AL182: No | AM182: No | AN182: No | AO182: No | AP182: No | AQ182: No | AR182: No | AS182: No | AT182: No | AU182: No | AV182: No | AW182: No | AX182: No | AY182: No | AZ182: No | BA182: No | BB182: No | BC182: No | BD182: No | BE182: No | BF182: No | BG182: No | BH182: No | BI182: No | BJ182: No | BK182: No | BL182: No | BM182: Yes | BN182: No | BO182: No | BP182: No | BQ182: No | BR182: No | BS182: Yes | BT182: No | BU182: No | BV182: No | CZ182: =IF(AX182="Yes", CZ$1,"") ->  | DO182: 133. ANCILLARY OR OTHER USE | DU182: 139. Z306 WASTE TREATMENT
A183: 70602CTGPTHIGHW | B183: R | C183: 2021 | D183: 1,3-Butadiene | E183: 106990 | F183: 1321219926223 | G183: 324110 | H183: CITGO PETROLEUM CORP | I183: 1601 HWY 108 E | J183: SULPHUR | K183: LA | L183: 70665 | M183: 89. PRODUCE THE CHEMICAL, 94. AS A MANUFACTURED IMPURITY | N183: Processing - Incorporation into formulation, mixture, or reaction product | O183: " | P183: TRI use, although subuse indicates manufacture of the chemical may be unintentional. Not sold or distributed. | Q183: ^ | R183: 277 | S183: 225 | T183: 502 | U183: Yes | V183: No | W183: No | X183: No | Y183: No | Z183: Yes | AA183: No | AB183: No | AC183: No | AD183: No | AE183: No | AF183: No | AG183: No | AH183: No | AI183: No | AJ183: No | AK183: No | AL183: No | AM183: No | AN183: No | AO183: No | AP183: No | AQ183: No | AR183: No | AS183: No | AT183: No | AU183: No | AV183: No | AW183: No | AX183: No | AY183: No | AZ183: No | BA183: No | BB183: No | BC183: No | BD183: No | BE183: No | BF183: No | BG183: No | BH183: No | BI183: No | BJ183: No | BK183: No | BL183: No | BM183: No | BN183: No | BO183: No | BP183: No | BQ183: No | BR183: No | BS183: No | BT183: No | BU183: No | BV183: No | BW183: 89. PRODUCE THE CHEMICAL | CB183: 94. AS A MANUFACTURED IMPURITY | CK183: =IF(AI183="Yes", CK$1,"") -> 
A184: 60439NCLCR135TH | B184: R | C184: 2016 | D184: 1,3-Butadiene | E184: 106990 | F184: 1316215448919 | G184: 324110 | H184: CITGO PETROLEUM CORP LEMONT REFINERY | I184: 135TH ST & NEW AVE | J184: LEMONT | K184: IL | L184: 60439 | M184: 89. PRODUCE THE CHEMICAL, 94. AS A MANUFACTURED IMPURITY | N184: Processing - Incorporation into formulation, mixture, or reaction product | O184: " | P184: TRI use, although subuse indicates manufacture of the chemical may be unintentional | Q184: NAICS Oil Refineries: produce chemical and impurity. On site but no particular use, incorporation consistent. Waste Treatment one year but in order for waste handling to be picked it would have to have the relevant NAICS code or more compelling than just one report year | R184: 8 | S184: 0 | T184: 8 | U184: Yes | V184: No | W184: No | X184: No | Y184: No | Z184: Yes | AA184: No | AG184: No | AT184: No | AU184: No | AV184: No | AX184: No | BF184: No | BM184: No | BW184: 89. PRODUCE THE CHEMICAL | CB184: 94. AS A MANUFACTURED IMPURITY
A185: 60439NCLCR135TH | B185: R | C185: 2017 | D185: 1,3-Butadiene | E185: 106990 | F185: 1317216296006 | G185: 324110 | H185: CITGO PETROLEUM CORP LEMONT REFINERY | I185: 135TH ST & NEW AVE | J185: LEMONT | K185: IL | L185: 60439 | M185: 89. PRODUCE THE CHEMICAL, 94. AS A MANUFACTURED IMPURITY | N185: Processing - Incorporation into formulation, mixture, or reaction product | O185: " | P185: TRI use, although subuse indicates manufacture of the chemical may be unintentional | Q185: ^ | R185: 6 | S185: 0 | T185: 6 | U185: Yes | V185: No | W185: No | X185: No | Y185: No | Z185: Yes | AA185: No | AG185: No | AT185: No | AU185: No | AV185: No | AX185: No | BF185: No | BM185: No | BW185: 89. PRODUCE THE CHEMICAL | CB185: 94. AS A MANUFACTURED IMPURITY | CG185: =IF(AE185="Yes", CG$1,"") -> 
A186: 60439NCLCR135TH | B186: R | C186: 2018 | D186: 1,3-Butadiene | E186: 106990 | F186: 1318217291119 | G186: 324110 | H186: CITGO PETROLEUM CORP LEMONT REFINERY | I186: 135TH ST & NEW AVE | J186: LEMONT | K186: IL | L186: 60439 | M186: 89. PRODUCE THE CHEMICAL, 94. AS A MANUFACTURED IMPURITY | N186: Processing - Incorporation into formulation, mixture, or reaction product | O186: " | P186: TRI use, although subuse indicates manufacture of the chemical may be unintentional | Q186: ^ | R186: 4 | S186: 0 | T186: 4 | U186: Yes | V186: No | W186: No | X186: No | Y186: No | Z186: Yes | AA186: No | AB186: No | AC186: No | AD186: No | AE186: No | AF186: No | AG186: No | AH186: No | AI186: No | AJ186: No | AK186: No | AL186: No | AM186: No | AN186: No | AO186: No | AP186: No | AQ186: No | AR186: No | AS186: No | AT186: No | AU186: No | AV186: No | AW186: No | AX186: No | AY186: No | AZ186: No | BA186: No | BB186: No | BC186: No | BD186: No | BE186: No | BF186: No | BG186: No | BH186: No | BI186: No | BJ186: No | BK186: No | BL186: No | BM186: No | BN186: No | BO186: No | BP186: No | BQ186: No | BR186: No | BS186: No | BT186: No | BU186: No | BV186: No | BW186: =IF(U186="Yes", BW$1,"") -> 89. PRODUCE THE CHEMICAL | CB186: 94. AS A MANUFACTURED IMPURITY
A187: 60439NCLCR135TH | B187: R | C187: 2019 | D187: 1,3-Butadiene | E187: 106990 | F187: 1319218074742 | G187: 324110 | H187: CITGO PETROLEUM CORP LEMONT REFINERY | I187: 135TH ST & NEW AVE | J187: LEMONT | K187: IL | L187: 60439 | M187: 89. PRODUCE THE CHEMICAL, 94. AS A MANUFACTURED IMPURITY | N187: Processing - Incorporation into formulation, mixture, or reaction product | O187: " | P187: TRI use, although subuse indicates manufacture of the chemical may be unintentional | Q187: ^ | R187: 4 | S187: 0 | T187: 4 | U187: Yes | V187: No | W187: No | X187: No | Y187: No | Z187: Yes | AA187: No | AB187: No | AC187: No | AD187: No | AE187: No | AF187: No | AG187: No | AH187: No | AI187: No | AJ187: No | AK187: No | AL187: No | AM187: No | AN187: No | AO187: No | AP187: No | AQ187: No | AR187: No | AS187: No | AT187: No | AU187: No | AV187: No | AW187: No | AX187: No | AY187: No | AZ187: No | BA187: No | BB187: No | BC187: No | BD187: No | BE187: No | BF187: No | BG187: No | BH187: No | BI187: No | BJ187: No | BK187: No | BL187: No | BM187: No | BN187: No | BO187: No | BP187: No | BQ187: No | BR187: No | BS187: No | BT187: No | BU187: No | BV187: No | BW187: 89. PRODUCE THE CHEMICAL | CB187: 94. AS A MANUFACTURED IMPURITY
A188: 60439NCLCR135TH | B188: R | C188: 2020 | D188: 1,3-Butadiene | E188: 106990 | F188: 1320218830913 | G188: 324110 | H188: CITGO PETROLEUM CORP LEMONT REFINERY | I188: 135TH ST & NEW AVE | J188: LEMONT | K188: IL | L188: 60439 | M188: 115. REPACKAGING, 133. ANCILLARY OR OTHER USE, 139. Z306 WASTE TREATMENT | N188: Processing - Incorporation into formulation, mixture, or reaction product | O188: " | P188: TRI use, although subuse indicates manufacture of the chemical may be unintentional | Q188: ^ | R188: 2 | S188: 0 | T188: 2 | U188: No | V188: No | W188: No | X188: No | Y188: No | Z188: No | AA188: No | AB188: No | AC188: No | AD188: No | AE188: No | AF188: No | AG188: No | AH188: No | AI188: No | AJ188: No | AK188: No | AL188: No | AM188: No | AN188: No | AO188: No | AP188: No | AQ188: No | AR188: No | AS188: No | AT188: No | AU188: Yes | AV188: No | AW188: No | AX188: No | AY188: No | AZ188: No | BA188: No | BB188: No | BC188: No | BD188: No | BE188: No | BF188: No | BG188: No | BH188: No | BI188: No | BJ188: No | BK188: No | BL188: No | BM188: Yes | BN188: No | BO188: No | BP188: No | BQ188: No | BR188: No | BS188: Yes | BT188: No | BU188: No | BV188: No | CW188: 115. REPACKAGING | DO188: 133. ANCILLARY OR OTHER USE | DU188: 139. Z306 WASTE TREATMENT
A189: 60439NCLCR135TH | B189: R | C189: 2021 | D189: 1,3-Butadiene | E189: 106990 | F189: 1321219784028 | G189: 324110 | H189: CITGO PETROLEUM CORP LEMONT REFINERY | I189: 135TH ST & NEW AVE | J189: LEMONT | K189: IL | L189: 60439 | M189: 89. PRODUCE THE CHEMICAL, 94. AS A MANUFACTURED IMPURITY | N189: Processing - Incorporation into formulation, mixture, or reaction product | O189: " | P189: TRI use, although subuse indicates manufacture of the chemical may be unintentional | Q189: ^ | R189: 2 | S189: 0 | T189: 2 | U189: Yes | V189: No | W189: No | X189: No | Y189: No | Z189: Yes | AA189: No | AB189: No | AC189: No | AD189: No | AE189: No | AF189: No | AG189: No | AH189: No | AI189: No | AJ189: No | AK189: No | AL189: No | AM189: No | AN189: No | AO189: No | AP189: No | AQ189: No | AR189: No | AS189: No | AT189: No | AU189: No | AV189: No | AW189: No | AX189: No | AY189: No | AZ189: No | BA189: No | BB189: No | BC189: No | BD189: No | BE189: No | BF189: No | BG189: No | BH189: No | BI189: No | BJ189: No | BK189: No | BL189: No | BM189: No | BN189: No | BO189: No | BP189: No | BQ189: No | BR189: No | BS189: No | BT189: No | BU189: No | BV189: No | BW189: 89. PRODUCE THE CHEMICAL | CB189: 94. AS A MANUFACTURED IMPURITY
A190: 78408CHMPL1801N | B190: R | C190: 2016 | D190: 1,3-Butadiene | E190: 106990 | F190: 1316215367057 | G190: 324110 | H190: CITGO REFINING & CHEMICALS CO LP EAST PLANT | I190: 1801 NUECES BAY BLVD | J190: CORPUS CHRISTI | K190: TX | L190: 78407 | M190: 116. AS A PROCESS IMPURITY | N190: Processing - Incorporation into formulation, mixture, or reaction product | O190: " | P190: 2020 reporting of same site indicates manufacture as a byproduct | Q190: NAICS Oil Refineries: Produce as impurity/byproduct, no indication of use on site, consistent with incorporation. | R190: 80 | S190: 0 | T190: 80 | U190: No | V190: No | W190: No | X190: No | Y190: No | Z190: No | AA190: No | AG190: No | AT190: No | AU190: No | AV190: Yes | AX190: No | BF190: No | BM190: No | CX190: 116. AS A PROCESS IMPURITY
A191: 78408CHMPL1801N | B191: R | C191: 2017 | D191: 1,3-Butadiene | E191: 106990 | F191: 1317216175784 | G191: 324110 | H191: CITGO REFINING & CHEMICALS CO LP EAST PLANT | I191: 1801 NUECES BAY BLVD | J191: CORPUS CHRISTI | K191: TX | L191: 78407 | M191: 116. AS A PROCESS IMPURITY | N191: Processing - Incorporation into formulation, mixture, or reaction product | O191: " | P191: 2020 reporting of same site indicates manufacture as a byproduct | Q191: ^ | R191: 68 | S191: 0 | T191: 68 | U191: No | V191: No | W191: No | X191: No | Y191: No | Z191: No | AA191: No | AG191: No | AT191: No | AU191: No | AV191: Yes | AX191: No | BF191: No | BM191: No | CX191: 116. AS A PROCESS IMPURITY
A192: 78408CHMPL1801N | B192: R | C192: 2018 | D192: 1,3-Butadiene | E192: 106990 | F192: 1318217213255 | G192: 324110 | H192: CITGO REFINING & CHEMICALS CO LP EAST PLANT | I192: 1801 NUECES BAY BLVD | J192: CORPUS CHRISTI | K192: TX | L192: 78407 | M192: 116. AS A PROCESS IMPURITY | N192: Processing - Incorporation into formulation, mixture, or reaction product | O192: " | P192: 2020 reporting of same site indicates manufacture as a byproduct | Q192: ^ | R192: 139 | S192: 0 | T192: 139 | U192: No | V192: No | W192: No | X192: No | Y192: No | Z192: No | AA192: No | AB192: No | AC192: No | AD192: No | AE192: No | AF192: No | AG192: No | AH192: No | AI192: No | AJ192: No | AK192: No | AL192: No | AM192: No | AN192: No | AO192: No | AP192: No | AQ192: No | AR192: No | AS192: No | AT192: No | AU192: No | AV192: Yes | AW192: No | AX192: No | AY192: No | AZ192: No | BA192: No | BB192: No | BC192: No | BD192: No | BE192: No | BF192: No | BG192: No | BH192: No | BI192: No | BJ192: No | BK192: No | BL192: No | BM192: No | BN192: No | BO192: No | BP192: No | BQ192: No | BR192: No | BS192: No | BT192: No | BU192: No | BV192: No | CX192: 116. AS A PROCESS IMPURITY
A193: 78408CHMPL1801N | B193: R | C193: 2019 | D193: 1,3-Butadiene | E193: 106990 | F193: 1319218089439 | G193: 324110 | H193: CITGO REFINING & CHEMICALS CO LP EAST PLANT | I193: 1801 NUECES BAY BLVD | J193: CORPUS CHRISTI | K193: TX | L193: 78407 | M193: 116. AS A PROCESS IMPURITY | N193: Processing - Incorporation into formulation, mixture, or reaction product | O193: " | P193: 2020 reporting of same site indicates manufacture as a byproduct | Q193: ^ | R193: 171 | S193: 0 | T193: 171 | U193: No | V193: No | W193: No | X193: No | Y193: No | Z193: No | AA193: No | AB193: No | AC193: No | AD193: No | AE193: No | AF193: No | AG193: No | AH193: No | AI193: No | AJ193: No | AK193: No | AL193: No | AM193: No | AN193: No | AO193: No | AP193: No | AQ193: No | AR193: No | AS193: No | AT193: No | AU193: No | AV193: Yes | AW193: No | AX193: No | AY193: No | AZ193: No | BA193: No | BB193: No | BC193: No | BD193: No | BE193: No | BF193: No | BG193: No | BH193: No | BI193: No | BJ193: No | BK193: No | BL193: No | BM193: No | BN193: No | BO193: No | BP193: No | BQ193: No | BR193: No | BS193: No | BT193: No | BU193: No | BV193: No | CX193: 116. AS A PROCESS IMPURITY
A194: 78408CHMPL1801N | B194: R | C194: 2020 | D194: 1,3-Butadiene | E194: 106990 | F194: 1320219187200 | G194: 324110 | H194: CITGO REFINING & CHEMICALS CO LP EAST PLANT | I194: 1801 NUECES BAY BLVD | J194: CORPUS CHRISTI | K194: TX | L194: 78407 | M194: =_xlfn.TEXTJOIN(", ", TRUE, BW194:DX194) -> 89. PRODUCE THE CHEMICAL, 93. AS A BYPRODUCT | N194: Processing - Incorporation into formulation, mixture, or reaction product | O194: " | P194: TRI use indicates manufacture of a byproduct | Q194: ^ | R194: 0 | S194: 155.54 | T194: 155.54 | U194: Yes | V194: No | W194: No | X194: No | Y194: Yes | Z194: No | AA194: No | AB194: No | AC194: No | AD194: No | AE194: No | AF194: No | AG194: No | AH194: No | AI194: No | AJ194: No | AK194: No | AL194: No | AM194: No | AN194: No | AO194: No | AP194: No | AQ194: No | AR194: No | AS194: No | AT194: No | AU194: No | AV194: No | AW194: No | AX194: No | AY194: No | AZ194: No | BA194: No | BB194: No | BC194: No | BD194: No | BE194: No | BF194: No | BG194: No | BH194: No | BI194: No | BJ194: No | BK194: No | BL194: No | BM194: No | BN194: No | BO194: No | BP194: No | BQ194: No | BR194: No | BS194: No | BT194: No | BU194: No | BV194: No | BW194: 89. PRODUCE THE CHEMICAL | CA194: 93. AS A BYPRODUCT
A195: 78408CHMPL1801N | B195: R | C195: 2021 | D195: 1,3-Butadiene | E195: 106990 | F195: 1321220417428 | G195: 324110 | H195: CITGO REFINING & CHEMICALS CO LP EAST PLANT | I195: 1801 NUECES BAY BLVD | J195: CORPUS CHRISTI | K195: TX | L195: 78407 | M195: 116. AS A PROCESS IMPURITY | N195: Processing - Incorporation into formulation, mixture, or reaction product | O195: " | P195: 2020 reporting of same site indicates manufacture as a byproduct | Q195: NAICS Oil Refineries: Impurity every year, one year only vague site-use information (usually disregarded or assumed incorporation on it's own), and added as formulation component. Consistent with incorporation | R195: 149 | S195: 0 | T195: 149 | U195: No | V195: No | W195: No | X195: No | Y195: No | Z195: No | AA195: No | AB195: No | AC195: No | AD195: No | AE195: No | AF195: No | AG195: No | AH195: No | AI195: No | AJ195: No | AK195: No | AL195: No | AM195: No | AN195: No | AO195: No | AP195: No | AQ195: No | AR195: No | AS195: No | AT195: No | AU195: No | AV195: Yes | AW195: No | AX195: No | AY195: No | AZ195: No | BA195: No | BB195: No | BC195: No | BD195: No | BE195: No | BF195: No | BG195: No | BH195: No | BI195: No | BJ195: No | BK195: No | BL195: No | BM195: No | BN195: No | BO195: No | BP195: No | BQ195: No | BR195: No | BS195: No | BT195: No | BU195: No | BV195: No | CX195: 116. AS A PROCESS IMPURITY
A196: 78409CHMPL7350I | B196: R | C196: 2016 | D196: 1,3-Butadiene | E196: 106990 | F196: 1316215367069 | G196: 324110 | H196: CITGO REFINING & CHEMICALS CO LP-WEST PLANT | I196: 7350 INTERSTATE HWY 37 | J196: CORPUS CHRISTI | K196: TX | L196: 78409 | M196: 116. AS A PROCESS IMPURITY | N196: Processing - Incorporation into formulation, mixture, or reaction product | O196: " | P196: Based on 2020 mapping of same site | Q196: ^ | R196: 22 | S196: 0 | T196: 22 | U196: No | V196: No | W196: No | X196: No | Y196: No | Z196: No | AA196: No | AG196: No | AT196: No | AU196: No | AV196: Yes | AX196: No | BF196: No | BM196: No | CX196: 116. AS A PROCESS IMPURITY | DJ196: =IF(BH196="Yes", DJ$1,"") -> 
A197: 78409CHMPL7350I | B197: R | C197: 2017 | D197: 1,3-Butadiene | E197: 106990 | F197: 1317216175909 | G197: 324110 | H197: CITGO REFINING & CHEMICALS CO LP-WEST PLANT | I197: 7350 INTERSTATE HWY 37 | J197: CORPUS CHRISTI | K197: TX | L197: 78409 | M197: 116. AS A PROCESS IMPURITY | N197: Processing - Incorporation into formulation, mixture, or reaction product | O197: " | P197: Based on 2020 mapping of same site | Q197: ^ | R197: 24 | S197: 0 | T197: 24 | U197: No | V197: No | W197: No | X197: No | Y197: No | Z197: No | AA197: No | AG197: No | AT197: No | AU197: No | AV197: Yes | AX197: No | BF197: No | BM197: No | CX197: 116. AS A PROCESS IMPURITY
A198: 78409CHMPL7350I | B198: R | C198: 2018 | D198: 1,3-Butadiene | E198: 106990 | F198: 1318217213560 | G198: 324110 | H198: CITGO REFINING & CHEMICALS CO LP-WEST PLANT | I198: 7350 INTERSTATE HWY 37 | J198: CORPUS CHRISTI | K198: TX | L198: 78409 | M198: 116. AS A PROCESS IMPURITY | N198: Processing - Incorporation into formulation, mixture, or reaction product | O198: " | P198: Based on 2020 mapping of same site | Q198: ^ | R198: 23 | S198: 0 | T198: 23 | U198: No | V198: No | W198: No | X198: No | Y198: No | Z198: No | AA198: No | AB198: No | AC198: No | AD198: No | AE198: No | AF198: No | AG198: No | AH198: No | AI198: No | AJ198: No | AK198: No | AL198: No | AM198: No | AN198: No | AO198: No | AP198: No | AQ198: No | AR198: No | AS198: No | AT198: No | AU198: No | AV198: Yes | AW198: No | AX198: No | AY198: No | AZ198: No | BA198: No | BB198: No | BC198: No | BD198: No | BE198: No | BF198: No | BG198: No | BH198: No | BI198: No | BJ198: No | BK198: No | BL198: No | BM198: No | BN198: No | BO198: No | BP198: No | BQ198: No | BR198: No | BS198: No | BT198: No | BU198: No | BV198: No | CX198: 116. AS A PROCESS IMPURITY
A199: 78409CHMPL7350I | B199: R | C199: 2019 | D199: 1,3-Butadiene | E199: 106990 | F199: 1319217985858 | G199: 324110 | H199: CITGO REFINING & CHEMICALS CO LP-WEST PLANT | I199: 7350 INTERSTATE HWY 37 | J199: CORPUS CHRISTI | K199: TX | L199: 78409 | M199: 116. AS A PROCESS IMPURITY | N199: Processing - Incorporation into formulation, mixture, or reaction product | O199: " | P199: Based on 2020 mapping of same site | Q199: ^ | R199: 22 | S199: 0 | T199: 22 | U199: No | V199: No | W199: No | X199: No | Y199: No | Z199: No | AA199: No | AB199: No | AC199: No | AD199: No | AE199: No | AF199: No | AG199: No | AH199: No | AI199: No | AJ199: No | AK199: No | AL199: No | AM199: No | AN199: No | AO199: No | AP199: No | AQ199: No | AR199: No | AS199: No | AT199: No | AU199: No | AV199: Yes | AW199: No | AX199: No | AY199: No | AZ199: No | BA199: No | BB199: No | BC199: No | BD199: No | BE199: No | BF199: No | BG199: No | BH199: No | BI199: No | BJ199: No | BK199: No | BL199: No | BM199: No | BN199: No | BO199: No | BP199: No | BQ199: No | BR199: No | BS199: No | BT199: No | BU199: No | BV199: No | CX199: 116. AS A PROCESS IMPURITY
A200: 78409CHMPL7350I | B200: R | C200: 2020 | D200: 1,3-Butadiene | E200: 106990 | F200: 1320219187123 | G200: 324110 | H200: CITGO REFINING & CHEMICALS CO LP-WEST PLANT | I200: 7350 INTERSTATE HWY 37 | J200: CORPUS CHRISTI | K200: TX | L200: 78409 | M200: 89. PRODUCE THE CHEMICAL, 91. ON-SITE USE OF THE CHEMICAL, 93. AS A BYPRODUCT, 101. ADDED AS A FORMULATION COMPONENT, 113. P299 OTHER, 115. REPACKAGING | N200: Processing - Incorporation into formulation, mixture, or reaction product | O200: " | P200: TRI use info | Q200: ^ | R200: 21.2 | S200: 0 | T200: 21.2 | U200: Yes | V200: No | W200: Yes | X200: No | Y200: Yes | Z200: No | AA200: No | AB200: No | AC200: No | AD200: No | AE200: No | AF200: No | AG200: Yes | AH200: No | AI200: No | AJ200: No | AK200: No | AL200: No | AM200: No | AN200: No | AO200: No | AP200: No | AQ200: No | AR200: No | AS200: Yes | AT200: No | AU200: Yes | AV200: No | AW200: No | AX200: No | AY200: No | AZ200: No | BA200: No | BB200: No | BC200: No | BD200: No | BE200: No | BF200: No | BG200: No | BH200: No | BI200: No | BJ200: No | BK200: No | BL200: No | BM200: No | BN200: No | BO200: No | BP200: No | BQ200: No | BR200: No | BS200: No | BT200: No | BU200: No | BV200: No | BW200: 89. PRODUCE THE CHEMICAL | BY200: 91. ON-SITE USE OF THE CHEMICAL | CA200: 93. AS A BYPRODUCT | CI200: 101. ADDED AS A FORMULATION COMPONENT | CU200: 113. P299 OTHER | CW200: 115. REPACKAGING
... 362 more rows

Sheet Emission Scenarios
A1: Chemical | B1: 1,3-Butadiene
A2: CAS # | B2: 106-99-0
A3: Vapor pressure | B3: 1900
A4: Solubility | B4: 735
A5: MW | B5: 54.09
A7: Scenario | B7: TRIFD | C7: Emission Scenario Name | D7: Fugitive (kg/site-day) | E7: Stack (kg/site-day)
A8: 1 | B8: 00851HSSLVLIMET | C8: 00851HSSLVLIMET, LIMETREE BAY REFINING LLC & LIMETREE BAY TERMINALS LLC, 2020 | D8: 0.01366989589 | E8: 0.001242717808
A9: 2 | B9: 00851HSSLVLIMET | C9: 00851HSSLVLIMET, LIMETREE BAY REFINING LLC & LIMETREE BAY TERMINALS LLC, avg | D9: 0.01366989589 | E9: 0.001242717808
A10: 3 | B10: 07036XXNXX1400P | C10: 07036XXNXX1400P, PHILLIPS 66 CO-BAYWAY REFINERY, 2016 | D10: 0.008699024658 | E10: 0
A11: 4 | B11: 07036XXNXX1400P | C11: 07036XXNXX1400P, PHILLIPS 66 CO-BAYWAY REFINERY, 2017 | D11: 0.007456306849 | E11: 0
A12: 5 | B12: 07036XXNXX1400P | C12: 07036XXNXX1400P, PHILLIPS 66 CO-BAYWAY REFINERY, 2018 | D12: 0.006213589041 | E12: 0
A13: 6 | B13: 07036XXNXX1400P | C13: 07036XXNXX1400P, PHILLIPS 66 CO-BAYWAY REFINERY, 2019 | D13: 0.004970871233 | E13: 0
A14: 7 | B14: 07036XXNXX1400P | C14: 07036XXNXX1400P, PHILLIPS 66 CO-BAYWAY REFINERY, 2020 | D14: 0.006213589041 | E14: 0
A15: 8 | B15: 07036XXNXX1400P | C15: 07036XXNXX1400P, PHILLIPS 66 CO-BAYWAY REFINERY, 2021 | D15: 0.007456306849 | E15: 0
A16: 9 | B16: 07036XXNXX1400P | C16: 07036XXNXX1400P, PHILLIPS 66 CO-BAYWAY REFINERY, avg | D16: 0.006834947945 | E16: 0
A17: 10 | B17: 08066MBLLCBILLI | C17: 08066MBLLCBILLI, PAULSBORO REFINING CO LLC, 2016 | D17: 0.05467958356 | E17: 0.1516115726
A18: 11 | B18: 08066MBLLCBILLI | C18: 08066MBLLCBILLI, PAULSBORO REFINING CO LLC, 2017 | D18: 0.05467958356 | E18: 0.1466407014
A19: 12 | B19: 08066MBLLCBILLI | C19: 08066MBLLCBILLI, PAULSBORO REFINING CO LLC, 2018 | D19: 0.05467958356 | E19: 0.05840773699
A20: 13 | B20: 08066MBLLCBILLI | C20: 08066MBLLCBILLI, PAULSBORO REFINING CO LLC, 2019 | D20: 0.05343686575 | E20: 0.05840773699
A21: 14 | B21: 08066MBLLCBILLI | C21: 08066MBLLCBILLI, PAULSBORO REFINING CO LLC, 2020 | D21: 0.03852425205 | E21: 0.05840773699
A22: 15 | B22: 08066MBLLCBILLI | C22: 08066MBLLCBILLI, PAULSBORO REFINING CO LLC, 2021 | D22: 0.05716501918 | E22: 0.01118446027
A23: 16 | B23: 08066MBLLCBILLI | C23: 08066MBLLCBILLI, PAULSBORO REFINING CO LLC, avg | D23: 0.05219414795 | E23: 0.08077665753
A24: 17 | B24: 15061PLYSR370FR | C24: 15061PLYSR370FR, BASF CORP, 2016 | D24: 4.871453808 | E24: 0.2100193096
A25: 18 | B25: 15061PLYSR370FR | C25: 15061PLYSR370FR, BASF CORP, 2017 | D25: 4.871453808 | E25: 0.2274173589
A26: 19 | B26: 15061PLYSR370FR | C26: 15061PLYSR370FR, BASF CORP, 2018 | D26: 4.871453808 | E26: 0.2336309479
A27: 20 | B27: 15061PLYSR370FR | C27: 15061PLYSR370FR, BASF CORP, 2019 | D27: 4.914948932 | E27: 0.2473008438
A28: 21 | B28: 15061PLYSR370FR | C28: 15061PLYSR370FR, BASF CORP, 2020 | D28: 4.871453808 | E28: 0.2125047452
A29: 22 | B29: 15061PLYSR370FR | C29: 15061PLYSR370FR, BASF CORP, 2021 | D29: 4.871453808 | E29: 0.1528542904
A30: 23 | B30: 15061PLYSR370FR | C30: 15061PLYSR370FR, BASF CORP, avg | D30: 4.878702995 | E30: 0.2139545826
A31: 24 | B31: 19061BPLCMPOSTR | C31: 19061BPLCMPOSTR, MONROE ENERGY LLC-TRAINER REFINERY, 2016 | D31: 0.007456306849 | E31: 0.006213589041
A32: 25 | B32: 19061BPLCMPOSTR | C32: 19061BPLCMPOSTR, MONROE ENERGY LLC-TRAINER REFINERY, 2017 | D32: 0.009941742466 | E32: 0.008699024658
A33: 26 | B33: 19061BPLCMPOSTR | C33: 19061BPLCMPOSTR, MONROE ENERGY LLC-TRAINER REFINERY, 2018 | D33: 0.008699024658 | E33: 0.009941742466
A34: 27 | B34: 19061BPLCMPOSTR | C34: 19061BPLCMPOSTR, MONROE ENERGY LLC-TRAINER REFINERY, 2019 | D34: 0.01864076712 | E34: 0.01366989589
A35: 28 | B35: 19061BPLCMPOSTR | C35: 19061BPLCMPOSTR, MONROE ENERGY LLC-TRAINER REFINERY, 2020 | D35: 0.0149126137 | E35: 0.007456306849
A36: 29 | B36: 19061BPLCMPOSTR | C36: 19061BPLCMPOSTR, MONROE ENERGY LLC-TRAINER REFINERY, 2021 | D36: 0.009941742466 | E36: 0.006213589041
A37: 30 | B37: 19061BPLCMPOSTR | C37: 19061BPLCMPOSTR, MONROE ENERGY LLC-TRAINER REFINERY, avg | D37: 0.01159869954 | E37: 0.008699024658
A38: 31 | B38: 19706TXCDL2000W | C38: 19706TXCDL2000W, DELAWARE CITY REFINERY, 2016 | D38: 0.2448154082 | E38: 0.09444655342
A39: 32 | B39: 19706TXCDL2000W | C39: 19706TXCDL2000W, DELAWARE CITY REFINERY, 2017 | D39: 0.2149901808 | E39: 0.09568927123
A40: 33 | B40: 19706TXCDL2000W | C40: 19706TXCDL2000W, DELAWARE CITY REFINERY, 2018 | D40: 0.2311455123 | E40: 0.1093591671
A41: 34 | B41: 19706TXCDL2000W | C41: 19706TXCDL2000W, DELAWARE CITY REFINERY, 2019 | D41: 0.2025630027 | E41: 0.1118446027
A42: 35 | B42: 19706TXCDL2000W | C42: 19706TXCDL2000W, DELAWARE CITY REFINERY, 2020 | D42: 0.1814368 | E42: 0.09468266981
A43: 36 | B43: 19706TXCDL2000W | C43: 19706TXCDL2000W, DELAWARE CITY REFINERY, 2021 | D43: 0.1429125479 | E43: 0.1019028603
A44: 37 | B44: 19706TXCDL2000W | C44: 19706TXCDL2000W, DELAWARE CITY REFINERY, avg | D44: 0.202977242 | E44: 0.1013208541
A45: 38 | B45: 24124HCHSTRT460 | C45: 24124HCHSTRT460, CELANESE ACETATE LLC - CELCO PLANT, 2016 | D45: 0.3106794521 | E45: 0.3106794521
A46: 39 | B46: 24124HCHSTRT460 | C46: 24124HCHSTRT460, CELANESE ACETATE LLC - CELCO PLANT, 2017 | D46: 0.3106794521 | E46: 0.3106794521
A47: 40 | B47: 24124HCHSTRT460 | C47: 24124HCHSTRT460, CELANESE ACETATE LLC - CELCO PLANT, 2018 | D47: 0.3106794521 | E47: 0.3106794521
A48: 41 | B48: 24124HCHSTRT460 | C48: 24124HCHSTRT460, CELANESE ACETATE LLC - CELCO PLANT, 2019 | D48: 0.3106794521 | E48: 0.3106794521
A49: 42 | B49: 24124HCHSTRT460 | C49: 24124HCHSTRT460, CELANESE ACETATE LLC - CELCO PLANT, 2020 | D49: 0.3106794521 | E49: 0.3106794521
A50: 43 | B50: 24124HCHSTRT460 | C50: 24124HCHSTRT460, CELANESE ACETATE LLC - CELCO PLANT, 2021 | D50: 0.3106794521 | E50: 0.3106794521
A51: 44 | B51: 24124HCHSTRT460 | C51: 24124HCHSTRT460, CELANESE ACETATE LLC - CELCO PLANT, avg | D51: 0.3106794521 | E51: 0.3106794521
A52: 45 | B52: 26050RGNWSSTATE | C52: 26050RGNWSSTATE, ERGON WEST VIRGINIA INC, 2019 | D52: 0 | E52: 0
A53: 46 | B53: 26050RGNWSSTATE | C53: 26050RGNWSSTATE, ERGON WEST VIRGINIA INC, 2020 | D53: 0 | E53: 0
A54: 47 | B54: 26050RGNWSSTATE | C54: 26050RGNWSSTATE, ERGON WEST VIRGINIA INC, 2021 | D54: 0 | E54: 0
A55: 48 | B55: 26050RGNWSSTATE | C55: 26050RGNWSSTATE, ERGON WEST VIRGINIA INC, avg | D55: 0 | E55: 0
A56: 49 | B56: 2757WBPPRD377BU | C56: 2757WBPPRD377BU, BLANCHARD TERMINAL CO - SELMA BUFFALO NC TERMINAL, 2016 | D56: 0.002485435616 | E56: 0.001242717808
A57: 50 | B57: 2757WBPPRD377BU | C57: 2757WBPPRD377BU, BLANCHARD TERMINAL CO - SELMA BUFFALO NC TERMINAL, avg | D57: 0.002485435616 | E57: 0.001242717808
A58: 51 | B58: 28213NCLCH14700 | C58: 28213NCLCH14700, MALLARD CREEK POLYMERS, 2016 | D58: 0.05219414795 | E58: 0.1143300384
A59: 52 | B59: 28213NCLCH14700 | C59: 28213NCLCH14700, MALLARD CREEK POLYMERS, 2017 | D59: 0.05219414795 | E59: 0.1366989589
A60: 53 | B60: 28213NCLCH14700 | C60: 28213NCLCH14700, MALLARD CREEK POLYMERS, 2018 | D60: 0.008699024658 | E60: 0.1242717808
A61: 54 | B61: 28213NCLCH14700 | C61: 28213NCLCH14700, MALLARD CREEK POLYMERS, 2019 | D61: 11.31121749 | E61: 0.1690096219
A62: 55 | B62: 28213NCLCH14700 | C62: 28213NCLCH14700, MALLARD CREEK POLYMERS, 2020 | D62: 3.352852647 | E62: 0.3106794521
A63: 56 | B63: 28213NCLCH14700 | C63: 28213NCLCH14700, MALLARD CREEK POLYMERS, 2021 | D63: 0.006213589041 | E63: 0.5219414795
A64: 57 | B64: 28213NCLCH14700 | C64: 28213NCLCH14700, MALLARD CREEK POLYMERS, avg | D64: 2.463895174 | E64: 0.2294885553
A65: 58 | B65: 28214TRNSM7401O | C65: 28214TRNSM7401O, BLANCHARD TERMINAL CO - CHARLOTTE EAST NC TERMINAL, 2016 | D65: 0 | E65: 0.001242717808
A66: 59 | B66: 28214TRNSM7401O | C66: 28214TRNSM7401O, BLANCHARD TERMINAL CO - CHARLOTTE EAST NC TERMINAL, avg | D66: 0 | E66: 0.001242717808
A67: 60 | B67: 29201LNDCH750GR | C67: 29201LNDCH750GR, LINDAU CHEMICALS INC., 2016 | D67: 0.447378411 | E67: 1.826795178
A68: 61 | B68: 29201LNDCH750GR | C68: 29201LNDCH750GR, LINDAU CHEMICALS INC., 2017 | D68: 0.758057863 | E68: 2.609707397
A69: 62 | B69: 29201LNDCH750GR | C69: 29201LNDCH750GR, LINDAU CHEMICALS INC., 2018 | D69: 0.9941742466 | E69: 3.765434959
A70: 63 | B70: 29201LNDCH750GR | C70: 29201LNDCH750GR, LINDAU CHEMICALS INC., 2019 | D70: 0.9196111781 | E70: 4.187959014
A71: 64 | B71: 29201LNDCH750GR | C71: 29201LNDCH750GR, LINDAU CHEMICALS INC., 2020 | D71: 0.5716501918 | E71: 2.907959671
A72: 65 | B72: 29201LNDCH750GR | C72: 29201LNDCH750GR, LINDAU CHEMICALS INC., 2021 | D72: 0.7642714521 | E72: 4.27494926
A73: 66 | B73: 29201LNDCH750GR | C73: 29201LNDCH750GR, LINDAU CHEMICALS INC., avg | D73: 0.7425238904 | E73: 3.262134247
A74: 67 | B74: 30701THGDY1601H | C74: 30701THGDY1601H, OMNOVA SOLUTIONS INC, 2016 | D74: 0.08326209315 | E74: 0.06458404449
A75: 68 | B75: 30701THGDY1601H | C75: 30701THGDY1601H, OMNOVA SOLUTIONS INC, avg | D75: 0.08326209315 | E75: 0.06458404449
A76: 69 | B76: 3072WSTYRN1468P | C76: 3072WSTYRN1468P, TRINSEO, 2016 | D76: 0.2957668384 | E76: 0.1304853699
A77: 70 | B77: 3072WSTYRN1468P | C77: 3072WSTYRN1468P, TRINSEO, 2017 | D77: 0.1901358247 | E77: 0.123029063
A78: 71 | B78: 3072WSTYRN1468P | C78: 3072WSTYRN1468P, TRINSEO, 2018 | D78: 0.1714950575 | E78: 0.123029063
A79: 72 | B79: 3072WSTYRN1468P | C79: 3072WSTYRN1468P, TRINSEO, 2019 | D79: 0.1988348493 | E79: 0.1366989589
A80: 73 | B80: 3072WSTYRN1468P | C80: 3072WSTYRN1468P, TRINSEO, 2020 | D80: 0.1652814685 | E80: 0.1242717808
A81: 74 | B81: 3072WSTYRN1468P | C81: 3072WSTYRN1468P, TRINSEO, 2021 | D81: 0.1578251616 | E81: 0.1267572164
A82: 75 | B82: 3072WSTYRN1468P | C82: 3072WSTYRN1468P, TRINSEO, avg | D82: 0.1965565333 | E82: 0.1273785753
A83: 76 | B83: 35217BCCKDRAILR | C83: 35217BCCKDRAILR, DRUMMOND CO INC ABC COKE DIV, 2016 | D83: 0.04722327671 | E83: 0.5617084493
A84: 77 | B84: 35217BCCKDRAILR | C84: 35217BCCKDRAILR, DRUMMOND CO INC ABC COKE DIV, 2017 | D84: 0.05343686575 | E84: 0.5293977863
A85: 78 | B85: 35217BCCKDRAILR | C85: 35217BCCKDRAILR, DRUMMOND CO INC ABC COKE DIV, 2018 | D85: 0.05592230137 | E85: 0.5567375781
A86: 79 | B86: 35217BCCKDRAILR | C86: 35217BCCKDRAILR, DRUMMOND CO INC ABC COKE DIV, 2019 | D86: 0.05716501918 | E86: 0.3641163178
A87: 80 | B87: 35217BCCKDRAILR | C87: 35217BCCKDRAILR, DRUMMOND CO INC ABC COKE DIV, 2020 | D87: 0.05592230137 | E87: 0.2559998685
A88: 81 | B88: 35217BCCKDRAILR | C88: 35217BCCKDRAILR, DRUMMOND CO INC ABC COKE DIV, 2021 | D88: 0.05592230137 | E88: 0.2336309479
A89: 82 | B89: 35217BCCKDRAILR | C89: 35217BCCKDRAILR, DRUMMOND CO INC ABC COKE DIV, avg | D89: 0.05426534429 | E89: 0.4169318247
A90: 83 | B90: 35221BRMNG2601W | C90: 35221BRMNG2601W, SHELL BIRMINGHAM TERMINAL, 2021 | D90: 0.06337860822 | E90: 0.1031455781
A91: 84 | B91: 35221BRMNG2601W | C91: 35221BRMNG2601W, SHELL BIRMINGHAM TERMINAL, avg | D91: 0.06337860822 | E91: 0.1031455781
A92: 85 | B92: 35601MCCHMFINLE | C92: 35601MCCHMFINLE, INDORAMA VENTURES, 2016 | D92: 2.236892055 | E92: 1.068737315
A93: 86 | B93: 35601MCCHMFINLE | C93: 35601MCCHMFINLE, INDORAMA VENTURES, 2017 | D93: 3.479609863 | E93: 1.615533151
A94: 87 | B94: 35601MCCHMFINLE | C94: 35601MCCHMFINLE, INDORAMA VENTURES, 2018 | D94: 1.988348493 | E94: 0.8699024658
A95: 88 | B95: 35601MCCHMFINLE | C95: 35601MCCHMFINLE, INDORAMA VENTURES, 2019 | D95: 2.609707397 | E95: 1.180581918
A96: 89 | B96: 35601MCCHMFINLE | C96: 35601MCCHMFINLE, INDORAMA VENTURES, 2020 | D96: 1.49126137 | E96: 0.1615533151
A97: 90 | B97: 35601MCCHMFINLE | C97: 35601MCCHMFINLE, INDORAMA VENTURES, 2021 | D97: 2.654445238 | E97: 0.4225240548
A98: 91 | B98: 35601MCCHMFINLE | C98: 35601MCCHMFINLE, INDORAMA VENTURES, avg | D98: 2.410044069 | E98: 0.8864720365
A99: 92 | B99: 36505MTCHMHWY43 | C99: 36505MTCHMHWY43, ARKEMA INC, 2016 | D99: 1.864076712 | E99: 0.3106794521
A100: 93 | B100: 36505MTCHMHWY43 | C100: 36505MTCHMHWY43, ARKEMA INC, 2017 | D100: 1.615533151 | E100: 0.3106794521
A101: 94 | B101: 36505MTCHMHWY43 | C101: 36505MTCHMHWY43, ARKEMA INC, 2018 | D101: 1.615533151 | E101: 0.3106794521
A102: 95 | B102: 36505MTCHMHWY43 | C102: 36505MTCHMHWY43, ARKEMA INC, 2019 | D102: 1.366989589 | E102: 0.3106794521
A103: 96 | B103: 36505MTCHMHWY43 | C103: 36505MTCHMHWY43, ARKEMA INC, 2020 | D103: 1.366989589 | E103: 0.3106794521
A104: 97 | B104: 36505MTCHMHWY43 | C104: 36505MTCHMHWY43, ARKEMA INC, 2021 | D104: 1.38935851 | E104: 0.3106794521
A105: 98 | B105: 36505MTCHMHWY43 | C105: 36505MTCHMHWY43, ARKEMA INC, avg | D105: 1.53641345 | E105: 0.3106794521
A106: 99 | B106: 37209BPXPL14095 | C106: 37209BPXPL14095, BLANCHARD TERMINAL CO - NASHVILLE 51 AVE TN TERMINAL, 2016 | D106: 0.001242717808 | E106: 0.001242717808
A107: 100 | B107: 37209BPXPL14095 | C107: 37209BPXPL14095, BLANCHARD TERMINAL CO - NASHVILLE 51 AVE TN TERMINAL, avg | D107: 0.001242717808 | E107: 0.001242717808
A108: 101 | B108: 37209NSHVL17176 | C108: 37209NSHVL17176, SHELL NASHVILLE TERMINAL, 2019 | D108: 0.08947568219 | E108: 0.1130873205
A109: 102 | B109: 37209NSHVL17176 | C109: 37209NSHVL17176, SHELL NASHVILLE TERMINAL, 2020 | D109: 0.08201937534 | E109: 0.09568927123
A110: 103 | B110: 37209NSHVL17176 | C110: 37209NSHVL17176, SHELL NASHVILLE TERMINAL, 2021 | D110: 0.08823296438 | E110: 0.123029063
A111: 104 | B111: 37209NSHVL17176 | C111: 37209NSHVL17176, SHELL NASHVILLE TERMINAL, avg | D111: 0.08657600731 | E111: 0.1106018849
A112: 105 | B112: 37406PLYSR3805A | C112: 37406PLYSR3805A, BASF CORP, 2016 | D112: 0.4498638466 | E112: 0.02361163836
A113: 106 | B113: 37406PLYSR3805A | C113: 37406PLYSR3805A, BASF CORP, 2017 | D113: 0.5480385534 | E113: 0.0298252274
A114: 107 | B114: 37406PLYSR3805A | C114: 37406PLYSR3805A, BASF CORP, 2018 | D114: 0.2100193096 | E114: 0.03603881644
A115: 108 | B115: 37406PLYSR3805A | C115: 37406PLYSR3805A, BASF CORP, 2019 | D115: 0.2646988932 | E115: 0.02733979178
A116: 109 | B116: 37406PLYSR3805A | C116: 37406PLYSR3805A, BASF CORP, 2020 | D116: 0.3106794521 | E116: 0.3106794521
A117: 110 | B117: 37406PLYSR3805A | C117: 37406PLYSR3805A, BASF CORP, 2021 | D117: 0.3106794521 | E117: 0.3106794521
A118: 111 | B118: 37406PLYSR3805A | C118: 37406PLYSR3805A, BASF CORP, avg | D118: 0.3489965845 | E118: 0.123029063
A119: 112 | B119: 37421PLYSR2200P | C119: 37421PLYSR2200P, BASF CORP, 2016 | D119: 0.1975921315 | E119: 0.10886208
A120: 113 | B120: 37421PLYSR2200P | C120: 37421PLYSR2200P, BASF CORP, 2017 | D120: 0.2957668384 | E120: 0.07369316603
A121: 114 | B121: 37421PLYSR2200P | C121: 37421PLYSR2200P, BASF CORP, 2018 | D121: 0.265941611 | E121: 0.3616308822
A122: 115 | B122: 37421PLYSR2200P | C122: 37421PLYSR2200P, BASF CORP, 2019 | D122: 0.2994949918 | E122: 0.1255144986
A123: 116 | B123: 37421PLYSR2200P | C123: 37421PLYSR2200P, BASF CORP, 2020 | D123: 0.3106794521 | E123: 0.3106794521
A124: 117 | B124: 37421PLYSR2200P | C124: 37421PLYSR2200P, BASF CORP, 2021 | D124: 0.006213589041 | E124: 0.3579027288
A125: 118 | B125: 37421PLYSR2200P | C125: 37421PLYSR2200P, BASF CORP, avg | D125: 0.2292814356 | E125: 0.2230471346
A126: 119 | B126: 37662TNNSSEASTM | C126: 37662TNNSSEASTM, EASTMAN CHEMICAL CO TENNESSEE OPERATIONS, 2016 | D126: 2.400930805 | E126: 2.321396866
A127: 120 | B127: 37662TNNSSEASTM | C127: 37662TNNSSEASTM, EASTMAN CHEMICAL CO TENNESSEE OPERATIONS, 2017 | D127: 0.5902909589 | E127: 1.823067025
A128: 121 | B128: 37662TNNSSEASTM | C128: 37662TNNSSEASTM, EASTMAN CHEMICAL CO TENNESSEE OPERATIONS, 2018 | D128: 0.6213589041 | E128: 1.813125282
A129: 122 | B129: 37662TNNSSEASTM | C129: 37662TNNSSEASTM, EASTMAN CHEMICAL CO TENNESSEE OPERATIONS, 2019 | D129: 0.5480385534 | E129: 1.811882564
A130: 123 | B130: 37662TNNSSEASTM | C130: 37662TNNSSEASTM, EASTMAN CHEMICAL CO TENNESSEE OPERATIONS, 2020 | D130: 0.05095143014 | E130: 2.241862926
A131: 124 | B131: 37662TNNSSEASTM | C131: 37662TNNSSEASTM, EASTMAN CHEMICAL CO TENNESSEE OPERATIONS, 2021 | D131: 0.2125047452 | E131: 0.0907184
A132: 125 | B132: 37662TNNSSEASTM | C132: 37662TNNSSEASTM, EASTMAN CHEMICAL CO TENNESSEE OPERATIONS, avg | D132: 0.7373458995 | E132: 1.683675511
A133: 126 | B133: 38109MPCPT543WE | C133: 38109MPCPT543WE, VALERO REFINING CO - TENNESSEE L.L.C., 2016 | D133: 0.07953393973 | E133: 0.08201937534
A134: 127 | B134: 38109MPCPT543WE | C134: 38109MPCPT543WE, VALERO REFINING CO - TENNESSEE L.L.C., 2017 | D134: 0.03479609863 | E134: 0.08823296438
A135: 128 | B135: 38109MPCPT543WE | C135: 38109MPCPT543WE, VALERO REFINING CO - TENNESSEE L.L.C., 2018 | D135: 0.1739804932 | E135: 0.08699024658
A136: 129 | B136: 38109MPCPT543WE | C136: 38109MPCPT543WE, VALERO REFINING CO - TENNESSEE L.L.C., 2019 | D136: 0.1739804932 | E136: 0.07456306849
A137: 130 | B137: 38109MPCPT543WE | C137: 38109MPCPT543WE, VALERO REFINING CO - TENNESSEE L.L.C., 2020 | D137: 0.2485435616 | E137: 0.1106018849
A138: 131 | B138: 38109MPCPT543WE | C138: 38109MPCPT543WE, VALERO REFINING CO - TENNESSEE L.L.C., 2021 | D138: 0.1739804932 | E138: 0.07704850411
A139: 132 | B139: 38109MPCPT543WE | C139: 38109MPCPT543WE, VALERO REFINING CO - TENNESSEE L.L.C., avg | D139: 0.1474691799 | E139: 0.08657600731
A140: 133 | B140: 39567CHVRNPOBOX | C140: 39567CHVRNPOBOX, CHEVRON PRODUCTS CO PASCAGOULA REFINERY, 2016 | D140: 1.366989589 | E140: 0.08699024658
A141: 134 | B141: 39567CHVRNPOBOX | C141: 39567CHVRNPOBOX, CHEVRON PRODUCTS CO PASCAGOULA REFINERY, 2017 | D141: 1.366989589 | E141: 0.1615533151
A142: 135 | B142: 39567CHVRNPOBOX | C142: 39567CHVRNPOBOX, CHEVRON PRODUCTS CO PASCAGOULA REFINERY, 2018 | D142: 1.988348493 | E142: 0.06213589041
A143: 136 | B143: 39567CHVRNPOBOX | C143: 39567CHVRNPOBOX, CHEVRON PRODUCTS CO PASCAGOULA REFINERY, 2019 | D143: 1.864076712 | E143: 0.07456306849
A144: 137 | B144: 39567CHVRNPOBOX | C144: 39567CHVRNPOBOX, CHEVRON PRODUCTS CO PASCAGOULA REFINERY, 2020 | D144: 1.864076712 | E144: 0.01242717808
A145: 138 | B145: 39567CHVRNPOBOX | C145: 39567CHVRNPOBOX, CHEVRON PRODUCTS CO PASCAGOULA REFINERY, 2021 | D145: 1.49126137 | E145: 0.0907184
A146: 139 | B146: 39567CHVRNPOBOX | C146: 39567CHVRNPOBOX, CHEVRON PRODUCTS CO PASCAGOULA REFINERY, avg | D146: 1.656957078 | E146: 0.08139801644
A147: 140 | B147: 40211ZNCHM4100B | C147: 40211ZNCHM4100B, ZEON CHEMICALS LP, 2016 | D147: 0.2212037699 | E147: 0.05467958356
A148: 141 | B148: 40211ZNCHM4100B | C148: 40211ZNCHM4100B, ZEON CHEMICALS LP, 2017 | D148: 0.05467958356 | E148: 1.04885383
A149: 142 | B149: 40211ZNCHM4100B | C149: 40211ZNCHM4100B, ZEON CHEMICALS LP, 2018 | D149: 0.05467958356 | E149: 0.2212037699
A150: 143 | B150: 40211ZNCHM4100B | C150: 40211ZNCHM4100B, ZEON CHEMICALS LP, 2019 | D150: 0.1205436274 | E150: 0.4933589699
A151: 144 | B151: 40211ZNCHM4100B | C151: 40211ZNCHM4100B, ZEON CHEMICALS LP, 2020 | D151: 0.1217863452 | E151: 0.4125823123
A152: 145 | B152: 40211ZNCHM4100B | C152: 40211ZNCHM4100B, ZEON CHEMICALS LP, 2021 | D152: 0.1975921315 | E152: 0.5641938849
A153: 146 | B153: 40211ZNCHM4100B | C153: 40211ZNCHM4100B, ZEON CHEMICALS LP, avg | D153: 0.1284141735 | E153: 0.4658120584
A154: 147 | B154: 40216MRCNS4500C | C154: 40216MRCNS4500C, AMERICAN SYNTHETIC RUBBER CO, 2016 | D154: 4.626886944 | E154: 4.067539658
A155: 148 | B155: 40216MRCNS4500C | C155: 40216MRCNS4500C, AMERICAN SYNTHETIC RUBBER CO, 2017 | D155: 2.639532625 | E155: 4.50733749
A156: 149 | B156: 40216MRCNS4500C | C156: 40216MRCNS4500C, AMERICAN SYNTHETIC RUBBER CO, 2018 | D156: 2.254290104 | E156: 2.255905637
A157: 150 | B157: 40216MRCNS4500C | C157: 40216MRCNS4500C, AMERICAN SYNTHETIC RUBBER CO, 2019 | D157: 2.988736329 | E157: 1.025863551
A158: 151 | B158: 40216MRCNS4500C | C158: 40216MRCNS4500C, AMERICAN SYNTHETIC RUBBER CO, 2020 | D158: 2.010717414 | E158: 0.3255920658
A159: 152 | B159: 40216MRCNS4500C | C159: 40216MRCNS4500C, AMERICAN SYNTHETIC RUBBER CO, 2021 | D159: 4.468813238 | E159: 1.478834192
A160: 153 | B160: 40216MRCNS4500C | C160: 40216MRCNS4500C, AMERICAN SYNTHETIC RUBBER CO, avg | D160: 3.164829442 | E160: 2.276845432
A161: 154 | B161: 41114CTLTTPOBOX | C161: 41114CTLTTPOBOX, CATLETTSBURG REFINING LLC, 2016 | D161: 0.2261746411 | E161: 0.246058126
A162: 155 | B162: 41114CTLTTPOBOX | C162: 41114CTLTTPOBOX, CATLETTSBURG REFINING LLC, 2017 | D162: 0.2286600767 | E162: 0.3926988274
A163: 156 | B163: 41114CTLTTPOBOX | C163: 41114CTLTTPOBOX, CATLETTSBURG REFINING LLC, 2018 | D163: 0.2361163836 | E163: 0.3628736
A164: 157 | B164: 41114CTLTTPOBOX | C164: 41114CTLTTPOBOX, CATLETTSBURG REFINING LLC, 2019 | D164: 0.2423299726 | E164: 0.2149901808
A165: 158 | B165: 41114CTLTTPOBOX | C165: 41114CTLTTPOBOX, CATLETTSBURG REFINING LLC, 2020 | D165: 0.213747463 | E165: 0.2199610521
A166: 159 | B166: 41114CTLTTPOBOX | C166: 41114CTLTTPOBOX, CATLETTSBURG REFINING LLC, 2021 | D166: 0.2559998685 | E166: 0.5318832219
A167: 160 | B167: 41114CTLTTPOBOX | C167: 41114CTLTTPOBOX, CATLETTSBURG REFINING LLC, avg | D167: 0.2338380676 | E167: 0.3280775014
A168: 161 | B168: 42029WSTLK2468I | C168: 42029WSTLK2468I, WESTLAKE VINYLS INC, 2016 | D168: 1.040154805 | E168: 10.06104338
A169: 162 | B169: 42029WSTLK2468I | C169: 42029WSTLK2468I, WESTLAKE VINYLS INC, 2017 | D169: 1.122174181 | E169: 5.948890148
A170: 163 | B170: 42029WSTLK2468I | C170: 42029WSTLK2468I, WESTLAKE VINYLS INC, 2018 | D170: 3.32799829 | E170: 11.98477054
A171: 164 | B171: 42029WSTLK2468I | C171: 42029WSTLK2468I, WESTLAKE VINYLS INC, 2019 | D171: 3.704541786 | E171: 11.98477054
A172: 165 | B172: 42029WSTLK2468I | C172: 42029WSTLK2468I, WESTLAKE VINYLS INC, 2020 | D172: 4.104696921 | E172: 11.05894578
A173: 166 | B173: 42029WSTLK2468I | C173: 42029WSTLK2468I, WESTLAKE VINYLS INC, 2021 | D173: 4.318444384 | E173: 8.196966663
A174: 167 | B174: 42029WSTLK2468I | C174: 42029WSTLK2468I, WESTLAKE VINYLS INC, avg | D174: 2.936335061 | E174: 9.872564508
A175: 168 | B175: 43616SHLCM4001C | C175: 43616SHLCM4001C, BP-HUSKY REFINING LLC, 2016 | D175: 0.03976696986 | E175: 1.031455781
A176: 169 | B176: 43616SHLCM4001C | C176: 43616SHLCM4001C, BP-HUSKY REFINING LLC, 2017 | D176: 0.05965045479 | E176: 0.5095143014
A177: 170 | B177: 43616SHLCM4001C | C177: 43616SHLCM4001C, BP-HUSKY REFINING LLC, 2018 | D177: 0.03976696986 | E177: 1.49126137
A178: 171 | B178: 43616SHLCM4001C | C178: 43616SHLCM4001C, BP-HUSKY REFINING LLC, 2019 | D178: 0.04100968767 | E178: 1.193009096
A179: 172 | B179: 43616SHLCM4001C | C179: 43616SHLCM4001C, BP-HUSKY REFINING LLC, 2020 | D179: 0.03355338082 | E179: 0.6462132603
A180: 173 | B180: 43616SHLCM4001C | C180: 43616SHLCM4001C, BP-HUSKY REFINING LLC, 2021 | D180: 0.03479609863 | E180: 0.4225240548
A181: 174 | B181: 43616SHLCM4001C | C181: 43616SHLCM4001C, BP-HUSKY REFINING LLC, avg | D181: 0.04142392694 | E181: 0.8823296438
A182: 175 | B182: 43616SNRFN1819W | C182: 43616SNRFN1819W, TOLEDO REFINING CO LLC, 2016 | D182: 0.3106794521 | E182: 0
A183: 176 | B183: 43616SNRFN1819W | C183: 43616SNRFN1819W, TOLEDO REFINING CO LLC, 2017 | D183: 0.3106794521 | E183: 0.006213589041
A184: 177 | B184: 43616SNRFN1819W | C184: 43616SNRFN1819W, TOLEDO REFINING CO LLC, 2018 | D184: 0.3106794521 | E184: 0.006213589041
A185: 178 | B185: 43616SNRFN1819W | C185: 43616SNRFN1819W, TOLEDO REFINING CO LLC, 2019 | D185: 0.3106794521 | E185: 0.006213589041
A186: 179 | B186: 43616SNRFN1819W | C186: 43616SNRFN1819W, TOLEDO REFINING CO LLC, 2020 | D186: 0.3106794521 | E186: 0.006213589041
A187: 180 | B187: 43616SNRFN1819W | C187: 43616SNRFN1819W, TOLEDO REFINING CO LLC, 2021 | D187: 0.3106794521 | E187: 0.006213589041
A188: 181 | B188: 43616SNRFN1819W | C188: 43616SNRFN1819W, TOLEDO REFINING CO LLC, avg | D188: 0.3106794521 | E188: 0.005177990868
A189: 182 | B189: 44260DVRST165SC | C189: 44260DVRST165SC, OMNOVA SOLUTIONS INC-MOGADORE PLANT, 2016 | D189: 0.06337860822 | E189: 0.2087765918
A190: 183 | B190: 44260DVRST165SC | C190: 44260DVRST165SC, OMNOVA SOLUTIONS INC-MOGADORE PLANT, 2017 | D190: 0.0758057863 | E190: 0.06710676164
A191: 184 | B191: 44260DVRST165SC | C191: 44260DVRST165SC, OMNOVA SOLUTIONS INC-MOGADORE PLANT, 2018 | D191: 0.06834947945 | E191: 0.09196111781
A192: 185 | B192: 44260DVRST165SC | C192: 44260DVRST165SC, OMNOVA SOLUTIONS INC-MOGADORE PLANT, 2019 | D192: 0.05095143014 | E192: 0.1317280877
A193: 186 | B193: 44260DVRST165SC | C193: 44260DVRST165SC, OMNOVA SOLUTIONS INC-MOGADORE PLANT, 2020 | D193: 0.05467958356 | E193: 0.1528542904
A194: 187 | B194: 44260DVRST165SC | C194: 44260DVRST165SC, OMNOVA SOLUTIONS INC-MOGADORE PLANT, 2021 | D194: 0.05467958356 | E194: 0.07332035068
A195: 188 | B195: 44260DVRST165SC | C195: 44260DVRST165SC, OMNOVA SOLUTIONS INC-MOGADORE PLANT, avg | D195: 0.06130741187 | E195: 0.1209578667
A196: 189 | B196: 44301BFGDR240WE | C196: 44301BFGDR240WE, HUNTSMAN ADVANCED MATERIALS AMERICAS LLC, 2016 | D196: 0.6834947945 | E196: 1.963494137
A197: 190 | B197: 44301BFGDR240WE | C197: 44301BFGDR240WE, HUNTSMAN ADVANCED MATERIALS AMERICAS LLC, 2017 | D197: 2.632076318 | E197: 12.81490604
A198: 191 | B198: 44301BFGDR240WE | C198: 44301BFGDR240WE, HUNTSMAN ADVANCED MATERIALS AMERICAS LLC, 2018 | D198: 2.051727101 | E198: 11.4441883
A199: 192 | B199: 44301BFGDR240WE | C199: 44301BFGDR240WE, HUNTSMAN ADVANCED MATERIALS AMERICAS LLC, 2019 | D199: 2.436969622 | E199: 10.34562575
A200: 193 | B200: 44301BFGDR240WE | C200: 44301BFGDR240WE, HUNTSMAN ADVANCED MATERIALS AMERICAS LLC, 2020 | D200: 2.236892055 | E200: 10.61778095
A201: 194 | B201: 44301BFGDR240WE | C201: 44301BFGDR240WE, HUNTSMAN ADVANCED MATERIALS AMERICAS LLC, 2021 | D201: 1.993319364 | E201: 10.68737315
... 1234 more rows

Sheet Source Inputs Fugitive
A1: Fugitive Source
A3: Step 1: Enter Source Parameters | E3: Step 2: Select Location and Deposition Settings
A5: Source Parameters | E5: Location and Deposition Settings
A6: Area of Source (m2) | C6: 100 | E6: Select Urban or Rural | G6: Rural
A7: Release Height (m) | C7: 3.05 | E7: Population | G7: =IFERROR(VLOOKUP($G$6,[4]lookups!$G$1:$H$3,2,FALSE),"") -> N/A for Rural
E9: Select Particle Size | G9: No particles (vapor only)
E10: Mean Aerodynamic Diameter (mm) | G10: =IFERROR(VLOOKUP($G$9,[4]lookups!$J$1:$K$4,2,FALSE),"") -> N/A for Vapor
E11: Density (g/cm3) | G11: =IFERROR(VLOOKUP($G$9,[4]lookups!$J$2:$L$4,3,FALSE),"") -> N/A for Vapor
E13: Select Climate Region | G13: South (Coastal)
E14: Surface Station | G14: =IFERROR(VLOOKUP($G$13,[4]lookups!$M$1:$O$15,2,FALSE),"") -> Lake Charles, LA
E15: Upper-air Station | G15: =IFERROR(VLOOKUP($G$13,[4]lookups!$M$1:$O$15,3,FALSE),"") -> Lake Charles, LA
A16: Step 3: Define Emission Scenarios
E17: Select Cyclical or Consecutive | G17: Consecutive
A18: Scenario # | B18: Scenario Name | D18: Release # | E18: Release Amount (kg/site/day) | F18: Release Duration (hours/day) | G18: Release Frequency (days/year)
A19: 1 | B19: 00851HSSLVLIMET, LIMETREE BAY REFINING LLC & LIMETREE BAY TERMINALS LLC, 2020 | C19: 00851HSSLVLIMET, LIMETREE BAY REFINING LLC & LIMETREE BAY TERMINALS LLC, 2020 | D19: 1 | E19: 0.01366989589 | F19: 24 hr/day (continuous) | G19: 365
A20: 2 | B20: 00851HSSLVLIMET, LIMETREE BAY REFINING LLC & LIMETREE BAY TERMINALS LLC, avg | C20: 00851HSSLVLIMET, LIMETREE BAY REFINING LLC & LIMETREE BAY TERMINALS LLC, avg | D20: 1 | E20: 0.01366989589 | F20: 24 hr/day (continuous) | G20: 365
A21: 3 | B21: 07036XXNXX1400P, PHILLIPS 66 CO-BAYWAY REFINERY, 2016 | C21: 07036XXNXX1400P, PHILLIPS 66 CO-BAYWAY REFINERY, 2016 | D21: 1 | E21: 0.008699024658 | F21: 24 hr/day (continuous) | G21: 365
A22: 4 | B22: 07036XXNXX1400P, PHILLIPS 66 CO-BAYWAY REFINERY, 2017 | C22: 07036XXNXX1400P, PHILLIPS 66 CO-BAYWAY REFINERY, 2017 | D22: 1 | E22: 0.007456306849 | F22: 24 hr/day (continuous) | G22: 365
A23: 5 | B23: 07036XXNXX1400P, PHILLIPS 66 CO-BAYWAY REFINERY, 2018 | C23: 07036XXNXX1400P, PHILLIPS 66 CO-BAYWAY REFINERY, 2018 | D23: 1 | E23: 0.006213589041 | F23: 24 hr/day (continuous) | G23: 365
A24: 6 | B24: 07036XXNXX1400P, PHILLIPS 66 CO-BAYWAY REFINERY, 2019 | C24: 07036XXNXX1400P, PHILLIPS 66 CO-BAYWAY REFINERY, 2019 | D24: 1 | E24: 0.004970871233 | F24: 24 hr/day (continuous) | G24: 365
A25: 7 | B25: 07036XXNXX1400P, PHILLIPS 66 CO-BAYWAY REFINERY, 2020 | C25: 07036XXNXX1400P, PHILLIPS 66 CO-BAYWAY REFINERY, 2020 | D25: 1 | E25: 0.006213589041 | F25: 24 hr/day (continuous) | G25: 365
A26: 8 | B26: 07036XXNXX1400P, PHILLIPS 66 CO-BAYWAY REFINERY, 2021 | C26: 07036XXNXX1400P, PHILLIPS 66 CO-BAYWAY REFINERY, 2021 | D26: 1 | E26: 0.007456306849 | F26: 24 hr/day (continuous) | G26: 365
A27: 9 | B27: 07036XXNXX1400P, PHILLIPS 66 CO-BAYWAY REFINERY, avg | C27: 07036XXNXX1400P, PHILLIPS 66 CO-BAYWAY REFINERY, avg | D27: 1 | E27: 0.006834947945 | F27: 24 hr/day (continuous) | G27: 365
A28: 10 | B28: 08066MBLLCBILLI, PAULSBORO REFINING CO LLC, 2016 | C28: 08066MBLLCBILLI, PAULSBORO REFINING CO LLC, 2016 | D28: 1 | E28: 0.05467958356 | F28: 24 hr/day (continuous) | G28: 365
A29: 11 | B29: 08066MBLLCBILLI, PAULSBORO REFINING CO LLC, 2017 | C29: 08066MBLLCBILLI, PAULSBORO REFINING CO LLC, 2017 | D29: 1 | E29: 0.05467958356 | F29: 24 hr/day (continuous) | G29: 365
A30: 12 | B30: 08066MBLLCBILLI, PAULSBORO REFINING CO LLC, 2018 | C30: 08066MBLLCBILLI, PAULSBORO REFINING CO LLC, 2018 | D30: 1 | E30: 0.05467958356 | F30: 24 hr/day (continuous) | G30: 365
A31: 13 | B31: 08066MBLLCBILLI, PAULSBORO REFINING CO LLC, 2019 | C31: 08066MBLLCBILLI, PAULSBORO REFINING CO LLC, 2019 | D31: 1 | E31: 0.05343686575 | F31: 24 hr/day (continuous) | G31: 365
A32: 14 | B32: 08066MBLLCBILLI, PAULSBORO REFINING CO LLC, 2020 | C32: 08066MBLLCBILLI, PAULSBORO REFINING CO LLC, 2020 | D32: 1 | E32: 0.03852425205 | F32: 24 hr/day (continuous) | G32: 365
A33: 15 | B33: 08066MBLLCBILLI, PAULSBORO REFINING CO LLC, 2021 | C33: 08066MBLLCBILLI, PAULSBORO REFINING CO LLC, 2021 | D33: 1 | E33: 0.05716501918 | F33: 24 hr/day (continuous) | G33: 365
A34: 16 | B34: 08066MBLLCBILLI, PAULSBORO REFINING CO LLC, avg | C34: 08066MBLLCBILLI, PAULSBORO REFINING CO LLC, avg | D34: 1 | E34: 0.05219414795 | F34: 24 hr/day (continuous) | G34: 365
A35: 17 | B35: 15061PLYSR370FR, BASF CORP, 2016 | C35: 15061PLYSR370FR, BASF CORP, 2016 | D35: 1 | E35: 4.871453808 | F35: 24 hr/day (continuous) | G35: 365
A36: 18 | B36: 15061PLYSR370FR, BASF CORP, 2017 | C36: 15061PLYSR370FR, BASF CORP, 2017 | D36: 1 | E36: 4.871453808 | F36: 24 hr/day (continuous) | G36: 365
A37: 19 | B37: 15061PLYSR370FR, BASF CORP, 2018 | C37: 15061PLYSR370FR, BASF CORP, 2018 | D37: 1 | E37: 4.871453808 | F37: 24 hr/day (continuous) | G37: 365
A38: 20 | B38: 15061PLYSR370FR, BASF CORP, 2019 | C38: 15061PLYSR370FR, BASF CORP, 2019 | D38: 1 | E38: 4.914948932 | F38: 24 hr/day (continuous) | G38: 365
A39: 21 | B39: 15061PLYSR370FR, BASF CORP, 2020 | C39: 15061PLYSR370FR, BASF CORP, 2020 | D39: 1 | E39: 4.871453808 | F39: 24 hr/day (continuous) | G39: 365
A40: 22 | B40: 15061PLYSR370FR, BASF CORP, 2021 | C40: 15061PLYSR370FR, BASF CORP, 2021 | D40: 1 | E40: 4.871453808 | F40: 24 hr/day (continuous) | G40: 365
A41: 23 | B41: 15061PLYSR370FR, BASF CORP, avg | C41: 15061PLYSR370FR, BASF CORP, avg | D41: 1 | E41: 4.878702995 | F41: 24 hr/day (continuous) | G41: 365
A42: 24 | B42: 19061BPLCMPOSTR, MONROE ENERGY LLC-TRAINER REFINERY, 2016 | C42: 19061BPLCMPOSTR, MONROE ENERGY LLC-TRAINER REFINERY, 2016 | D42: 1 | E42: 0.007456306849 | F42: 24 hr/day (continuous) | G42: 365
A43: 25 | B43: 19061BPLCMPOSTR, MONROE ENERGY LLC-TRAINER REFINERY, 2017 | C43: 19061BPLCMPOSTR, MONROE ENERGY LLC-TRAINER REFINERY, 2017 | D43: 1 | E43: 0.009941742466 | F43: 24 hr/day (continuous) | G43: 365
A44: 26 | B44: 19061BPLCMPOSTR, MONROE ENERGY LLC-TRAINER REFINERY, 2018 | C44: 19061BPLCMPOSTR, MONROE ENERGY LLC-TRAINER REFINERY, 2018 | D44: 1 | E44: 0.008699024658 | F44: 24 hr/day (continuous) | G44: 365
A45: 27 | B45: 19061BPLCMPOSTR, MONROE ENERGY LLC-TRAINER REFINERY, 2019 | C45: 19061BPLCMPOSTR, MONROE ENERGY LLC-TRAINER REFINERY, 2019 | D45: 1 | E45: 0.01864076712 | F45: 24 hr/day (continuous) | G45: 365
A46: 28 | B46: 19061BPLCMPOSTR, MONROE ENERGY LLC-TRAINER REFINERY, 2020 | C46: 19061BPLCMPOSTR, MONROE ENERGY LLC-TRAINER REFINERY, 2020 | D46: 1 | E46: 0.0149126137 | F46: 24 hr/day (continuous) | G46: 365
A47: 29 | B47: 19061BPLCMPOSTR, MONROE ENERGY LLC-TRAINER REFINERY, 2021 | C47: 19061BPLCMPOSTR, MONROE ENERGY LLC-TRAINER REFINERY, 2021 | D47: 1 | E47: 0.009941742466 | F47: 24 hr/day (continuous) | G47: 365
A48: 30 | B48: 19061BPLCMPOSTR, MONROE ENERGY LLC-TRAINER REFINERY, avg | C48: 19061BPLCMPOSTR, MONROE ENERGY LLC-TRAINER REFINERY, avg | D48: 1 | E48: 0.01159869954 | F48: 24 hr/day (continuous) | G48: 365
A49: 31 | B49: 19706TXCDL2000W, DELAWARE CITY REFINERY, 2016 | C49: 19706TXCDL2000W, DELAWARE CITY REFINERY, 2016 | D49: 1 | E49: 0.2448154082 | F49: 24 hr/day (continuous) | G49: 365
A50: 32 | B50: 19706TXCDL2000W, DELAWARE CITY REFINERY, 2017 | C50: 19706TXCDL2000W, DELAWARE CITY REFINERY, 2017 | D50: 1 | E50: 0.2149901808 | F50: 24 hr/day (continuous) | G50: 365
A51: 33 | B51: 19706TXCDL2000W, DELAWARE CITY REFINERY, 2018 | C51: 19706TXCDL2000W, DELAWARE CITY REFINERY, 2018 | D51: 1 | E51: 0.2311455123 | F51: 24 hr/day (continuous) | G51: 365
A52: 34 | B52: 19706TXCDL2000W, DELAWARE CITY REFINERY, 2019 | C52: 19706TXCDL2000W, DELAWARE CITY REFINERY, 2019 | D52: 1 | E52: 0.2025630027 | F52: 24 hr/day (continuous) | G52: 365
A53: 35 | B53: 19706TXCDL2000W, DELAWARE CITY REFINERY, 2020 | C53: 19706TXCDL2000W, DELAWARE CITY REFINERY, 2020 | D53: 1 | E53: 0.1814368 | F53: 24 hr/day (continuous) | G53: 365
A54: 36 | B54: 19706TXCDL2000W, DELAWARE CITY REFINERY, 2021 | C54: 19706TXCDL2000W, DELAWARE CITY REFINERY, 2021 | D54: 1 | E54: 0.1429125479 | F54: 24 hr/day (continuous) | G54: 365
A55: 37 | B55: 19706TXCDL2000W, DELAWARE CITY REFINERY, avg | C55: 19706TXCDL2000W, DELAWARE CITY REFINERY, avg | D55: 1 | E55: 0.202977242 | F55: 24 hr/day (continuous) | G55: 365
A56: 38 | B56: 24124HCHSTRT460, CELANESE ACETATE LLC - CELCO PLANT, 2016 | C56: 24124HCHSTRT460, CELANESE ACETATE LLC - CELCO PLANT, 2016 | D56: 1 | E56: 0.3106794521 | F56: 24 hr/day (continuous) | G56: 365
A57: 39 | B57: 24124HCHSTRT460, CELANESE ACETATE LLC - CELCO PLANT, 2017 | C57: 24124HCHSTRT460, CELANESE ACETATE LLC - CELCO PLANT, 2017 | D57: 1 | E57: 0.3106794521 | F57: 24 hr/day (continuous) | G57: 365
A58: 40 | B58: 24124HCHSTRT460, CELANESE ACETATE LLC - CELCO PLANT, 2018 | C58: 24124HCHSTRT460, CELANESE ACETATE LLC - CELCO PLANT, 2018 | D58: 1 | E58: 0.3106794521 | F58: 24 hr/day (continuous) | G58: 365
A59: 41 | B59: 24124HCHSTRT460, CELANESE ACETATE LLC - CELCO PLANT, 2019 | C59: 24124HCHSTRT460, CELANESE ACETATE LLC - CELCO PLANT, 2019 | D59: 1 | E59: 0.3106794521 | F59: 24 hr/day (continuous) | G59: 365
A60: 42 | B60: 24124HCHSTRT460, CELANESE ACETATE LLC - CELCO PLANT, 2020 | C60: 24124HCHSTRT460, CELANESE ACETATE LLC - CELCO PLANT, 2020 | D60: 1 | E60: 0.3106794521 | F60: 24 hr/day (continuous) | G60: 365
A61: 43 | B61: 24124HCHSTRT460, CELANESE ACETATE LLC - CELCO PLANT, 2021 | C61: 24124HCHSTRT460, CELANESE ACETATE LLC - CELCO PLANT, 2021 | D61: 1 | E61: 0.3106794521 | F61: 24 hr/day (continuous) | G61: 365
A62: 44 | B62: 24124HCHSTRT460, CELANESE ACETATE LLC - CELCO PLANT, avg | C62: 24124HCHSTRT460, CELANESE ACETATE LLC - CELCO PLANT, avg | D62: 1 | E62: 0.3106794521 | F62: 24 hr/day (continuous) | G62: 365
A63: 45 | B63: 26050RGNWSSTATE, ERGON WEST VIRGINIA INC, 2019 | C63: 26050RGNWSSTATE, ERGON WEST VIRGINIA INC, 2019 | D63: 1 | E63: 0 | F63: 24 hr/day (continuous) | G63: 365
A64: 46 | B64: 26050RGNWSSTATE, ERGON WEST VIRGINIA INC, 2020 | C64: 26050RGNWSSTATE, ERGON WEST VIRGINIA INC, 2020 | D64: 1 | E64: 0 | F64: 24 hr/day (continuous) | G64: 365
A65: 47 | B65: 26050RGNWSSTATE, ERGON WEST VIRGINIA INC, 2021 | C65: 26050RGNWSSTATE, ERGON WEST VIRGINIA INC, 2021 | D65: 1 | E65: 0 | F65: 24 hr/day (continuous) | G65: 365
A66: 48 | B66: 26050RGNWSSTATE, ERGON WEST VIRGINIA INC, avg | C66: 26050RGNWSSTATE, ERGON WEST VIRGINIA INC, avg | D66: 1 | E66: 0 | F66: 24 hr/day (continuous) | G66: 365
A67: 49 | B67: 2757WBPPRD377BU, BLANCHARD TERMINAL CO - SELMA BUFFALO NC TERMINAL, 2016 | C67: 2757WBPPRD377BU, BLANCHARD TERMINAL CO - SELMA BUFFALO NC TERMINAL, 2016 | D67: 1 | E67: 0.002485435616 | F67: 24 hr/day (continuous) | G67: 365
A68: 50 | B68: 2757WBPPRD377BU, BLANCHARD TERMINAL CO - SELMA BUFFALO NC TERMINAL, avg | C68: 2757WBPPRD377BU, BLANCHARD TERMINAL CO - SELMA BUFFALO NC TERMINAL, avg | D68: 1 | E68: 0.002485435616 | F68: 24 hr/day (continuous) | G68: 365
A69: 51 | B69: 28213NCLCH14700, MALLARD CREEK POLYMERS, 2016 | C69: 28213NCLCH14700, MALLARD CREEK POLYMERS, 2016 | D69: 1 | E69: 0.05219414795 | F69: 24 hr/day (continuous) | G69: 365
A70: 52 | B70: 28213NCLCH14700, MALLARD CREEK POLYMERS, 2017 | C70: 28213NCLCH14700, MALLARD CREEK POLYMERS, 2017 | D70: 1 | E70: 0.05219414795 | F70: 24 hr/day (continuous) | G70: 365
A71: 53 | B71: 28213NCLCH14700, MALLARD CREEK POLYMERS, 2018 | C71: 28213NCLCH14700, MALLARD CREEK POLYMERS, 2018 | D71: 1 | E71: 0.008699024658 | F71: 24 hr/day (continuous) | G71: 365
A72: 54 | B72: 28213NCLCH14700, MALLARD CREEK POLYMERS, 2019 | C72: 28213NCLCH14700, MALLARD CREEK POLYMERS, 2019 | D72: 1 | E72: 11.31121749 | F72: 24 hr/day (continuous) | G72: 365
A73: 55 | B73: 28213NCLCH14700, MALLARD CREEK POLYMERS, 2020 | C73: 28213NCLCH14700, MALLARD CREEK POLYMERS, 2020 | D73: 1 | E73: 3.352852647 | F73: 24 hr/day (continuous) | G73: 365
A74: 56 | B74: 28213NCLCH14700, MALLARD CREEK POLYMERS, 2021 | C74: 28213NCLCH14700, MALLARD CREEK POLYMERS, 2021 | D74: 1 | E74: 0.006213589041 | F74: 24 hr/day (continuous) | G74: 365
A75: 57 | B75: 28213NCLCH14700, MALLARD CREEK POLYMERS, avg | C75: 28213NCLCH14700, MALLARD CREEK POLYMERS, avg | D75: 1 | E75: 2.463895174 | F75: 24 hr/day (continuous) | G75: 365
A76: 58 | B76: 28214TRNSM7401O, BLANCHARD TERMINAL CO - CHARLOTTE EAST NC TERMINAL, 2016 | C76: 28214TRNSM7401O, BLANCHARD TERMINAL CO - CHARLOTTE EAST NC TERMINAL, 2016 | D76: 1 | E76: 0 | F76: 24 hr/day (continuous) | G76: 365
A77: 59 | B77: 28214TRNSM7401O, BLANCHARD TERMINAL CO - CHARLOTTE EAST NC TERMINAL, avg | C77: 28214TRNSM7401O, BLANCHARD TERMINAL CO - CHARLOTTE EAST NC TERMINAL, avg | D77: 1 | E77: 0 | F77: 24 hr/day (continuous) | G77: 365
A78: 60 | B78: 29201LNDCH750GR, LINDAU CHEMICALS INC., 2016 | C78: 29201LNDCH750GR, LINDAU CHEMICALS INC., 2016 | D78: 1 | E78: 0.447378411 | F78: 24 hr/day (continuous) | G78: 365
A79: 61 | B79: 29201LNDCH750GR, LINDAU CHEMICALS INC., 2017 | C79: 29201LNDCH750GR, LINDAU CHEMICALS INC., 2017 | D79: 1 | E79: 0.758057863 | F79: 24 hr/day (continuous) | G79: 365
A80: 62 | B80: 29201LNDCH750GR, LINDAU CHEMICALS INC., 2018 | C80: 29201LNDCH750GR, LINDAU CHEMICALS INC., 2018 | D80: 1 | E80: 0.9941742466 | F80: 24 hr/day (continuous) | G80: 365
A81: 63 | B81: 29201LNDCH750GR, LINDAU CHEMICALS INC., 2019 | C81: 29201LNDCH750GR, LINDAU CHEMICALS INC., 2019 | D81: 1 | E81: 0.9196111781 | F81: 24 hr/day (continuous) | G81: 365
A82: 64 | B82: 29201LNDCH750GR, LINDAU CHEMICALS INC., 2020 | C82: 29201LNDCH750GR, LINDAU CHEMICALS INC., 2020 | D82: 1 | E82: 0.5716501918 | F82: 24 hr/day (continuous) | G82: 365
A83: 65 | B83: 29201LNDCH750GR, LINDAU CHEMICALS INC., 2021 | C83: 29201LNDCH750GR, LINDAU CHEMICALS INC., 2021 | D83: 1 | E83: 0.7642714521 | F83: 24 hr/day (continuous) | G83: 365
A84: 66 | B84: 29201LNDCH750GR, LINDAU CHEMICALS INC., avg | C84: 29201LNDCH750GR, LINDAU CHEMICALS INC., avg | D84: 1 | E84: 0.7425238904 | F84: 24 hr/day (continuous) | G84: 365
A85: 67 | B85: 30701THGDY1601H, OMNOVA SOLUTIONS INC, 2016 | C85: 30701THGDY1601H, OMNOVA SOLUTIONS INC, 2016 | D85: 1 | E85: 0.08326209315 | F85: 24 hr/day (continuous) | G85: 365
A86: 68 | B86: 30701THGDY1601H, OMNOVA SOLUTIONS INC, avg | C86: 30701THGDY1601H, OMNOVA SOLUTIONS INC, avg | D86: 1 | E86: 0.08326209315 | F86: 24 hr/day (continuous) | G86: 365
A87: 69 | B87: 3072WSTYRN1468P, TRINSEO, 2016 | C87: 3072WSTYRN1468P, TRINSEO, 2016 | D87: 1 | E87: 0.2957668384 | F87: 24 hr/day (continuous) | G87: 365
A88: 70 | B88: 3072WSTYRN1468P, TRINSEO, 2017 | C88: 3072WSTYRN1468P, TRINSEO, 2017 | D88: 1 | E88: 0.1901358247 | F88: 24 hr/day (continuous) | G88: 365
A89: 71 | B89: 3072WSTYRN1468P, TRINSEO, 2018 | C89: 3072WSTYRN1468P, TRINSEO, 2018 | D89: 1 | E89: 0.1714950575 | F89: 24 hr/day (continuous) | G89: 365
A90: 72 | B90: 3072WSTYRN1468P, TRINSEO, 2019 | C90: 3072WSTYRN1468P, TRINSEO, 2019 | D90: 1 | E90: 0.1988348493 | F90: 24 hr/day (continuous) | G90: 365
A91: 73 | B91: 3072WSTYRN1468P, TRINSEO, 2020 | C91: 3072WSTYRN1468P, TRINSEO, 2020 | D91: 1 | E91: 0.1652814685 | F91: 24 hr/day (continuous) | G91: 365
A92: 74 | B92: 3072WSTYRN1468P, TRINSEO, 2021 | C92: 3072WSTYRN1468P, TRINSEO, 2021 | D92: 1 | E92: 0.1578251616 | F92: 24 hr/day (continuous) | G92: 365
A93: 75 | B93: 3072WSTYRN1468P, TRINSEO, avg | C93: 3072WSTYRN1468P, TRINSEO, avg | D93: 1 | E93: 0.1965565333 | F93: 24 hr/day (continuous) | G93: 365
A94: 76 | B94: 35217BCCKDRAILR, DRUMMOND CO INC ABC COKE DIV, 2016 | C94: 35217BCCKDRAILR, DRUMMOND CO INC ABC COKE DIV, 2016 | D94: 1 | E94: 0.04722327671 | F94: 24 hr/day (continuous) | G94: 365
A95: 77 | B95: 35217BCCKDRAILR, DRUMMOND CO INC ABC COKE DIV, 2017 | C95: 35217BCCKDRAILR, DRUMMOND CO INC ABC COKE DIV, 2017 | D95: 1 | E95: 0.05343686575 | F95: 24 hr/day (continuous) | G95: 365
A96: 78 | B96: 35217BCCKDRAILR, DRUMMOND CO INC ABC COKE DIV, 2018 | C96: 35217BCCKDRAILR, DRUMMOND CO INC ABC COKE DIV, 2018 | D96: 1 | E96: 0.05592230137 | F96: 24 hr/day (continuous) | G96: 365
A97: 79 | B97: 35217BCCKDRAILR, DRUMMOND CO INC ABC COKE DIV, 2019 | C97: 35217BCCKDRAILR, DRUMMOND CO INC ABC COKE DIV, 2019 | D97: 1 | E97: 0.05716501918 | F97: 24 hr/day (continuous) | G97: 365
A98: 80 | B98: 35217BCCKDRAILR, DRUMMOND CO INC ABC COKE DIV, 2020 | C98: 35217BCCKDRAILR, DRUMMOND CO INC ABC COKE DIV, 2020 | D98: 1 | E98: 0.05592230137 | F98: 24 hr/day (continuous) | G98: 365
A99: 81 | B99: 35217BCCKDRAILR, DRUMMOND CO INC ABC COKE DIV, 2021 | C99: 35217BCCKDRAILR, DRUMMOND CO INC ABC COKE DIV, 2021 | D99: 1 | E99: 0.05592230137 | F99: 24 hr/day (continuous) | G99: 365
A100: 82 | B100: 35217BCCKDRAILR, DRUMMOND CO INC ABC COKE DIV, avg | C100: 35217BCCKDRAILR, DRUMMOND CO INC ABC COKE DIV, avg | D100: 1 | E100: 0.05426534429 | F100: 24 hr/day (continuous) | G100: 365
A101: 83 | B101: 35221BRMNG2601W, SHELL BIRMINGHAM TERMINAL, 2021 | C101: 35221BRMNG2601W, SHELL BIRMINGHAM TERMINAL, 2021 | D101: 1 | E101: 0.06337860822 | F101: 24 hr/day (continuous) | G101: 365
A102: 84 | B102: 35221BRMNG2601W, SHELL BIRMINGHAM TERMINAL, avg | C102: 35221BRMNG2601W, SHELL BIRMINGHAM TERMINAL, avg | D102: 1 | E102: 0.06337860822 | F102: 24 hr/day (continuous) | G102: 365
A103: 85 | B103: 35601MCCHMFINLE, INDORAMA VENTURES, 2016 | C103: 35601MCCHMFINLE, INDORAMA VENTURES, 2016 | D103: 1 | E103: 2.236892055 | F103: 24 hr/day (continuous) | G103: 365
A104: 86 | B104: 35601MCCHMFINLE, INDORAMA VENTURES, 2017 | C104: 35601MCCHMFINLE, INDORAMA VENTURES, 2017 | D104: 1 | E104: 3.479609863 | F104: 24 hr/day (continuous) | G104: 365
A105: 87 | B105: 35601MCCHMFINLE, INDORAMA VENTURES, 2018 | C105: 35601MCCHMFINLE, INDORAMA VENTURES, 2018 | D105: 1 | E105: 1.988348493 | F105: 24 hr/day (continuous) | G105: 365
A106: 88 | B106: 35601MCCHMFINLE, INDORAMA VENTURES, 2019 | C106: 35601MCCHMFINLE, INDORAMA VENTURES, 2019 | D106: 1 | E106: 2.609707397 | F106: 24 hr/day (continuous) | G106: 365
A107: 89 | B107: 35601MCCHMFINLE, INDORAMA VENTURES, 2020 | C107: 35601MCCHMFINLE, INDORAMA VENTURES, 2020 | D107: 1 | E107: 1.49126137 | F107: 24 hr/day (continuous) | G107: 365
A108: 90 | B108: 35601MCCHMFINLE, INDORAMA VENTURES, 2021 | C108: 35601MCCHMFINLE, INDORAMA VENTURES, 2021 | D108: 1 | E108: 2.654445238 | F108: 24 hr/day (continuous) | G108: 365
A109: 91 | B109: 35601MCCHMFINLE, INDORAMA VENTURES, avg | C109: 35601MCCHMFINLE, INDORAMA VENTURES, avg | D109: 1 | E109: 2.410044069 | F109: 24 hr/day (continuous) | G109: 365
A110: 92 | B110: 36505MTCHMHWY43, ARKEMA INC, 2016 | C110: 36505MTCHMHWY43, ARKEMA INC, 2016 | D110: 1 | E110: 1.864076712 | F110: 24 hr/day (continuous) | G110: 365
A111: 93 | B111: 36505MTCHMHWY43, ARKEMA INC, 2017 | C111: 36505MTCHMHWY43, ARKEMA INC, 2017 | D111: 1 | E111: 1.615533151 | F111: 24 hr/day (continuous) | G111: 365
A112: 94 | B112: 36505MTCHMHWY43, ARKEMA INC, 2018 | C112: 36505MTCHMHWY43, ARKEMA INC, 2018 | D112: 1 | E112: 1.615533151 | F112: 24 hr/day (continuous) | G112: 365
A113: 95 | B113: 36505MTCHMHWY43, ARKEMA INC, 2019 | C113: 36505MTCHMHWY43, ARKEMA INC, 2019 | D113: 1 | E113: 1.366989589 | F113: 24 hr/day (continuous) | G113: 365
A114: 96 | B114: 36505MTCHMHWY43, ARKEMA INC, 2020 | C114: 36505MTCHMHWY43, ARKEMA INC, 2020 | D114: 1 | E114: 1.366989589 | F114: 24 hr/day (continuous) | G114: 365
A115: 97 | B115: 36505MTCHMHWY43, ARKEMA INC, 2021 | C115: 36505MTCHMHWY43, ARKEMA INC, 2021 | D115: 1 | E115: 1.38935851 | F115: 24 hr/day (continuous) | G115: 365
A116: 98 | B116: 36505MTCHMHWY43, ARKEMA INC, avg | C116: 36505MTCHMHWY43, ARKEMA INC, avg | D116: 1 | E116: 1.53641345 | F116: 24 hr/day (continuous) | G116: 365
A117: 99 | B117: 37209BPXPL14095, BLANCHARD TERMINAL CO - NASHVILLE 51 AVE TN TERMINAL, 2016 | C117: 37209BPXPL14095, BLANCHARD TERMINAL CO - NASHVILLE 51 AVE TN TERMINAL, 2016 | D117: 1 | E117: 0.001242717808 | F117: 24 hr/day (continuous) | G117: 365
A118: 100 | B118: 37209BPXPL14095, BLANCHARD TERMINAL CO - NASHVILLE 51 AVE TN TERMINAL, avg | C118: 37209BPXPL14095, BLANCHARD TERMINAL CO - NASHVILLE 51 AVE TN TERMINAL, avg | D118: 1 | E118: 0.001242717808 | F118: 24 hr/day (continuous) | G118: 365

Sheet Source Inputs Point
A1: Point Source
A3: Step 1: Select Point Source Type | C3: Stack | E3: Step 2: Select Location and Deposition Settings
A5: Source Parameters | E5: Location and Deposition Settings
A6: Release Height (m) | C6: =IFERROR(VLOOKUP($C$3,[4]lookups!$B$1:$F$4,2,FALSE),"") -> 10 | E6: Select Urban or Rural | G6: Rural
A7: Stack Inside Diameter (m) | C7: =IFERROR(VLOOKUP($C$3,[4]lookups!$B$1:$F$4,3,FALSE),"") -> 2 | E7: Population | G7: =IFERROR(VLOOKUP($G$6,[4]lookups!$G$1:$H$3,2,FALSE),"") -> N/A for Rural
A8: Exit Gas Temperature (K) | C8: =IFERROR(VLOOKUP($C$3,[4]lookups!$B$1:$F$4,4,FALSE),"") -> 300
A9: Exit Gas Velocity (m/s) | C9: =IFERROR(VLOOKUP($C$3,[4]lookups!$B$1:$F$4,5,FALSE),"") -> 5 | E9: Select Particle Size | G9: No particles (vapor only)
E10: Mean Aerodynamic Diameter (mm) | G10: =IFERROR(VLOOKUP($G$9,[4]lookups!$J$1:$K$4,2,FALSE),"") -> N/A for Vapor
E11: Density (g/cm3) | G11: =IFERROR(VLOOKUP($G$9,[4]lookups!$J$2:$L$4,3,FALSE),"") -> N/A for Vapor
E13: Select Climate Region | G13: South (Coastal)
E14: Surface Station | G14: =IFERROR(VLOOKUP($G$13,[4]lookups!$M$1:$O$15,2,FALSE),"") -> Lake Charles, LA
E15: Upper-air Station | G15: =IFERROR(VLOOKUP($G$13,[4]lookups!$M$1:$O$15,3,FALSE),"") -> Lake Charles, LA
A16: Step 3: Define Emission Scenarios
E17: Select Cyclical or Consecutive | G17: Consecutive
A18: Scenario # | B18: Scenario Name | D18: Release # | E18: Release Amount (kg/site/day) | F18: Release Duration (hours/day) | G18: Release Frequency (days/year)
A19: 1 | B19: 00851HSSLVLIMET, LIMETREE BAY REFINING LLC & LIMETREE BAY TERMINALS LLC, 2020 | C19: 00851HSSLVLIMET, LIMETREE BAY REFINING LLC & LIMETREE BAY TERMINALS LLC, 2020 | D19: 1 | E19: 0.001242717808 | F19: 24 hr/day (continuous) | G19: 365
A20: 2 | B20: 00851HSSLVLIMET, LIMETREE BAY REFINING LLC & LIMETREE BAY TERMINALS LLC, avg | C20: 00851HSSLVLIMET, LIMETREE BAY REFINING LLC & LIMETREE BAY TERMINALS LLC, avg | D20: 1 | E20: 0.001242717808 | F20: 24 hr/day (continuous) | G20: 365
A21: 3 | B21: 07036XXNXX1400P, PHILLIPS 66 CO-BAYWAY REFINERY, 2016 | C21: 07036XXNXX1400P, PHILLIPS 66 CO-BAYWAY REFINERY, 2016 | D21: 1 | E21: 0 | F21: 24 hr/day (continuous) | G21: 365
A22: 4 | B22: 07036XXNXX1400P, PHILLIPS 66 CO-BAYWAY REFINERY, 2017 | C22: 07036XXNXX1400P, PHILLIPS 66 CO-BAYWAY REFINERY, 2017 | D22: 1 | E22: 0 | F22: 24 hr/day (continuous) | G22: 365
A23: 5 | B23: 07036XXNXX1400P, PHILLIPS 66 CO-BAYWAY REFINERY, 2018 | C23: 07036XXNXX1400P, PHILLIPS 66 CO-BAYWAY REFINERY, 2018 | D23: 1 | E23: 0 | F23: 24 hr/day (continuous) | G23: 365
A24: 6 | B24: 07036XXNXX1400P, PHILLIPS 66 CO-BAYWAY REFINERY, 2019 | C24: 07036XXNXX1400P, PHILLIPS 66 CO-BAYWAY REFINERY, 2019 | D24: 1 | E24: 0 | F24: 24 hr/day (continuous) | G24: 365
A25: 7 | B25: 07036XXNXX1400P, PHILLIPS 66 CO-BAYWAY REFINERY, 2020 | C25: 07036XXNXX1400P, PHILLIPS 66 CO-BAYWAY REFINERY, 2020 | D25: 1 | E25: 0 | F25: 24 hr/day (continuous) | G25: 365
A26: 8 | B26: 07036XXNXX1400P, PHILLIPS 66 CO-BAYWAY REFINERY, 2021 | C26: 07036XXNXX1400P, PHILLIPS 66 CO-BAYWAY REFINERY, 2021 | D26: 1 | E26: 0 | F26: 24 hr/day (continuous) | G26: 365
A27: 9 | B27: 07036XXNXX1400P, PHILLIPS 66 CO-BAYWAY REFINERY, avg | C27: 07036XXNXX1400P, PHILLIPS 66 CO-BAYWAY REFINERY, avg | D27: 1 | E27: 0 | F27: 24 hr/day (continuous) | G27: 365
A28: 10 | B28: 08066MBLLCBILLI, PAULSBORO REFINING CO LLC, 2016 | C28: 08066MBLLCBILLI, PAULSBORO REFINING CO LLC, 2016 | D28: 1 | E28: 0.1516115726 | F28: 24 hr/day (continuous) | G28: 365
A29: 11 | B29: 08066MBLLCBILLI, PAULSBORO REFINING CO LLC, 2017 | C29: 08066MBLLCBILLI, PAULSBORO REFINING CO LLC, 2017 | D29: 1 | E29: 0.1466407014 | F29: 24 hr/day (continuous) | G29: 365
A30: 12 | B30: 08066MBLLCBILLI, PAULSBORO REFINING CO LLC, 2018 | C30: 08066MBLLCBILLI, PAULSBORO REFINING CO LLC, 2018 | D30: 1 | E30: 0.05840773699 | F30: 24 hr/day (continuous) | G30: 365
A31: 13 | B31: 08066MBLLCBILLI, PAULSBORO REFINING CO LLC, 2019 | C31: 08066MBLLCBILLI, PAULSBORO REFINING CO LLC, 2019 | D31: 1 | E31: 0.05840773699 | F31: 24 hr/day (continuous) | G31: 365
A32: 14 | B32: 08066MBLLCBILLI, PAULSBORO REFINING CO LLC, 2020 | C32: 08066MBLLCBILLI, PAULSBORO REFINING CO LLC, 2020 | D32: 1 | E32: 0.05840773699 | F32: 24 hr/day (continuous) | G32: 365
A33: 15 | B33: 08066MBLLCBILLI, PAULSBORO REFINING CO LLC, 2021 | C33: 08066MBLLCBILLI, PAULSBORO REFINING CO LLC, 2021 | D33: 1 | E33: 0.01118446027 | F33: 24 hr/day (continuous) | G33: 365
A34: 16 | B34: 08066MBLLCBILLI, PAULSBORO REFINING CO LLC, avg | C34: 08066MBLLCBILLI, PAULSBORO REFINING CO LLC, avg | D34: 1 | E34: 0.08077665753 | F34: 24 hr/day (continuous) | G34: 365
A35: 17 | B35: 15061PLYSR370FR, BASF CORP, 2016 | C35: 15061PLYSR370FR, BASF CORP, 2016 | D35: 1 | E35: 0.2100193096 | F35: 24 hr/day (continuous) | G35: 365
A36: 18 | B36: 15061PLYSR370FR, BASF CORP, 2017 | C36: 15061PLYSR370FR, BASF CORP, 2017 | D36: 1 | E36: 0.2274173589 | F36: 24 hr/day (continuous) | G36: 365
A37: 19 | B37: 15061PLYSR370FR, BASF CORP, 2018 | C37: 15061PLYSR370FR, BASF CORP, 2018 | D37: 1 | E37: 0.2336309479 | F37: 24 hr/day (continuous) | G37: 365
A38: 20 | B38: 15061PLYSR370FR, BASF CORP, 2019 | C38: 15061PLYSR370FR, BASF CORP, 2019 | D38: 1 | E38: 0.2473008438 | F38: 24 hr/day (continuous) | G38: 365
A39: 21 | B39: 15061PLYSR370FR, BASF CORP, 2020 | C39: 15061PLYSR370FR, BASF CORP, 2020 | D39: 1 | E39: 0.2125047452 | F39: 24 hr/day (continuous) | G39: 365
A40: 22 | B40: 15061PLYSR370FR, BASF CORP, 2021 | C40: 15061PLYSR370FR, BASF CORP, 2021 | D40: 1 | E40: 0.1528542904 | F40: 24 hr/day (continuous) | G40: 365
A41: 23 | B41: 15061PLYSR370FR, BASF CORP, avg | C41: 15061PLYSR370FR, BASF CORP, avg | D41: 1 | E41: 0.2139545826 | F41: 24 hr/day (continuous) | G41: 365
A42: 24 | B42: 19061BPLCMPOSTR, MONROE ENERGY LLC-TRAINER REFINERY, 2016 | C42: 19061BPLCMPOSTR, MONROE ENERGY LLC-TRAINER REFINERY, 2016 | D42: 1 | E42: 0.006213589041 | F42: 24 hr/day (continuous) | G42: 365
A43: 25 | B43: 19061BPLCMPOSTR, MONROE ENERGY LLC-TRAINER REFINERY, 2017 | C43: 19061BPLCMPOSTR, MONROE ENERGY LLC-TRAINER REFINERY, 2017 | D43: 1 | E43: 0.008699024658 | F43: 24 hr/day (continuous) | G43: 365
A44: 26 | B44: 19061BPLCMPOSTR, MONROE ENERGY LLC-TRAINER REFINERY, 2018 | C44: 19061BPLCMPOSTR, MONROE ENERGY LLC-TRAINER REFINERY, 2018 | D44: 1 | E44: 0.009941742466 | F44: 24 hr/day (continuous) | G44: 365
A45: 27 | B45: 19061BPLCMPOSTR, MONROE ENERGY LLC-TRAINER REFINERY, 2019 | C45: 19061BPLCMPOSTR, MONROE ENERGY LLC-TRAINER REFINERY, 2019 | D45: 1 | E45: 0.01366989589 | F45: 24 hr/day (continuous) | G45: 365
A46: 28 | B46: 19061BPLCMPOSTR, MONROE ENERGY LLC-TRAINER REFINERY, 2020 | C46: 19061BPLCMPOSTR, MONROE ENERGY LLC-TRAINER REFINERY, 2020 | D46: 1 | E46: 0.007456306849 | F46: 24 hr/day (continuous) | G46: 365
A47: 29 | B47: 19061BPLCMPOSTR, MONROE ENERGY LLC-TRAINER REFINERY, 2021 | C47: 19061BPLCMPOSTR, MONROE ENERGY LLC-TRAINER REFINERY, 2021 | D47: 1 | E47: 0.006213589041 | F47: 24 hr/day (continuous) | G47: 365
A48: 30 | B48: 19061BPLCMPOSTR, MONROE ENERGY LLC-TRAINER REFINERY, avg | C48: 19061BPLCMPOSTR, MONROE ENERGY LLC-TRAINER REFINERY, avg | D48: 1 | E48: 0.008699024658 | F48: 24 hr/day (continuous) | G48: 365
A49: 31 | B49: 19706TXCDL2000W, DELAWARE CITY REFINERY, 2016 | C49: 19706TXCDL2000W, DELAWARE CITY REFINERY, 2016 | D49: 1 | E49: 0.09444655342 | F49: 24 hr/day (continuous) | G49: 365
A50: 32 | B50: 19706TXCDL2000W, DELAWARE CITY REFINERY, 2017 | C50: 19706TXCDL2000W, DELAWARE CITY REFINERY, 2017 | D50: 1 | E50: 0.09568927123 | F50: 24 hr/day (continuous) | G50: 365
A51: 33 | B51: 19706TXCDL2000W, DELAWARE CITY REFINERY, 2018 | C51: 19706TXCDL2000W, DELAWARE CITY REFINERY, 2018 | D51: 1 | E51: 0.1093591671 | F51: 24 hr/day (continuous) | G51: 365
A52: 34 | B52: 19706TXCDL2000W, DELAWARE CITY REFINERY, 2019 | C52: 19706TXCDL2000W, DELAWARE CITY REFINERY, 2019 | D52: 1 | E52: 0.1118446027 | F52: 24 hr/day (continuous) | G52: 365
A53: 35 | B53: 19706TXCDL2000W, DELAWARE CITY REFINERY, 2020 | C53: 19706TXCDL2000W, DELAWARE CITY REFINERY, 2020 | D53: 1 | E53: 0.09468266981 | F53: 24 hr/day (continuous) | G53: 365
A54: 36 | B54: 19706TXCDL2000W, DELAWARE CITY REFINERY, 2021 | C54: 19706TXCDL2000W, DELAWARE CITY REFINERY, 2021 | D54: 1 | E54: 0.1019028603 | F54: 24 hr/day (continuous) | G54: 365
A55: 37 | B55: 19706TXCDL2000W, DELAWARE CITY REFINERY, avg | C55: 19706TXCDL2000W, DELAWARE CITY REFINERY, avg | D55: 1 | E55: 0.1013208541 | F55: 24 hr/day (continuous) | G55: 365
A56: 38 | B56: 24124HCHSTRT460, CELANESE ACETATE LLC - CELCO PLANT, 2016 | C56: 24124HCHSTRT460, CELANESE ACETATE LLC - CELCO PLANT, 2016 | D56: 1 | E56: 0.3106794521 | F56: 24 hr/day (continuous) | G56: 365
A57: 39 | B57: 24124HCHSTRT460, CELANESE ACETATE LLC - CELCO PLANT, 2017 | C57: 24124HCHSTRT460, CELANESE ACETATE LLC - CELCO PLANT, 2017 | D57: 1 | E57: 0.3106794521 | F57: 24 hr/day (continuous) | G57: 365
A58: 40 | B58: 24124HCHSTRT460, CELANESE ACETATE LLC - CELCO PLANT, 2018 | C58: 24124HCHSTRT460, CELANESE ACETATE LLC - CELCO PLANT, 2018 | D58: 1 | E58: 0.3106794521 | F58: 24 hr/day (continuous) | G58: 365
A59: 41 | B59: 24124HCHSTRT460, CELANESE ACETATE LLC - CELCO PLANT, 2019 | C59: 24124HCHSTRT460, CELANESE ACETATE LLC - CELCO PLANT, 2019 | D59: 1 | E59: 0.3106794521 | F59: 24 hr/day (continuous) | G59: 365
A60: 42 | B60: 24124HCHSTRT460, CELANESE ACETATE LLC - CELCO PLANT, 2020 | C60: 24124HCHSTRT460, CELANESE ACETATE LLC - CELCO PLANT, 2020 | D60: 1 | E60: 0.3106794521 | F60: 24 hr/day (continuous) | G60: 365
A61: 43 | B61: 24124HCHSTRT460, CELANESE ACETATE LLC - CELCO PLANT, 2021 | C61: 24124HCHSTRT460, CELANESE ACETATE LLC - CELCO PLANT, 2021 | D61: 1 | E61: 0.3106794521 | F61: 24 hr/day (continuous) | G61: 365
A62: 44 | B62: 24124HCHSTRT460, CELANESE ACETATE LLC - CELCO PLANT, avg | C62: 24124HCHSTRT460, CELANESE ACETATE LLC - CELCO PLANT, avg | D62: 1 | E62: 0.3106794521 | F62: 24 hr/day (continuous) | G62: 365
A63: 45 | B63: 26050RGNWSSTATE, ERGON WEST VIRGINIA INC, 2019 | C63: 26050RGNWSSTATE, ERGON WEST VIRGINIA INC, 2019 | D63: 1 | E63: 0 | F63: 24 hr/day (continuous) | G63: 365
A64: 46 | B64: 26050RGNWSSTATE, ERGON WEST VIRGINIA INC, 2020 | C64: 26050RGNWSSTATE, ERGON WEST VIRGINIA INC, 2020 | D64: 1 | E64: 0 | F64: 24 hr/day (continuous) | G64: 365
A65: 47 | B65: 26050RGNWSSTATE, ERGON WEST VIRGINIA INC, 2021 | C65: 26050RGNWSSTATE, ERGON WEST VIRGINIA INC, 2021 | D65: 1 | E65: 0 | F65: 24 hr/day (continuous) | G65: 365
A66: 48 | B66: 26050RGNWSSTATE, ERGON WEST VIRGINIA INC, avg | C66: 26050RGNWSSTATE, ERGON WEST VIRGINIA INC, avg | D66: 1 | E66: 0 | F66: 24 hr/day (continuous) | G66: 365
A67: 49 | B67: 2757WBPPRD377BU, BLANCHARD TERMINAL CO - SELMA BUFFALO NC TERMINAL, 2016 | C67: 2757WBPPRD377BU, BLANCHARD TERMINAL CO - SELMA BUFFALO NC TERMINAL, 2016 | D67: 1 | E67: 0.001242717808 | F67: 24 hr/day (continuous) | G67: 365
A68: 50 | B68: 2757WBPPRD377BU, BLANCHARD TERMINAL CO - SELMA BUFFALO NC TERMINAL, avg | C68: 2757WBPPRD377BU, BLANCHARD TERMINAL CO - SELMA BUFFALO NC TERMINAL, avg | D68: 1 | E68: 0.001242717808 | F68: 24 hr/day (continuous) | G68: 365
A69: 51 | B69: 28213NCLCH14700, MALLARD CREEK POLYMERS, 2016 | C69: 28213NCLCH14700, MALLARD CREEK POLYMERS, 2016 | D69: 1 | E69: 0.1143300384 | F69: 24 hr/day (continuous) | G69: 365
A70: 52 | B70: 28213NCLCH14700, MALLARD CREEK POLYMERS, 2017 | C70: 28213NCLCH14700, MALLARD CREEK POLYMERS, 2017 | D70: 1 | E70: 0.1366989589 | F70: 24 hr/day (continuous) | G70: 365
A71: 53 | B71: 28213NCLCH14700, MALLARD CREEK POLYMERS, 2018 | C71: 28213NCLCH14700, MALLARD CREEK POLYMERS, 2018 | D71: 1 | E71: 0.1242717808 | F71: 24 hr/day (continuous) | G71: 365
A72: 54 | B72: 28213NCLCH14700, MALLARD CREEK POLYMERS, 2019 | C72: 28213NCLCH14700, MALLARD CREEK POLYMERS, 2019 | D72: 1 | E72: 0.1690096219 | F72: 24 hr/day (continuous) | G72: 365
A73: 55 | B73: 28213NCLCH14700, MALLARD CREEK POLYMERS, 2020 | C73: 28213NCLCH14700, MALLARD CREEK POLYMERS, 2020 | D73: 1 | E73: 0.3106794521 | F73: 24 hr/day (continuous) | G73: 365
A74: 56 | B74: 28213NCLCH14700, MALLARD CREEK POLYMERS, 2021 | C74: 28213NCLCH14700, MALLARD CREEK POLYMERS, 2021 | D74: 1 | E74: 0.5219414795 | F74: 24 hr/day (continuous) | G74: 365
A75: 57 | B75: 28213NCLCH14700, MALLARD CREEK POLYMERS, avg | C75: 28213NCLCH14700, MALLARD CREEK POLYMERS, avg | D75: 1 | E75: 0.2294885553 | F75: 24 hr/day (continuous) | G75: 365
A76: 58 | B76: 28214TRNSM7401O, BLANCHARD TERMINAL CO - CHARLOTTE EAST NC TERMINAL, 2016 | C76: 28214TRNSM7401O, BLANCHARD TERMINAL CO - CHARLOTTE EAST NC TERMINAL, 2016 | D76: 1 | E76: 0.001242717808 | F76: 24 hr/day (continuous) | G76: 365
A77: 59 | B77: 28214TRNSM7401O, BLANCHARD TERMINAL CO - CHARLOTTE EAST NC TERMINAL, avg | C77: 28214TRNSM7401O, BLANCHARD TERMINAL CO - CHARLOTTE EAST NC TERMINAL, avg | D77: 1 | E77: 0.001242717808 | F77: 24 hr/day (continuous) | G77: 365
A78: 60 | B78: 29201LNDCH750GR, LINDAU CHEMICALS INC., 2016 | C78: 29201LNDCH750GR, LINDAU CHEMICALS INC., 2016 | D78: 1 | E78: 1.826795178 | F78: 24 hr/day (continuous) | G78: 365
A79: 61 | B79: 29201LNDCH750GR, LINDAU CHEMICALS INC., 2017 | C79: 29201LNDCH750GR, LINDAU CHEMICALS INC., 2017 | D79: 1 | E79: 2.609707397 | F79: 24 hr/day (continuous) | G79: 365
A80: 62 | B80: 29201LNDCH750GR, LINDAU CHEMICALS INC., 2018 | C80: 29201LNDCH750GR, LINDAU CHEMICALS INC., 2018 | D80: 1 | E80: 3.765434959 | F80: 24 hr/day (continuous) | G80: 365
A81: 63 | B81: 29201LNDCH750GR, LINDAU CHEMICALS INC., 2019 | C81: 29201LNDCH750GR, LINDAU CHEMICALS INC., 2019 | D81: 1 | E81: 4.187959014 | F81: 24 hr/day (continuous) | G81: 365
A82: 64 | B82: 29201LNDCH750GR, LINDAU CHEMICALS INC., 2020 | C82: 29201LNDCH750GR, LINDAU CHEMICALS INC., 2020 | D82: 1 | E82: 2.907959671 | F82: 24 hr/day (continuous) | G82: 365
A83: 65 | B83: 29201LNDCH750GR, LINDAU CHEMICALS INC., 2021 | C83: 29201LNDCH750GR, LINDAU CHEMICALS INC., 2021 | D83: 1 | E83: 4.27494926 | F83: 24 hr/day (continuous) | G83: 365
A84: 66 | B84: 29201LNDCH750GR, LINDAU CHEMICALS INC., avg | C84: 29201LNDCH750GR, LINDAU CHEMICALS INC., avg | D84: 1 | E84: 3.262134247 | F84: 24 hr/day (continuous) | G84: 365
A85: 67 | B85: 30701THGDY1601H, OMNOVA SOLUTIONS INC, 2016 | C85: 30701THGDY1601H, OMNOVA SOLUTIONS INC, 2016 | D85: 1 | E85: 0.06458404449 | F85: 24 hr/day (continuous) | G85: 365
A86: 68 | B86: 30701THGDY1601H, OMNOVA SOLUTIONS INC, avg | C86: 30701THGDY1601H, OMNOVA SOLUTIONS INC, avg | D86: 1 | E86: 0.06458404449 | F86: 24 hr/day (continuous) | G86: 365
A87: 69 | B87: 3072WSTYRN1468P, TRINSEO, 2016 | C87: 3072WSTYRN1468P, TRINSEO, 2016 | D87: 1 | E87: 0.1304853699 | F87: 24 hr/day (continuous) | G87: 365
A88: 70 | B88: 3072WSTYRN1468P, TRINSEO, 2017 | C88: 3072WSTYRN1468P, TRINSEO, 2017 | D88: 1 | E88: 0.123029063 | F88: 24 hr/day (continuous) | G88: 365
A89: 71 | B89: 3072WSTYRN1468P, TRINSEO, 2018 | C89: 3072WSTYRN1468P, TRINSEO, 2018 | D89: 1 | E89: 0.123029063 | F89: 24 hr/day (continuous) | G89: 365
A90: 72 | B90: 3072WSTYRN1468P, TRINSEO, 2019 | C90: 3072WSTYRN1468P, TRINSEO, 2019 | D90: 1 | E90: 0.1366989589 | F90: 24 hr/day (continuous) | G90: 365
A91: 73 | B91: 3072WSTYRN1468P, TRINSEO, 2020 | C91: 3072WSTYRN1468P, TRINSEO, 2020 | D91: 1 | E91: 0.1242717808 | F91: 24 hr/day (continuous) | G91: 365
A92: 74 | B92: 3072WSTYRN1468P, TRINSEO, 2021 | C92: 3072WSTYRN1468P, TRINSEO, 2021 | D92: 1 | E92: 0.1267572164 | F92: 24 hr/day (continuous) | G92: 365
A93: 75 | B93: 3072WSTYRN1468P, TRINSEO, avg | C93: 3072WSTYRN1468P, TRINSEO, avg | D93: 1 | E93: 0.1273785753 | F93: 24 hr/day (continuous) | G93: 365
A94: 76 | B94: 35217BCCKDRAILR, DRUMMOND CO INC ABC COKE DIV, 2016 | C94: 35217BCCKDRAILR, DRUMMOND CO INC ABC COKE DIV, 2016 | D94: 1 | E94: 0.5617084493 | F94: 24 hr/day (continuous) | G94: 365
A95: 77 | B95: 35217BCCKDRAILR, DRUMMOND CO INC ABC COKE DIV, 2017 | C95: 35217BCCKDRAILR, DRUMMOND CO INC ABC COKE DIV, 2017 | D95: 1 | E95: 0.5293977863 | F95: 24 hr/day (continuous) | G95: 365
A96: 78 | B96: 35217BCCKDRAILR, DRUMMOND CO INC ABC COKE DIV, 2018 | C96: 35217BCCKDRAILR, DRUMMOND CO INC ABC COKE DIV, 2018 | D96: 1 | E96: 0.5567375781 | F96: 24 hr/day (continuous) | G96: 365
A97: 79 | B97: 35217BCCKDRAILR, DRUMMOND CO INC ABC COKE DIV, 2019 | C97: 35217BCCKDRAILR, DRUMMOND CO INC ABC COKE DIV, 2019 | D97: 1 | E97: 0.3641163178 | F97: 24 hr/day (continuous) | G97: 365
A98: 80 | B98: 35217BCCKDRAILR, DRUMMOND CO INC ABC COKE DIV, 2020 | C98: 35217BCCKDRAILR, DRUMMOND CO INC ABC COKE DIV, 2020 | D98: 1 | E98: 0.2559998685 | F98: 24 hr/day (continuous) | G98: 365
A99: 81 | B99: 35217BCCKDRAILR, DRUMMOND CO INC ABC COKE DIV, 2021 | C99: 35217BCCKDRAILR, DRUMMOND CO INC ABC COKE DIV, 2021 | D99: 1 | E99: 0.2336309479 | F99: 24 hr/day (continuous) | G99: 365
A100: 82 | B100: 35217BCCKDRAILR, DRUMMOND CO INC ABC COKE DIV, avg | C100: 35217BCCKDRAILR, DRUMMOND CO INC ABC COKE DIV, avg | D100: 1 | E100: 0.4169318247 | F100: 24 hr/day (continuous) | G100: 365
A101: 83 | B101: 35221BRMNG2601W, SHELL BIRMINGHAM TERMINAL, 2021 | C101: 35221BRMNG2601W, SHELL BIRMINGHAM TERMINAL, 2021 | D101: 1 | E101: 0.1031455781 | F101: 24 hr/day (continuous) | G101: 365
A102: 84 | B102: 35221BRMNG2601W, SHELL BIRMINGHAM TERMINAL, avg | C102: 35221BRMNG2601W, SHELL BIRMINGHAM TERMINAL, avg | D102: 1 | E102: 0.1031455781 | F102: 24 hr/day (continuous) | G102: 365
A103: 85 | B103: 35601MCCHMFINLE, INDORAMA VENTURES, 2016 | C103: 35601MCCHMFINLE, INDORAMA VENTURES, 2016 | D103: 1 | E103: 1.068737315 | F103: 24 hr/day (continuous) | G103: 365
A104: 86 | B104: 35601MCCHMFINLE, INDORAMA VENTURES, 2017 | C104: 35601MCCHMFINLE, INDORAMA VENTURES, 2017 | D104: 1 | E104: 1.615533151 | F104: 24 hr/day (continuous) | G104: 365
A105: 87 | B105: 35601MCCHMFINLE, INDORAMA VENTURES, 2018 | C105: 35601MCCHMFINLE, INDORAMA VENTURES, 2018 | D105: 1 | E105: 0.8699024658 | F105: 24 hr/day (continuous) | G105: 365
A106: 88 | B106: 35601MCCHMFINLE, INDORAMA VENTURES, 2019 | C106: 35601MCCHMFINLE, INDORAMA VENTURES, 2019 | D106: 1 | E106: 1.180581918 | F106: 24 hr/day (continuous) | G106: 365
A107: 89 | B107: 35601MCCHMFINLE, INDORAMA VENTURES, 2020 | C107: 35601MCCHMFINLE, INDORAMA VENTURES, 2020 | D107: 1 | E107: 0.1615533151 | F107: 24 hr/day (continuous) | G107: 365
A108: 90 | B108: 35601MCCHMFINLE, INDORAMA VENTURES, 2021 | C108: 35601MCCHMFINLE, INDORAMA VENTURES, 2021 | D108: 1 | E108: 0.4225240548 | F108: 24 hr/day (continuous) | G108: 365
A109: 91 | B109: 35601MCCHMFINLE, INDORAMA VENTURES, avg | C109: 35601MCCHMFINLE, INDORAMA VENTURES, avg | D109: 1 | E109: 0.8864720365 | F109: 24 hr/day (continuous) | G109: 365
A110: 92 | B110: 36505MTCHMHWY43, ARKEMA INC, 2016 | C110: 36505MTCHMHWY43, ARKEMA INC, 2016 | D110: 1 | E110: 0.3106794521 | F110: 24 hr/day (continuous) | G110: 365
A111: 93 | B111: 36505MTCHMHWY43, ARKEMA INC, 2017 | C111: 36505MTCHMHWY43, ARKEMA INC, 2017 | D111: 1 | E111: 0.3106794521 | F111: 24 hr/day (continuous) | G111: 365
A112: 94 | B112: 36505MTCHMHWY43, ARKEMA INC, 2018 | C112: 36505MTCHMHWY43, ARKEMA INC, 2018 | D112: 1 | E112: 0.3106794521 | F112: 24 hr/day (continuous) | G112: 365
A113: 95 | B113: 36505MTCHMHWY43, ARKEMA INC, 2019 | C113: 36505MTCHMHWY43, ARKEMA INC, 2019 | D113: 1 | E113: 0.3106794521 | F113: 24 hr/day (continuous) | G113: 365
A114: 96 | B114: 36505MTCHMHWY43, ARKEMA INC, 2020 | C114: 36505MTCHMHWY43, ARKEMA INC, 2020 | D114: 1 | E114: 0.3106794521 | F114: 24 hr/day (continuous) | G114: 365
A115: 97 | B115: 36505MTCHMHWY43, ARKEMA INC, 2021 | C115: 36505MTCHMHWY43, ARKEMA INC, 2021 | D115: 1 | E115: 0.3106794521 | F115: 24 hr/day (continuous) | G115: 365
A116: 98 | B116: 36505MTCHMHWY43, ARKEMA INC, avg | C116: 36505MTCHMHWY43, ARKEMA INC, avg | D116: 1 | E116: 0.3106794521 | F116: 24 hr/day (continuous) | G116: 365
A117: 99 | B117: 37209BPXPL14095, BLANCHARD TERMINAL CO - NASHVILLE 51 AVE TN TERMINAL, 2016 | C117: 37209BPXPL14095, BLANCHARD TERMINAL CO - NASHVILLE 51 AVE TN TERMINAL, 2016 | D117: 1 | E117: 0.001242717808 | F117: 24 hr/day (continuous) | G117: 365
A118: 100 | B118: 37209BPXPL14095, BLANCHARD TERMINAL CO - NASHVILLE 51 AVE TN TERMINAL, avg | C118: 37209BPXPL14095, BLANCHARD TERMINAL CO - NASHVILLE 51 AVE TN TERMINAL, avg | D118: 1 | E118: 0.001242717808 | F118: 24 hr/day (continuous) | G118: 365

Sheet Source Outputs Fugitive
L1: Acute Dose (mg/kg/day) | S1: Chronic Dose (mg/kg/day)
A2: Source Type | B2: Emission Scenario | C2: Statistic | D2: Location | E2: Outdoor Air Concentration (µg/m3) | G2: Indoor Air Concentration (µg/m3) | I2: Total Annual Particle Deposition (g/m2) | L2: Infant | M2: Young Toddler | N2: Toddler | O2: Small Child | P2: Child | Q2: Teen | R2: Adult | S2: Infant | T2: Young Toddler | U2: Toddler | V2: Small Child | W2: Child | X2: Teen | Y2: Adult | Z2: Lifetime
E3: Daily | F3: Annual | G3: Daily | H3: Annual | I3: Total | J3: Wet | K3: Dry | L3: <1 year | M3: 1 - <2 years | N3: 2 - <3 years | O3: 3 - < 6 years | P3: 6 - <11 years | Q3: 11 - <16 years | R3: 16 - <78 years | S3: <1 year | T3: 1 - <2 years | U3: 2 - <3 years | V3: 3 - < 6 years | W3: 6 - <11 years | X3: 11 - <16 years | Y3: 16 - <78 years
A4: Fugitive Source | B4: 00851HSSLVLIMET, LIMETREE BAY REFINING LLC & LIMETREE BAY TERMINALS LLC, 2020 | C4: High-End | D4: Fenceline Avg | E4: 2.34E-02 | F4: 2.34E-02 | G4: 2.34E-02 | H4: 2.34E-02 | I4: 0.00E+00 | J4: 0.00E+00 | K4: 0.00E+00 | L4: 3.27E-05 | M4: 3.55E-05 | N4: 2.93E-05 | O4: 2.00E-05 | P4: 1.17E-05 | Q4: 7.72E-06 | R4: 5.24E-06 | S4: 1.62E-05 | T4: 1.64E-05 | U4: 1.51E-05 | V4: 1.27E-05 | W4: 8.84E-06 | X4: 6.27E-06 | Y4: 4.52E-06 | Z4: 2.07E-06
